Workbook

Sheet Disclaimer
C2: Ambiental - Modelagem Econômico-Financeira
C4: Disclaimer
C5: Note:
C6: O presente Modelo Econômico-Financeiro tem por objeto estabelecer as diretrizes para subsidiar os estudos de modelagem econômico-financeira, possuindo como respaldo também estudos de modelagem técnica e jurídica, com vistas à estruturação de concessão patrocinada dos serviços de manejo de resíduos sólidos e limpeza pública do município de Joaçaba.

Sheet Summary
A1: Summary
B3: Key Outputs
C5: Seleção de Cenário
C7: Cenário
C9: Real / Nominal
C11: Macro Check | D11: =IFRIC12_Check -> 0
C15: Financiamento Investimentos
C17: FONTES
C19: Fontes
C21: ='Usos e fontes'!B17 -> Receitas | D21: =E21/$E$27 -> 0.9118821593 | E21: =SUM('Usos e fontes'!E17:AH17) -> 471035.3047 | F21: $ 000s
C22: ='Usos e fontes'!B18 -> Equity | D22: =E22/$E$27 -> 0.03438892966 | E22: =SUM('Usos e fontes'!E18:AH18) -> 17763.69874 | F22: $ 000s
C23: ='Usos e fontes'!B19 -> Dívida Senior | D23: =E23/$E$27 -> 0.03859461572 | E23: =SUM('Usos e fontes'!E19:AH19) -> 19936.15775 | F23: $ 000s
C24: ='Usos e fontes'!B20 -> Saques Conta Reserva | D24: =E24/$E$27 -> 0.005968689768 | E24: =SUM('Usos e fontes'!E20:AH20) -> 3083.143556 | F24: $ 000s
C25: ='Usos e fontes'!B21 -> Receitas Financeiras | D25: =E25/$E$27 -> 0.009165605602 | E25: =SUM('Usos e fontes'!E21:AH21) -> 4734.519459 | F25: $ 000s
C27: TOTAL FONTES | D27: =SUM(D21:D26) -> 1 | E27: =SUM(E21:E25) -> 516552.8242 | F27: $ 000s
C30: USOS
C32: Usos
C34: ='Usos e fontes'!B5 -> Custos | D34: =E34/$E$46 -> 0.7409211299 | E34: =-SUM('Usos e fontes'!E5:AH5) -> 382724.9021 | F34: $ 000s
C35: ='Usos e fontes'!B6 -> Investimentos | D35: 0.06432435953 | E35: =-SUM('Usos e fontes'!E6:AH6) -> 33226.92958 | F35: $ 000s
C36: ='Usos e fontes'!B7 -> Imposto de renda pago | D36: 0.03173584156 | E36: =-SUM('Usos e fontes'!E7:AH7) -> 16393.23859 | F36: $ 000s
C37: ='Usos e fontes'!B8 -> Depósitos Conta Reserva | D37: 0.005968689768 | E37: =-SUM('Usos e fontes'!E8:AH8) -> 3083.143556 | F37: $ 000s
C38: ='Usos e fontes'!B9 -> Pagamento de Juros | D38: 0.02560044338 | E38: =-SUM('Usos e fontes'!E9:AH9) -> 13223.98133 | F38: $ 000s
C39: ='Usos e fontes'!B10 -> Pagamento de Principal | D39: 0.03859461572 | E39: =-SUM('Usos e fontes'!E10:AH10) -> 19936.15775 | F39: $ 000s
C40: ='Usos e fontes'!B11 -> Fiança Bancária | D40: 0.002051737553 | E40: =-SUM('Usos e fontes'!E11:AH11) -> 1059.830828 | F40: $ 000s
C41: ='Usos e fontes'!B12 -> Capital de Giro | D41: 0 | E41: =-SUM('Usos e fontes'!E12:AH12) -> 0 | F41: $ 000s
C42: ='Usos e fontes'!B13 -> Dividendos | D42: 0.06775293982 | E42: =-SUM('Usos e fontes'!E13:AH13) -> 34997.97241 | F42: $ 000s
C43: ='Usos e fontes'!B14 -> Aumento / Redução conta caixa | D43: 0.02305024279 | E43: =-SUM('Usos e fontes'!E14:AH14) -> 11906.66801 | F43: $ 000s
C46: TOTAL USOS | D46: =SUM(D34:D45) -> 1 | E46: =SUM(E34:E44) -> 516552.8242 | F46: $ 000s
C49: Retornos
C51: Project NPV | D51: =Project_NPV -> 3.285987481 | E51: R$
C52: Project IRR | D52: =Project_IRR -> 0.1109370053 | E52: % Real
C53: ='NPV, TIR e Payback'!C35 -> Equity IRR | D53: =IF(Dividends=1,0,'NPV, TIR e Payback'!D35) -> 0.14504123 | E53: %
C54: ='NPV, TIR e Payback'!C74 -> Payback Descontado (Projeto) | D54: ='NPV, TIR e Payback'!E73 -> 10 | E54: Anos
C59: Indicadores contrato
C61: Prazo contrato | E61: =Inputs!E32 -> 30
C62: Contraprestação total | E62: =DFs!F16 -> 155701.2259 | F62: R$
C63: Contraprestação anual | E63: =DFs!K16 -> 4661.759147 | F63: R$
C64: Contraprestação mensal | E64: =E63/12 -> 388.4799289 | F64: R$
C65: ∑ VPL Contraprestações | E65: =Ops!G1034 -> 44892.15199 | F65: R$
C66: Investimentos + ReInvest | E66: =-DFs!F49 -> 33226.92958 | F66: R$

Sheet DFs
A1: DEMONSTRAÇÕES FINANCEIRAS | D1: Alerta | E1: Erro | F1: IRR | G1: NPV | H1: Macro
D2: =CHECKS!$F$9 -> 0 | E2: =CHECKS!$F$15 -> 0 | F2: =Project_IRR -> 0.1109370053 | G2: =Project_NPV -> 3.285987481 | H2: =Master_Check -> 0
C5: =Flags!C4 -> Começo período | G5: =Flags!G4 -> 2024-01-01 | H5: =Flags!H4 -> 2025-01-01 | I5: =Flags!I4 -> 2026-01-01 | J5: =Flags!J4 -> 2027-01-01 | K5: =Flags!K4 -> 2028-01-01 | L5: =Flags!L4 -> 2029-01-01 | M5: =Flags!M4 -> 2030-01-01 | N5: =Flags!N4 -> 2031-01-01 | O5: =Flags!O4 -> 2032-01-01 | P5: =Flags!P4 -> 2033-01-01 | Q5: =Flags!Q4 -> 2034-01-01 | R5: =Flags!R4 -> 2035-01-01 | S5: =Flags!S4 -> 2036-01-01 | T5: =Flags!T4 -> 2037-01-01 | U5: =Flags!U4 -> 2038-01-01 | V5: =Flags!V4 -> 2039-01-01 | W5: =Flags!W4 -> 2040-01-01 | X5: =Flags!X4 -> 2041-01-01 | Y5: =Flags!Y4 -> 2042-01-01 | Z5: =Flags!Z4 -> 2043-01-01 | AA5: =Flags!AA4 -> 2044-01-01 | AB5: =Flags!AB4 -> 2045-01-01 | AC5: =Flags!AC4 -> 2046-01-01 | AD5: =Flags!AD4 -> 2047-01-01 | AE5: =Flags!AE4 -> 2048-01-01 | AF5: =Flags!AF4 -> 2049-01-01 | AG5: =Flags!AG4 -> 2050-01-01 | AH5: =Flags!AH4 -> 2051-01-01 | AI5: =Flags!AI4 -> 2052-01-01 | AJ5: =Flags!AJ4 -> 2053-01-01 | AK5: =Flags!AK4 -> 2054-01-01 | AL5: =Flags!AL4 -> 2055-01-01 | AM5: =Flags!AM4 -> 2056-01-01
C6: =Flags!C5 -> Fim período | G6: =Flags!G5 -> 2024-12-31 | H6: =Flags!H5 -> 2025-12-31 | I6: =Flags!I5 -> 2026-12-31 | J6: =Flags!J5 -> 2027-12-31 | K6: =Flags!K5 -> 2028-12-31 | L6: =Flags!L5 -> 2029-12-31 | M6: =Flags!M5 -> 2030-12-31 | N6: =Flags!N5 -> 2031-12-31 | O6: =Flags!O5 -> 2032-12-31 | P6: =Flags!P5 -> 2033-12-31 | Q6: =Flags!Q5 -> 2034-12-31 | R6: =Flags!R5 -> 2035-12-31 | S6: =Flags!S5 -> 2036-12-31 | T6: =Flags!T5 -> 2037-12-31 | U6: =Flags!U5 -> 2038-12-31 | V6: =Flags!V5 -> 2039-12-31 | W6: =Flags!W5 -> 2040-12-31 | X6: =Flags!X5 -> 2041-12-31 | Y6: =Flags!Y5 -> 2042-12-31 | Z6: =Flags!Z5 -> 2043-12-31 | AA6: =Flags!AA5 -> 2044-12-31 | AB6: =Flags!AB5 -> 2045-12-31 | AC6: =Flags!AC5 -> 2046-12-31 | AD6: =Flags!AD5 -> 2047-12-31 | AE6: =Flags!AE5 -> 2048-12-31 | AF6: =Flags!AF5 -> 2049-12-31 | AG6: =Flags!AG5 -> 2050-12-31 | AH6: =Flags!AH5 -> 2051-12-31 | AI6: =Flags!AI5 -> 2052-12-31 | AJ6: =Flags!AJ5 -> 2053-12-31 | AK6: =Flags!AK5 -> 2054-12-31 | AL6: =Flags!AL5 -> 2055-12-31 | AM6: =Flags!AM5 -> 2056-12-31
C7: Ano | G7: =YEAR(G6) -> 2024 | H7: 2025 | I7: 2026 | J7: 2027 | K7: 2028 | L7: 2029 | M7: 2030 | N7: 2031 | O7: 2032 | P7: 2033 | Q7: 2034 | R7: 2035 | S7: 2036 | T7: 2037 | U7: 2038 | V7: 2039 | W7: 2040 | X7: 2041 | Y7: 2042 | Z7: 2043 | AA7: 2044 | AB7: 2045 | AC7: 2046 | AD7: 2047 | AE7: 2048 | AF7: 2049 | AG7: 2050 | AH7: 2051 | AI7: 2052 | AJ7: 2053 | AK7: 2054 | AL7: 2055 | AM7: 2056
C8: Ano de Concessão | G8: =Flags!G15 -> 1 | H8: =Flags!H15 -> 2 | I8: =Flags!I15 -> 3 | J8: =Flags!J15 -> 4 | K8: =Flags!K15 -> 5 | L8: =Flags!L15 -> 6 | M8: =Flags!M15 -> 7 | N8: =Flags!N15 -> 8 | O8: =Flags!O15 -> 9 | P8: =Flags!P15 -> 10 | Q8: =Flags!Q15 -> 11 | R8: =Flags!R15 -> 12 | S8: =Flags!S15 -> 13 | T8: =Flags!T15 -> 14 | U8: =Flags!U15 -> 15 | V8: =Flags!V15 -> 16 | W8: =Flags!W15 -> 17 | X8: =Flags!X15 -> 18 | Y8: =Flags!Y15 -> 19 | Z8: =Flags!Z15 -> 20 | AA8: =Flags!AA15 -> 21 | AB8: =Flags!AB15 -> 22 | AC8: =Flags!AC15 -> 23 | AD8: =Flags!AD15 -> 24 | AE8: =Flags!AE15 -> 25 | AF8: =Flags!AF15 -> 26 | AG8: =Flags!AG15 -> 27 | AH8: =Flags!AH15 -> 28 | AI8: =Flags!AI15 -> 29 | AJ8: =Flags!AJ15 -> 30 | AK8: =Flags!AK15 -> 31 | AL8: =Flags!AL15 -> 32 | AM8: =Flags!AM15 -> 33
C9: =Flags!C6 -> Timeline | G9: =Flags!G90 -> Ops | H9: =Flags!H90 -> Ops | I9: =Flags!I90 -> Ops | J9: =Flags!J90 -> Ops | K9: =Flags!K90 -> Ops | L9: =Flags!L90 -> Ops | M9: =Flags!M90 -> Ops | N9: =Flags!N90 -> Ops | O9: =Flags!O90 -> Ops | P9: =Flags!P90 -> Ops | Q9: =Flags!Q90 -> Ops | R9: =Flags!R90 -> Ops | S9: =Flags!S90 -> Ops | T9: =Flags!T90 -> Ops | U9: =Flags!U90 -> Ops | V9: =Flags!V90 -> Ops | W9: =Flags!W90 -> Ops | X9: =Flags!X90 -> Ops | Y9: =Flags!Y90 -> Ops | Z9: =Flags!Z90 -> Ops | AA9: =Flags!AA90 -> Ops | AB9: =Flags!AB90 -> Ops | AC9: =Flags!AC90 -> Ops | AD9: =Flags!AD90 -> Ops | AE9: =Flags!AE90 -> Ops | AF9: =Flags!AF90 -> Ops | AG9: =Flags!AG90 -> Ops | AH9: =Flags!AH90 -> Ops | AI9: =Flags!AI90 -> Ops | AJ9: =Flags!AJ90 -> Ops | AK9: =Flags!AK90 -> Post Ops. | AL9: =Flags!AL90 -> Post Ops. | AM9: =Flags!AM90 -> Post Ops.
D11: =Flags!D8 -> Inputs | E11: =Flags!E8 -> Units | F11: =Flags!F8 -> Total
C13: Fluxo de Caixa (Waterfall) R$
C15: Receita Líquida
C16: Contraprestação Pública Anual | E16: $ 000s | F16: =SUM(G16:AM16) -> 155701.2259 | G16: =Ops!G127 -> 8720 | H16: =Ops!H127 -> 4133.535497 | I16: =Ops!I127 -> 4585.214927 | J16: =Ops!J127 -> 4623.505932 | K16: =Ops!K127 -> 4661.759147 | L16: =Ops!L127 -> 4699.971757 | M16: =Ops!M127 -> 4738.256011 | N16: =Ops!N127 -> 4776.491981 | O16: =Ops!O127 -> 4814.789814 | P16: =Ops!P127 -> 4853.032178 | Q16: =Ops!Q127 -> 4891.327153 | R16: =Ops!R127 -> 4929.559945 | S16: =Ops!S127 -> 4967.836606 | T16: =Ops!T127 -> 5006.044822 | U16: =Ops!U127 -> 5044.288654 | V16: =Ops!V127 -> 5082.563074 | W16: =Ops!W127 -> 5120.863194 | X16: =Ops!X127 -> 5159.081529 | Y16: =Ops!Y127 -> 5197.318294 | Z16: =Ops!Z127 -> 5235.568984 | AA16: =Ops!AA127 -> 5273.82922 | AB16: =Ops!AB127 -> 5312.094757 | AC16: =Ops!AC127 -> 5350.361472 | AD16: =Ops!AD127 -> 5388.625371 | AE16: =Ops!AE127 -> 5426.882577 | AF16: =Ops!AF127 -> 5465.129335 | AG16: =Ops!AG127 -> 5503.455713 | AH16: =Ops!AH127 -> 5541.669819 | AI16: =Ops!AI127 -> 5579.954719 | AJ16: =Ops!AJ127 -> 5618.213433 | AK16: =Ops!AK127 -> 0 | AL16: =Ops!AL127 -> 0 | AM16: =Ops!AM127 -> 0
C17: Receitas Tarifárias | E17: $ 000s | F17: =SUM(G17:AM17) -> 340378.8764 | G17: =SUM(Ops!G175:G175) -> 0 | H17: =SUM(Ops!H175:H175) -> 6111.701693 | I17: =SUM(Ops!I175:I175) -> 8028.271845 | J17: =SUM(Ops!J175:J175) -> 10545.76195 | K17: =SUM(Ops!K175:K175) -> 10654.11793 | L17: =SUM(Ops!L175:L175) -> 10763.47105 | M17: =SUM(Ops!M175:M175) -> 10874.15368 | N17: =SUM(Ops!N175:N175) -> 10985.83346 | O17: =SUM(Ops!O175:O175) -> 11098.84276 | P17: =SUM(Ops!P175:P175) -> 11212.8492 | Q17: =SUM(Ops!Q175:Q175) -> 11328.18517 | R17: =SUM(Ops!R175:R175) -> 11444.51827 | S17: =SUM(Ops!S175:S175) -> 11562.18089 | T17: =SUM(Ops!T175:T175) -> 11680.84066 | U17: =SUM(Ops!U175:U175) -> 11800.82994 | V17: =SUM(Ops!V175:V175) -> 11922.14875 | W17: =SUM(Ops!W175:W175) -> 12044.79708 | X17: =SUM(Ops!X175:X175) -> 12168.44255 | Y17: =SUM(Ops!Y175:Y175) -> 12293.41754 | Z17: =SUM(Ops!Z175:Z175) -> 12419.72205 | AA17: =SUM(Ops!AA175:AA175) -> 12547.35608 | AB17: =SUM(Ops!AB175:AB175) -> 12676.31964 | AC17: =SUM(Ops!AC175:AC175) -> 12806.61271 | AD17: =SUM(Ops!AD175:AD175) -> 12938.23531 | AE17: =SUM(Ops!AE175:AE175) -> 13071.18742 | AF17: =SUM(Ops!AF175:AF175) -> 13205.46906 | AG17: =SUM(Ops!AG175:AG175) -> 13341.4126 | AH17: =SUM(Ops!AH175:AH175) -> 13478.35328 | AI17: =SUM(Ops!AI175:AI175) -> 13616.95587 | AJ17: =SUM(Ops!AJ175:AJ175) -> 13756.88797 | AK17: =SUM(Ops!AK175:AK175) -> 0 | AL17: =SUM(Ops!AL175:AL175) -> 0 | AM17: =SUM(Ops!AM175:AM175) -> 0
C18: Deduções da Receita | E18: $ 000s | F18: =SUM(G18:AM18) -> -33555.11372 | G18: =Ops!G207 -> 487.0532017 | H18: =Ops!H207 -> -537.0583651 | I18: =Ops!I207 -> -634.9897888 | J18: =Ops!J207 -> -1108.254926 | K18: =Ops!K207 -> -1125.264053 | L18: =Ops!L207 -> -1139.311285 | M18: =Ops!M207 -> -1161.668146 | N18: =Ops!N207 -> -690.7641623 | O18: =Ops!O207 -> -1205.274299 | P18: =Ops!P207 -> -1223.592551 | Q18: =Ops!Q207 -> -1170.625373 | R18: =Ops!R207 -> -1261.355846 | S18: =Ops!S207 -> -1285.157667 | T18: =Ops!T207 -> -1307.245306 | U18: =Ops!U207 -> -772.1050994 | V18: =Ops!V207 -> -1266.070657 | W18: =Ops!W207 -> -1279.659867 | X18: =Ops!X207 -> -1289.745857 | Y18: =Ops!Y207 -> -1290.911837 | Z18: =Ops!Z207 -> -1299.729132 | AA18: =Ops!AA207 -> -1246.394427 | AB18: =Ops!AB207 -> -841.1166774 | AC18: =Ops!AC207 -> -1362.299877 | AD18: =Ops!AD207 -> -1384.084311 | AE18: =Ops!AE207 -> -1387.780186 | AF18: =Ops!AF207 -> -1404.687461 | AG18: =Ops!AG207 -> -1431.511654 | AH18: =Ops!AH207 -> -1453.25222 | AI18: =Ops!AI207 -> -982.7866985 | AJ18: =Ops!AJ207 -> -1499.469192 | AK18: =Ops!AK207 -> 0 | AL18: =Ops!AL207 -> 0 | AM18: =Ops!AM207 -> 0
C19: Total | E19: $ 000s | F19: =SUM(G19:AM19) -> 462524.9886 | G19: =SUM(G16:G18) -> 9207.053202 | H19: 9708.178825 | I19: 11978.49698 | J19: 14061.01296 | K19: 14190.61302 | L19: 14324.13152 | M19: 14450.74155 | N19: 15071.56128 | O19: 14708.35828 | P19: 14842.28883 | Q19: 15048.88695 | R19: 15112.72237 | S19: 15244.85983 | T19: 15379.64017 | U19: 16073.0135 | V19: 15738.64117 | W19: 15886.00041 | X19: 16037.77822 | Y19: 16199.824 | Z19: 16355.5619 | AA19: 16574.79088 | AB19: 17147.29772 | AC19: 16794.67431 | AD19: 16942.77637 | AE19: 17110.28982 | AF19: 17265.91094 | AG19: 17413.35666 | AH19: 17566.77088 | AI19: 18214.12389 | AJ19: 17875.63221 | AK19: 0 | AL19: 0 | AM19: 0
C21: Custos e Despesas Operacionais
C22: =Ops!C339 -> Coleta Manual E Conteinerizada Resíduos Comuns | E22: $ 000s | F22: =SUM(G22:AM22) -> -93846.2946 | G22: =-Ops!G318 -> -2663.145805 | H22: =-Ops!H318 -> -2817.393805 | I22: =-Ops!I318 -> -2971.641805 | J22: =-Ops!J318 -> -3125.889805 | K22: =-Ops!K318 -> -3125.889805 | L22: =-Ops!L318 -> -3125.889805 | M22: =-Ops!M318 -> -3125.889805 | N22: =-Ops!N318 -> -3125.889805 | O22: =-Ops!O318 -> -3125.889805 | P22: =-Ops!P318 -> -3125.889805 | Q22: =-Ops!Q318 -> -3125.889805 | R22: =-Ops!R318 -> -3125.889805 | S22: =-Ops!S318 -> -3125.889805 | T22: =-Ops!T318 -> -3125.889805 | U22: =-Ops!U318 -> -3125.889805 | V22: =-Ops!V318 -> -3125.889805 | W22: =-Ops!W318 -> -3125.889805 | X22: =-Ops!X318 -> -3125.889805 | Y22: =-Ops!Y318 -> -3125.889805 | Z22: =-Ops!Z318 -> -3125.889805 | AA22: =-Ops!AA318 -> -3125.889805 | AB22: =-Ops!AB318 -> -3125.889805 | AC22: =-Ops!AC318 -> -3125.889805 | AD22: =-Ops!AD318 -> -3125.889805 | AE22: =-Ops!AE318 -> -3291.73788 | AF22: =-Ops!AF318 -> -3291.73788 | AG22: =-Ops!AG318 -> -3291.73788 | AH22: =-Ops!AH318 -> -3291.73788 | AI22: =-Ops!AI318 -> -3291.73788 | AJ22: =-Ops!AJ318 -> -3291.73788 | AK22: =-Ops!AK318 -> 0 | AL22: =-Ops!AL318 -> 0 | AM22: =-Ops!AM318 -> 0
C23: =Ops!C340 -> Coleta Materias Recicláveis | E23: $ 000s | F23: -65275.75894 | G23: =-Ops!G319 -> -1743.964231 | H23: =-Ops!H319 -> -1898.212231 | I23: =-Ops!I319 -> -2052.460231 | J23: =-Ops!J319 -> -2206.708231 | K23: =-Ops!K319 -> -2206.708231 | L23: =-Ops!L319 -> -2206.708231 | M23: =-Ops!M319 -> -2206.708231 | N23: =-Ops!N319 -> -2206.708231 | O23: =-Ops!O319 -> -2206.708231 | P23: =-Ops!P319 -> -2206.708231 | Q23: =-Ops!Q319 -> -2206.708231 | R23: =-Ops!R319 -> -2206.708231 | S23: =-Ops!S319 -> -2206.708231 | T23: =-Ops!T319 -> -2206.708231 | U23: =-Ops!U319 -> -2206.708231 | V23: =-Ops!V319 -> -2206.708231 | W23: =-Ops!W319 -> -2206.708231 | X23: =-Ops!X319 -> -2206.708231 | Y23: =-Ops!Y319 -> -2206.708231 | Z23: =-Ops!Z319 -> -2206.708231 | AA23: =-Ops!AA319 -> -2206.708231 | AB23: =-Ops!AB319 -> -2206.708231 | AC23: =-Ops!AC319 -> -2206.708231 | AD23: =-Ops!AD319 -> -2206.708231 | AE23: =-Ops!AE319 -> -2206.708231 | AF23: =-Ops!AF319 -> -2206.708231 | AG23: =-Ops!AG319 -> -2206.708231 | AH23: =-Ops!AH319 -> -2206.708231 | AI23: =-Ops!AI319 -> -2206.708231 | AJ23: =-Ops!AJ319 -> -2206.708231 | AK23: =-Ops!AK319 -> 0 | AL23: =-Ops!AL319 -> 0 | AM23: =-Ops!AM319 -> 0
C24: =Ops!C341 -> Coleta De Resíduos Do Serviço De Saúde Municipal | E24: $ 000s | F24: =SUM(G24:AM24) -> -7295.018714 | G24: =-Ops!G320 -> -208.7700166 | H24: =-Ops!H320 -> -210.9203477 | I24: =-Ops!I320 -> -213.0928273 | J24: =-Ops!J320 -> -215.2876834 | K24: =-Ops!K320 -> -217.5051466 | L24: =-Ops!L320 -> -219.7454496 | M24: =-Ops!M320 -> -222.0088277 | N24: =-Ops!N320 -> -224.2955186 | O24: =-Ops!O320 -> -226.6057625 | P24: =-Ops!P320 -> -228.9398018 | Q24: =-Ops!Q320 -> -231.2978818 | R24: =-Ops!R320 -> -233.68025 | S24: =-Ops!S320 -> -236.0871566 | T24: =-Ops!T320 -> -238.5188543 | U24: =-Ops!U320 -> -240.9755985 | V24: =-Ops!V320 -> -243.4576471 | W24: =-Ops!W320 -> -245.9652609 | X24: =-Ops!X320 -> -248.4987031 | Y24: =-Ops!Y320 -> -251.0582397 | Z24: =-Ops!Z320 -> -253.6441396 | AA24: =-Ops!AA320 -> -256.2566742 | AB24: =-Ops!AB320 -> -258.896118 | AC24: =-Ops!AC320 -> -261.562748 | AD24: =-Ops!AD320 -> -264.2568443 | AE24: =-Ops!AE320 -> -266.9786898 | AF24: =-Ops!AF320 -> -269.7285703 | AG24: =-Ops!AG320 -> -272.5067746 | AH24: =-Ops!AH320 -> -275.3135943 | AI24: =-Ops!AI320 -> -278.1493244 | AJ24: =-Ops!AJ320 -> -281.0142624 | AK24: =-Ops!AK320 -> 0 | AL24: =-Ops!AL320 -> 0 | AM24: =-Ops!AM320 -> 0
C25: =Ops!C342 -> Transporte E Destinação - Resíduos Dos Pevs | E25: $ 000s | F25: 0 | G25: =-Ops!G321 -> 0 | H25: =-Ops!H321 -> 0 | I25: =-Ops!I321 -> 0 | J25: =-Ops!J321 -> 0 | K25: =-Ops!K321 -> 0 | L25: =-Ops!L321 -> 0 | M25: =-Ops!M321 -> 0 | N25: =-Ops!N321 -> 0 | O25: =-Ops!O321 -> 0 | P25: =-Ops!P321 -> 0 | Q25: =-Ops!Q321 -> 0 | R25: =-Ops!R321 -> 0 | S25: =-Ops!S321 -> 0 | T25: =-Ops!T321 -> 0 | U25: =-Ops!U321 -> 0 | V25: =-Ops!V321 -> 0 | W25: =-Ops!W321 -> 0 | X25: =-Ops!X321 -> 0 | Y25: =-Ops!Y321 -> 0 | Z25: =-Ops!Z321 -> 0 | AA25: =-Ops!AA321 -> 0 | AB25: =-Ops!AB321 -> 0 | AC25: =-Ops!AC321 -> 0 | AD25: =-Ops!AD321 -> 0 | AE25: =-Ops!AE321 -> 0 | AF25: =-Ops!AF321 -> 0 | AG25: =-Ops!AG321 -> 0 | AH25: =-Ops!AH321 -> 0 | AI25: =-Ops!AI321 -> 0 | AJ25: =-Ops!AJ321 -> 0 | AK25: =-Ops!AK321 -> 0 | AL25: =-Ops!AL321 -> 0 | AM25: =-Ops!AM321 -> 0
C26: =Ops!C343 -> Coleta Programada De Volumosos | E26: $ 000s | F26: -7560.542933 | G26: =-Ops!G322 -> -252.0180978 | H26: =-Ops!H322 -> -252.0180978 | I26: =-Ops!I322 -> -252.0180978 | J26: =-Ops!J322 -> -252.0180978 | K26: =-Ops!K322 -> -252.0180978 | L26: =-Ops!L322 -> -252.0180978 | M26: =-Ops!M322 -> -252.0180978 | N26: =-Ops!N322 -> -252.0180978 | O26: =-Ops!O322 -> -252.0180978 | P26: =-Ops!P322 -> -252.0180978 | Q26: =-Ops!Q322 -> -252.0180978 | R26: =-Ops!R322 -> -252.0180978 | S26: =-Ops!S322 -> -252.0180978 | T26: =-Ops!T322 -> -252.0180978 | U26: =-Ops!U322 -> -252.0180978 | V26: =-Ops!V322 -> -252.0180978 | W26: =-Ops!W322 -> -252.0180978 | X26: =-Ops!X322 -> -252.0180978 | Y26: =-Ops!Y322 -> -252.0180978 | Z26: =-Ops!Z322 -> -252.0180978 | AA26: =-Ops!AA322 -> -252.0180978 | AB26: =-Ops!AB322 -> -252.0180978 | AC26: =-Ops!AC322 -> -252.0180978 | AD26: =-Ops!AD322 -> -252.0180978 | AE26: =-Ops!AE322 -> -252.0180978 | AF26: =-Ops!AF322 -> -252.0180978 | AG26: =-Ops!AG322 -> -252.0180978 | AH26: =-Ops!AH322 -> -252.0180978 | AI26: =-Ops!AI322 -> -252.0180978 | AJ26: =-Ops!AJ322 -> -252.0180978 | AK26: =-Ops!AK322 -> 0 | AL26: =-Ops!AL322 -> 0 | AM26: =-Ops!AM322 -> 0
C27: =Ops!C344 -> Varrição Manual | E27: $ 000s | F27: -14422.75778 | G27: =-Ops!G323 -> -414.328999 | H27: =-Ops!H323 -> -462.9360187 | I27: =-Ops!I323 -> -462.9360187 | J27: =-Ops!J323 -> -462.9360187 | K27: =-Ops!K323 -> -462.9360187 | L27: =-Ops!L323 -> -462.9360187 | M27: =-Ops!M323 -> -462.9360187 | N27: =-Ops!N323 -> -462.9360187 | O27: =-Ops!O323 -> -462.9360187 | P27: =-Ops!P323 -> -462.9360187 | Q27: =-Ops!Q323 -> -462.9360187 | R27: =-Ops!R323 -> -462.9360187 | S27: =-Ops!S323 -> -462.9360187 | T27: =-Ops!T323 -> -462.9360187 | U27: =-Ops!U323 -> -462.9360187 | V27: =-Ops!V323 -> -462.9360187 | W27: =-Ops!W323 -> -462.9360187 | X27: =-Ops!X323 -> -462.9360187 | Y27: =-Ops!Y323 -> -511.5430384 | Z27: =-Ops!Z323 -> -511.5430384 | AA27: =-Ops!AA323 -> -511.5430384 | AB27: =-Ops!AB323 -> -511.5430384 | AC27: =-Ops!AC323 -> -511.5430384 | AD27: =-Ops!AD323 -> -511.5430384 | AE27: =-Ops!AE323 -> -511.5430384 | AF27: =-Ops!AF323 -> -511.5430384 | AG27: =-Ops!AG323 -> -511.5430384 | AH27: =-Ops!AH323 -> -511.5430384 | AI27: =-Ops!AI323 -> -511.5430384 | AJ27: =-Ops!AJ323 -> -511.5430384 | AK27: =-Ops!AK323 -> 0 | AL27: =-Ops!AL323 -> 0 | AM27: =-Ops!AM323 -> 0
C28: =Ops!C345 -> Serviços Gerais (Tipos I E II) | E28: $ 000s | F28: -68053.51432 | G28: =-Ops!G324 -> -2268.450477 | H28: =-Ops!H324 -> -2268.450477 | I28: =-Ops!I324 -> -2268.450477 | J28: =-Ops!J324 -> -2268.450477 | K28: =-Ops!K324 -> -2268.450477 | L28: =-Ops!L324 -> -2268.450477 | M28: =-Ops!M324 -> -2268.450477 | N28: =-Ops!N324 -> -2268.450477 | O28: =-Ops!O324 -> -2268.450477 | P28: =-Ops!P324 -> -2268.450477 | Q28: =-Ops!Q324 -> -2268.450477 | R28: =-Ops!R324 -> -2268.450477 | S28: =-Ops!S324 -> -2268.450477 | T28: =-Ops!T324 -> -2268.450477 | U28: =-Ops!U324 -> -2268.450477 | V28: =-Ops!V324 -> -2268.450477 | W28: =-Ops!W324 -> -2268.450477 | X28: =-Ops!X324 -> -2268.450477 | Y28: =-Ops!Y324 -> -2268.450477 | Z28: =-Ops!Z324 -> -2268.450477 | AA28: =-Ops!AA324 -> -2268.450477 | AB28: =-Ops!AB324 -> -2268.450477 | AC28: =-Ops!AC324 -> -2268.450477 | AD28: =-Ops!AD324 -> -2268.450477 | AE28: =-Ops!AE324 -> -2268.450477 | AF28: =-Ops!AF324 -> -2268.450477 | AG28: =-Ops!AG324 -> -2268.450477 | AH28: =-Ops!AH324 -> -2268.450477 | AI28: =-Ops!AI324 -> -2268.450477 | AJ28: =-Ops!AJ324 -> -2268.450477 | AK28: =-Ops!AK324 -> 0 | AL28: =-Ops!AL324 -> 0 | AM28: =-Ops!AM324 -> 0
C29: =Ops!C346 -> Destinação Final | E29: $ 000s | F29: -77409.20833 | G29: =-Ops!G325 -> -1525.762869 | H29: =-Ops!H325 -> -1561.539491 | I29: =-Ops!I325 -> -1594.421036 | J29: =-Ops!J325 -> -1627.81412 | K29: =-Ops!K325 -> -1665.128074 | L29: =-Ops!L325 -> -1699.563548 | M29: =-Ops!M325 -> -1716.869205 | N29: =-Ops!N325 -> -1734.350426 | O29: =-Ops!O325 -> -1752.01425 | P29: =-Ops!P325 -> -1769.856931 | Q29: =-Ops!Q325 -> -1787.88554 | R29: =-Ops!R325 -> -1806.096367 | S29: =-Ops!S325 -> -1824.496517 | T29: =-Ops!T325 -> -1843.082314 | U29: =-Ops!U325 -> -2537.701213 | V29: =-Ops!V325 -> -2700.176854 | W29: =-Ops!W325 -> -2865.726894 | X29: =-Ops!X325 -> -3034.391726 | Y29: =-Ops!Y325 -> -3206.223164 | Z29: =-Ops!Z325 -> -3381.268248 | AA29: =-Ops!AA325 -> -3415.855062 | AB29: =-Ops!AB325 -> -3450.797603 | AC29: =-Ops!AC325 -> -3486.099304 | AD29: =-Ops!AD325 -> -3521.763634 | AE29: =-Ops!AE325 -> -3557.794099 | AF29: =-Ops!AF325 -> -3594.194238 | AG29: =-Ops!AG325 -> -3630.973029 | AH29: =-Ops!AH325 -> -3668.123286 | AI29: =-Ops!AI325 -> -3705.659459 | AJ29: =-Ops!AJ325 -> -3743.579837 | AK29: =-Ops!AK325 -> 0 | AL29: =-Ops!AL325 -> 0 | AM29: =-Ops!AM325 -> 0
C30: =Ops!C347 -> Educaçao Ambiental | E30: $ 000s | F30: -6288.287497 | G30: =-Ops!G326 -> -209.6095832 | H30: =-Ops!H326 -> -209.6095832 | I30: =-Ops!I326 -> -209.6095832 | J30: =-Ops!J326 -> -209.6095832 | K30: =-Ops!K326 -> -209.6095832 | L30: =-Ops!L326 -> -209.6095832 | M30: =-Ops!M326 -> -209.6095832 | N30: =-Ops!N326 -> -209.6095832 | O30: =-Ops!O326 -> -209.6095832 | P30: =-Ops!P326 -> -209.6095832 | Q30: =-Ops!Q326 -> -209.6095832 | R30: =-Ops!R326 -> -209.6095832 | S30: =-Ops!S326 -> -209.6095832 | T30: =-Ops!T326 -> -209.6095832 | U30: =-Ops!U326 -> -209.6095832 | V30: =-Ops!V326 -> -209.6095832 | W30: =-Ops!W326 -> -209.6095832 | X30: =-Ops!X326 -> -209.6095832 | Y30: =-Ops!Y326 -> -209.6095832 | Z30: =-Ops!Z326 -> -209.6095832 | AA30: =-Ops!AA326 -> -209.6095832 | AB30: =-Ops!AB326 -> -209.6095832 | AC30: =-Ops!AC326 -> -209.6095832 | AD30: =-Ops!AD326 -> -209.6095832 | AE30: =-Ops!AE326 -> -209.6095832 | AF30: =-Ops!AF326 -> -209.6095832 | AG30: =-Ops!AG326 -> -209.6095832 | AH30: =-Ops!AH326 -> -209.6095832 | AI30: =-Ops!AI326 -> -209.6095832 | AJ30: =-Ops!AJ326 -> -209.6095832 | AK30: =-Ops!AK326 -> 0 | AL30: =-Ops!AL326 -> 0 | AM30: =-Ops!AM326 -> 0
C31: =Ops!C348 -> Relação Com O Usuário | E31: $ 000s | F31: -25368.27222 | G31: =-Ops!G327 -> 0 | H31: =-Ops!H327 -> -838.9305068 | I31: =-Ops!I327 -> -840.806684 | J31: =-Ops!J327 -> -843.194069 | K31: =-Ops!K327 -> -845.5970577 | L31: =-Ops!L327 -> -848.0312541 | M31: =-Ops!M327 -> -850.4966581 | N31: =-Ops!N327 -> -852.977666 | O31: =-Ops!O327 -> -855.4898815 | P31: =-Ops!P327 -> -858.0177008 | Q31: =-Ops!Q327 -> -860.5767278 | R31: =-Ops!R327 -> -863.1669624 | S31: =-Ops!S327 -> -865.7728008 | T31: =-Ops!T327 -> -868.4098469 | U31: =-Ops!U327 -> -871.0781006 | V31: =-Ops!V327 -> -873.777562 | W31: =-Ops!W327 -> -876.508231 | X31: =-Ops!X327 -> -879.2545039 | Y31: =-Ops!Y327 -> -882.0319844 | Z31: =-Ops!Z327 -> -884.8406725 | AA31: =-Ops!AA327 -> -887.6805683 | AB31: =-Ops!AB327 -> -890.5360679 | AC31: =-Ops!AC327 -> -893.438379 | AD31: =-Ops!AD327 -> -896.3562938 | AE31: =-Ops!AE327 -> -899.3210202 | AF31: =-Ops!AF327 -> -902.3013504 | AG31: =-Ops!AG327 -> -905.3128882 | AH31: =-Ops!AH327 -> -908.3712375 | AI31: =-Ops!AI327 -> -911.4451907 | AJ31: =-Ops!AJ327 -> -914.5503514 | AK31: =-Ops!AK327 -> 0 | AL31: =-Ops!AL327 -> 0 | AM31: =-Ops!AM327 -> 0
C32: =Ops!C349 -> Administração Local | E32: $ 000s | F32: -14347.1055 | G32: =-Ops!G328 -> -477.6424899 | H32: =-Ops!H328 -> -478.0996899 | I32: =-Ops!I328 -> -478.0996899 | J32: =-Ops!J328 -> -478.0996899 | K32: =-Ops!K328 -> -478.0996899 | L32: =-Ops!L328 -> -478.0996899 | M32: =-Ops!M328 -> -478.0996899 | N32: =-Ops!N328 -> -478.0996899 | O32: =-Ops!O328 -> -478.0996899 | P32: =-Ops!P328 -> -478.0996899 | Q32: =-Ops!Q328 -> -478.0996899 | R32: =-Ops!R328 -> -478.0996899 | S32: =-Ops!S328 -> -478.0996899 | T32: =-Ops!T328 -> -478.0996899 | U32: =-Ops!U328 -> -478.0996899 | V32: =-Ops!V328 -> -478.0996899 | W32: =-Ops!W328 -> -478.0996899 | X32: =-Ops!X328 -> -478.0996899 | Y32: =-Ops!Y328 -> -478.2520899 | Z32: =-Ops!Z328 -> -478.2520899 | AA32: =-Ops!AA328 -> -478.2520899 | AB32: =-Ops!AB328 -> -478.2520899 | AC32: =-Ops!AC328 -> -478.2520899 | AD32: =-Ops!AD328 -> -478.2520899 | AE32: =-Ops!AE328 -> -478.7092899 | AF32: =-Ops!AF328 -> -478.7092899 | AG32: =-Ops!AG328 -> -478.7092899 | AH32: =-Ops!AH328 -> -478.7092899 | AI32: =-Ops!AI328 -> -478.7092899 | AJ32: =-Ops!AJ328 -> -478.7092899 | AK32: =-Ops!AK328 -> 0 | AL32: =-Ops!AL328 -> 0 | AM32: =-Ops!AM328 -> 0
C33: =Ops!C351 -> Gerencialmento Contrato | E33: $ 000s | F33: -996.8078873 | G33: =-Ops!G330 -> -33.22692958 | H33: =-Ops!H330 -> -33.22692958 | I33: =-Ops!I330 -> -33.22692958 | J33: =-Ops!J330 -> -33.22692958 | K33: =-Ops!K330 -> -33.22692958 | L33: =-Ops!L330 -> -33.22692958 | M33: =-Ops!M330 -> -33.22692958 | N33: =-Ops!N330 -> -33.22692958 | O33: =-Ops!O330 -> -33.22692958 | P33: =-Ops!P330 -> -33.22692958 | Q33: =-Ops!Q330 -> -33.22692958 | R33: =-Ops!R330 -> -33.22692958 | S33: =-Ops!S330 -> -33.22692958 | T33: =-Ops!T330 -> -33.22692958 | U33: =-Ops!U330 -> -33.22692958 | V33: =-Ops!V330 -> -33.22692958 | W33: =-Ops!W330 -> -33.22692958 | X33: =-Ops!X330 -> -33.22692958 | Y33: =-Ops!Y330 -> -33.22692958 | Z33: =-Ops!Z330 -> -33.22692958 | AA33: =-Ops!AA330 -> -33.22692958 | AB33: =-Ops!AB330 -> -33.22692958 | AC33: =-Ops!AC330 -> -33.22692958 | AD33: =-Ops!AD330 -> -33.22692958 | AE33: =-Ops!AE330 -> -33.22692958 | AF33: =-Ops!AF330 -> -33.22692958 | AG33: =-Ops!AG330 -> -33.22692958 | AH33: =-Ops!AH330 -> -33.22692958 | AI33: =-Ops!AI330 -> -33.22692958 | AJ33: =-Ops!AJ330 -> -33.22692958 | AK33: =-Ops!AK330 -> 0 | AL33: =-Ops!AL330 -> 0 | AM33: =-Ops!AM330 -> 0
C34: =Ops!C352 -> Taxa de regulação ARIS | E34: $ 000s | F34: =SUM(G34:AM34) -> -1224.567243 | G34: =-Ops!G331 -> -33.34679306 | H34: =-Ops!H331 -> -33.82394715 | I34: =-Ops!I331 -> -34.30016994 | J34: =-Ops!J331 -> -34.77741696 | K34: =-Ops!K331 -> -35.25698078 | L34: =-Ops!L331 -> -35.73977241 | M34: =-Ops!M331 -> -36.22646781 | N34: =-Ops!N331 -> -36.71759042 | O34: =-Ops!O331 -> -37.21356053 | P34: =-Ops!P331 -> -37.71472632 | Q34: =-Ops!Q331 -> -38.22138418 | R34: =-Ops!R331 -> -38.73379243 | S34: =-Ops!S331 -> -39.25218092 | T34: =-Ops!T331 -> -39.77675786 | U34: =-Ops!U331 -> -40.30771481 | V34: =-Ops!V331 -> -40.84523041 | W34: =-Ops!W331 -> -41.3894732 | X34: =-Ops!X331 -> -41.94060376 | Y34: =-Ops!Y331 -> -42.49877641 | Z34: =-Ops!Z331 -> -43.06414053 | AA34: =-Ops!AA331 -> -43.63684166 | AB34: =-Ops!AB331 -> -44.21702232 | AC34: =-Ops!AC331 -> -44.80482272 | AD34: =-Ops!AD331 -> -45.40038136 | AE34: =-Ops!AE331 -> -46.00383548 | AF34: =-Ops!AF331 -> -46.6153215 | AG34: =-Ops!AG331 -> -47.23497531 | AH34: =-Ops!AH331 -> -47.86293263 | AI34: =-Ops!AI331 -> -48.49932917 | AJ34: =-Ops!AJ331 -> -49.14430095 | AK34: =-Ops!AK331 -> 0 | AL34: =-Ops!AL331 -> 0 | AM34: =-Ops!AM331 -> 0
C35: =Ops!C353 -> Despesas com seguros multiriscos | E35: $ 000s | F35: -72.5 | G35: =-Ops!G332 -> 0 | H35: =-Ops!H332 -> -2.5 | I35: =-Ops!I332 -> -2.5 | J35: =-Ops!J332 -> -2.5 | K35: =-Ops!K332 -> -2.5 | L35: =-Ops!L332 -> -2.5 | M35: =-Ops!M332 -> -2.5 | N35: =-Ops!N332 -> -2.5 | O35: =-Ops!O332 -> -2.5 | P35: =-Ops!P332 -> -2.5 | Q35: =-Ops!Q332 -> -2.5 | R35: =-Ops!R332 -> -2.5 | S35: =-Ops!S332 -> -2.5 | T35: =-Ops!T332 -> -2.5 | U35: =-Ops!U332 -> -2.5 | V35: =-Ops!V332 -> -2.5 | W35: =-Ops!W332 -> -2.5 | X35: =-Ops!X332 -> -2.5 | Y35: =-Ops!Y332 -> -2.5 | Z35: =-Ops!Z332 -> -2.5 | AA35: =-Ops!AA332 -> -2.5 | AB35: =-Ops!AB332 -> -2.5 | AC35: =-Ops!AC332 -> -2.5 | AD35: =-Ops!AD332 -> -2.5 | AE35: =-Ops!AE332 -> -2.5 | AF35: =-Ops!AF332 -> -2.5 | AG35: =-Ops!AG332 -> -2.5 | AH35: =-Ops!AH332 -> -2.5 | AI35: =-Ops!AI332 -> -2.5 | AJ35: =-Ops!AJ332 -> -2.5 | AK35: =-Ops!AK332 -> 0 | AL35: =-Ops!AL332 -> 0 | AM35: =-Ops!AM332 -> 0
C36: =Ops!C354 -> Despesas com seguro de responsabilidade civil | E36: $ 000s | F36: -82.5 | G36: =-Ops!G333 -> -27.5 | H36: =-Ops!H333 -> -27.5 | I36: =-Ops!I333 -> -27.5 | J36: =-Ops!J333 -> 0 | K36: =-Ops!K333 -> 0 | L36: =-Ops!L333 -> 0 | M36: =-Ops!M333 -> 0 | N36: =-Ops!N333 -> 0 | O36: =-Ops!O333 -> 0 | P36: =-Ops!P333 -> 0 | Q36: =-Ops!Q333 -> 0 | R36: =-Ops!R333 -> 0 | S36: =-Ops!S333 -> 0 | T36: =-Ops!T333 -> 0 | U36: =-Ops!U333 -> 0 | V36: =-Ops!V333 -> 0 | W36: =-Ops!W333 -> 0 | X36: =-Ops!X333 -> 0 | Y36: =-Ops!Y333 -> 0 | Z36: =-Ops!Z333 -> 0 | AA36: =-Ops!AA333 -> 0 | AB36: =-Ops!AB333 -> 0 | AC36: =-Ops!AC333 -> 0 | AD36: =-Ops!AD333 -> 0 | AE36: =-Ops!AE333 -> 0 | AF36: =-Ops!AF333 -> 0 | AG36: =-Ops!AG333 -> 0 | AH36: =-Ops!AH333 -> 0 | AI36: =-Ops!AI333 -> 0 | AJ36: =-Ops!AJ333 -> 0 | AK36: =-Ops!AK333 -> 0 | AL36: =-Ops!AL333 -> 0 | AM36: =-Ops!AM333 -> 0
C37: =Ops!C355 -> Despesas com seguro garantia de execução | E37: $ 000s | F37: -373.8029577 | G37: =-Ops!G334 -> -12.46009859 | H37: =-Ops!H334 -> -12.46009859 | I37: =-Ops!I334 -> -12.46009859 | J37: =-Ops!J334 -> -12.46009859 | K37: =-Ops!K334 -> -12.46009859 | L37: =-Ops!L334 -> -12.46009859 | M37: =-Ops!M334 -> -12.46009859 | N37: =-Ops!N334 -> -12.46009859 | O37: =-Ops!O334 -> -12.46009859 | P37: =-Ops!P334 -> -12.46009859 | Q37: =-Ops!Q334 -> -12.46009859 | R37: =-Ops!R334 -> -12.46009859 | S37: =-Ops!S334 -> -12.46009859 | T37: =-Ops!T334 -> -12.46009859 | U37: =-Ops!U334 -> -12.46009859 | V37: =-Ops!V334 -> -12.46009859 | W37: =-Ops!W334 -> -12.46009859 | X37: =-Ops!X334 -> -12.46009859 | Y37: =-Ops!Y334 -> -12.46009859 | Z37: =-Ops!Z334 -> -12.46009859 | AA37: =-Ops!AA334 -> -12.46009859 | AB37: =-Ops!AB334 -> -12.46009859 | AC37: =-Ops!AC334 -> -12.46009859 | AD37: =-Ops!AD334 -> -12.46009859 | AE37: =-Ops!AE334 -> -12.46009859 | AF37: =-Ops!AF334 -> -12.46009859 | AG37: =-Ops!AG334 -> -12.46009859 | AH37: =-Ops!AH334 -> -12.46009859 | AI37: =-Ops!AI334 -> -12.46009859 | AJ37: =-Ops!AJ334 -> -12.46009859 | AK37: =-Ops!AK334 -> 0 | AL37: =-Ops!AL334 -> 0 | AM37: =-Ops!AM334 -> 0
C38: =Ops!C356 -> Despesas com seguro de engenharia | E38: $ 000s | F38: -8.282433205 | G38: =-Ops!G356 -> -0.2332158675 | H38: =-Ops!H356 -> -0.0794122175 | I38: =-Ops!I356 -> -7.516626048 | J38: =-Ops!J356 -> -0.0112287175 | K38: =-Ops!K356 -> -0.090640935 | L38: =-Ops!L356 -> 0 | M38: =-Ops!M356 -> -0.0112287175 | N38: =-Ops!N356 -> -0.022457435 | O38: =-Ops!O356 -> 0 | P38: =-Ops!P356 -> -0.0112287175 | Q38: =-Ops!Q356 -> -0.036094135 | R38: =-Ops!R356 -> -0.0136367 | S38: =-Ops!S356 -> -0.0112287175 | T38: =-Ops!T356 -> -0.022457435 | U38: =-Ops!U356 -> -0.0136367 | V38: =-Ops!V356 -> -0.0112287175 | W38: =-Ops!W356 -> -0.022457435 | X38: =-Ops!X356 -> 0 | Y38: =-Ops!Y356 -> -0.0112287175 | Z38: =-Ops!Z356 -> -0.022457435 | AA38: =-Ops!AA356 -> -0.0136367 | AB38: =-Ops!AB356 -> -0.0248654175 | AC38: =-Ops!AC356 -> -0.022457435 | AD38: =-Ops!AD356 -> 0 | AE38: =-Ops!AE356 -> -0.0248654175 | AF38: =-Ops!AF356 -> -0.022457435 | AG38: =-Ops!AG356 -> 0 | AH38: =-Ops!AH356 -> -0.0112287175 | AI38: =-Ops!AI356 -> -0.022457435 | AJ38: =-Ops!AJ356 -> 0
C39: Upfront fee | E39: $ 000s | F39: -99.68078873 | G39: =-(Debt!G71) -> -24.92019718 | H39: =-(Debt!H71) -> -0.6793426405 | I39: =-(Debt!I71) -> -5.950423139 | J39: =-(Debt!J71) -> -0.05595806905 | K39: =-(Debt!K71) -> -0.07175452304 | L39: =-(Debt!L71) -> -0.1885657234 | M39: =-(Debt!M71) -> -0.1101839243 | N39: =-(Debt!N71) -> -14.81066272 | O39: =-(Debt!O71) -> 0 | P39: =-(Debt!P71) -> -0.05595806905 | Q39: =-(Debt!Q71) -> -2.252846748 | R39: =-(Debt!R71) -> -0.149187142 | S39: =-(Debt!S71) -> -0.05595806905 | T39: =-(Debt!T71) -> -0.0177780882 | U39: =-(Debt!U71) -> -14.80367992 | V39: =-(Debt!V71) -> -0.264758205 | W39: =-(Debt!W71) -> -0.07796229 | X39: =-(Debt!X71) -> 0 | Y39: =-(Debt!Y71) -> -0.062112615 | Z39: =-(Debt!Z71) -> -0.01924923 | AA39: =-(Debt!AA71) -> -2.42002122 | AB39: =-(Debt!AB71) -> -16.24064504 | AC39: =-(Debt!AC71) -> -0.01924923 | AD39: =-(Debt!AD71) -> 0 | AE39: =-(Debt!AE71) -> -0.073801215 | AF39: =-(Debt!AF71) -> -0.22341882 | AG39: =-(Debt!AG71) -> -0.05871306 | AH39: =-(Debt!AH71) -> -0.062112615 | AI39: =-(Debt!AI71) -> -16.03624923 | AJ39: =-(Debt!AJ71) -> 0 | AK39: =-(Debt!AK71) -> 0 | AL39: =-(Debt!AL71) -> 0 | AM39: =-(Debt!AM71) -> 0
C40: Total Opex | E40: $ 000s | F40: =SUM(G40:AM40) -> -382724.9021 | G40: =SUM(G22:G39) -> -9895.379803 | H40: -11108.37998 | I40: -11466.9907 | J40: -11773.03941 | K40: -11815.54859 | L40: -11855.16752 | M40: -11877.6215 | N40: -11915.07325 | O40: -11923.22239 | P40: -11946.49528 | Q40: -11972.16941 | R40: -11993.73913 | S40: -12017.57477 | T40: -12041.72694 | U40: -12756.77887 | V40: -12910.43221 | W40: -13081.58921 | X40: -13255.98447 | Y40: -13482.54386 | Z40: -13663.51726 | AA40: -13706.52116 | AB40: -13761.37067 | AC40: -13786.60531 | AD40: -13828.4355 | AE40: -14037.15994 | AF40: -14080.04898 | AG40: -14123.05001 | AH40: -14166.70802 | AI40: -14226.77564 | AJ40: -14255.25238 | AK40: 0 | AL40: 0 | AM40: 0
C42: Ajustes de Capital de Giro | E42: $ 000s | F42: =SUM(G42:AN42) -> 1.136868377e-13 | G42: =Ops!G395 -> -181.8328689 | H42: =Ops!H395 -> -3.652826183 | I42: =Ops!I395 -> -148.5677391 | J42: =Ops!J395 -> -133.1319433 | K42: =Ops!K395 -> -9.346493295 | L42: =Ops!L395 -> -12.27968961 | M42: =Ops!M395 -> -10.40630391 | N42: =Ops!N395 -> -51.02627935 | O42: =Ops!O395 -> 31.2741373 | P42: =Ops!P395 -> -12.42982626 | Q42: =Ops!Q395 -> -16.98066699 | R42: =Ops!R395 -> -5.246746961 | S42: =Ops!S395 -> -9.318296918 | T42: =Ops!T395 -> -12.62015289 | U42: =Ops!U395 -> -56.98958835 | V42: =Ops!V395 -> 27.48265735 | W42: =Ops!W395 -> -10.42542219 | X42: =Ops!X395 -> -14.16118481 | Y42: =Ops!Y395 -> -13.31883096 | Z42: =Ops!Z395 -> -12.80037587 | AA42: =Ops!AA395 -> -16.17784366 | AB42: =Ops!AB395 -> -48.89633282 | AC42: =Ops!AC395 -> 28.98274593 | AD42: =Ops!AD395 -> -12.17277212 | AE42: =Ops!AE395 -> 8.584160029 | AF42: =Ops!AF395 -> -14.69614283 | AG42: =Ops!AG395 -> -12.11882669 | AH42: =Ops!AH395 -> -12.60938801 | AI42: =Ops!AI395 -> -51.05384506 | AJ42: =Ops!AJ395 -> 785.9366864 | AK42: =Ops!AK395 -> 0 | AL42: =Ops!AL395 -> 0 | AM42: =Ops!AM395 -> 0
C44: Fluxo de Caixa Operacional | E44: $ 000s | F44: =SUM(G44:AM44) -> 79800.08648 | G44: =G19+G40+G42 -> -870.1594703 | H44: -1403.853981 | I44: 362.938546 | J44: 2154.841609 | K44: 2365.717944 | L44: 2456.684308 | M44: 2562.713743 | N44: 3105.461749 | O44: 2816.410029 | P44: 2883.363726 | Q44: 3059.736872 | R44: 3113.736493 | S44: 3217.966761 | T44: 3325.293081 | U44: 3259.245035 | V44: 2855.691612 | W44: 2793.985773 | X44: 2767.632566 | Y44: 2703.961307 | Z44: 2679.244267 | AA44: 2852.091877 | AB44: 3337.03071 | AC44: 3037.051742 | AD44: 3102.168091 | AE44: 3081.714039 | AF44: 3171.165812 | AG44: 3278.187829 | AH44: 3387.453477 | AI44: 3936.294407 | AJ44: 4406.31652 | AK44: 0 | AL44: 0 | AM44: 0
C46: Investimentos (Usos)
C47: =Ops!C416 -> CAPEX - Divisíveis | E47: $ 000s | F47: =SUM(G47:AM47) -> -29250.34949 | G47: =-Ops!G416 -> -5453.613105 | H47: =-Ops!H416 -> -22.689205 | I47: =-Ops!I416 -> -2147.607442 | J47: =-Ops!J416 -> -3.208205 | K47: =-Ops!K416 -> -25.89741 | L47: =-Ops!L416 -> -15 | M47: =-Ops!M416 -> -3.208205 | N47: =-Ops!N416 -> -5345.41641 | O47: =-Ops!O416 -> 0 | P47: =-Ops!P416 -> -3.208205 | Q47: =-Ops!Q416 -> -58.29261 | R47: =-Ops!R416 -> -3.8962 | S47: =-Ops!S416 -> -3.208205 | T47: =-Ops!T416 -> -6.41641 | U47: =-Ops!U416 -> -5342.8962 | V47: =-Ops!V416 -> -18.208205 | W47: =-Ops!W416 -> -6.41641 | X47: =-Ops!X416 -> 0 | Y47: =-Ops!Y416 -> -3.208205 | Z47: =-Ops!Z416 -> -6.41641 | AA47: =-Ops!AA416 -> -51.8762 | AB47: =-Ops!AB416 -> -5346.104405 | AC47: =-Ops!AC416 -> -6.41641 | AD47: =-Ops!AD416 -> 0 | AE47: =-Ops!AE416 -> -7.104405 | AF47: =-Ops!AF416 -> -21.41641 | AG47: =-Ops!AG416 -> 0 | AH47: =-Ops!AH416 -> -3.208205 | AI47: =-Ops!AI416 -> -5345.41641 | AJ47: =-Ops!AJ416 -> 0 | AK47: =-Ops!AK416 -> 0 | AL47: =-Ops!AL416 -> 0 | AM47: =-Ops!AM416 -> 0
C48: =Ops!C417 -> CAPEX - Indivisíveis | E48: =Ops!E417 -> $ 000s | F48: =SUM(G48:AM48) -> -3976.58009 | G48: =-Ops!G417 -> -1771.78554 | H48: =-Ops!H417 -> -222.49694 | I48: =-Ops!I417 -> 0 | J48: =-Ops!J417 -> -16.988 | K48: =-Ops!K417 -> 0 | L48: =-Ops!L417 -> -53.05653 | M48: =-Ops!M417 -> -36.55902 | N48: =-Ops!N417 -> 0 | O48: =-Ops!O417 -> 0 | P48: =-Ops!P417 -> -16.988 | Q48: =-Ops!Q417 -> -754.79754 | R48: =-Ops!R417 -> -49.94794 | S48: =-Ops!S417 -> -16.988 | T48: =-Ops!T417 -> 0 | U48: =-Ops!U417 -> 0 | V48: =-Ops!V417 -> -70.04453 | W48: =-Ops!W417 -> -19.57102 | X48: =-Ops!X417 -> 0 | Y48: =-Ops!Y417 -> -17.496 | Z48: =-Ops!Z417 -> 0 | AA48: =-Ops!AA417 -> -754.79754 | AB48: =-Ops!AB417 -> -67.44394 | AC48: =-Ops!AC417 -> 0 | AD48: =-Ops!AD417 -> 0 | AE48: =-Ops!AE417 -> -17.496 | AF48: =-Ops!AF417 -> -53.05653 | AG48: =-Ops!AG417 -> -19.57102 | AH48: =-Ops!AH417 -> -17.496 | AI48: =-Ops!AI417 -> 0 | AJ48: =-Ops!AJ417 -> 0 | AK48: =-Ops!AK417 -> 0 | AL48: =-Ops!AL417 -> 0 | AM48: =-Ops!AM417 -> 0
C49: CAPEX total | E49: $ 000s | F49: =SUM(G49:AM49) -> -33226.92958 | G49: =SUM(G47:G48) -> -7225.398645 | H49: -245.186145 | I49: -2147.607442 | J49: -20.196205 | K49: -25.89741 | L49: -68.05653 | M49: -39.767225 | N49: -5345.41641 | O49: 0 | P49: -20.196205 | Q49: -813.09015 | R49: -53.84414 | S49: -20.196205 | T49: -6.41641 | U49: -5342.8962 | V49: -88.252735 | W49: -25.98743 | X49: 0 | Y49: -20.704205 | Z49: -6.41641 | AA49: -806.67374 | AB49: -5413.548345 | AC49: -6.41641 | AD49: 0 | AE49: -24.600405 | AF49: -74.47294 | AG49: -19.57102 | AH49: -20.704205 | AI49: -5345.41641 | AJ49: 0 | AK49: 0 | AL49: 0 | AM49: 0
C51: Funding (Fontes)
C52: Equity - Indivisiveis | E52: $ 000s | F52: =SUM(G52:AM52) -> 13290.77183 | G52: =Debt!G68 -> 3322.692958 | H52: =Debt!H68 -> 90.57901873 | I52: =Debt!I68 -> 793.3897518 | J52: =Debt!J68 -> 7.461075873 | K52: =Debt!K68 -> 9.567269739 | L52: =Debt!L68 -> 25.14209645 | M52: =Debt!M68 -> 14.6911899 | N52: =Debt!N68 -> 1974.75503 | O52: =Debt!O68 -> 0 | P52: =Debt!P68 -> 7.461075873 | Q52: =Debt!Q68 -> 300.3795664 | R52: =Debt!R68 -> 19.89161894 | S52: =Debt!S68 -> 7.461075873 | T52: =Debt!T68 -> 2.37041176 | U52: =Debt!U68 -> 1973.82399 | V52: =Debt!V68 -> 35.301094 | W52: =Debt!W68 -> 10.394972 | X52: =Debt!X68 -> 0 | Y52: =Debt!Y68 -> 8.281682 | Z52: =Debt!Z68 -> 2.566564 | AA52: =Debt!AA68 -> 322.669496 | AB52: =Debt!AB68 -> 2165.419338 | AC52: =Debt!AC68 -> 2.566564 | AD52: =Debt!AD68 -> 0 | AE52: =Debt!AE68 -> 9.840162 | AF52: =Debt!AF68 -> 29.789176 | AG52: =Debt!AG68 -> 7.828408 | AH52: =Debt!AH68 -> 8.281682 | AI52: =Debt!AI68 -> 2138.166564 | AJ52: =Debt!AJ68 -> 0 | AK52: =Debt!AK68 -> 0 | AL52: =Debt!AL68 -> 0 | AM52: =Debt!AM68 -> 0
C53: Dívida Senior | E53: $ 000s | F53: =SUM(G53:AM53) -> 19936.15775 | G53: =Debt!G67 -> 4984.039437 | H53: =Debt!H67 -> 135.8685281 | I53: =Debt!I67 -> 1190.084628 | J53: =Debt!J67 -> 11.19161381 | K53: =Debt!K67 -> 14.35090461 | L53: =Debt!L67 -> 37.71314467 | M53: =Debt!M67 -> 22.03678486 | N53: =Debt!N67 -> 2962.132545 | O53: =Debt!O67 -> 0 | P53: =Debt!P67 -> 11.19161381 | Q53: =Debt!Q67 -> 450.5693496 | R53: =Debt!R67 -> 29.83742841 | S53: =Debt!S67 -> 11.19161381 | T53: =Debt!T67 -> 3.55561764 | U53: =Debt!U67 -> 2960.735985 | V53: =Debt!V67 -> 52.951641 | W53: =Debt!W67 -> 15.592458 | X53: =Debt!X67 -> 0 | Y53: =Debt!Y67 -> 12.422523 | Z53: =Debt!Z67 -> 3.849846 | AA53: =Debt!AA67 -> 484.004244 | AB53: =Debt!AB67 -> 3248.129007 | AC53: =Debt!AC67 -> 3.849846 | AD53: =Debt!AD67 -> 0 | AE53: =Debt!AE67 -> 14.760243 | AF53: =Debt!AF67 -> 44.683764 | AG53: =Debt!AG67 -> 11.742612 | AH53: =Debt!AH67 -> 12.422523 | AI53: =Debt!AI67 -> 3207.249846 | AJ53: =Debt!AJ67 -> 0 | AK53: =Debt!AK67 -> 0 | AL53: =Debt!AL67 -> 0 | AM53: =Debt!AM67 -> 0
C54: Total | E54: $ 000s | F54: =SUM(G54:AM54) -> 33226.92958 | G54: =SUM(G52:G53) -> 8306.732394 | H54: 226.4475468 | I54: 1983.47438 | J54: 18.65268968 | K54: 23.91817435 | L54: 62.85524112 | M54: 36.72797476 | N54: 4936.887575 | O54: 0 | P54: 18.65268968 | Q54: 750.948916 | R54: 49.72904735 | S54: 18.65268968 | T54: 5.926029401 | U54: 4934.559975 | V54: 88.252735 | W54: 25.98743 | X54: 0 | Y54: 20.704205 | Z54: 6.41641 | AA54: 806.67374 | AB54: 5413.548345 | AC54: 6.41641 | AD54: 0 | AE54: 24.600405 | AF54: 74.47294 | AG54: 19.57102 | AH54: 20.704205 | AI54: 5345.41641 | AJ54: 0 | AK54: 0 | AL54: 0 | AM54: 0
C56: Fluxo de Caixa após funding | E56: $ 000s | F56: =SUM(G56:AM56) -> 79800.08648 | G56: =G44+G49+G54 -> 211.174279 | H56: =H44+H49+H54 -> -1422.592579 | I56: 198.8054833 | J56: 2153.298094 | K56: 2363.738709 | L56: 2451.483019 | M56: 2559.674493 | N56: 2696.932914 | O56: 2816.410029 | P56: 2881.820211 | Q56: 2997.595638 | R56: 3109.6214 | S56: 3216.423245 | T56: 3324.8027 | U56: 2850.908809 | V56: 2855.691612 | W56: 2793.985773 | X56: 2767.632566 | Y56: 2703.961307 | Z56: 2679.244267 | AA56: 2852.091877 | AB56: 3337.03071 | AC56: 3037.051742 | AD56: 3102.168091 | AE56: 3081.714039 | AF56: 3171.165812 | AG56: 3278.187829 | AH56: 3387.453477 | AI56: 3936.294407 | AJ56: 4406.31652 | AK56: 0 | AL56: 0 | AM56: 0
C58: Venda de Ativo de imobilizado | E58: $ 000s | F58: =SUM(G58:AM58) -> 8510.316077 | G58: =Ops!G931 -> 0 | H58: =Ops!H931 -> 0 | I58: =Ops!I931 -> 0 | J58: =Ops!J931 -> 0 | K58: =Ops!K931 -> 0 | L58: =Ops!L931 -> 0 | M58: =Ops!M931 -> 0 | N58: =Ops!N931 -> 2197.688026 | O58: =Ops!O931 -> 0 | P58: =Ops!P931 -> 0 | Q58: =Ops!Q931 -> 0 | R58: =Ops!R931 -> 0 | S58: =Ops!S931 -> 0 | T58: =Ops!T931 -> 0 | U58: =Ops!U931 -> 2190.642458 | V58: =Ops!V931 -> 0 | W58: =Ops!W931 -> 0 | X58: =Ops!X931 -> 0 | Y58: =Ops!Y931 -> 0 | Z58: =Ops!Z931 -> 0 | AA58: =Ops!AA931 -> 0 | AB58: =Ops!AB931 -> 2179.706767 | AC58: =Ops!AC931 -> 0 | AD58: =Ops!AD931 -> 0 | AE58: =Ops!AE931 -> 0 | AF58: =Ops!AF931 -> 0 | AG58: =Ops!AG931 -> 0 | AH58: =Ops!AH931 -> 0 | AI58: =Ops!AI931 -> 1942.278826 | AJ58: =Ops!AJ931 -> 0 | AK58: =Ops!AK931 -> 0 | AL58: =Ops!AL931 -> 0 | AM58: =Ops!AM931 -> 0
C60: IR / CSLL pagos | E60: $ 000s | F60: =SUM(G60:AJ60) -> -16393.23859 | G60: =-Ops!G989 -> 0 | H60: =-Ops!H989 -> 0 | I60: =-Ops!I989 -> 0 | J60: =-Ops!J989 -> -154.5745056 | K60: =-Ops!K989 -> -174.7810723 | L60: =-Ops!L989 -> -483.5689625 | M60: =-Ops!M989 -> -509.5930752 | N60: =-Ops!N989 -> -398.052333 | O60: =-Ops!O989 -> -306.1455867 | P60: =-Ops!P989 -> -332.3031143 | Q60: =-Ops!Q989 -> -365.7970265 | R60: =-Ops!R989 -> -374.2806454 | S60: =-Ops!S989 -> -698.7728012 | T60: =-Ops!T989 -> -826.1941461 | U60: =-Ops!U989 -> -681.632667 | V60: =-Ops!V989 -> -558.0083638 | W60: =-Ops!W989 -> -551.8319605 | X60: =-Ops!X989 -> -544.56794 | Y60: =-Ops!Y989 -> -522.3727875 | Z60: =-Ops!Z989 -> -875.8384607 | AA60: =-Ops!AA989 -> -887.2625249 | AB60: =-Ops!AB989 -> -703.0179536 | AC60: =-Ops!AC989 -> -568.9436579 | AD60: =-Ops!AD989 -> -605.069766 | AE60: =-Ops!AE989 -> -591.2536813 | AF60: =-Ops!AF989 -> -679.0052107 | AG60: =-Ops!AG989 -> -1081.064112 | AH60: =-Ops!AH989 -> -1121.349623 | AI60: =-Ops!AI989 -> -964.0454008 | AJ60: =-Ops!AJ989 -> -833.9112078 | AK60: =-Ops!AK989 -> 0 | AL60: =-Ops!AL989 -> 0 | AM60: =-Ops!AM989 -> 0
C62: Fluxo de Caixa para Serviços da Dívida | E62: $ 000s | F62: =SUM(G62:AJ62) -> 71917.16397 | G62: =G56+G60+G58 -> 211.174279 | H62: -1422.592579 | I62: 198.8054833 | J62: 1998.723588 | K62: 2188.957636 | L62: 1967.914057 | M62: 2050.081418 | N62: 4496.568607 | O62: 2510.264443 | P62: 2549.517097 | Q62: 2631.798612 | R62: 2735.340755 | S62: 2517.650444 | T62: 2498.608554 | U62: 4359.918601 | V62: 2297.683249 | W62: 2242.153813 | X62: 2223.064626 | Y62: 2181.58852 | Z62: 1803.405806 | AA62: 1964.829352 | AB62: 4813.719524 | AC62: 2468.108084 | AD62: 2497.098325 | AE62: 2490.460358 | AF62: 2492.160602 | AG62: 2197.123717 | AH62: 2266.103854 | AI62: 4914.527831 | AJ62: 3572.405312 | AK62: 0 | AL62: 0 | AM62: 0
C64: Dívida Senior
C65: Pagamento de Juros | E65: $ 000s | F65: =SUM(G65:AM65) -> -13223.98133 | G65: =-Debt!G276 -> -618.0208901 | H65: =-Debt!H276 -> -609.2690478 | I65: =-Debt!I276 -> -750.8891185 | J65: =-Debt!J276 -> -708.7017028 | K65: =-Debt!K276 -> -655.9963912 | L65: =-Debt!L276 -> -605.9602026 | M65: =-Debt!M276 -> -553.9032765 | N65: =-Debt!N276 -> -851.2689595 | O65: =-Debt!O276 -> -795.8494943 | P65: =-Debt!P276 -> -697.7001095 | Q65: =-Debt!Q276 -> -651.8366754 | R65: =-Debt!R276 -> -555.6841755 | S65: =-Debt!S276 -> -446.5892733 | T65: =-Debt!T276 -> -335.698024 | U65: =-Debt!U276 -> -576.2673043 | V65: =-Debt!V276 -> -464.2974433 | W65: =-Debt!W276 -> -8.156747781 | X65: =-Debt!X276 -> -7.706658833 | Y65: =-Debt!Y276 -> -8.592119159 | Z65: =-Debt!Z276 -> -8.457430923 | AA65: =-Debt!AA276 -> -65.32672694 | AB65: =-Debt!AB276 -> -451.0810566 | AC65: =-Debt!AC276 -> -444.3665544 | AD65: =-Debt!AD276 -> -388.8780016 | AE65: =-Debt!AE276 -> -335.0804702 | AF65: =-Debt!AF276 -> -284.8438379 | AG65: =-Debt!AG276 -> -230.3359148 | AH65: =-Debt!AH276 -> -174.579559 | AI65: =-Debt!AI276 -> -498.5418644 | AJ65: =-Debt!AJ276 -> -440.1022981 | AK65: =-Debt!AK276 -> 0 | AL65: =-Debt!AL276 -> 0 | AM65: =-Debt!AM276 -> 0
C66: Pagamento de Principal | E66: $ 000s | F66: =SUM(G66:AM66) -> -19936.15775 | G66: =-Debt!G277 -> 0 | H66: =-Debt!H277 -> 0 | I66: =-Debt!I277 -> -365.7077118 | J66: =-Debt!J277 -> -457.2526831 | K66: =-Debt!K277 -> -458.1853176 | L66: =-Debt!L277 -> -459.4899453 | M66: =-Debt!M277 -> -463.2612598 | N66: =-Debt!N277 -> -465.7097914 | O66: =-Debt!O277 -> -835.9763595 | P66: =-Debt!P277 -> -835.9763595 | Q66: =-Debt!Q277 -> -837.8416285 | R66: =-Debt!R277 -> -927.9554984 | S66: =-Debt!S277 -> -935.4148555 | T66: =-Debt!T277 -> -939.1453935 | U66: =-Debt!U277 -> -940.9232023 | V66: =-Debt!V277 -> -3901.659187 | W66: =-Debt!W277 -> -3.782260071 | X66: =-Debt!X277 -> -4.981679918 | Y66: =-Debt!Y277 -> -4.981679918 | Z66: =-Debt!Z277 -> -6.11100019 | AA66: =-Debt!AA277 -> -6.49598479 | AB66: =-Debt!AB277 -> -60.27423412 | AC66: =-Debt!AC277 -> -466.29036 | AD66: =-Debt!AD277 -> -466.840338 | AE66: =-Debt!AE277 -> -466.840338 | AF66: =-Debt!AF277 -> -469.7923866 | AG66: =-Debt!AG277 -> -480.9633276 | AH66: =-Debt!AH277 -> -484.8775316 | AI66: =-Debt!AI277 -> -491.0887931 | AJ66: =-Debt!AJ277 -> -3698.338639 | AK66: =-Debt!AK277 -> 0 | AL66: =-Debt!AL277 -> 0 | AM66: =-Debt!AM277 -> 0
C67: Juros Pagos e Amortização total | E67: $ 000s | F67: =SUM(G67:AM67) -> -33160.13908 | G67: =SUM(G65:G66) -> -618.0208901 | H67: -609.2690478 | I67: -1116.59683 | J67: -1165.954386 | K67: -1114.181709 | L67: -1065.450148 | M67: -1017.164536 | N67: -1316.978751 | O67: -1631.825854 | P67: -1533.676469 | Q67: -1489.678304 | R67: -1483.639674 | S67: -1382.004129 | T67: -1274.843417 | U67: -1517.190507 | V67: -4365.95663 | W67: -11.93900785 | X67: -12.68833875 | Y67: -13.57379908 | Z67: -14.56843111 | AA67: -71.82271173 | AB67: -511.3552907 | AC67: -910.6569144 | AD67: -855.7183396 | AE67: -801.9208082 | AF67: -754.6362245 | AG67: -711.2992424 | AH67: -659.4570906 | AI67: -989.6306575 | AJ67: -4138.440937 | AK67: 0 | AL67: 0 | AM67: =SUM(AM65:AM66) -> 0
C69: Fluxo de Caixa para Conta Reserva | E69: $ 000s | F69: =SUM(G69:AJ69) -> 38757.02489 | G69: =G62+G67 -> -406.8466112 | H69: -2031.861627 | I69: -917.7913469 | J69: 832.7692021 | K69: 1074.775928 | L69: 902.4639087 | M69: 1032.916882 | N69: 3179.589856 | O69: 878.4385888 | P69: 1015.840628 | Q69: 1142.120308 | R69: 1251.701081 | S69: 1135.646315 | T69: 1223.765136 | U69: 2842.728094 | V69: -2068.273382 | W69: 2230.214805 | X69: 2210.376287 | Y69: 2168.01472 | Z69: 1788.837375 | AA69: 1893.00664 | AB69: 4302.364233 | AC69: 1557.451169 | AD69: 1641.379985 | AE69: 1688.53955 | AF69: 1737.524377 | AG69: 1485.824475 | AH69: 1606.646764 | AI69: 3924.897174 | AJ69: -566.0356251 | AK69: =AK62+AK67 -> 0 | AL69: 0 | AM69: 0
C71: Conta reserva
C72: Depósitos Conta Reserva | E72: $ 000s | F72: =SUM(G72:AJ72) -> -3083.143556 | G72: =-Debt!G293 -> 0 | H72: =-Debt!H293 -> -372.1989434 | I72: =-Debt!I293 -> -16.45251857 | J72: =-Debt!J293 -> 0 | K72: =-Debt!K293 -> 0 | L72: =-Debt!L293 -> 0 | M72: =-Debt!M293 -> -99.93807153 | N72: =-Debt!N293 -> -104.9490343 | O72: =-Debt!O293 -> 0 | P72: =-Debt!P293 -> 0 | Q72: =-Debt!Q293 -> 0 | R72: =-Debt!R293 -> 0 | S72: =-Debt!S293 -> 0 | T72: =-Debt!T293 -> -80.78236306 | U72: =-Debt!U293 -> -949.5887079 | V72: =-Debt!V293 -> 0 | W72: =-Debt!W293 -> -0.2497769659 | X72: =-Debt!X293 -> -0.2951534423 | Y72: =-Debt!Y293 -> -0.3315440122 | Z72: =-Debt!Z293 -> -19.0847602 | AA72: =-Debt!AA293 -> -146.5108597 | AB72: =-Debt!AB293 -> -133.1005412 | AC72: =-Debt!AC293 -> 0 | AD72: =-Debt!AD293 -> 0 | AE72: =-Debt!AE293 -> 0 | AF72: =-Debt!AF293 -> 0 | AG72: =-Debt!AG293 -> 0 | AH72: =-Debt!AH293 -> -110.0578556 | AI72: =-Debt!AI293 -> -1049.603427 | AJ72: =-Debt!AJ293 -> 0 | AK72: =-Debt!AK293 -> 0 | AL72: =-Debt!AL293 -> 0 | AM72: =-Debt!AM293 -> 0
C73: Saques Conta Reserva | E73: $ 000s | F73: =SUM(G73:AJ73) -> 3083.143556 | G73: =-Debt!G294 -> 0 | H73: =-Debt!H294 -> 0 | I73: =-Debt!I294 -> 0 | J73: =-Debt!J294 -> 17.25755905 | K73: =-Debt!K294 -> 16.24385363 | L73: =-Debt!L294 -> 16.09520388 | M73: =-Debt!M294 -> 0 | N73: =-Debt!N294 -> 0 | O73: =-Debt!O294 -> 32.71646158 | P73: =-Debt!P294 -> 14.66605507 | Q73: =-Debt!Q294 -> 2.012876629 | R73: =-Debt!R294 -> 33.87851506 | S73: =-Debt!S294 -> 35.72023712 | T73: =-Debt!T294 -> 0 | U73: =-Debt!U294 -> 0 | V73: =-Debt!V294 -> 1451.339207 | W73: =-Debt!W294 -> 0 | X73: =-Debt!X294 -> 0 | Y73: =-Debt!Y294 -> 0 | Z73: =-Debt!Z294 -> 0 | AA73: =-Debt!AA294 -> 0 | AB73: =-Debt!AB294 -> 0 | AC73: =-Debt!AC294 -> 18.31285828 | AD73: =-Debt!AD294 -> 17.93251043 | AE73: =-Debt!AE294 -> 15.7615279 | AF73: =-Debt!AF294 -> 14.44566073 | AG73: =-Debt!AG294 -> 17.28071725 | AH73: =-Debt!AH294 -> 0 | AI73: =-Debt!AI294 -> 0 | AJ73: =-Debt!AJ294 -> 1379.480312 | AK73: =-Debt!AK294 -> 0 | AL73: =-Debt!AL294 -> 0 | AM73: =-Debt!AM294 -> 0
C74: Total | E74: $ 000s | F74: =SUM(G74:AJ74) -> 0 | G74: =SUM(G72:G73) -> 0 | H74: -372.1989434 | I74: -16.45251857 | J74: 17.25755905 | K74: 16.24385363 | L74: 16.09520388 | M74: -99.93807153 | N74: -104.9490343 | O74: 32.71646158 | P74: 14.66605507 | Q74: 2.012876629 | R74: 33.87851506 | S74: 35.72023712 | T74: -80.78236306 | U74: -949.5887079 | V74: 1451.339207 | W74: -0.2497769659 | X74: -0.2951534423 | Y74: -0.3315440122 | Z74: -19.0847602 | AA74: -146.5108597 | AB74: -133.1005412 | AC74: 18.31285828 | AD74: 17.93251043 | AE74: 15.7615279 | AF74: 14.44566073 | AG74: 17.28071725 | AH74: -110.0578556 | AI74: -1049.603427 | AJ74: 1379.480312 | AK74: 0 | AL74: 0 | AM74: =SUM(AM72:AM73) -> 0
C76: Fluxo de caixa antes de receita financeira | E76: $ 000s | F76: =SUM(G76:AJ76) -> 38757.02489 | G76: =G69+G74 -> -406.8466112 | H76: -2404.06057 | I76: -934.2438655 | J76: 850.0267612 | K76: 1091.019781 | L76: 918.5591126 | M76: 932.97881 | N76: 3074.640822 | O76: 911.1550503 | P76: 1030.506683 | Q76: 1144.133185 | R76: 1285.579596 | S76: 1171.366553 | T76: 1142.982773 | U76: 1893.139386 | V76: -616.9341743 | W76: 2229.965028 | X76: 2210.081133 | Y76: 2167.683176 | Z76: 1769.752615 | AA76: 1746.49578 | AB76: 4169.263692 | AC76: 1575.764028 | AD76: 1659.312496 | AE76: 1704.301077 | AF76: 1751.970038 | AG76: 1503.105192 | AH76: 1496.588908 | AI76: 2875.293747 | AJ76: 813.4446873 | AK76: 0 | AL76: 0 | AM76: =AM69+AM74 -> 0
C78: Receitas Financeiras | E78: $ 000s | F78: =SUM(G78:AJ78) -> 4734.519459 | G78: =Ops!G1082 -> 0 | H78: =Ops!H1082 -> 0 | I78: =Ops!I1082 -> 0 | J78: =Ops!J1082 -> 0 | K78: =Ops!K1082 -> 69.56585479 | L78: =Ops!L1082 -> 169.1586525 | M78: =Ops!M1082 -> 234.819236 | N78: =Ops!N1082 -> 188.0116708 | O78: =Ops!O1082 -> 125.1938129 | P78: =Ops!P1082 -> 77.99177401 | Q78: =Ops!Q1082 -> 47.26715713 | R78: =Ops!R1082 -> 18.39521669 | S78: =Ops!S1082 -> 7.627784711 | T78: =Ops!T1082 -> 8.152499812 | U78: =Ops!U1082 -> 8.71284052 | V78: =Ops!V1082 -> 18.05444101 | W78: =Ops!W1082 -> 0 | X78: =Ops!X1082 -> 7.142352937 | Y78: =Ops!Y1082 -> 6.825550896 | Z78: =Ops!Z1082 -> 6.323226207 | AA78: =Ops!AA1082 -> 5.908432406 | AB78: =Ops!AB1082 -> 5.905791708 | AC78: =Ops!AC1082 -> 29.26558989 | AD78: =Ops!AD1082 -> 125.7136893 | AE78: =Ops!AE1082 -> 237.4513415 | AF78: =Ops!AF1082 -> 371.6760467 | AG78: =Ops!AG1082 -> 522.4872364 | AH78: =Ops!AH1082 -> 665.4354276 | AI78: =Ops!AI1082 -> 824.268392 | AJ78: =Ops!AJ1082 -> 953.1654412 | AK78: =Ops!AK1082 -> 0 | AL78: =Ops!AL1082 -> 0 | AM78: =Ops!AM1082 -> 0
C79: Fiança Bancária | E79: $ 000s | F79: =SUM(G79:AM79) -> -1059.830828 | G79: =-Debt!G118 -> -99.68078873 | H79: =-Debt!H118 -> -102.3981593 | I79: =-Debt!I118 -> -118.8856976 | J79: =-Debt!J118 -> -109.9644762 | K79: =-Debt!K118 -> -101.087788 | L79: =-Debt!L118 -> -92.65225195 | M79: =-Debt!M118 -> -83.82776246 | N79: =-Debt!N118 -> -133.7562175 | O79: =-Debt!O118 -> -117.0366903 | P79: =-Debt!P118 -> -100.5409954 | Q79: =-Debt!Q118 -> 0 | R79: =-Debt!R118 -> 0 | S79: =-Debt!S118 -> 0 | T79: =-Debt!T118 -> 0 | U79: =-Debt!U118 -> 0 | V79: =-Debt!V118 -> 0 | W79: =-Debt!W118 -> 0 | X79: =-Debt!X118 -> 0 | Y79: =-Debt!Y118 -> 0 | Z79: =-Debt!Z118 -> 0 | AA79: =-Debt!AA118 -> 0 | AB79: =-Debt!AB118 -> 0 | AC79: =-Debt!AC118 -> 0 | AD79: =-Debt!AD118 -> 0 | AE79: =-Debt!AE118 -> 0 | AF79: =-Debt!AF118 -> 0 | AG79: =-Debt!AG118 -> 0 | AH79: =-Debt!AH118 -> 0 | AI79: =-Debt!AI118 -> 0 | AJ79: =-Debt!AJ118 -> 0 | AK79: =-Debt!AK118 -> 0 | AL79: =-Debt!AL118 -> 0 | AM79: =-Debt!AM118 -> 0
C81: Fluxo de Caixa para Acionista | E81: $ 000s | F81: =SUM(G81:AJ81) -> 42431.71352 | G81: =G76+G78+G79 -> -506.5273999 | H81: =H76+H78+H79 -> -2506.458729 | I81: -1053.129563 | J81: 740.0622849 | K81: 1059.497848 | L81: 995.0655132 | M81: 1083.970284 | N81: 3128.896275 | O81: 919.3121729 | P81: 1007.957461 | Q81: 1191.400342 | R81: 1303.974813 | S81: 1178.994337 | T81: 1151.135273 | U81: 1901.852227 | V81: -598.8797333 | W81: 2229.965028 | X81: 2217.223486 | Y81: 2174.508727 | Z81: 1776.075841 | AA81: 1752.404213 | AB81: 4175.169484 | AC81: 1605.029618 | AD81: 1785.026185 | AE81: 1941.752419 | AF81: 2123.646084 | AG81: 2025.592429 | AH81: 2162.024336 | AI81: 3699.562139 | AJ81: 1766.610128 | AK81: 0 | AL81: 0 | AM81: =AM76+AM78+AM79 -> 0
C83: Dividendos | E83: $ 000s | F83: =SUM(G83:AJ83) -> -34997.97241 | G83: =-Ops!G1120 -> 0 | H83: =-Ops!H1120 -> 0 | I83: =-Ops!I1120 -> 0 | J83: =-Ops!J1120 -> 0 | K83: =-Ops!K1120 -> 0 | L83: =-Ops!L1120 -> -296.5486678 | M83: =-Ops!M1120 -> -1581.923105 | N83: =-Ops!N1120 -> -3797.171359 | O83: =-Ops!O1120 -> -1421.461523 | P83: =-Ops!P1120 -> -1334.815088 | Q83: =-Ops!Q1120 -> -1498.548644 | R83: =-Ops!R1120 -> -1418.521962 | S83: =-Ops!S1120 -> -1173.412262 | T83: =-Ops!T1120 -> -1145.174202 | U83: =-Ops!U1120 -> -1802.473498 | V83: =-Ops!V1120 -> 0 | W83: =-Ops!W1120 -> -2153.98255 | X83: =-Ops!X1120 -> -2220.593721 | Y83: =-Ops!Y1120 -> -2179.852607 | Z83: =-Ops!Z1120 -> -1780.488541 | AA83: =-Ops!AA1120 -> -1752.432305 | AB83: =-Ops!AB1120 -> -3926.660992 | AC83: =-Ops!AC1120 -> -578.9860071 | AD83: =-Ops!AD1120 -> -596.3277574 | AE83: =-Ops!AE1120 -> -513.8300229 | AF83: =-Ops!AF1120 -> -519.2717263 | AG83: =-Ops!AG1120 -> -504.8669901 | AH83: =-Ops!AH1120 -> -472.3119487 | AI83: =-Ops!AI1120 -> -2328.316935 | AJ83: =-Ops!AJ1120 -> 0 | AK83: =-Ops!AK1120 -> 0 | AL83: =-Ops!AL1120 -> 0 | AM83: =-Ops!AM1120 -> 0
C84: Reserva legal | E84: $ 000s | F84: =SUM(G84:AJ84) -> -2024.7659 | G84: =-Ops!G1093 -> 0 | H84: =-Ops!H1093 -> 0 | I84: =-Ops!I1093 -> 0 | J84: =-Ops!J1093 -> -57.74618725 | K84: =-Ops!K1093 -> -65.71079724 | L84: =-Ops!L1093 -> -74.91819181 | M84: =-Ops!M1093 -> -83.25911077 | N84: =-Ops!N1093 -> -199.8511241 | O84: =-Ops!O1093 -> -74.81376438 | P84: =-Ops!P1093 -> -70.25342566 | Q84: =-Ops!Q1093 -> -78.87098128 | R84: =-Ops!R1093 -> -81.14664586 | S84: =-Ops!S1093 -> -86.7287214 | T84: =-Ops!T1093 -> -92.68979277 | U84: =-Ops!U1093 -> -192.0685214 | V84: =-Ops!V1093 -> -64.9367182 | W84: =-Ops!W1093 -> -75.98247805 | X84: =-Ops!X1093 -> -72.61224357 | Y84: =-Ops!Y1093 -> -67.2683639 | Z84: =-Ops!Z1093 -> -62.85566389 | AA84: =-Ops!AA1093 -> -62.82757137 | AB84: =-Ops!AB1093 -> -170.0197343 | AC84: =-Ops!AC1093 -> -30.47294774 | AD84: =-Ops!AD1093 -> -31.38567144 | AE84: =-Ops!AE1093 -> -27.04368541 | AF84: =-Ops!AF1093 -> -27.33009086 | AG84: =-Ops!AG1093 -> -26.57194685 | AH84: =-Ops!AH1093 -> -24.85852361 | AI84: =-Ops!AI1093 -> -122.5429966 | AJ84: =-Ops!AJ1093 -> 0 | AK84: =-Ops!AK1093 -> 0 | AL84: =-Ops!AL1093 -> 0 | AM84: =-Ops!AM1093 -> 0
C86: Fluxo de Caixa líquido | E86: $ 000s | F86: =SUM(G86:AJ86) -> 5408.975209 | G86: =SUM(G81:G84) -> -506.5273999 | H86: -2506.458729 | I86: -1053.129563 | J86: 682.3160977 | K86: 993.7870508 | L86: 623.5986536 | M86: -581.2119318 | N86: -868.1262077 | O86: -576.9631147 | P86: -397.111052 | Q86: -386.0192839 | R86: -195.6937946 | S86: -81.14664586 | T86: -86.7287214 | U86: -92.68979277 | V86: -663.8164515 | W86: -1.847411113e-13 | X86: -75.98247805 | Y86: -72.61224357 | Z86: -67.2683639 | AA86: -62.85566389 | AB86: 78.48875702 | AC86: 995.5706626 | AD86: 1157.312756 | AE86: 1400.878711 | AF86: 1577.044267 | AG86: 1494.153492 | AH86: 1664.853863 | AI86: 1248.702208 | AJ86: 1766.610128 | AK86: 0 | AL86: 0 | AM86: 0
C88: Saldo caixa c/f | E88: $ 000s | G88: =Ops!G1069 -> 0 | H88: =Ops!H1069 -> 0 | I88: =Ops!I1069 -> 0 | J88: =Ops!J1069 -> 740.0622849 | K88: =Ops!K1069 -> 1799.560133 | L88: =Ops!L1069 -> 2498.076978 | M88: =Ops!M1069 -> 2000.124157 | N88: =Ops!N1069 -> 1331.849074 | O88: =Ops!O1069 -> 829.6997235 | P88: =Ops!P1069 -> 502.8420972 | Q88: =Ops!Q1069 -> 195.6937946 | R88: =Ops!R1069 -> 81.14664586 | S88: =Ops!S1069 -> 86.7287214 | T88: =Ops!T1069 -> 92.68979277 | U88: =Ops!U1069 -> 192.0685214 | V88: =Ops!V1069 -> 0 | W88: =Ops!W1069 -> 75.98247805 | X88: =Ops!X1069 -> 72.61224357 | Y88: =Ops!Y1069 -> 67.2683639 | Z88: =Ops!Z1069 -> 62.85566389 | AA88: =Ops!AA1069 -> 62.82757137 | AB88: =Ops!AB1069 -> 311.3360627 | AC88: =Ops!AC1069 -> 1337.379673 | AD88: =Ops!AD1069 -> 2526.078101 | AE88: =Ops!AE1069 -> 3954.000497 | AF88: =Ops!AF1069 -> 5558.374855 | AG88: =Ops!AG1069 -> 7079.100293 | AH88: =Ops!AH1069 -> 8768.81268 | AI88: =Ops!AI1069 -> 10140.05788 | AJ88: =Ops!AJ1069 -> 11906.66801 | AK88: =Ops!AK1069 -> 11906.66801 | AL88: =Ops!AL1069 -> 11906.66801 | AM88: =Ops!AM1069 -> 11906.66801
F89: =SUM(G89:AJ89) -> 0 | G89: =IF(ABS(G88)<0,1,0) -> 0 | H89: 0 | I89: 0 | J89: 0 | K89: 0 | L89: 0 | M89: 0 | N89: 0 | O89: 0 | P89: 0 | Q89: 0 | R89: 0 | S89: 0 | T89: 0 | U89: 0 | V89: 0 | W89: 0 | X89: 0 | Y89: 0 | Z89: 0 | AA89: 0 | AB89: 0 | AC89: 0 | AD89: 0 | AE89: 0 | AF89: 0 | AG89: 0 | AH89: 0 | AI89: 0 | AJ89: 0 | AK89: 0 | AL89: 0 | AM89: 0
C92: Demonstração de Resultado (Contábil & Regulatória) (R$)
C94: =C16&" + "&C17 -> Contraprestação Pública Anual + Receitas Tarifárias | E94: $ 000s | F94: =SUM(G94:AM94) -> 462524.9886 | G94: =G19 -> 9207.053202 | H94: 9708.178825 | I94: 11978.49698 | J94: 14061.01296 | K94: 14190.61302 | L94: 14324.13152 | M94: 14450.74155 | N94: 15071.56128 | O94: 14708.35828 | P94: 14842.28883 | Q94: 15048.88695 | R94: 15112.72237 | S94: 15244.85983 | T94: 15379.64017 | U94: 16073.0135 | V94: 15738.64117 | W94: 15886.00041 | X94: 16037.77822 | Y94: 16199.824 | Z94: 16355.5619 | AA94: 16574.79088 | AB94: 17147.29772 | AC94: 16794.67431 | AD94: 16942.77637 | AE94: 17110.28982 | AF94: 17265.91094 | AG94: 17413.35666 | AH94: 17566.77088 | AI94: 18214.12389 | AJ94: 17875.63221 | AK94: 0 | AL94: 0 | AM94: 0
C95: Custos e Despesas Operacionais | E95: $ 000s | F95: =SUM(G95:AM95) -> -382625.2214 | G95: =-Ops!G360 -> -9870.459606 | H95: =-Ops!H360 -> -11107.70064 | I95: =-Ops!I360 -> -11461.04028 | J95: =-Ops!J360 -> -11772.98345 | K95: =-Ops!K360 -> -11815.47683 | L95: =-Ops!L360 -> -11854.97896 | M95: =-Ops!M360 -> -11877.51132 | N95: =-Ops!N360 -> -11900.26259 | O95: =-Ops!O360 -> -11923.22239 | P95: =-Ops!P360 -> -11946.43932 | Q95: =-Ops!Q360 -> -11969.91656 | R95: =-Ops!R360 -> -11993.58994 | S95: =-Ops!S360 -> -12017.51882 | T95: =-Ops!T360 -> -12041.70916 | U95: =-Ops!U360 -> -12741.97519 | V95: =-Ops!V360 -> -12910.16745 | W95: =-Ops!W360 -> -13081.51125 | X95: =-Ops!X360 -> -13255.98447 | Y95: =-Ops!Y360 -> -13482.48174 | Z95: =-Ops!Z360 -> -13663.49801 | AA95: =-Ops!AA360 -> -13704.10113 | AB95: =-Ops!AB360 -> -13745.13003 | AC95: =-Ops!AC360 -> -13786.58606 | AD95: =-Ops!AD360 -> -13828.4355 | AE95: =-Ops!AE360 -> -14037.08614 | AF95: =-Ops!AF360 -> -14079.82556 | AG95: =-Ops!AG360 -> -14122.99129 | AH95: =-Ops!AH360 -> -14166.64591 | AI95: =-Ops!AI360 -> -14210.73939 | AJ95: =-Ops!AJ360 -> -14255.25238 | AK95: =-Ops!AK360 -> 0 | AL95: =-Ops!AL360 -> 0 | AM95: =-Ops!AM360 -> 0
C96: Receita Ativo da Concessão (IFRIC 12) | E96: $ 000s | F96: =SUM(G96:AM96) -> 47197.12142 | G96: =Ops!G1028+Ops!G1045 -> 0 | H96: =Ops!H1028+Ops!H1045 -> 801.7820914 | I96: =Ops!I1028+Ops!I1045 -> 857.2703433 | J96: =Ops!J1028+Ops!J1045 -> 1112.088384 | K96: =Ops!K1028+Ops!K1045 -> 1115.976755 | L96: =Ops!L1028+Ops!L1045 -> 1119.477555 | M96: =Ops!M1028+Ops!M1045 -> 1126.513653 | N96: =Ops!N1028+Ops!N1045 -> 1129.103784 | O96: =Ops!O1028+Ops!O1045 -> 1718.980566 | P96: =Ops!P1028+Ops!P1045 -> 1711.731778 | Q96: =Ops!Q1028+Ops!Q1045 -> 1703.949331 | R96: =Ops!R1028+Ops!R1045 -> 1781.028046 | S96: =Ops!S1028+Ops!S1045 -> 1769.351579 | T96: =Ops!T1028+Ops!T1045 -> 1749.782747 | U96: =Ops!U1028+Ops!U1045 -> 1724.090146 | V96: =Ops!V1028+Ops!V1045 -> 2285.468145 | W96: =Ops!W1028+Ops!W1045 -> 2245.265013 | X96: =Ops!X1028+Ops!X1045 -> 2189.322983 | Y96: =Ops!Y1028+Ops!Y1045 -> 2120.831593 | Z96: =Ops!Z1028+Ops!Z1045 -> 2043.960443 | AA96: =Ops!AA1028+Ops!AA1045 -> 1953.506594 | AB96: =Ops!AB1028+Ops!AB1045 -> 1938.562031 | AC96: =Ops!AC1028+Ops!AC1045 -> 2414.162923 | AD96: =Ops!AD1028+Ops!AD1045 -> 2225.575026 | AE96: =Ops!AE1028+Ops!AE1045 -> 2010.691612 | AF96: =Ops!AF1028+Ops!AF1045 -> 1770.141585 | AG96: =Ops!AG1028+Ops!AG1045 -> 1503.110138 | AH96: =Ops!AH1028+Ops!AH1045 -> 1193.063397 | AI96: =Ops!AI1028+Ops!AI1045 -> 843.1517547 | AJ96: =Ops!AJ1028+Ops!AJ1045 -> 1039.181424 | AK96: =Ops!AK1028+Ops!AK1045 -> 0 | AL96: =Ops!AL1028+Ops!AL1045 -> 0 | AM96: =Ops!AM1028+Ops!AM1045 -> 0
C97: Receita de Construção (IFRIC 12) | E97: $ 000s | F97: =SUM(G97:AM97) -> 33226.92958 | G97: =Ops!G1027+Ops!G1044 -> 7225.398645 | H97: =Ops!H1027+Ops!H1044 -> 245.186145 | I97: =Ops!I1027+Ops!I1044 -> 2147.607442 | J97: =Ops!J1027+Ops!J1044 -> 20.196205 | K97: =Ops!K1027+Ops!K1044 -> 25.89741 | L97: =Ops!L1027+Ops!L1044 -> 68.05653 | M97: =Ops!M1027+Ops!M1044 -> 39.767225 | N97: =Ops!N1027+Ops!N1044 -> 5345.41641 | O97: =Ops!O1027+Ops!O1044 -> 0 | P97: =Ops!P1027+Ops!P1044 -> 20.196205 | Q97: =Ops!Q1027+Ops!Q1044 -> 813.09015 | R97: =Ops!R1027+Ops!R1044 -> 53.84414 | S97: =Ops!S1027+Ops!S1044 -> 20.196205 | T97: =Ops!T1027+Ops!T1044 -> 6.41641 | U97: =Ops!U1027+Ops!U1044 -> 5342.8962 | V97: =Ops!V1027+Ops!V1044 -> 88.252735 | W97: =Ops!W1027+Ops!W1044 -> 25.98743 | X97: =Ops!X1027+Ops!X1044 -> 0 | Y97: =Ops!Y1027+Ops!Y1044 -> 20.704205 | Z97: =Ops!Z1027+Ops!Z1044 -> 6.41641 | AA97: =Ops!AA1027+Ops!AA1044 -> 806.67374 | AB97: =Ops!AB1027+Ops!AB1044 -> 5413.548345 | AC97: =Ops!AC1027+Ops!AC1044 -> 6.41641 | AD97: =Ops!AD1027+Ops!AD1044 -> 0 | AE97: =Ops!AE1027+Ops!AE1044 -> 24.600405 | AF97: =Ops!AF1027+Ops!AF1044 -> 74.47294 | AG97: =Ops!AG1027+Ops!AG1044 -> 19.57102 | AH97: =Ops!AH1027+Ops!AH1044 -> 20.704205 | AI97: =Ops!AI1027+Ops!AI1044 -> 5345.41641 | AJ97: =Ops!AJ1027+Ops!AJ1044 -> 0 | AK97: =Ops!AK1027+Ops!AK1044 -> 0 | AL97: =Ops!AL1027+Ops!AL1044 -> 0 | AM97: =Ops!AM1027+Ops!AM1044 -> 0
C98: EBITDA | E98: $ 000s | F98: =SUM(G98:AM98) -> 160323.8183 | G98: =SUM(G94:G97) -> 6561.992241 | H98: -352.5535755 | I98: 3522.334494 | J98: 3420.314099 | K98: 3517.010357 | L98: 3656.686649 | M98: 3739.511109 | N98: 9645.818885 | O98: 4504.116458 | P98: 4627.777493 | Q98: 5596.009867 | R98: 4954.004613 | S98: 5016.8888 | T98: 5094.130169 | U98: 10398.02465 | V98: 5202.194593 | W98: 5075.7416 | X98: 4971.116734 | Y98: 4858.878049 | Z98: 4742.440745 | AA98: 5630.870075 | AB98: 10754.27806 | AC98: 5428.667578 | AD98: 5339.915889 | AE98: 5108.495697 | AF98: 5030.699899 | AG98: 4813.046527 | AH98: 4613.89258 | AI98: 10191.95267 | AJ98: 4659.561257 | AK98: 0 | AL98: 0 | AM98: =SUM(AM94:AM97) -> 0
C100: Amortização Ativo Financeiro (IFRIC 12) | E100: $ 000s | F100: =SUM(G100:AM100) -> -80424.051 | G100: =Ops!G1029+Ops!G1046 -> 0 | H100: =Ops!H1029+Ops!H1046 -> -546.9262128 | I100: =Ops!I1029+Ops!I1046 -> -708.5407308 | J100: =Ops!J1029+Ops!J1046 -> -1097.243861 | K100: =Ops!K1029+Ops!K1046 -> -1110.32609 | L100: =Ops!L1029+Ops!L1046 -> -1124.127074 | M100: =Ops!M1029+Ops!M1046 -> -1142.939462 | N100: =Ops!N1029+Ops!N1046 -> -1158.743061 | O100: =Ops!O1029+Ops!O1046 -> -1784.304287 | P100: =Ops!P1029+Ops!P1046 -> -1802.06085 | Q100: =Ops!Q1029+Ops!Q1046 -> -1822.431253 | R100: =Ops!R1029+Ops!R1046 -> -1940.096695 | S100: =Ops!S1029+Ops!S1046 -> -1965.895711 | T100: =Ops!T1029+Ops!T1046 -> -1987.732494 | U100: =Ops!U1029+Ops!U1046 -> -2008.030957 | V100: =Ops!V1029+Ops!V1046 -> -2736.018395 | W100: =Ops!W1029+Ops!W1046 -> -2775.383762 | X100: =Ops!X1029+Ops!X1046 -> -2806.545047 | Y100: =Ops!Y1029+Ops!Y1046 -> -2834.27353 | Z100: =Ops!Z1029+Ops!Z1046 -> -2865.51743 | AA100: =Ops!AA1029+Ops!AA1046 -> -2894.855857 | AB100: =Ops!AB1029+Ops!AB1046 -> -3066.150296 | AC100: =Ops!AC1029+Ops!AC1046 -> -4120.071931 | AD100: =Ops!AD1029+Ops!AD1046 -> -4162.034261 | AE100: =Ops!AE1029+Ops!AE1046 -> -4203.05038 | AF100: =Ops!AF1029+Ops!AF1046 -> -4251.014814 | AG100: =Ops!AG1029+Ops!AG1046 -> -4316.721242 | AH100: =Ops!AH1029+Ops!AH1046 -> -4367.057173 | AI100: =Ops!AI1029+Ops!AI1046 -> -4422.012737 | AJ100: =Ops!AJ1029+Ops!AJ1046 -> -10403.94541 | AK100: =Ops!AK1029+Ops!AK1046 -> 0 | AL100: =Ops!AL1029+Ops!AL1046 -> 0 | AM100: =Ops!AM1029+Ops!AM1046 -> 0
C101: Despesas com Juros | E101: $ 000s | F101: -13223.98133 | G101: =-Debt!G276 -> -618.0208901 | H101: =-Debt!H276 -> -609.2690478 | I101: =-Debt!I276 -> -750.8891185 | J101: =-Debt!J276 -> -708.7017028 | K101: =-Debt!K276 -> -655.9963912 | L101: =-Debt!L276 -> -605.9602026 | M101: =-Debt!M276 -> -553.9032765 | N101: =-Debt!N276 -> -851.2689595 | O101: =-Debt!O276 -> -795.8494943 | P101: =-Debt!P276 -> -697.7001095 | Q101: =-Debt!Q276 -> -651.8366754 | R101: =-Debt!R276 -> -555.6841755 | S101: =-Debt!S276 -> -446.5892733 | T101: =-Debt!T276 -> -335.698024 | U101: =-Debt!U276 -> -576.2673043 | V101: =-Debt!V276 -> -464.2974433 | W101: =-Debt!W276 -> -8.156747781 | X101: =-Debt!X276 -> -7.706658833 | Y101: =-Debt!Y276 -> -8.592119159 | Z101: =-Debt!Z276 -> -8.457430923 | AA101: =-Debt!AA276 -> -65.32672694 | AB101: =-Debt!AB276 -> -451.0810566 | AC101: =-Debt!AC276 -> -444.3665544 | AD101: =-Debt!AD276 -> -388.8780016 | AE101: =-Debt!AE276 -> -335.0804702 | AF101: =-Debt!AF276 -> -284.8438379 | AG101: =-Debt!AG276 -> -230.3359148 | AH101: =-Debt!AH276 -> -174.579559 | AI101: =-Debt!AI276 -> -498.5418644 | AJ101: =-Debt!AJ276 -> -440.1022981 | AK101: =-Debt!AK276 -> 0 | AL101: =-Debt!AL276 -> 0 | AM101: =-Debt!AM276 -> 0
C102: Outras despesas financeiras (Fiança Dívida) | E102: $ 000s | F102: -1159.511616 | G102: =-Debt!G118-(+Debt!G71) -> -124.6009859 | H102: =-Debt!H118-(+Debt!H71) -> -103.0775019 | I102: =-Debt!I118-(+Debt!I71) -> -124.8361208 | J102: =-Debt!J118-(+Debt!J71) -> -110.0204343 | K102: =-Debt!K118-(+Debt!K71) -> -101.1595425 | L102: =-Debt!L118-(+Debt!L71) -> -92.84081768 | M102: =-Debt!M118-(+Debt!M71) -> -83.93794638 | N102: =-Debt!N118-(+Debt!N71) -> -148.5668803 | O102: =-Debt!O118-(+Debt!O71) -> -117.0366903 | P102: =-Debt!P118-(+Debt!P71) -> -100.5969535 | Q102: =-Debt!Q118-(+Debt!Q71) -> -2.252846748 | R102: =-Debt!R118-(+Debt!R71) -> -0.149187142 | S102: =-Debt!S118-(+Debt!S71) -> -0.05595806905 | T102: =-Debt!T118-(+Debt!T71) -> -0.0177780882 | U102: =-Debt!U118-(+Debt!U71) -> -14.80367992 | V102: =-Debt!V118-(+Debt!V71) -> -0.264758205 | W102: =-Debt!W118-(+Debt!W71) -> -0.07796229 | X102: =-Debt!X118-(+Debt!X71) -> 0 | Y102: =-Debt!Y118-(+Debt!Y71) -> -0.062112615 | Z102: =-Debt!Z118-(+Debt!Z71) -> -0.01924923 | AA102: =-Debt!AA118-(+Debt!AA71) -> -2.42002122 | AB102: =-Debt!AB118-(+Debt!AB71) -> -16.24064504 | AC102: =-Debt!AC118-(+Debt!AC71) -> -0.01924923 | AD102: =-Debt!AD118-(+Debt!AD71) -> 0 | AE102: =-Debt!AE118-(+Debt!AE71) -> -0.073801215 | AF102: =-Debt!AF118-(+Debt!AF71) -> -0.22341882 | AG102: =-Debt!AG118-(+Debt!AG71) -> -0.05871306 | AH102: =-Debt!AH118-(+Debt!AH71) -> -0.062112615 | AI102: =-Debt!AI118-(+Debt!AI71) -> -16.03624923 | AJ102: =-Debt!AJ118-(+Debt!AJ71) -> 0 | AK102: =-Debt!AK118-(+Debt!AK71) -> 0 | AL102: =-Debt!AL118-(+Debt!AL71) -> 0 | AM102: =-Debt!AM118-(+Debt!AM71) -> 0
C103: Receitas Financeiras | E103: $ 000s | F103: 4734.519459 | G103: =Ops!G1082 -> 0 | H103: =Ops!H1082 -> 0 | I103: =Ops!I1082 -> 0 | J103: =Ops!J1082 -> 0 | K103: =Ops!K1082 -> 69.56585479 | L103: =Ops!L1082 -> 169.1586525 | M103: =Ops!M1082 -> 234.819236 | N103: =Ops!N1082 -> 188.0116708 | O103: =Ops!O1082 -> 125.1938129 | P103: =Ops!P1082 -> 77.99177401 | Q103: =Ops!Q1082 -> 47.26715713 | R103: =Ops!R1082 -> 18.39521669 | S103: =Ops!S1082 -> 7.627784711 | T103: =Ops!T1082 -> 8.152499812 | U103: =Ops!U1082 -> 8.71284052 | V103: =Ops!V1082 -> 18.05444101 | W103: =Ops!W1082 -> 0 | X103: =Ops!X1082 -> 7.142352937 | Y103: =Ops!Y1082 -> 6.825550896 | Z103: =Ops!Z1082 -> 6.323226207 | AA103: =Ops!AA1082 -> 5.908432406 | AB103: =Ops!AB1082 -> 5.905791708 | AC103: =Ops!AC1082 -> 29.26558989 | AD103: =Ops!AD1082 -> 125.7136893 | AE103: =Ops!AE1082 -> 237.4513415 | AF103: =Ops!AF1082 -> 371.6760467 | AG103: =Ops!AG1082 -> 522.4872364 | AH103: =Ops!AH1082 -> 665.4354276 | AI103: =Ops!AI1082 -> 824.268392 | AJ103: =Ops!AJ1082 -> 953.1654412 | AK103: =Ops!AK1082 -> 0 | AL103: =Ops!AL1082 -> 0 | AM103: =Ops!AM1082 -> 0
C104: Custo de Construção (IFRIC 12) | E104: $ 000s | F104: -33226.92958 | G104: =-Ops!G1027-Ops!G1044 -> -7225.398645 | H104: =-Ops!H1027-Ops!H1044 -> -245.186145 | I104: =-Ops!I1027-Ops!I1044 -> -2147.607442 | J104: =-Ops!J1027-Ops!J1044 -> -20.196205 | K104: =-Ops!K1027-Ops!K1044 -> -25.89741 | L104: =-Ops!L1027-Ops!L1044 -> -68.05653 | M104: =-Ops!M1027-Ops!M1044 -> -39.767225 | N104: =-Ops!N1027-Ops!N1044 -> -5345.41641 | O104: =-Ops!O1027-Ops!O1044 -> 0 | P104: =-Ops!P1027-Ops!P1044 -> -20.196205 | Q104: =-Ops!Q1027-Ops!Q1044 -> -813.09015 | R104: =-Ops!R1027-Ops!R1044 -> -53.84414 | S104: =-Ops!S1027-Ops!S1044 -> -20.196205 | T104: =-Ops!T1027-Ops!T1044 -> -6.41641 | U104: =-Ops!U1027-Ops!U1044 -> -5342.8962 | V104: =-Ops!V1027-Ops!V1044 -> -88.252735 | W104: =-Ops!W1027-Ops!W1044 -> -25.98743 | X104: =-Ops!X1027-Ops!X1044 -> 0 | Y104: =-Ops!Y1027-Ops!Y1044 -> -20.704205 | Z104: =-Ops!Z1027-Ops!Z1044 -> -6.41641 | AA104: =-Ops!AA1027-Ops!AA1044 -> -806.67374 | AB104: =-Ops!AB1027-Ops!AB1044 -> -5413.548345 | AC104: =-Ops!AC1027-Ops!AC1044 -> -6.41641 | AD104: =-Ops!AD1027-Ops!AD1044 -> 0 | AE104: =-Ops!AE1027-Ops!AE1044 -> -24.600405 | AF104: =-Ops!AF1027-Ops!AF1044 -> -74.47294 | AG104: =-Ops!AG1027-Ops!AG1044 -> -19.57102 | AH104: =-Ops!AH1027-Ops!AH1044 -> -20.704205 | AI104: =-Ops!AI1027-Ops!AI1044 -> -5345.41641 | AJ104: =-Ops!AJ1027-Ops!AJ1044 -> 0 | AK104: =-Ops!AK1027-Ops!AK1044 -> 0 | AL104: =-Ops!AL1027-Ops!AL1044 -> 0 | AM104: =-Ops!AM1027-Ops!AM1044 -> 0
C105: EBT | E105: $ 000s | F105: =SUM(G105:AJ105) -> 37023.8642 | G105: =SUM(G100:G104)+G98 -> -1406.02828 | H105: =SUM(H100:H104)+H98 -> -1857.012483 | I105: -209.5389186 | J105: 1484.151896 | K105: 1693.196778 | L105: 1934.860677 | M105: 2153.782435 | N105: 2329.835246 | O105: 1932.1198 | P105: 2085.215149 | Q105: 2353.666099 | R105: 2422.625632 | S105: 2591.779436 | T105: 2772.417963 | U105: 2464.739348 | V105: 1931.415703 | W105: 2266.135698 | X105: 2164.007381 | Y105: 2002.071633 | Z105: 1868.353451 | AA105: 1867.502163 | AB105: 1813.163513 | AC105: 887.0590225 | AD105: 914.7173165 | AE105: 783.1419822 | AF105: 791.8209351 | AG105: 768.8468742 | AH105: 716.924958 | AI105: 734.2137969 | AJ105: -5231.321006 | AK105: 0 | AL105: =SUM(AL100:AL104)+AL98 -> 0 | AM105: =SUM(AM100:AM104)+AM98 -> 0
C107: Outras receitas não operacionais | E107: $ 000s | F107: =SUM(G107:AM107) -> 8510.316077 | G107: =Ops!G931 -> 0 | H107: =Ops!H931 -> 0 | I107: =Ops!I931 -> 0 | J107: =Ops!J931 -> 0 | K107: =Ops!K931 -> 0 | L107: =Ops!L931 -> 0 | M107: =Ops!M931 -> 0 | N107: =Ops!N931 -> 2197.688026 | O107: =Ops!O931 -> 0 | P107: =Ops!P931 -> 0 | Q107: =Ops!Q931 -> 0 | R107: =Ops!R931 -> 0 | S107: =Ops!S931 -> 0 | T107: =Ops!T931 -> 0 | U107: =Ops!U931 -> 2190.642458 | V107: =Ops!V931 -> 0 | W107: =Ops!W931 -> 0 | X107: =Ops!X931 -> 0 | Y107: =Ops!Y931 -> 0 | Z107: =Ops!Z931 -> 0 | AA107: =Ops!AA931 -> 0 | AB107: =Ops!AB931 -> 2179.706767 | AC107: =Ops!AC931 -> 0 | AD107: =Ops!AD931 -> 0 | AE107: =Ops!AE931 -> 0 | AF107: =Ops!AF931 -> 0 | AG107: =Ops!AG931 -> 0 | AH107: =Ops!AH931 -> 0 | AI107: =Ops!AI931 -> 1942.278826 | AJ107: =Ops!AJ931 -> 0 | AK107: =Ops!AK931 -> 0 | AL107: =Ops!AL931 -> 0 | AM107: =Ops!AM931 -> 0
C108: Despesas de IR / CSLL | E108: $ 000s | F108: =SUM(G108:AJ108) -> -13742.76297 | G108: =-Ops!G990 -> 0 | H108: =-Ops!H990 -> 0 | I108: =-Ops!I990 -> 0 | J108: =-Ops!J990 -> -329.2281513 | K108: =-Ops!K990 -> -378.9808332 | L108: =-Ops!L990 -> -436.4968412 | M108: =-Ops!M990 -> -488.6002195 | N108: =-Ops!N990 -> -530.5007885 | O108: =-Ops!O990 -> -435.8445124 | P108: =-Ops!P990 -> -680.1466356 | Q108: =-Ops!Q990 -> -776.2464738 | R108: =-Ops!R990 -> -799.6927149 | S108: =-Ops!S990 -> -857.2050084 | T108: =-Ops!T990 -> -918.6221073 | U108: =-Ops!U990 -> -814.0113784 | V108: =-Ops!V990 -> -632.681339 | W108: =-Ops!W990 -> -746.4861375 | X108: =-Ops!X990 -> -711.7625096 | Y108: =-Ops!Y990 -> -656.7043554 | Z108: =-Ops!Z990 -> -611.2401734 | AA108: =-Ops!AA990 -> -610.9507353 | AB108: =-Ops!AB990 -> -592.4755946 | AC108: =-Ops!AC990 -> -277.6000677 | AD108: =-Ops!AD990 -> -287.0038876 | AE108: =-Ops!AE990 -> -242.268274 | AF108: =-Ops!AF990 -> -245.2191179 | AG108: =-Ops!AG990 -> -237.4079372 | AH108: =-Ops!AH990 -> -219.7544857 | AI108: =-Ops!AI990 -> -225.6326909 | AJ108: =-Ops!AJ990 -> 0 | AK108: =-Ops!AK990 -> 0 | AL108: =-Ops!AL990 -> 0 | AM108: =-Ops!AM990 -> 0
C109: Lucro Líquido | E109: $ 000s | F109: =SUM(G109:AJ109) -> 31791.41731 | G109: =G107+G108+G105 -> -1406.02828 | H109: -1857.012483 | I109: -209.5389186 | J109: 1154.923745 | K109: 1314.215945 | L109: 1498.363836 | M109: 1665.182215 | N109: 3997.022483 | O109: 1496.275288 | P109: 1405.068513 | Q109: 1577.419626 | R109: 1622.932917 | S109: 1734.574428 | T109: 1853.795855 | U109: 3841.370428 | V109: 1298.734364 | W109: 1519.649561 | X109: 1452.244871 | Y109: 1345.367278 | Z109: 1257.113278 | AA109: 1256.551427 | AB109: 3400.394686 | AC109: 609.4589549 | AD109: 627.7134289 | AE109: 540.8737083 | AF109: 546.6018171 | AG109: 531.438937 | AH109: 497.1704723 | AI109: 2450.859932 | AJ109: -5231.321006 | AK109: 0 | AL109: 0 | AM109: 0
C111: Dividendos | E111: $ 000s | F111: =SUM(G111:AJ111) -> -34997.97241 | G111: =-Ops!G1120 -> 0 | H111: =-Ops!H1120 -> 0 | I111: =-Ops!I1120 -> 0 | J111: =-Ops!J1120 -> 0 | K111: =-Ops!K1120 -> 0 | L111: =-Ops!L1120 -> -296.5486678 | M111: =-Ops!M1120 -> -1581.923105 | N111: =-Ops!N1120 -> -3797.171359 | O111: =-Ops!O1120 -> -1421.461523 | P111: =-Ops!P1120 -> -1334.815088 | Q111: =-Ops!Q1120 -> -1498.548644 | R111: =-Ops!R1120 -> -1418.521962 | S111: =-Ops!S1120 -> -1173.412262 | T111: =-Ops!T1120 -> -1145.174202 | U111: =-Ops!U1120 -> -1802.473498 | V111: =-Ops!V1120 -> 0 | W111: =-Ops!W1120 -> -2153.98255 | X111: =-Ops!X1120 -> -2220.593721 | Y111: =-Ops!Y1120 -> -2179.852607 | Z111: =-Ops!Z1120 -> -1780.488541 | AA111: =-Ops!AA1120 -> -1752.432305 | AB111: =-Ops!AB1120 -> -3926.660992 | AC111: =-Ops!AC1120 -> -578.9860071 | AD111: =-Ops!AD1120 -> -596.3277574 | AE111: =-Ops!AE1120 -> -513.8300229 | AF111: =-Ops!AF1120 -> -519.2717263 | AG111: =-Ops!AG1120 -> -504.8669901 | AH111: =-Ops!AH1120 -> -472.3119487 | AI111: =-Ops!AI1120 -> -2328.316935 | AJ111: =-Ops!AJ1120 -> 0 | AK111: =-Ops!AK1120 -> 0 | AL111: =-Ops!AL1120 -> 0 | AM111: =-Ops!AM1120 -> 0
C112: =Ops!C1093 -> Constituição reserva legal | E112: $ 000s | F112: =SUM(G112:AJ112) -> -2024.7659 | G112: =-Ops!G1093 -> 0 | H112: =-Ops!H1093 -> 0 | I112: =-Ops!I1093 -> 0 | J112: =-Ops!J1093 -> -57.74618725 | K112: =-Ops!K1093 -> -65.71079724 | L112: =-Ops!L1093 -> -74.91819181 | M112: =-Ops!M1093 -> -83.25911077 | N112: =-Ops!N1093 -> -199.8511241 | O112: =-Ops!O1093 -> -74.81376438 | P112: =-Ops!P1093 -> -70.25342566 | Q112: =-Ops!Q1093 -> -78.87098128 | R112: =-Ops!R1093 -> -81.14664586 | S112: =-Ops!S1093 -> -86.7287214 | T112: =-Ops!T1093 -> -92.68979277 | U112: =-Ops!U1093 -> -192.0685214 | V112: =-Ops!V1093 -> -64.9367182 | W112: =-Ops!W1093 -> -75.98247805 | X112: =-Ops!X1093 -> -72.61224357 | Y112: =-Ops!Y1093 -> -67.2683639 | Z112: =-Ops!Z1093 -> -62.85566389 | AA112: =-Ops!AA1093 -> -62.82757137 | AB112: =-Ops!AB1093 -> -170.0197343 | AC112: =-Ops!AC1093 -> -30.47294774 | AD112: =-Ops!AD1093 -> -31.38567144 | AE112: =-Ops!AE1093 -> -27.04368541 | AF112: =-Ops!AF1093 -> -27.33009086 | AG112: =-Ops!AG1093 -> -26.57194685 | AH112: =-Ops!AH1093 -> -24.85852361 | AI112: =-Ops!AI1093 -> -122.5429966 | AJ112: =-Ops!AJ1093 -> 0 | AK112: =-Ops!AK1093 -> 0 | AL112: =-Ops!AL1093 -> 0 | AM112: =-Ops!AM1093 -> 0
C113: Lucros retidos | E113: $ 000s | F113: =SUM(G113:AJ113) -> -5231.321006 | G113: =SUM(G109:G112) -> -1406.02828 | H113: =SUM(H109:H112) -> -1857.012483 | I113: -209.5389186 | J113: 1097.177558 | K113: 1248.505148 | L113: 1126.896977 | M113: 0 | N113: 0 | O113: 0 | P113: 0 | Q113: 0 | R113: 123.2643098 | S113: 474.4334449 | T113: 615.9318608 | U113: 1846.828409 | V113: 1233.797646 | W113: -710.3154668 | X113: -840.9610929 | Y113: -901.7536929 | Z113: -586.2309274 | AA113: -558.7084494 | AB113: -696.2860407 | AC113: -4.618527782e-14 | AD113: -3.552713679e-14 | AE113: 8.881784197e-14 | AF113: -3.552713679e-14 | AG113: -2.842170943e-14 | AH113: 3.197442311e-14 | AI113: 0 | AJ113: -5231.321006 | AK113: 0 | AL113: 0 | AM113: 0
C115: Lucros retidos b/f | E115: $ 000s | G115: =F116 -> 0 | H115: =G116 -> -1406.02828 | I115: -3263.040763 | J115: -3472.579682 | K115: -2375.402124 | L115: -1126.896977 | M115: 0 | N115: 0 | O115: 0 | P115: 0 | Q115: 0 | R115: 0 | S115: 123.2643098 | T115: 597.6977547 | U115: 1213.629615 | V115: 3060.458024 | W115: 4294.25567 | X115: 3583.940203 | Y115: 2742.97911 | Z115: 1841.225417 | AA115: 1254.99449 | AB115: 696.2860407 | AC115: 0 | AD115: -4.618527782e-14 | AE115: -8.171241461e-14 | AF115: 7.105427358e-15 | AG115: -2.842170943e-14 | AH115: -5.684341886e-14 | AI115: -2.486899575e-14 | AJ115: -2.486899575e-14 | AK115: -5231.321006 | AL115: =AK116 -> -5231.321006 | AM115: =AL116 -> -5231.321006
C116: Lucros retidos c/f | E116: $ 000s | G116: =G115+G113 -> -1406.02828 | H116: =H115+H113 -> -3263.040763 | I116: -3472.579682 | J116: -2375.402124 | K116: -1126.896977 | L116: 0 | M116: 0 | N116: 0 | O116: 0 | P116: 0 | Q116: 0 | R116: 123.2643098 | S116: 597.6977547 | T116: 1213.629615 | U116: 3060.458024 | V116: 4294.25567 | W116: 3583.940203 | X116: 2742.97911 | Y116: 1841.225417 | Z116: 1254.99449 | AA116: 696.2860407 | AB116: 0 | AC116: -4.618527782e-14 | AD116: -8.171241461e-14 | AE116: 7.105427358e-15 | AF116: -2.842170943e-14 | AG116: -5.684341886e-14 | AH116: -2.486899575e-14 | AI116: -2.486899575e-14 | AJ116: -5231.321006 | AK116: -5231.321006 | AL116: -5231.321006 | AM116: =AM115+AM113 -> -5231.321006
C119: Balanço Patrimonial (R$)
C120: Ativo Circulante
C121: Caixa e Equivalentes | E121: $ 000s | G121: =Ops!G1069 -> 0 | H121: =Ops!H1069 -> 0 | I121: =Ops!I1069 -> 0 | J121: =Ops!J1069 -> 740.0622849 | K121: =Ops!K1069 -> 1799.560133 | L121: =Ops!L1069 -> 2498.076978 | M121: =Ops!M1069 -> 2000.124157 | N121: =Ops!N1069 -> 1331.849074 | O121: =Ops!O1069 -> 829.6997235 | P121: =Ops!P1069 -> 502.8420972 | Q121: =Ops!Q1069 -> 195.6937946 | R121: =Ops!R1069 -> 81.14664586 | S121: =Ops!S1069 -> 86.7287214 | T121: =Ops!T1069 -> 92.68979277 | U121: =Ops!U1069 -> 192.0685214 | V121: =Ops!V1069 -> 0 | W121: =Ops!W1069 -> 75.98247805 | X121: =Ops!X1069 -> 72.61224357 | Y121: =Ops!Y1069 -> 67.2683639 | Z121: =Ops!Z1069 -> 62.85566389 | AA121: =Ops!AA1069 -> 62.82757137 | AB121: =Ops!AB1069 -> 311.3360627 | AC121: =Ops!AC1069 -> 1337.379673 | AD121: =Ops!AD1069 -> 2526.078101 | AE121: =Ops!AE1069 -> 3954.000497 | AF121: =Ops!AF1069 -> 5558.374855 | AG121: =Ops!AG1069 -> 7079.100293 | AH121: =Ops!AH1069 -> 8768.81268 | AI121: =Ops!AI1069 -> 10140.05788 | AJ121: =Ops!AJ1069 -> 11906.66801 | AK121: =Ops!AK1069 -> 11906.66801 | AL121: =Ops!AL1069 -> 11906.66801 | AM121: =Ops!AM1069 -> 11906.66801
C122: Conta Reserva | E122: $ 000s | G122: =Debt!G295 -> 0 | H122: =Debt!H295 -> 372.1989434 | I122: =Debt!I295 -> 388.651462 | J122: =Debt!J295 -> 371.3939029 | K122: =Debt!K295 -> 355.1500493 | L122: =Debt!L295 -> 339.0548454 | M122: =Debt!M295 -> 438.992917 | N122: =Debt!N295 -> 543.9419513 | O122: =Debt!O295 -> 511.2254897 | P122: =Debt!P295 -> 496.5594346 | Q122: =Debt!Q295 -> 494.546558 | R122: =Debt!R295 -> 460.6680429 | S122: =Debt!S295 -> 424.9478058 | T122: =Debt!T295 -> 505.7301689 | U122: =Debt!U295 -> 1455.318877 | V122: =Debt!V295 -> 3.979669284 | W122: =Debt!W295 -> 4.22944625 | X122: =Debt!X295 -> 4.524599692 | Y122: =Debt!Y295 -> 4.856143704 | Z122: =Debt!Z295 -> 23.94090391 | AA122: =Debt!AA295 -> 170.4517636 | AB122: =Debt!AB295 -> 303.5523048 | AC122: =Debt!AC295 -> 285.2394465 | AD122: =Debt!AD295 -> 267.3069361 | AE122: =Debt!AE295 -> 251.5454082 | AF122: =Debt!AF295 -> 237.0997475 | AG122: =Debt!AG295 -> 219.8190302 | AH122: =Debt!AH295 -> 329.8768858 | AI122: =Debt!AI295 -> 1379.480312 | AJ122: =Debt!AJ295 -> 0 | AK122: =Debt!AK295 -> 0 | AL122: =Debt!AL295 -> 0 | AM122: =Debt!AM295 -> 0
C123: Contas a Receber | E123: $ 000s | G123: =Ops!G372 -> 754.6764919 | H123: =Ops!H372 -> 797.9325061 | I123: =Ops!I372 -> 984.5339986 | J123: =Ops!J372 -> 1155.699695 | K123: =Ops!K372 -> 1163.165002 | L123: =Ops!L372 -> 1177.325878 | M123: =Ops!M372 -> 1187.732182 | N123: =Ops!N372 -> 1238.758461 | O123: =Ops!O372 -> 1205.603138 | P123: =Ops!P372 -> 1219.91415 | Q123: =Ops!Q372 -> 1236.894817 | R123: =Ops!R372 -> 1242.141564 | S123: =Ops!S372 -> 1249.578675 | T123: =Ops!T372 -> 1264.080014 | U123: =Ops!U372 -> 1321.069603 | V123: =Ops!V372 -> 1293.586945 | W123: =Ops!W372 -> 1302.131181 | X123: =Ops!X372 -> 1318.173552 | Y123: =Ops!Y372 -> 1331.492383 | Z123: =Ops!Z372 -> 1344.292759 | AA123: =Ops!AA372 -> 1358.589416 | AB123: =Ops!AB372 -> 1409.366936 | AC123: =Ops!AC372 -> 1380.38419 | AD123: =Ops!AD372 -> 1392.556962 | AE123: =Ops!AE372 -> 1402.482772 | AF123: =Ops!AF372 -> 1419.115967 | AG123: =Ops!AG372 -> 1431.234794 | AH123: =Ops!AH372 -> 1443.844182 | AI123: =Ops!AI372 -> 1492.960974 | AJ123: =Ops!AJ372 -> 0 | AK123: =Ops!AK372 -> 0 | AL123: =Ops!AL372 -> 0 | AM123: =Ops!AM372 -> 0
C124: Total | E124: $ 000s | G124: =SUM(G121:G123) -> 754.6764919 | H124: 1170.13145 | I124: 1373.185461 | J124: 2267.155883 | K124: 3317.875184 | L124: 4014.457702 | M124: 3626.849256 | N124: 3114.549487 | O124: 2546.528351 | P124: 2219.315682 | Q124: 1927.13517 | R124: 1783.956253 | S124: 1761.255202 | T124: 1862.499976 | U124: 2968.457001 | V124: 1297.566615 | W124: 1382.343105 | X124: 1395.310395 | Y124: 1403.616891 | Z124: 1431.089327 | AA124: 1591.868751 | AB124: 2024.255303 | AC124: 3003.003309 | AD124: 4185.941998 | AE124: 5608.028677 | AF124: 7214.59057 | AG124: 8730.154118 | AH124: 10542.53375 | AI124: 13012.49917 | AJ124: 11906.66801 | AK124: 11906.66801 | AL124: 11906.66801 | AM124: 11906.66801
C126: Ativo financeiro (IFRIC 12) | E126: $ 000s | G126: =Ops!G1030 -> 1771.78554 | H126: =Ops!H1030 -> 2012.931921 | I126: =Ops!I1030 -> 2014.362911 | J126: =Ops!J1030 -> 2031.087292 | K126: =Ops!K1030 -> 2028.924761 | L126: =Ops!L1030 -> 2077.713582 | M126: =Ops!M1030 -> 2107.489397 | N126: =Ops!N1030 -> 2097.871378 | O126: =Ops!O1030 -> 2085.233854 | P126: =Ops!P1030 -> 2086.232588 | Q126: =Ops!Q1030 -> 2821.152643 | R126: =Ops!R1030 -> 2838.26815 | S126: =Ops!S1030 -> 2815.393161 | T126: =Ops!T1030 -> 2768.092333 | U126: =Ops!U1030 -> 2712.794596 | V126: =Ops!V1030 -> 2718.654888 | W126: =Ops!W1030 -> 2662.208674 | X126: =Ops!X1030 -> 2574.290837 | Y126: =Ops!Y1030 -> 2491.271896 | Z126: =Ops!Z1030 -> 2375.951063 | AA126: =Ops!AA1030 -> 2999.767984 | AB126: =Ops!AB1030 -> 2868.945996 | AC126: =Ops!AC1030 -> 2639.458009 | AD126: =Ops!AD1030 -> 2380.586382 | AE126: =Ops!AE1030 -> 2106.567178 | AF126: =Ops!AF1030 -> 1829.098471 | AG126: =Ops!AG1030 -> 1466.421694 | AH126: =Ops!AH1030 -> 1049.390137 | AI126: =Ops!AI1030 -> 554.2631107 | AJ126: =Ops!AJ1030 -> 0 | AK126: =Ops!AK1030 -> 0 | AL126: =Ops!AL1030 -> 0 | AM126: =Ops!AM1030 -> 0
C127: Ativo intangivel (IFRIC 12) | E127: $ 000s | G127: =Ops!G1047 -> 5453.613105 | H127: =Ops!H1047 -> 5712.508748 | I127: =Ops!I1047 -> 8007.414813 | J127: =Ops!J1047 -> 8025.73116 | K127: =Ops!K1047 -> 8059.441766 | L127: =Ops!L1047 -> 8074.059956 | M127: =Ops!M1047 -> 8067.625556 | N127: =Ops!N1047 -> 13393.02071 | O127: =Ops!O1047 -> 13340.33451 | P127: =Ops!P1047 -> 13269.20291 | Q127: =Ops!Q1047 -> 13228.89108 | R127: =Ops!R1047 -> 13106.55107 | S127: =Ops!S1047 -> 12953.07813 | T127: =Ops!T1047 -> 12768.84562 | U127: =Ops!U1047 -> 17883.09875 | V127: =Ops!V1047 -> 17514.94094 | W127: =Ops!W1047 -> 17067.25583 | X127: =Ops!X1047 -> 16537.95161 | Y127: =Ops!Y1047 -> 15928.23282 | Z127: =Ops!Z1047 -> 15228.41307 | AA127: =Ops!AA1047 -> 14469.92063 | AB127: =Ops!AB1047 -> 18886.7027 | AC127: =Ops!AC1047 -> 17416.69809 | AD127: =Ops!AD1047 -> 15739.11048 | AE127: =Ops!AE1047 -> 13845.37132 | AF127: =Ops!AF1047 -> 11716.43974 | AG127: =Ops!AG1047 -> 9285.076432 | AH127: =Ops!AH1047 -> 6548.818418 | AI127: =Ops!AI1047 -> 8810.500871 | AJ127: =Ops!AJ1047 -> 0 | AK127: =Ops!AK1047 -> 0 | AL127: =Ops!AL1047 -> 0 | AM127: =Ops!AM1047 -> 0
C128: Imposto Diferido (Ativo) | E128: $ 000s | G128: =Ops!G1000 -> 0 | H128: =Ops!H1000 -> 0 | I128: =Ops!I1000 -> 0 | J128: =Ops!J1000 -> 0 | K128: =Ops!K1000 -> 0 | L128: =Ops!L1000 -> 0 | M128: =Ops!M1000 -> 0 | N128: =Ops!N1000 -> 0 | O128: =Ops!O1000 -> 0 | P128: =Ops!P1000 -> 0 | Q128: =Ops!Q1000 -> 0 | R128: =Ops!R1000 -> 0 | S128: =Ops!S1000 -> 0 | T128: =Ops!T1000 -> 0 | U128: =Ops!U1000 -> 0 | V128: =Ops!V1000 -> 0 | W128: =Ops!W1000 -> 0 | X128: =Ops!X1000 -> 0 | Y128: =Ops!Y1000 -> 0 | Z128: =Ops!Z1000 -> 0 | AA128: =Ops!AA1000 -> 0 | AB128: =Ops!AB1000 -> 0 | AC128: =Ops!AC1000 -> 0 | AD128: =Ops!AD1000 -> 0 | AE128: =Ops!AE1000 -> 0 | AF128: =Ops!AF1000 -> 0 | AG128: =Ops!AG1000 -> 176.5565611 | AH128: =Ops!AH1000 -> 1078.151699 | AI128: =Ops!AI1000 -> 1816.564408 | AJ128: =Ops!AJ1000 -> 2650.475616 | AK128: =Ops!AK1000 -> 2650.475616 | AL128: =Ops!AL1000 -> 2650.475616 | AM128: =Ops!AM1000 -> 2650.475616
C129: Total de Ativos | E129: $ 000s | G129: =SUM(G126:G128)+G124 -> 7980.075137 | H129: =SUM(H126:H128)+H124 -> 8895.572118 | I129: 11394.96318 | J129: 12323.97433 | K129: 13406.24171 | L129: 14166.23124 | M129: 13801.96421 | N129: 18605.44157 | O129: 17972.09672 | P129: 17574.75118 | Q129: 17977.1789 | R129: 17728.77547 | S129: =SUM(S126:S128)+S124 -> 17529.72649 | T129: 17399.43793 | U129: 23564.35034 | V129: 21531.16244 | W129: 21111.80761 | X129: 20507.55284 | Y129: 19823.1216 | Z129: 19035.45346 | AA129: 19061.55736 | AB129: 23779.904 | AC129: 23059.1594 | AD129: 22305.63886 | AE129: 21559.96717 | AF129: 20760.12878 | AG129: 19658.2088 | AH129: 19218.894 | AI129: 24193.82756 | AJ129: 14557.14363 | AK129: 14557.14363 | AL129: 14557.14363 | AM129: 14557.14363
C131: Passivo
C132: Imposto Diferido (Passivo) | E132: $ 000s | G132: =Ops!G995 -> 0 | H132: =Ops!H995 -> 0 | I132: =Ops!I995 -> 0 | J132: =Ops!J995 -> 174.6536457 | K132: =Ops!K995 -> 378.8534065 | L132: =Ops!L995 -> 331.7812852 | M132: =Ops!M995 -> 310.7884295 | N132: =Ops!N995 -> 443.236885 | O132: =Ops!O995 -> 572.9358106 | P132: =Ops!P995 -> 920.7793319 | Q132: =Ops!Q995 -> 1331.228779 | R132: =Ops!R995 -> 1756.640849 | S132: =Ops!S995 -> 1915.073056 | T132: =Ops!T995 -> 2007.501017 | U132: =Ops!U995 -> 2139.879729 | V132: =Ops!V995 -> 2214.552704 | W132: =Ops!W995 -> 2409.206881 | X132: =Ops!X995 -> 2576.40145 | Y132: =Ops!Y995 -> 2710.733018 | Z132: =Ops!Z995 -> 2446.134731 | AA132: =Ops!AA995 -> 2169.822941 | AB132: =Ops!AB995 -> 2059.280582 | AC132: =Ops!AC995 -> 1767.936992 | AD132: =Ops!AD995 -> 1449.871114 | AE132: =Ops!AE995 -> 1100.885706 | AF132: =Ops!AF995 -> 667.0996136 | AG132: =Ops!AG995 -> 0 | AH132: =Ops!AH995 -> 0 | AI132: =Ops!AI995 -> 0 | AJ132: =Ops!AJ995 -> 0 | AK132: =Ops!AK995 -> 0 | AL132: =Ops!AL995 -> 0 | AM132: =Ops!AM995 -> 0
C133: Contas a pagar | E133: $ 000s | G133: =Ops!G380 -> 358.4217913 | H133: =Ops!H380 -> 378.4206456 | I133: =Ops!I380 -> 397.4375223 | J133: =Ops!J380 -> 416.454399 | K133: =Ops!K380 -> 415.3165454 | L133: =Ops!L380 -> 416.454399 | M133: =Ops!M380 -> 416.454399 | N133: =Ops!N380 -> 416.454399 | O133: =Ops!O380 -> 415.3165454 | P133: =Ops!P380 -> 416.454399 | Q133: =Ops!Q380 -> 416.454399 | R133: =Ops!R380 -> 416.454399 | S133: =Ops!S380 -> 415.3165454 | T133: =Ops!T380 -> 416.454399 | U133: =Ops!U380 -> 416.454399 | V133: =Ops!V380 -> 416.454399 | W133: =Ops!W380 -> 415.3165454 | X133: =Ops!X380 -> 416.454399 | Y133: =Ops!Y380 -> 416.454399 | Z133: =Ops!Z380 -> 416.454399 | AA133: =Ops!AA380 -> 415.3165454 | AB133: =Ops!AB380 -> 416.454399 | AC133: =Ops!AC380 -> 416.454399 | AD133: =Ops!AD380 -> 416.454399 | AE133: =Ops!AE380 -> 435.7077022 | AF133: =Ops!AF380 -> 436.9014219 | AG133: =Ops!AG380 -> 436.9014219 | AH133: =Ops!AH380 -> 436.9014219 | AI133: =Ops!AI380 -> 435.7077022 | AJ133: =Ops!AJ380 -> 0 | AK133: =Ops!AK380 -> 0 | AL133: =Ops!AL380 -> 0 | AM133: =Ops!AM380 -> 0
C134: =Ops!C388 -> Obrigações sociais e trabalhistas | E134: $ 000s | G134: =Ops!G388 -> 214.4218317 | H134: =Ops!H388 -> 234.0261655 | I134: =Ops!I388 -> 253.0430422 | J134: =Ops!J388 -> 272.0599189 | K134: =Ops!K388 -> 271.3165858 | L134: =Ops!L388 -> 272.0599189 | M134: =Ops!M388 -> 272.0599189 | N134: =Ops!N388 -> 272.0599189 | O134: =Ops!O388 -> 271.3165858 | P134: =Ops!P388 -> 272.0599189 | Q134: =Ops!Q388 -> 272.0599189 | R134: =Ops!R388 -> 272.0599189 | S134: =Ops!S388 -> 271.3165858 | T134: =Ops!T388 -> 272.0599189 | U134: =Ops!U388 -> 272.0599189 | V134: =Ops!V388 -> 272.0599189 | W134: =Ops!W388 -> 271.3165858 | X134: =Ops!X388 -> 272.0599189 | Y134: =Ops!Y388 -> 272.0599189 | Z134: =Ops!Z388 -> 272.0599189 | AA134: =Ops!AA388 -> 271.3165858 | AB134: =Ops!AB388 -> 272.0599189 | AC134: =Ops!AC388 -> 272.0599189 | AD134: =Ops!AD388 -> 272.0599189 | AE134: =Ops!AE388 -> 271.3165858 | AF134: =Ops!AF388 -> 272.0599189 | AG134: =Ops!AG388 -> 272.0599189 | AH134: =Ops!AH388 -> 272.0599189 | AI134: =Ops!AI388 -> 271.3165858 | AJ134: =Ops!AJ388 -> 0 | AK134: =Ops!AK388 -> 0 | AL134: =Ops!AL388 -> 0 | AM134: =Ops!AM388 -> 0
C135: Dívida Senior - Comercial | E135: $ 000s | G135: =Debt!G78 -> 4984.039437 | H135: =Debt!H78 -> 5119.907965 | I135: =Debt!I78 -> 5944.284881 | J135: =Debt!J78 -> 5498.223811 | K135: =Debt!K78 -> 5054.389398 | L135: =Debt!L78 -> 4632.612598 | M135: =Debt!M78 -> 4191.388123 | N135: =Debt!N78 -> 6687.810876 | O135: =Debt!O78 -> 5851.834517 | P135: =Debt!P78 -> 5027.049771 | Q135: =Debt!Q78 -> 4639.777492 | R135: =Debt!R78 -> 3741.659422 | S135: =Debt!S78 -> 2817.43618 | T135: =Debt!T78 -> 1881.846405 | U135: =Debt!U78 -> 3901.659187 | V135: =Debt!V78 -> 52.951641 | W135: =Debt!W78 -> 64.76183893 | X135: =Debt!X78 -> 59.78015901 | Y135: =Debt!Y78 -> 67.22100209 | Z135: =Debt!Z78 -> 64.9598479 | AA135: =Debt!AA78 -> 542.4681071 | AB135: =Debt!AB78 -> 3730.32288 | AC135: =Debt!AC78 -> 3267.882366 | AD135: =Debt!AD78 -> 2801.042028 | AE135: =Debt!AE78 -> 2348.961933 | AF135: =Debt!AF78 -> 1923.85331 | AG135: =Debt!AG78 -> 1454.632595 | AH135: =Debt!AH78 -> 982.1775862 | AI135: =Debt!AI78 -> 3698.338639 | AJ135: =Debt!AJ78 -> 0 | AK135: =Debt!AK78 -> 0 | AL135: =Debt!AL78 -> 0 | AM135: =Debt!AM78 -> 0
C136: Passivo total | E136: $ 000s | G136: =SUM(G132:G135) -> 5556.88306 | H136: 5732.354776 | I136: 6594.765445 | J136: 6361.391775 | K136: 6119.875936 | L136: 5652.908201 | M136: 5190.69087 | N136: 7819.562079 | O136: 7111.403459 | P136: 6636.343421 | Q136: 6659.520589 | R136: 6186.814589 | S136: 5419.142368 | T136: 4577.86174 | U136: 6730.053234 | V136: 2956.018663 | W136: 3160.601851 | X136: 3324.695927 | Y136: 3466.468338 | Z136: 3199.608897 | AA136: 3398.92418 | AB136: 6478.11778 | AC136: 5724.333676 | AD136: 4939.42746 | AE136: 4156.871927 | AF136: 3299.914265 | AG136: 2163.593936 | AH136: 1691.138927 | AI136: 4405.362927 | AJ136: 0 | AK136: 0 | AL136: 0 | AM136: 0
C138: Patrimônio Líquido
C139: Capital Social | E139: $ 000s | G139: =Ops!G1062 -> 3829.220358 | H139: =Ops!H1062 -> 6426.258106 | I139: =Ops!I1062 -> 8272.777421 | J139: =Ops!J1062 -> 8280.238497 | K139: =Ops!K1062 -> 8289.805766 | L139: =Ops!L1062 -> 8314.947863 | M139: =Ops!M1062 -> 8329.639053 | N139: =Ops!N1062 -> 10304.39408 | O139: =Ops!O1062 -> 10304.39408 | P139: =Ops!P1062 -> 10311.85516 | Q139: =Ops!Q1062 -> 10612.23472 | R139: =Ops!R1062 -> 10632.12634 | S139: =Ops!S1062 -> 10639.58742 | T139: =Ops!T1062 -> 10641.95783 | U139: =Ops!U1062 -> 12615.78182 | V139: =Ops!V1062 -> 13057.89413 | W139: =Ops!W1062 -> 13068.2891 | X139: =Ops!X1062 -> 13068.2891 | Y139: =Ops!Y1062 -> 13076.57078 | Z139: =Ops!Z1062 -> 13079.13735 | AA139: =Ops!AA1062 -> 13401.80684 | AB139: =Ops!AB1062 -> 15567.22618 | AC139: =Ops!AC1062 -> 15569.79274 | AD139: =Ops!AD1062 -> 15569.79274 | AE139: =Ops!AE1062 -> 15579.63291 | AF139: =Ops!AF1062 -> 15609.42208 | AG139: =Ops!AG1062 -> 15617.25049 | AH139: =Ops!AH1062 -> 15625.53217 | AI139: =Ops!AI1062 -> 17763.69874 | AJ139: =Ops!AJ1062 -> 17763.69874 | AK139: =Ops!AK1062 -> 17763.69874 | AL139: =Ops!AL1062 -> 17763.69874 | AM139: =Ops!AM1062 -> 17763.69874
C140: Reserva Legal | E140: $ 000s | G140: =Ops!G1094 -> 0 | H140: =Ops!H1094 -> 0 | I140: =Ops!I1094 -> 0 | J140: =Ops!J1094 -> 57.74618725 | K140: =Ops!K1094 -> 123.4569845 | L140: =Ops!L1094 -> 198.3751763 | M140: =Ops!M1094 -> 281.6342871 | N140: =Ops!N1094 -> 481.4854112 | O140: =Ops!O1094 -> 556.2991756 | P140: =Ops!P1094 -> 626.5526012 | Q140: =Ops!Q1094 -> 705.4235825 | R140: =Ops!R1094 -> 786.5702284 | S140: =Ops!S1094 -> 873.2989498 | T140: =Ops!T1094 -> 965.9887426 | U140: =Ops!U1094 -> 1158.057264 | V140: =Ops!V1094 -> 1222.993982 | W140: =Ops!W1094 -> 1298.97646 | X140: =Ops!X1094 -> 1371.588704 | Y140: =Ops!Y1094 -> 1438.857068 | Z140: =Ops!Z1094 -> 1501.712732 | AA140: =Ops!AA1094 -> 1564.540303 | AB140: =Ops!AB1094 -> 1734.560037 | AC140: =Ops!AC1094 -> 1765.032985 | AD140: =Ops!AD1094 -> 1796.418656 | AE140: =Ops!AE1094 -> 1823.462342 | AF140: =Ops!AF1094 -> 1850.792433 | AG140: =Ops!AG1094 -> 1877.36438 | AH140: =Ops!AH1094 -> 1902.222903 | AI140: =Ops!AI1094 -> 2024.7659 | AJ140: =Ops!AJ1094 -> 2024.7659 | AK140: =Ops!AK1094 -> 2024.7659 | AL140: =Ops!AL1094 -> 2024.7659 | AM140: =Ops!AM1094 -> 2024.7659
C141: Lucros Retidos | E141: $ 000s | G141: =G116 -> -1406.02828 | H141: =H116 -> -3263.040763 | I141: -3472.579682 | J141: -2375.402124 | K141: -1126.896977 | L141: 0 | M141: 0 | N141: 0 | O141: 0 | P141: 0 | Q141: 0 | R141: 123.2643098 | S141: 597.6977547 | T141: 1213.629615 | U141: 3060.458024 | V141: 4294.25567 | W141: 3583.940203 | X141: 2742.97911 | Y141: 1841.225417 | Z141: 1254.99449 | AA141: 696.2860407 | AB141: 0 | AC141: -4.618527782e-14 | AD141: -8.171241461e-14 | AE141: 7.105427358e-15 | AF141: -2.842170943e-14 | AG141: -5.684341886e-14 | AH141: -2.486899575e-14 | AI141: -2.486899575e-14 | AJ141: =AJ116 -> -5231.321006 | AK141: -5231.321006 | AL141: -5231.321006 | AM141: -5231.321006
C142: Total Patrimônio Líquido | E142: $ 000s | G142: =SUM(G139:G141) -> 2423.192077 | H142: 3163.217342 | I142: 4800.197739 | J142: 5962.58256 | K142: 7286.365774 | L142: 8513.323039 | M142: 8611.27334 | N142: 10785.87949 | O142: 10860.69326 | P142: 10938.40776 | Q142: 11317.65831 | R142: 11541.96088 | S142: 12110.58412 | T142: 12821.57619 | U142: 16834.29711 | V142: 18575.14378 | W142: 17951.20576 | X142: 17182.85691 | Y142: 16356.65327 | Z142: 15835.84457 | AA142: 15662.63318 | AB142: 17301.78622 | AC142: 17334.82573 | AD142: 17366.2114 | AE142: 17403.09525 | AF142: 17460.21451 | AG142: 17494.61487 | AH142: 17527.75507 | AI142: 19788.46463 | AJ142: 14557.14363 | AK142: 14557.14363 | AL142: 14557.14363 | AM142: =SUM(AM139:AM141) -> 14557.14363
C144: Check | F144: =SUM(G144:AJ144) -> 0 | G144: =ROUND(G129-G136-G142,0) -> 0 | H144: =ROUND(H129-H136-H142,0) -> 0 | I144: =ROUND(I129-I136-I142,0) -> 0 | J144: 0 | K144: 0 | L144: 0 | M144: 0 | N144: 0 | O144: 0 | P144: 0 | Q144: 0 | R144: 0 | S144: 0 | T144: 0 | U144: 0 | V144: 0 | W144: 0 | X144: 0 | Y144: 0 | Z144: 0 | AA144: 0 | AB144: 0 | AC144: 0 | AD144: 0 | AE144: 0 | AF144: 0 | AG144: 0 | AH144: 0 | AI144: 0 | AJ144: 0 | AK144: 0 | AL144: 0 | AM144: 0

Sheet Usos e fontes
A1: Usos e fontes total
B3: Usos e Fontes | C3: Unit | D3: Total | E3: =DFs!G8 -> 1 | F3: =DFs!H8 -> 2 | G3: =DFs!I8 -> 3 | H3: =DFs!J8 -> 4 | I3: =DFs!K8 -> 5 | J3: =DFs!L8 -> 6 | K3: =DFs!M8 -> 7 | L3: =DFs!N8 -> 8 | M3: =DFs!O8 -> 9 | N3: =DFs!P8 -> 10 | O3: =DFs!Q8 -> 11 | P3: =DFs!R8 -> 12 | Q3: =DFs!S8 -> 13 | R3: =DFs!T8 -> 14 | S3: =DFs!U8 -> 15 | T3: =DFs!V8 -> 16 | U3: =DFs!W8 -> 17 | V3: =DFs!X8 -> 18 | W3: =DFs!Y8 -> 19 | X3: =DFs!Z8 -> 20 | Y3: =DFs!AA8 -> 21 | Z3: =DFs!AB8 -> 22 | AA3: =DFs!AC8 -> 23 | AB3: =DFs!AD8 -> 24 | AC3: =DFs!AE8 -> 25 | AD3: =DFs!AF8 -> 26 | AE3: =DFs!AG8 -> 27 | AF3: =DFs!AH8 -> 28 | AG3: =DFs!AI8 -> 29 | AH3: =DFs!AJ8 -> 30
B5: Custos | C5: $ 000s | D5: =SUM(E5:AH5) -> -382724.9021 | E5: =DFs!G40 -> -9895.379803 | F5: =DFs!H40 -> -11108.37998 | G5: =DFs!I40 -> -11466.9907 | H5: =DFs!J40 -> -11773.03941 | I5: =DFs!K40 -> -11815.54859 | J5: =DFs!L40 -> -11855.16752 | K5: =DFs!M40 -> -11877.6215 | L5: =DFs!N40 -> -11915.07325 | M5: =DFs!O40 -> -11923.22239 | N5: =DFs!P40 -> -11946.49528 | O5: =DFs!Q40 -> -11972.16941 | P5: =DFs!R40 -> -11993.73913 | Q5: =DFs!S40 -> -12017.57477 | R5: =DFs!T40 -> -12041.72694 | S5: =DFs!U40 -> -12756.77887 | T5: =DFs!V40 -> -12910.43221 | U5: =DFs!W40 -> -13081.58921 | V5: =DFs!X40 -> -13255.98447 | W5: =DFs!Y40 -> -13482.54386 | X5: =DFs!Z40 -> -13663.51726 | Y5: =DFs!AA40 -> -13706.52116 | Z5: =DFs!AB40 -> -13761.37067 | AA5: =DFs!AC40 -> -13786.60531 | AB5: =DFs!AD40 -> -13828.4355 | AC5: =DFs!AE40 -> -14037.15994 | AD5: =DFs!AF40 -> -14080.04898 | AE5: =DFs!AG40 -> -14123.05001 | AF5: =DFs!AH40 -> -14166.70802 | AG5: =DFs!AI40 -> -14226.77564 | AH5: =DFs!AJ40 -> -14255.25238
B6: Investimentos | C6: $ 000s | D6: -33226.92958 | E6: =DFs!G49 -> -7225.398645 | F6: =DFs!H49 -> -245.186145 | G6: =DFs!I49 -> -2147.607442 | H6: =DFs!J49 -> -20.196205 | I6: =DFs!K49 -> -25.89741 | J6: =DFs!L49 -> -68.05653 | K6: =DFs!M49 -> -39.767225 | L6: =DFs!N49 -> -5345.41641 | M6: =DFs!O49 -> 0 | N6: =DFs!P49 -> -20.196205 | O6: =DFs!Q49 -> -813.09015 | P6: =DFs!R49 -> -53.84414 | Q6: =DFs!S49 -> -20.196205 | R6: =DFs!T49 -> -6.41641 | S6: =DFs!U49 -> -5342.8962 | T6: =DFs!V49 -> -88.252735 | U6: =DFs!W49 -> -25.98743 | V6: =DFs!X49 -> 0 | W6: =DFs!Y49 -> -20.704205 | X6: =DFs!Z49 -> -6.41641 | Y6: =DFs!AA49 -> -806.67374 | Z6: =DFs!AB49 -> -5413.548345 | AA6: =DFs!AC49 -> -6.41641 | AB6: =DFs!AD49 -> 0 | AC6: =DFs!AE49 -> -24.600405 | AD6: =DFs!AF49 -> -74.47294 | AE6: =DFs!AG49 -> -19.57102 | AF6: =DFs!AH49 -> -20.704205 | AG6: =DFs!AI49 -> -5345.41641 | AH6: =DFs!AJ49 -> 0
B7: Imposto de renda pago | C7: $ 000s | D7: -16393.23859 | E7: =DFs!G60 -> 0 | F7: =DFs!H60 -> 0 | G7: =DFs!I60 -> 0 | H7: =DFs!J60 -> -154.5745056 | I7: =DFs!K60 -> -174.7810723 | J7: =DFs!L60 -> -483.5689625 | K7: =DFs!M60 -> -509.5930752 | L7: =DFs!N60 -> -398.052333 | M7: =DFs!O60 -> -306.1455867 | N7: =DFs!P60 -> -332.3031143 | O7: =DFs!Q60 -> -365.7970265 | P7: =DFs!R60 -> -374.2806454 | Q7: =DFs!S60 -> -698.7728012 | R7: =DFs!T60 -> -826.1941461 | S7: =DFs!U60 -> -681.632667 | T7: =DFs!V60 -> -558.0083638 | U7: =DFs!W60 -> -551.8319605 | V7: =DFs!X60 -> -544.56794 | W7: =DFs!Y60 -> -522.3727875 | X7: =DFs!Z60 -> -875.8384607 | Y7: =DFs!AA60 -> -887.2625249 | Z7: =DFs!AB60 -> -703.0179536 | AA7: =DFs!AC60 -> -568.9436579 | AB7: =DFs!AD60 -> -605.069766 | AC7: =DFs!AE60 -> -591.2536813 | AD7: =DFs!AF60 -> -679.0052107 | AE7: =DFs!AG60 -> -1081.064112 | AF7: =DFs!AH60 -> -1121.349623 | AG7: =DFs!AI60 -> -964.0454008 | AH7: =DFs!AJ60 -> -833.9112078
B8: =DFs!C72 -> Depósitos Conta Reserva | C8: $ 000s | D8: -3083.143556 | E8: =DFs!G72 -> 0 | F8: =DFs!H72 -> -372.1989434 | G8: =DFs!I72 -> -16.45251857 | H8: =DFs!J72 -> 0 | I8: =DFs!K72 -> 0 | J8: =DFs!L72 -> 0 | K8: =DFs!M72 -> -99.93807153 | L8: =DFs!N72 -> -104.9490343 | M8: =DFs!O72 -> 0 | N8: =DFs!P72 -> 0 | O8: =DFs!Q72 -> 0 | P8: =DFs!R72 -> 0 | Q8: =DFs!S72 -> 0 | R8: =DFs!T72 -> -80.78236306 | S8: =DFs!U72 -> -949.5887079 | T8: =DFs!V72 -> 0 | U8: =DFs!W72 -> -0.2497769659 | V8: =DFs!X72 -> -0.2951534423 | W8: =DFs!Y72 -> -0.3315440122 | X8: =DFs!Z72 -> -19.0847602 | Y8: =DFs!AA72 -> -146.5108597 | Z8: =DFs!AB72 -> -133.1005412 | AA8: =DFs!AC72 -> 0 | AB8: =DFs!AD72 -> 0 | AC8: =DFs!AE72 -> 0 | AD8: =DFs!AF72 -> 0 | AE8: =DFs!AG72 -> 0 | AF8: =DFs!AH72 -> -110.0578556 | AG8: =DFs!AI72 -> -1049.603427 | AH8: =DFs!AJ72 -> 0
B9: =DFs!C65 -> Pagamento de Juros | C9: $ 000s | D9: -13223.98133 | E9: =DFs!G65 -> -618.0208901 | F9: =DFs!H65 -> -609.2690478 | G9: =DFs!I65 -> -750.8891185 | H9: =DFs!J65 -> -708.7017028 | I9: =DFs!K65 -> -655.9963912 | J9: =DFs!L65 -> -605.9602026 | K9: =DFs!M65 -> -553.9032765 | L9: =DFs!N65 -> -851.2689595 | M9: =DFs!O65 -> -795.8494943 | N9: =DFs!P65 -> -697.7001095 | O9: =DFs!Q65 -> -651.8366754 | P9: =DFs!R65 -> -555.6841755 | Q9: =DFs!S65 -> -446.5892733 | R9: =DFs!T65 -> -335.698024 | S9: =DFs!U65 -> -576.2673043 | T9: =DFs!V65 -> -464.2974433 | U9: =DFs!W65 -> -8.156747781 | V9: =DFs!X65 -> -7.706658833 | W9: =DFs!Y65 -> -8.592119159 | X9: =DFs!Z65 -> -8.457430923 | Y9: =DFs!AA65 -> -65.32672694 | Z9: =DFs!AB65 -> -451.0810566 | AA9: =DFs!AC65 -> -444.3665544 | AB9: =DFs!AD65 -> -388.8780016 | AC9: =DFs!AE65 -> -335.0804702 | AD9: =DFs!AF65 -> -284.8438379 | AE9: =DFs!AG65 -> -230.3359148 | AF9: =DFs!AH65 -> -174.579559 | AG9: =DFs!AI65 -> -498.5418644 | AH9: =DFs!AJ65 -> -440.1022981
B10: =DFs!C66 -> Pagamento de Principal | C10: $ 000s | D10: -19936.15775 | E10: =DFs!G66 -> 0 | F10: =DFs!H66 -> 0 | G10: =DFs!I66 -> -365.7077118 | H10: =DFs!J66 -> -457.2526831 | I10: =DFs!K66 -> -458.1853176 | J10: =DFs!L66 -> -459.4899453 | K10: =DFs!M66 -> -463.2612598 | L10: =DFs!N66 -> -465.7097914 | M10: =DFs!O66 -> -835.9763595 | N10: =DFs!P66 -> -835.9763595 | O10: =DFs!Q66 -> -837.8416285 | P10: =DFs!R66 -> -927.9554984 | Q10: =DFs!S66 -> -935.4148555 | R10: =DFs!T66 -> -939.1453935 | S10: =DFs!U66 -> -940.9232023 | T10: =DFs!V66 -> -3901.659187 | U10: =DFs!W66 -> -3.782260071 | V10: =DFs!X66 -> -4.981679918 | W10: =DFs!Y66 -> -4.981679918 | X10: =DFs!Z66 -> -6.11100019 | Y10: =DFs!AA66 -> -6.49598479 | Z10: =DFs!AB66 -> -60.27423412 | AA10: =DFs!AC66 -> -466.29036 | AB10: =DFs!AD66 -> -466.840338 | AC10: =DFs!AE66 -> -466.840338 | AD10: =DFs!AF66 -> -469.7923866 | AE10: =DFs!AG66 -> -480.9633276 | AF10: =DFs!AH66 -> -484.8775316 | AG10: =DFs!AI66 -> -491.0887931 | AH10: =DFs!AJ66 -> -3698.338639
B11: =DFs!C79 -> Fiança Bancária | C11: $ 000s | D11: -1059.830828 | E11: =DFs!G79 -> -99.68078873 | F11: =DFs!H79 -> -102.3981593 | G11: =DFs!I79 -> -118.8856976 | H11: =DFs!J79 -> -109.9644762 | I11: =DFs!K79 -> -101.087788 | J11: =DFs!L79 -> -92.65225195 | K11: =DFs!M79 -> -83.82776246 | L11: =DFs!N79 -> -133.7562175 | M11: =DFs!O79 -> -117.0366903 | N11: =DFs!P79 -> -100.5409954 | O11: =DFs!Q79 -> 0 | P11: =DFs!R79 -> 0 | Q11: =DFs!S79 -> 0 | R11: =DFs!T79 -> 0 | S11: =DFs!U79 -> 0 | T11: =DFs!V79 -> 0 | U11: =DFs!W79 -> 0 | V11: =DFs!X79 -> 0 | W11: =DFs!Y79 -> 0 | X11: =DFs!Z79 -> 0 | Y11: =DFs!AA79 -> 0 | Z11: =DFs!AB79 -> 0 | AA11: =DFs!AC79 -> 0 | AB11: =DFs!AD79 -> 0 | AC11: =DFs!AE79 -> 0 | AD11: =DFs!AF79 -> 0 | AE11: =DFs!AG79 -> 0 | AF11: =DFs!AH79 -> 0 | AG11: =DFs!AI79 -> 0 | AH11: =DFs!AJ79 -> 0
B12: Capital de Giro | C12: $ 000s | D12: 0 | E12: =DFs!G42 -> -181.8328689 | F12: =DFs!H42 -> -3.652826183 | G12: =DFs!I42 -> -148.5677391 | H12: =DFs!J42 -> -133.1319433 | I12: =DFs!K42 -> -9.346493295 | J12: =DFs!L42 -> -12.27968961 | K12: =DFs!M42 -> -10.40630391 | L12: =DFs!N42 -> -51.02627935 | M12: =DFs!O42 -> 31.2741373 | N12: =DFs!P42 -> -12.42982626 | O12: =DFs!Q42 -> -16.98066699 | P12: =DFs!R42 -> -5.246746961 | Q12: =DFs!S42 -> -9.318296918 | R12: =DFs!T42 -> -12.62015289 | S12: =DFs!U42 -> -56.98958835 | T12: =DFs!V42 -> 27.48265735 | U12: =DFs!W42 -> -10.42542219 | V12: =DFs!X42 -> -14.16118481 | W12: =DFs!Y42 -> -13.31883096 | X12: =DFs!Z42 -> -12.80037587 | Y12: =DFs!AA42 -> -16.17784366 | Z12: =DFs!AB42 -> -48.89633282 | AA12: =DFs!AC42 -> 28.98274593 | AB12: =DFs!AD42 -> -12.17277212 | AC12: =DFs!AE42 -> 8.584160029 | AD12: =DFs!AF42 -> -14.69614283 | AE12: =DFs!AG42 -> -12.11882669 | AF12: =DFs!AH42 -> -12.60938801 | AG12: =DFs!AI42 -> -51.05384506 | AH12: =DFs!AJ42 -> 785.9366864
B13: =DFs!C83 -> Dividendos | C13: $ 000s | D13: -34997.97241 | E13: =DFs!G83 -> 0 | F13: =DFs!H83 -> 0 | G13: =DFs!I83 -> 0 | H13: =DFs!J83 -> 0 | I13: =DFs!K83 -> 0 | J13: =DFs!L83 -> -296.5486678 | K13: =DFs!M83 -> -1581.923105 | L13: =DFs!N83 -> -3797.171359 | M13: =DFs!O83 -> -1421.461523 | N13: =DFs!P83 -> -1334.815088 | O13: =DFs!Q83 -> -1498.548644 | P13: =DFs!R83 -> -1418.521962 | Q13: =DFs!S83 -> -1173.412262 | R13: =DFs!T83 -> -1145.174202 | S13: =DFs!U83 -> -1802.473498 | T13: =DFs!V83 -> 0 | U13: =DFs!W83 -> -2153.98255 | V13: =DFs!X83 -> -2220.593721 | W13: =DFs!Y83 -> -2179.852607 | X13: =DFs!Z83 -> -1780.488541 | Y13: =DFs!AA83 -> -1752.432305 | Z13: =DFs!AB83 -> -3926.660992 | AA13: =DFs!AC83 -> -578.9860071 | AB13: =DFs!AD83 -> -596.3277574 | AC13: =DFs!AE83 -> -513.8300229 | AD13: =DFs!AF83 -> -519.2717263 | AE13: =DFs!AG83 -> -504.8669901 | AF13: =DFs!AH83 -> -472.3119487 | AG13: =DFs!AI83 -> -2328.316935 | AH13: =DFs!AJ83 -> 0
B14: Aumento / Redução conta caixa | C14: $ 000s | D14: -11906.66801 | E14: =-DFs!G121+DFs!F121 -> 0 | F14: =-DFs!H121+DFs!G121 -> 0 | G14: =-DFs!I121+DFs!H121 -> 0 | H14: =-DFs!J121+DFs!I121 -> -740.0622849 | I14: =-DFs!K121+DFs!J121 -> -1059.497848 | J14: =-DFs!L121+DFs!K121 -> -698.5168454 | K14: =-DFs!M121+DFs!L121 -> 497.952821 | L14: =-DFs!N121+DFs!M121 -> 668.2750836 | M14: =-DFs!O121+DFs!N121 -> 502.1493503 | N14: =-DFs!P121+DFs!O121 -> 326.8576263 | O14: =-DFs!Q121+DFs!P121 -> 307.1483026 | P14: =-DFs!R121+DFs!Q121 -> 114.5471487 | Q14: =-DFs!S121+DFs!R121 -> -5.582075542 | R14: =-DFs!T121+DFs!S121 -> -5.961071364 | S14: =-DFs!U121+DFs!T121 -> -99.37872865 | T14: =-DFs!V121+DFs!U121 -> 192.0685214 | U14: =-DFs!W121+DFs!V121 -> -75.98247805 | V14: =-DFs!X121+DFs!W121 -> 3.370234474 | W14: =-DFs!Y121+DFs!X121 -> 5.343879672 | X14: =-DFs!Z121+DFs!Y121 -> 4.412700011 | Y14: =-DFs!AA121+DFs!Z121 -> 0.02809252414 | Z14: =-DFs!AB121+DFs!AA121 -> -248.5084913 | AA14: =-DFs!AC121+DFs!AB121 -> -1026.04361 | AB14: =-DFs!AD121+DFs!AC121 -> -1188.698428 | AC14: =-DFs!AE121+DFs!AD121 -> -1427.922396 | AD14: =-DFs!AF121+DFs!AE121 -> -1604.374358 | AE14: =-DFs!AG121+DFs!AF121 -> -1520.725439 | AF14: =-DFs!AH121+DFs!AG121 -> -1689.712387 | AG14: =-DFs!AI121+DFs!AH121 -> -1371.245204 | AH14: =-DFs!AJ121+DFs!AI121 -> -1766.610128
B15: Usos totais do projeto | C15: $ 000s | D15: -516552.8242 | E15: =SUM(E5:E14) -> -18020.313 | F15: -12441.0851 | G15: -15015.10093 | H15: -14096.92321 | I15: -14300.34091 | J15: -14572.24062 | K15: -14722.28876 | L15: -22394.14855 | M15: -14866.26855 | N15: -14953.59935 | O15: -15849.1159 | P15: -15214.72515 | Q15: -15306.86054 | R15: -15393.7187 | S15: -23206.92877 | T15: -17703.09876 | U15: -15911.98784 | V15: -16044.92057 | W15: -16227.35375 | X15: -16368.30154 | Y15: -17387.37305 | Z15: -24746.45862 | AA15: -16848.66916 | AB15: -17086.42257 | AC15: -17388.10309 | AD15: -17726.50559 | AE15: -17972.69564 | AF15: -18252.91052 | AG15: -26326.08752 | AH15: =SUM(AH5:AH14) -> -20208.27796 | AL15: =SUM(AL10:AL14) -> 0 | AM15: 0
B17: Receitas | C17: $ 000s | D17: =SUM(E17:AH17) -> 471035.3047 | E17: =DFs!G19+DFs!G107 -> 9207.053202 | F17: =DFs!H19+DFs!H107 -> 9708.178825 | G17: =DFs!I19+DFs!I107 -> 11978.49698 | H17: =DFs!J19+DFs!J107 -> 14061.01296 | I17: =DFs!K19+DFs!K107 -> 14190.61302 | J17: =DFs!L19+DFs!L107 -> 14324.13152 | K17: =DFs!M19+DFs!M107 -> 14450.74155 | L17: =DFs!N19+DFs!N107 -> 17269.24931 | M17: =DFs!O19+DFs!O107 -> 14708.35828 | N17: =DFs!P19+DFs!P107 -> 14842.28883 | O17: =DFs!Q19+DFs!Q107 -> 15048.88695 | P17: =DFs!R19+DFs!R107 -> 15112.72237 | Q17: =DFs!S19+DFs!S107 -> 15244.85983 | R17: =DFs!T19+DFs!T107 -> 15379.64017 | S17: =DFs!U19+DFs!U107 -> 18263.65596 | T17: =DFs!V19+DFs!V107 -> 15738.64117 | U17: =DFs!W19+DFs!W107 -> 15886.00041 | V17: =DFs!X19+DFs!X107 -> 16037.77822 | W17: =DFs!Y19+DFs!Y107 -> 16199.824 | X17: =DFs!Z19+DFs!Z107 -> 16355.5619 | Y17: =DFs!AA19+DFs!AA107 -> 16574.79088 | Z17: =DFs!AB19+DFs!AB107 -> 19327.00448 | AA17: =DFs!AC19+DFs!AC107 -> 16794.67431 | AB17: =DFs!AD19+DFs!AD107 -> 16942.77637 | AC17: =DFs!AE19+DFs!AE107 -> 17110.28982 | AD17: =DFs!AF19+DFs!AF107 -> 17265.91094 | AE17: =DFs!AG19+DFs!AG107 -> 17413.35666 | AF17: =DFs!AH19+DFs!AH107 -> 17566.77088 | AG17: =DFs!AI19+DFs!AI107 -> 20156.40271 | AH17: =DFs!AJ19+DFs!AJ107 -> 17875.63221
B18: Equity | C18: $ 000s | D18: 17763.69874 | E18: =DFs!G52+Ops!G1067 -> 3829.220358 | F18: =DFs!H52+Ops!H1067 -> 2597.037748 | G18: =DFs!I52+Ops!I1067 -> 1846.519315 | H18: =DFs!J52+Ops!J1067 -> 7.461075873 | I18: =DFs!K52+Ops!K1067 -> 9.567269739 | J18: =DFs!L52+Ops!L1067 -> 25.14209645 | K18: =DFs!M52+Ops!M1067 -> 14.6911899 | L18: =DFs!N52+Ops!N1067 -> 1974.75503 | M18: =DFs!O52+Ops!O1067 -> 0 | N18: =DFs!P52+Ops!P1067 -> 7.461075873 | O18: =DFs!Q52+Ops!Q1067 -> 300.3795664 | P18: =DFs!R52+Ops!R1067 -> 19.89161894 | Q18: =DFs!S52+Ops!S1067 -> 7.461075873 | R18: =DFs!T52+Ops!T1067 -> 2.37041176 | S18: =DFs!U52+Ops!U1067 -> 1973.82399 | T18: =DFs!V52+Ops!V1067 -> 442.1123059 | U18: =DFs!W52+Ops!W1067 -> 10.394972 | V18: =DFs!X52+Ops!X1067 -> 0 | W18: =DFs!Y52+Ops!Y1067 -> 8.281682 | X18: =DFs!Z52+Ops!Z1067 -> 2.566564 | Y18: =DFs!AA52+Ops!AA1067 -> 322.669496 | Z18: =DFs!AB52+Ops!AB1067 -> 2165.419338 | AA18: =DFs!AC52+Ops!AC1067 -> 2.566564 | AB18: =DFs!AD52+Ops!AD1067 -> 0 | AC18: =DFs!AE52+Ops!AE1067 -> 9.840162 | AD18: =DFs!AF52+Ops!AF1067 -> 29.789176 | AE18: =DFs!AG52+Ops!AG1067 -> 7.828408 | AF18: =DFs!AH52+Ops!AH1067 -> 8.281682 | AG18: =DFs!AI52+Ops!AI1067 -> 2138.166564 | AH18: =DFs!AJ52+Ops!AJ1067 -> 0
B19: Dívida Senior | C19: $ 000s | D19: 19936.15775 | E19: =DFs!G53 -> 4984.039437 | F19: =DFs!H53 -> 135.8685281 | G19: =DFs!I53 -> 1190.084628 | H19: =DFs!J53 -> 11.19161381 | I19: =DFs!K53 -> 14.35090461 | J19: =DFs!L53 -> 37.71314467 | K19: =DFs!M53 -> 22.03678486 | L19: =DFs!N53 -> 2962.132545 | M19: =DFs!O53 -> 0 | N19: =DFs!P53 -> 11.19161381 | O19: =DFs!Q53 -> 450.5693496 | P19: =DFs!R53 -> 29.83742841 | Q19: =DFs!S53 -> 11.19161381 | R19: =DFs!T53 -> 3.55561764 | S19: =DFs!U53 -> 2960.735985 | T19: =DFs!V53 -> 52.951641 | U19: =DFs!W53 -> 15.592458 | V19: =DFs!X53 -> 0 | W19: =DFs!Y53 -> 12.422523 | X19: =DFs!Z53 -> 3.849846 | Y19: =DFs!AA53 -> 484.004244 | Z19: =DFs!AB53 -> 3248.129007 | AA19: =DFs!AC53 -> 3.849846 | AB19: =DFs!AD53 -> 0 | AC19: =DFs!AE53 -> 14.760243 | AD19: =DFs!AF53 -> 44.683764 | AE19: =DFs!AG53 -> 11.742612 | AF19: =DFs!AH53 -> 12.422523 | AG19: =DFs!AI53 -> 3207.249846 | AH19: =DFs!AJ53 -> 0
B20: =DFs!C73 -> Saques Conta Reserva | C20: $ 000s | D20: 3083.143556 | E20: =DFs!G73 -> 0 | F20: =DFs!H73 -> 0 | G20: =DFs!I73 -> 0 | H20: =DFs!J73 -> 17.25755905 | I20: =DFs!K73 -> 16.24385363 | J20: =DFs!L73 -> 16.09520388 | K20: =DFs!M73 -> 0 | L20: =DFs!N73 -> 0 | M20: =DFs!O73 -> 32.71646158 | N20: =DFs!P73 -> 14.66605507 | O20: =DFs!Q73 -> 2.012876629 | P20: =DFs!R73 -> 33.87851506 | Q20: =DFs!S73 -> 35.72023712 | R20: =DFs!T73 -> 0 | S20: =DFs!U73 -> 0 | T20: =DFs!V73 -> 1451.339207 | U20: =DFs!W73 -> 0 | V20: =DFs!X73 -> 0 | W20: =DFs!Y73 -> 0 | X20: =DFs!Z73 -> 0 | Y20: =DFs!AA73 -> 0 | Z20: =DFs!AB73 -> 0 | AA20: =DFs!AC73 -> 18.31285828 | AB20: =DFs!AD73 -> 17.93251043 | AC20: =DFs!AE73 -> 15.7615279 | AD20: =DFs!AF73 -> 14.44566073 | AE20: =DFs!AG73 -> 17.28071725 | AF20: =DFs!AH73 -> 0 | AG20: =DFs!AI73 -> 0 | AH20: =DFs!AJ73 -> 1379.480312
B21: =DFs!C78 -> Receitas Financeiras | C21: $ 000s | D21: 4734.519459 | E21: =DFs!G78 -> 0 | F21: =DFs!H78 -> 0 | G21: =DFs!I78 -> 0 | H21: =DFs!J78 -> 0 | I21: =DFs!K78 -> 69.56585479 | J21: =DFs!L78 -> 169.1586525 | K21: =DFs!M78 -> 234.819236 | L21: =DFs!N78 -> 188.0116708 | M21: =DFs!O78 -> 125.1938129 | N21: =DFs!P78 -> 77.99177401 | O21: =DFs!Q78 -> 47.26715713 | P21: =DFs!R78 -> 18.39521669 | Q21: =DFs!S78 -> 7.627784711 | R21: =DFs!T78 -> 8.152499812 | S21: =DFs!U78 -> 8.71284052 | T21: =DFs!V78 -> 18.05444101 | U21: =DFs!W78 -> 0 | V21: =DFs!X78 -> 7.142352937 | W21: =DFs!Y78 -> 6.825550896 | X21: =DFs!Z78 -> 6.323226207 | Y21: =DFs!AA78 -> 5.908432406 | Z21: =DFs!AB78 -> 5.905791708 | AA21: =DFs!AC78 -> 29.26558989 | AB21: =DFs!AD78 -> 125.7136893 | AC21: =DFs!AE78 -> 237.4513415 | AD21: =DFs!AF78 -> 371.6760467 | AE21: =DFs!AG78 -> 522.4872364 | AF21: =DFs!AH78 -> 665.4354276 | AG21: =DFs!AI78 -> 824.268392 | AH21: =DFs!AJ78 -> 953.1654412
B22: Fontes totais do projeto | C22: $ 000s | D22: 516552.8242 | E22: =SUM(E17:E21) -> 18020.313 | F22: 12441.0851 | G22: 15015.10093 | H22: 14096.92321 | I22: 14300.34091 | J22: 14572.24062 | K22: 14722.28876 | L22: 22394.14855 | M22: 14866.26855 | N22: 14953.59935 | O22: 15849.1159 | P22: 15214.72515 | Q22: 15306.86054 | R22: 15393.7187 | S22: 23206.92877 | T22: 17703.09876 | U22: 15911.98784 | V22: 16044.92057 | W22: 16227.35375 | X22: 16368.30154 | Y22: 17387.37305 | Z22: 24746.45862 | AA22: 16848.66916 | AB22: 17086.42257 | AC22: 17388.10309 | AD22: 17726.50559 | AE22: 17972.69564 | AF22: 18252.91052 | AG22: 26326.08752 | AH22: 20208.27796
B24: Check | D24: =D18/-D6 -> 0.5346175214 | E24: =SUM(E17:E21)+SUM(E5:E14) -> 0 | F24: 0 | G24: 0 | H24: 0 | I24: 0 | J24: 0 | K24: 0 | L24: 0 | M24: 0 | N24: 0 | O24: 0 | P24: 0 | Q24: 0 | R24: 0 | S24: 0 | T24: 0 | U24: 0 | V24: 0 | W24: 0 | X24: 0 | Y24: 0 | Z24: 0 | AA24: 0 | AB24: 0 | AC24: 0 | AD24: 0 | AE24: 0 | AF24: 0 | AG24: 0 | AH24: 0

Sheet Inputs
A1: INPUTS
C3: SCENARIO SELECTION
C6: Premissas Modelo
C8: Modelo começa? | D8: Data | E8: 2024-01-01
C10: Meses no ano | E10: 12
C12: Cenários
C13: Cenário Base | E13: 1
C14: Investimentos Antecipados
C15: Cenário 2
C16: Cenário 3
C18: Real / Nominal
C19: Nominal | E19: 2 | F19: =INDEX(C19:C20,E19) -> Real
C20: Real
C23: Premissas Temporais
E25: Início
C26: Começo de Investimentos | E26: 2024-01-01
E28: Data Inicial
C29: Financial Close date | E29: =E26 -> 2024-01-01
E31: Prazo
C32: Concessão | E32: 30 | F32: Years
C34: Investimentos (CAPEX)
C36: CAPEX Investimento
C38: Sensibilidade CAPEX | D38: =CAPEX_Sens -> 0 | E38: %
C40: CAPEX segregado
C41: CAPEX de Investimento | D41: 1 | E41: =D41+1 -> 2 | F41: =E41+1 -> 3 | G41: 4 | H41: 5 | I41: 6 | J41: 7 | K41: 8 | L41: 9 | M41: =L41+1 -> 10 | N41: 11 | O41: 12 | P41: 13 | Q41: 14 | R41: 15 | S41: 16 | T41: 17 | U41: 18 | V41: 19 | W41: 20 | X41: 21 | Y41: 22 | Z41: 23 | AA41: 24 | AB41: 25 | AC41: 26 | AD41: 27 | AE41: 28 | AF41: 29 | AG41: 30 | AH41: 31 | AI41: 32 | AJ41: 33 | AK41: 34 | AL41: 35
C42: Coleta Manual E Conteinerizada Rsc | D42: =CAPEX!C14*(1+$D$38) -> 2981.59 | E42: =CAPEX!D14*(1+$D$38) -> 0 | F42: =CAPEX!E14*(1+$D$38) -> 0 | G42: =CAPEX!F14*(1+$D$38) -> 0 | H42: =CAPEX!G14*(1+$D$38) -> 0 | I42: =CAPEX!H14*(1+$D$38) -> 15 | J42: =CAPEX!I14*(1+$D$38) -> 0 | K42: =CAPEX!J14*(1+$D$38) -> 2950.1 | L42: =CAPEX!K14*(1+$D$38) -> 0 | M42: =CAPEX!L14*(1+$D$38) -> 0 | N42: =CAPEX!M14*(1+$D$38) -> 31.49 | O42: =CAPEX!N14*(1+$D$38) -> 0 | P42: =CAPEX!O14*(1+$D$38) -> 0 | Q42: =CAPEX!P14*(1+$D$38) -> 0 | R42: =CAPEX!Q14*(1+$D$38) -> 2950.1 | S42: =CAPEX!R14*(1+$D$38) -> 15 | T42: =CAPEX!S14*(1+$D$38) -> 0 | U42: =CAPEX!T14*(1+$D$38) -> 0 | V42: =CAPEX!U14*(1+$D$38) -> 0 | W42: =CAPEX!V14*(1+$D$38) -> 0 | X42: =CAPEX!W14*(1+$D$38) -> 31.49 | Y42: =CAPEX!X14*(1+$D$38) -> 2950.1 | Z42: =CAPEX!Y14*(1+$D$38) -> 0 | AA42: =CAPEX!Z14*(1+$D$38) -> 0 | AB42: =CAPEX!AA14*(1+$D$38) -> 0 | AC42: =CAPEX!AB14*(1+$D$38) -> 15 | AD42: =CAPEX!AC14*(1+$D$38) -> 0 | AE42: =CAPEX!AD14*(1+$D$38) -> 0 | AF42: =CAPEX!AE14*(1+$D$38) -> 2950.1 | AG42: =CAPEX!AF14*(1+$D$38) -> 0 | AM42: =SUM(D42:AL42) -> 14889.97
C43: Coleta De Materiais Recicláveis | D43: =CAPEX!C36*(1+$D$38) -> 1797.89 | E43: =CAPEX!D36*(1+$D$38) -> 0 | F43: =CAPEX!E36*(1+$D$38) -> 0 | G43: =CAPEX!F36*(1+$D$38) -> 0 | H43: =CAPEX!G36*(1+$D$38) -> 0 | I43: =CAPEX!H36*(1+$D$38) -> 0 | J43: =CAPEX!I36*(1+$D$38) -> 0 | K43: =CAPEX!J36*(1+$D$38) -> 1781.4 | L43: =CAPEX!K36*(1+$D$38) -> 0 | M43: =CAPEX!L36*(1+$D$38) -> 0 | N43: =CAPEX!M36*(1+$D$38) -> 16.49 | O43: =CAPEX!N36*(1+$D$38) -> 0 | P43: =CAPEX!O36*(1+$D$38) -> 0 | Q43: =CAPEX!P36*(1+$D$38) -> 0 | R43: =CAPEX!Q36*(1+$D$38) -> 1781.4 | S43: =CAPEX!R36*(1+$D$38) -> 0 | T43: =CAPEX!S36*(1+$D$38) -> 0 | U43: =CAPEX!T36*(1+$D$38) -> 0 | V43: =CAPEX!U36*(1+$D$38) -> 0 | W43: =CAPEX!V36*(1+$D$38) -> 0 | X43: =CAPEX!W36*(1+$D$38) -> 16.49 | Y43: =CAPEX!X36*(1+$D$38) -> 1781.4 | Z43: =CAPEX!Y36*(1+$D$38) -> 0 | AA43: =CAPEX!Z36*(1+$D$38) -> 0 | AB43: =CAPEX!AA36*(1+$D$38) -> 0 | AC43: =CAPEX!AB36*(1+$D$38) -> 0 | AD43: =CAPEX!AC36*(1+$D$38) -> 0 | AE43: =CAPEX!AD36*(1+$D$38) -> 0 | AF43: =CAPEX!AE36*(1+$D$38) -> 1781.4 | AG43: =CAPEX!AF36*(1+$D$38) -> 0 | AM43: =SUM(D43:AL43) -> 8956.47
C44: Coleta De Resíduos Do Serviço De Saúde Municipal | D44: =CAPEX!C57 -> 0 | E44: =CAPEX!D57 -> 0 | F44: =CAPEX!E57 -> 0 | G44: =CAPEX!F57 -> 0 | H44: =CAPEX!G57 -> 0 | I44: =CAPEX!H57 -> 0 | J44: =CAPEX!I57 -> 0 | K44: =CAPEX!J57 -> 0 | L44: =CAPEX!K57 -> 0 | M44: =CAPEX!L57 -> 0 | N44: =CAPEX!M57 -> 0 | O44: =CAPEX!N57 -> 0 | P44: =CAPEX!O57 -> 0 | Q44: =CAPEX!P57 -> 0 | R44: =CAPEX!Q57 -> 0 | S44: =CAPEX!R57 -> 0 | T44: =CAPEX!S57 -> 0 | U44: =CAPEX!T57 -> 0 | V44: =CAPEX!U57 -> 0 | W44: =CAPEX!V57 -> 0 | X44: =CAPEX!W57 -> 0 | Y44: =CAPEX!X57 -> 0 | Z44: =CAPEX!Y57 -> 0 | AA44: =CAPEX!Z57 -> 0 | AB44: =CAPEX!AA57 -> 0 | AC44: =CAPEX!AB57 -> 0 | AD44: =CAPEX!AC57 -> 0 | AE44: =CAPEX!AD57 -> 0 | AF44: =CAPEX!AE57 -> 0 | AG44: =CAPEX!AF57 -> 0 | AM44: 0
C45: Transporte E Destinação Final - Resíduos Pevs | D45: =CAPEX!C72*(1+$D$38) -> 0 | E45: =CAPEX!D72*(1+$D$38) -> 0 | F45: =CAPEX!E72*(1+$D$38) -> 0 | G45: =CAPEX!F72*(1+$D$38) -> 0 | H45: =CAPEX!G72*(1+$D$38) -> 0 | I45: =CAPEX!H72*(1+$D$38) -> 0 | J45: =CAPEX!I72*(1+$D$38) -> 0 | K45: =CAPEX!J72*(1+$D$38) -> 0 | L45: =CAPEX!K72*(1+$D$38) -> 0 | M45: =CAPEX!L72*(1+$D$38) -> 0 | N45: =CAPEX!M72*(1+$D$38) -> 0 | O45: =CAPEX!N72*(1+$D$38) -> 0 | P45: =CAPEX!O72*(1+$D$38) -> 0 | Q45: =CAPEX!P72*(1+$D$38) -> 0 | R45: =CAPEX!Q72*(1+$D$38) -> 0 | S45: =CAPEX!R72*(1+$D$38) -> 0 | T45: =CAPEX!S72*(1+$D$38) -> 0 | U45: =CAPEX!T72*(1+$D$38) -> 0 | V45: =CAPEX!U72*(1+$D$38) -> 0 | W45: =CAPEX!V72*(1+$D$38) -> 0 | X45: =CAPEX!W72*(1+$D$38) -> 0 | Y45: =CAPEX!X72*(1+$D$38) -> 0 | Z45: =CAPEX!Y72*(1+$D$38) -> 0 | AA45: =CAPEX!Z72*(1+$D$38) -> 0 | AB45: =CAPEX!AA72*(1+$D$38) -> 0 | AC45: =CAPEX!AB72*(1+$D$38) -> 0 | AD45: =CAPEX!AC72*(1+$D$38) -> 0 | AE45: =CAPEX!AD72*(1+$D$38) -> 0 | AF45: =CAPEX!AE72*(1+$D$38) -> 0 | AG45: =CAPEX!AF72*(1+$D$38) -> 0 | AM45: 0
C46: Coleta Programada De Volumosos | D46: =CAPEX!C95*(1+$D$38) -> 607.5 | E46: =CAPEX!D95*(1+$D$38) -> 0 | F46: =CAPEX!E95*(1+$D$38) -> 0 | G46: =CAPEX!F95*(1+$D$38) -> 0 | H46: =CAPEX!G95*(1+$D$38) -> 0 | I46: =CAPEX!H95*(1+$D$38) -> 0 | J46: =CAPEX!I95*(1+$D$38) -> 0 | K46: =CAPEX!J95*(1+$D$38) -> 607.5 | L46: =CAPEX!K95*(1+$D$38) -> 0 | M46: =CAPEX!L95*(1+$D$38) -> 0 | N46: =CAPEX!M95*(1+$D$38) -> 0 | O46: =CAPEX!N95*(1+$D$38) -> 0 | P46: =CAPEX!O95*(1+$D$38) -> 0 | Q46: =CAPEX!P95*(1+$D$38) -> 0 | R46: =CAPEX!Q95*(1+$D$38) -> 607.5 | S46: =CAPEX!R95*(1+$D$38) -> 0 | T46: =CAPEX!S95*(1+$D$38) -> 0 | U46: =CAPEX!T95*(1+$D$38) -> 0 | V46: =CAPEX!U95*(1+$D$38) -> 0 | W46: =CAPEX!V95*(1+$D$38) -> 0 | X46: =CAPEX!W95*(1+$D$38) -> 0 | Y46: =CAPEX!X95*(1+$D$38) -> 607.5 | Z46: =CAPEX!Y95*(1+$D$38) -> 0 | AA46: =CAPEX!Z95*(1+$D$38) -> 0 | AB46: =CAPEX!AA95*(1+$D$38) -> 0 | AC46: =CAPEX!AB95*(1+$D$38) -> 0 | AD46: =CAPEX!AC95*(1+$D$38) -> 0 | AE46: =CAPEX!AD95*(1+$D$38) -> 0 | AF46: =CAPEX!AE95*(1+$D$38) -> 607.5 | AG46: =CAPEX!AF95*(1+$D$38) -> 0 | AM46: 3037.5
C47: Varrição Manual | D47: =CAPEX!C105*(1+$D$38) -> 58.504 | E47: =CAPEX!D105*(1+$D$38) -> 0 | F47: =CAPEX!E105*(1+$D$38) -> 0 | G47: =CAPEX!F105*(1+$D$38) -> 4.064 | H47: =CAPEX!G105*(1+$D$38) -> 0 | I47: =CAPEX!H105*(1+$D$38) -> 37.95 | J47: =CAPEX!I105*(1+$D$38) -> 4.064 | K47: =CAPEX!J105*(1+$D$38) -> 0 | L47: =CAPEX!K105*(1+$D$38) -> 0 | M47: =CAPEX!L105*(1+$D$38) -> 4.064 | N47: =CAPEX!M105*(1+$D$38) -> 54.44 | O47: =CAPEX!N105*(1+$D$38) -> 0 | P47: =CAPEX!O105*(1+$D$38) -> 4.064 | Q47: =CAPEX!P105*(1+$D$38) -> 0 | R47: =CAPEX!Q105*(1+$D$38) -> 0 | S47: =CAPEX!R105*(1+$D$38) -> 42.014 | T47: =CAPEX!S105*(1+$D$38) -> 0 | U47: =CAPEX!T105*(1+$D$38) -> 0 | V47: =CAPEX!U105*(1+$D$38) -> 4.572 | W47: =CAPEX!V105*(1+$D$38) -> 0 | X47: =CAPEX!W105*(1+$D$38) -> 54.44 | Y47: =CAPEX!X105*(1+$D$38) -> 4.572 | Z47: =CAPEX!Y105*(1+$D$38) -> 0 | AA47: =CAPEX!Z105*(1+$D$38) -> 0 | AB47: =CAPEX!AA105*(1+$D$38) -> 4.572 | AC47: =CAPEX!AB105*(1+$D$38) -> 37.95 | AD47: =CAPEX!AC105*(1+$D$38) -> 0 | AE47: =CAPEX!AD105*(1+$D$38) -> 4.572 | AF47: =CAPEX!AE105*(1+$D$38) -> 0 | AG47: =CAPEX!AF105*(1+$D$38) -> 0 | AM47: 319.842
C48: Serviços Gerais | D48: =CAPEX!C123*(1+$D$38) -> 672.924 | E48: =CAPEX!D123*(1+$D$38) -> 0 | F48: =CAPEX!E123*(1+$D$38) -> 0 | G48: =CAPEX!F123*(1+$D$38) -> 12.924 | H48: =CAPEX!G123*(1+$D$38) -> 0 | I48: =CAPEX!H123*(1+$D$38) -> 0 | J48: =CAPEX!I123*(1+$D$38) -> 12.924 | K48: =CAPEX!J123*(1+$D$38) -> 0 | L48: =CAPEX!K123*(1+$D$38) -> 0 | M48: =CAPEX!L123*(1+$D$38) -> 12.924 | N48: =CAPEX!M123*(1+$D$38) -> 660 | O48: =CAPEX!N123*(1+$D$38) -> 0 | P48: =CAPEX!O123*(1+$D$38) -> 12.924 | Q48: =CAPEX!P123*(1+$D$38) -> 0 | R48: =CAPEX!Q123*(1+$D$38) -> 0 | S48: =CAPEX!R123*(1+$D$38) -> 12.924 | T48: =CAPEX!S123*(1+$D$38) -> 0 | U48: =CAPEX!T123*(1+$D$38) -> 0 | V48: =CAPEX!U123*(1+$D$38) -> 12.924 | W48: =CAPEX!V123*(1+$D$38) -> 0 | X48: =CAPEX!W123*(1+$D$38) -> 660 | Y48: =CAPEX!X123*(1+$D$38) -> 12.924 | Z48: =CAPEX!Y123*(1+$D$38) -> 0 | AA48: =CAPEX!Z123*(1+$D$38) -> 0 | AB48: =CAPEX!AA123*(1+$D$38) -> 12.924 | AC48: =CAPEX!AB123*(1+$D$38) -> 0 | AD48: =CAPEX!AC123*(1+$D$38) -> 0 | AE48: =CAPEX!AD123*(1+$D$38) -> 12.924 | AF48: =CAPEX!AE123*(1+$D$38) -> 0 | AG48: =CAPEX!AF123*(1+$D$38) -> 0 | AM48: 2109.24
C49: Investimentos Destinação Final | D49: =CAPEX!C144*(1+$D$38) -> 66.633105 | E49: =CAPEX!D144*(1+$D$38) -> 22.689205 | F49: =CAPEX!E144*(1+$D$38) -> 2147.607442 | G49: =CAPEX!F144*(1+$D$38) -> 3.208205 | H49: =CAPEX!G144*(1+$D$38) -> 25.89741 | I49: =CAPEX!H144*(1+$D$38) -> 0 | J49: =CAPEX!I144*(1+$D$38) -> 3.208205 | K49: =CAPEX!J144*(1+$D$38) -> 6.41641 | L49: =CAPEX!K144*(1+$D$38) -> 0 | M49: =CAPEX!L144*(1+$D$38) -> 3.208205 | N49: =CAPEX!M144*(1+$D$38) -> 10.31261 | O49: =CAPEX!N144*(1+$D$38) -> 3.8962 | P49: =CAPEX!O144*(1+$D$38) -> 3.208205 | Q49: =CAPEX!P144*(1+$D$38) -> 6.41641 | R49: =CAPEX!Q144*(1+$D$38) -> 3.8962 | S49: =CAPEX!R144*(1+$D$38) -> 3.208205 | T49: =CAPEX!S144*(1+$D$38) -> 6.41641 | U49: =CAPEX!T144*(1+$D$38) -> 0 | V49: =CAPEX!U144*(1+$D$38) -> 3.208205 | W49: =CAPEX!V144*(1+$D$38) -> 6.41641 | X49: =CAPEX!W144*(1+$D$38) -> 3.8962 | Y49: =CAPEX!X144*(1+$D$38) -> 7.104405 | Z49: =CAPEX!Y144*(1+$D$38) -> 6.41641 | AA49: =CAPEX!Z144*(1+$D$38) -> 0 | AB49: =CAPEX!AA144*(1+$D$38) -> 7.104405 | AC49: =CAPEX!AB144*(1+$D$38) -> 6.41641 | AD49: =CAPEX!AC144*(1+$D$38) -> 0 | AE49: =CAPEX!AD144*(1+$D$38) -> 3.208205 | AF49: =CAPEX!AE144*(1+$D$38) -> 6.41641 | AG49: =CAPEX!AF144*(1+$D$38) -> 0 | AM49: 2366.409487
C50: Educação Ambiental | D50: =CAPEX!C218*(1+$D$38) -> 0 | E50: =CAPEX!D218*(1+$D$38) -> 0 | F50: =CAPEX!E218*(1+$D$38) -> 0 | G50: =CAPEX!F218*(1+$D$38) -> 0 | H50: =CAPEX!G218*(1+$D$38) -> 0 | I50: =CAPEX!H218*(1+$D$38) -> 0 | J50: =CAPEX!I218*(1+$D$38) -> 0 | K50: =CAPEX!J218*(1+$D$38) -> 0 | L50: =CAPEX!K218*(1+$D$38) -> 0 | M50: =CAPEX!L218*(1+$D$38) -> 0 | N50: =CAPEX!M218*(1+$D$38) -> 0 | O50: =CAPEX!N218*(1+$D$38) -> 0 | P50: =CAPEX!O218*(1+$D$38) -> 0 | Q50: =CAPEX!P218*(1+$D$38) -> 0 | R50: =CAPEX!Q218*(1+$D$38) -> 0 | S50: =CAPEX!R218*(1+$D$38) -> 0 | T50: =CAPEX!S218*(1+$D$38) -> 0 | U50: =CAPEX!T218*(1+$D$38) -> 0 | V50: =CAPEX!U218*(1+$D$38) -> 0 | W50: =CAPEX!V218*(1+$D$38) -> 0 | X50: =CAPEX!W218*(1+$D$38) -> 0 | Y50: =CAPEX!X218*(1+$D$38) -> 0 | Z50: =CAPEX!Y218*(1+$D$38) -> 0 | AA50: =CAPEX!Z218*(1+$D$38) -> 0 | AB50: =CAPEX!AA218*(1+$D$38) -> 0 | AC50: =CAPEX!AB218*(1+$D$38) -> 0 | AD50: =CAPEX!AC218*(1+$D$38) -> 0 | AE50: =CAPEX!AD218*(1+$D$38) -> 0 | AF50: =CAPEX!AE218*(1+$D$38) -> 0 | AG50: =CAPEX!AF218*(1+$D$38) -> 0 | AM50: 0
C51: Relação Com O Usuário | D51: =CAPEX!C224*(1+$D$38) -> 0 | E51: =CAPEX!D224*(1+$D$38) -> 222.49694 | F51: =CAPEX!E224*(1+$D$38) -> 0 | G51: =CAPEX!F224*(1+$D$38) -> 0 | H51: =CAPEX!G224*(1+$D$38) -> 0 | I51: =CAPEX!H224*(1+$D$38) -> 0 | J51: =CAPEX!I224*(1+$D$38) -> 19.57102 | K51: =CAPEX!J224*(1+$D$38) -> 0 | L51: =CAPEX!K224*(1+$D$38) -> 0 | M51: =CAPEX!L224*(1+$D$38) -> 0 | N51: =CAPEX!M224*(1+$D$38) -> 0 | O51: =CAPEX!N224*(1+$D$38) -> 49.94794 | P51: =CAPEX!O224*(1+$D$38) -> 0 | Q51: =CAPEX!P224*(1+$D$38) -> 0 | R51: =CAPEX!Q224*(1+$D$38) -> 0 | S51: =CAPEX!R224*(1+$D$38) -> 0 | T51: =CAPEX!S224*(1+$D$38) -> 19.57102 | U51: =CAPEX!T224*(1+$D$38) -> 0 | V51: =CAPEX!U224*(1+$D$38) -> 0 | W51: =CAPEX!V224*(1+$D$38) -> 0 | X51: =CAPEX!W224*(1+$D$38) -> 0 | Y51: =CAPEX!X224*(1+$D$38) -> 49.94794 | Z51: =CAPEX!Y224*(1+$D$38) -> 0 | AA51: =CAPEX!Z224*(1+$D$38) -> 0 | AB51: =CAPEX!AA224*(1+$D$38) -> 0 | AC51: =CAPEX!AB224*(1+$D$38) -> 0 | AD51: =CAPEX!AC224*(1+$D$38) -> 19.57102 | AE51: =CAPEX!AD224*(1+$D$38) -> 0 | AF51: =CAPEX!AE224*(1+$D$38) -> 0 | AG51: =CAPEX!AF224*(1+$D$38) -> 0 | AM51: 381.10588
C52: Administração Local | D52: =CAPEX!C245*(1+$D$38) -> 40.35754 | E52: =CAPEX!D245*(1+$D$38) -> 0 | F52: =CAPEX!E245*(1+$D$38) -> 0 | G52: =CAPEX!F245*(1+$D$38) -> 0 | H52: =CAPEX!G245*(1+$D$38) -> 0 | I52: =CAPEX!H245*(1+$D$38) -> 15.10653 | J52: =CAPEX!I245*(1+$D$38) -> 0 | K52: =CAPEX!J245*(1+$D$38) -> 0 | L52: =CAPEX!K245*(1+$D$38) -> 0 | M52: =CAPEX!L245*(1+$D$38) -> 0 | N52: =CAPEX!M245*(1+$D$38) -> 40.35754 | O52: =CAPEX!N245*(1+$D$38) -> 0 | P52: =CAPEX!O245*(1+$D$38) -> 0 | Q52: =CAPEX!P245*(1+$D$38) -> 0 | R52: =CAPEX!Q245*(1+$D$38) -> 0 | S52: =CAPEX!R245*(1+$D$38) -> 15.10653 | T52: =CAPEX!S245*(1+$D$38) -> 0 | U52: =CAPEX!T245*(1+$D$38) -> 0 | V52: =CAPEX!U245*(1+$D$38) -> 0 | W52: =CAPEX!V245*(1+$D$38) -> 0 | X52: =CAPEX!W245*(1+$D$38) -> 40.35754 | Y52: =CAPEX!X245*(1+$D$38) -> 0 | Z52: =CAPEX!Y245*(1+$D$38) -> 0 | AA52: =CAPEX!Z245*(1+$D$38) -> 0 | AB52: =CAPEX!AA245*(1+$D$38) -> 0 | AC52: =CAPEX!AB245*(1+$D$38) -> 15.10653 | AD52: =CAPEX!AC245*(1+$D$38) -> 0 | AE52: =CAPEX!AD245*(1+$D$38) -> 0 | AF52: =CAPEX!AE245*(1+$D$38) -> 0 | AG52: =CAPEX!AF245*(1+$D$38) -> 0 | AM52: 166.39221
C53: Reembolso Do PMI | D53: =CAPEX!C254*(1+$D$38) -> 1000 | E53: =CAPEX!D254*(1+$D$38) -> 0 | F53: =CAPEX!E254*(1+$D$38) -> 0 | G53: =CAPEX!F254*(1+$D$38) -> 0 | H53: =CAPEX!G254*(1+$D$38) -> 0 | I53: =CAPEX!H254*(1+$D$38) -> 0 | J53: =CAPEX!I254*(1+$D$38) -> 0 | K53: =CAPEX!J254*(1+$D$38) -> 0 | L53: =CAPEX!K254*(1+$D$38) -> 0 | M53: =CAPEX!L254*(1+$D$38) -> 0 | N53: =CAPEX!M254*(1+$D$38) -> 0 | O53: =CAPEX!N254*(1+$D$38) -> 0 | P53: =CAPEX!O254*(1+$D$38) -> 0 | Q53: =CAPEX!P254*(1+$D$38) -> 0 | R53: =CAPEX!Q254*(1+$D$38) -> 0 | S53: =CAPEX!R254*(1+$D$38) -> 0 | T53: =CAPEX!S254*(1+$D$38) -> 0 | U53: =CAPEX!T254*(1+$D$38) -> 0 | V53: =CAPEX!U254*(1+$D$38) -> 0 | W53: =CAPEX!V254*(1+$D$38) -> 0 | X53: =CAPEX!W254*(1+$D$38) -> 0 | Y53: =CAPEX!X254*(1+$D$38) -> 0 | Z53: =CAPEX!Y254*(1+$D$38) -> 0 | AA53: =CAPEX!Z254*(1+$D$38) -> 0 | AB53: =CAPEX!AA254*(1+$D$38) -> 0 | AC53: =CAPEX!AB254*(1+$D$38) -> 0 | AD53: =CAPEX!AC254*(1+$D$38) -> 0 | AE53: =CAPEX!AD254*(1+$D$38) -> 0 | AF53: =CAPEX!AE254*(1+$D$38) -> 0 | AG53: =CAPEX!AF254*(1+$D$38) -> 0 | AM53: 1000
C55: Investimentos divisíveis e indivisíveis
C56: CAPEX de Investimento | D56: #
C57: Coleta Manual E Conteinerizada Rsc | D57: Divisivel | F57: Divisivel
C58: Coleta De Materiais Recicláveis | D58: Divisivel | F58: Indivisível
C59: Coleta De Resíduos Do Serviço De Saúde Municipal | D59: Divisivel
C60: Transporte E Destinação Final - Resíduos Pevs | D60: Divisivel
C61: Coleta Programada De Volumosos | D61: Divisivel
C62: Varrição Manual | D62: Indivisível
C63: Serviços Gerais | D63: Indivisível
C64: Investimentos Destinação Final | D64: Divisivel
C65: Educação Ambiental | D65: Indivisível
C66: Relação Com O Usuário | D66: Indivisível
C67: Administração Local | D67: Indivisível
C68: Reembolso Do PMI | D68: Indivisível
C72: Contraprestação Pública Mensal
C74: Contraprestação 2024 | D74: 3723 | E74: BRL R$
C76: Contraprestação transitória | D76: 4997 | E76: BRL R$
C78: Desconto | D78: 0 | E78: % | F78: =Ops!F2 -> 0.1109370053
F79: =DFs!G2 -> 3.285987481
C80: Parcela A - Remuneração Investimentos | D80: 0.5 | E80: %
C81: Parcela B - Remuneração Serviços | D81: 0.5 | E81: %
C83: Fator de Desempenho | D83: 1 | E83: Fator
D85: =YEAR(Model_Start) -> 2024 | E85: =D85+1 -> 2025 | F85: =E85+1 -> 2026 | G85: 2027 | H85: 2028
C86: % de recebimento contraprestação - faseado | D86: =(CP+D76)/CP -> 2.342197153 | E86: 1 | F86: =E86 -> 1 | G86: =F86 -> 1 | H86: 1
C90: Receitas tarifárias
C92: Tarifa
C93: Aumento Real | D93: 0.6004109779 | E93: %
C95: Frequência Semanal | D95: Imóveis Residenciais | E95: Imóveis Não Residenciais
C96: 1 | D96: 0.918852 | E96: 1.127682 | F96: Valor básico referencial
C97: 2 | D97: 1.837704 | E97: 2.673024 | F97: Valor básico referencial
C98: 3 | D98: 2.57557 | E98: 3.96777 | F98: Valor básico referencial
C99: 4 | D99: 3.160294 | E99: 4.719558 | F99: Valor básico referencial
C100: 5 | D100: 3.494422 | E100: 5.346048 | F100: Valor básico referencial
C101: 6 | D101: 4.274054 | E101: 6.111758 | F101: Valor básico referencial
E102: Tarifa base
E103: Tarifa base
E104: Tarifa base
E105: Tarifa base
E106: Tarifa base
E107: Tarifa base
C111: Receitas acessórias
C113: =C74 -> Contraprestação 2024 | D113: =D74 -> 3723 | E113: =E74 -> BRL R$
C114: % de Receitas Acessórias | D114: 0 | E114: %
C115: Receitas acessórias esperadas | D115: =D113*D114 -> 0
C118: Crescimento Populacional
C120: PROJEÇÃO POPULACIONAL | D120: 2023 | E120: =YEAR(Model_Start) -> 2024 | F120: =E120+1 -> 2025 | G120: =F120+1 -> 2026 | H120: =G120+1 -> 2027 | I120: =H120+1 -> 2028 | J120: =I120+1 -> 2029 | K120: =J120+1 -> 2030 | L120: =K120+1 -> 2031 | M120: =L120+1 -> 2032 | N120: =M120+1 -> 2033 | O120: =N120+1 -> 2034 | P120: =O120+1 -> 2035 | Q120: =P120+1 -> 2036 | R120: =Q120+1 -> 2037 | S120: =R120+1 -> 2038 | T120: =S120+1 -> 2039 | U120: =T120+1 -> 2040 | V120: =U120+1 -> 2041 | W120: =V120+1 -> 2042 | X120: =W120+1 -> 2043 | Y120: =X120+1 -> 2044 | Z120: =Y120+1 -> 2045 | AA120: =Z120+1 -> 2046 | AB120: =AA120+1 -> 2047 | AC120: =AB120+1 -> 2048 | AD120: =AC120+1 -> 2049 | AE120: =AD120+1 -> 2050 | AF120: =AE120+1 -> 2051 | AG120: =AF120+1 -> 2052 | AH120: =AG120+1 -> 2053
C121: Ano Concessão | D121: ANO 0 | E121: ANO 1 | F121: ANO 2 | G121: ANO 3 | H121: ANO 4 | I121: ANO 5 | J121: ANO 6 | K121: ANO 7 | L121: ANO 8 | M121: ANO 9 | N121: ANO 10 | O121: ANO 11 | P121: ANO 12 | Q121: ANO 13 | R121: ANO 14 | S121: ANO 15 | T121: ANO 16 | U121: ANO 17 | V121: ANO 18 | W121: ANO 19 | X121: ANO 20 | Y121: ANO 21 | Z121: ANO 22 | AA121: ANO 23 | AB121: ANO 24 | AC121: ANO 25 | AD121: ANO 26 | AE121: ANO 27 | AF121: ANO 28 | AG121: ANO 29 | AH121: ANO 30
C122: População Total | D122: 30456 | E122: 30769 | F122: 31085 | G122: 31405 | H122: 31728 | I122: 32054 | J122: 32383 | K122: 32716 | L122: 33052 | M122: 33392 | N122: 33735 | O122: 34082 | P122: 34432 | Q122: 34786 | R122: 35143 | S122: 35504 | T122: 35869 | U122: 36238 | V122: 36610 | W122: 36986 | X122: 37366 | Y122: 37750 | Z122: 38138 | AA122: 38530 | AB122: 38926 | AC122: 39326 | AD122: 39730 | AE122: 40139 | AF122: 40551 | AG122: 40968 | AH122: 41389
C123: Crescimento % | D123: 0 | E123: =(E122/D122)-1 -> 0.01027712109 | F123: =(F122/E122)-1 -> 0.01027007703 | G123: 0.01029435419 | H123: 0.01028498647 | I123: 0.01027483611 | J123: 0.01026392962 | K123: 0.01028317327 | L123: 0.01027020418 | M123: 0.01028682077 | N123: 0.01027192142 | O123: 0.01028605306 | P123: 0.01026935039 | Q123: 0.01028113383 | R123: 0.01026274938 | S123: 0.01027231597 | T123: 0.01028053177 | U123: 0.01028743483 | V123: 0.01026546719 | W123: 0.01027041792 | X123: 0.01027415779 | Y123: 0.01027672215 | Z123: 0.0102781457 | AA123: 0.01027846243 | AB123: 0.01027770568 | AC123: 0.01027590813 | AD123: 0.01027310176 | AE123: 0.01029448779 | AF123: 0.01026433145 | AG123: 0.0102833469 | AH123: 0.01027631322
C127: Deduções da Receita
C129: Imposto s/ serviço - (ISS) | D129: 0.03 | E129: %
C130: Programa Integração Social - (PIS) | D130: 0.0165 | E130: %
C131: Contribuição para Financiamento de Seguridade Social - (COFINS) | D131: 0.076 | E131: %
C133: Crédito de PIS / Cofins a ser utilizado sobre CAPEX e OPEX | D133: 1 | E133: %
C135: Ano | D135: 2 | E135: =D135+1 -> 3 | F135: =E135+1 -> 4 | G135: 5 | H135: 6 | I135: 7 | J135: 8 | K135: =J135+1 -> 9 | L135: =K135+1 -> 10 | M135: =L135+1 -> 11 | N135: =M135+1 -> 12
C136: Inadimplência das Receitas Tarifárias | D136: 0.05 | E136: 0.04 | F136: 0.03 | G136: =F136 -> 0.03 | H136: =G136 -> 0.03 | I136: 0.03 | J136: 0.03 | K136: 0.03 | L136: 0.03 | M136: 0.03 | N136: 0.03
C140: Custos e Despesas Operacionais (OPEX)
C142: Custos e Despesas
C144: Valor do contrato de PPP | D144: =Summary!E66 -> 33226.92958
C145: Gerenciamento do Contrato | D145: 0.001
C147: Sensibilidade OPEX | D147: =OPEX_Sens -> 0 | E147: %
C150: Custos e Despesas | D150: =YEAR(Model_Start) -> 2024 | E150: =D150+1 -> 2025 | F150: =E150+1 -> 2026 | G150: =F150+1 -> 2027 | H150: =G150+1 -> 2028 | I150: =H150+1 -> 2029 | J150: =I150+1 -> 2030 | K150: =J150+1 -> 2031 | L150: =K150+1 -> 2032 | M150: =L150+1 -> 2033 | N150: =M150+1 -> 2034 | O150: =N150+1 -> 2035 | P150: =O150+1 -> 2036 | Q150: =P150+1 -> 2037 | R150: =Q150+1 -> 2038 | S150: =R150+1 -> 2039 | T150: =S150+1 -> 2040 | U150: =T150+1 -> 2041 | V150: =U150+1 -> 2042 | W150: =V150+1 -> 2043 | X150: =W150+1 -> 2044 | Y150: =X150+1 -> 2045 | Z150: =Y150+1 -> 2046 | AA150: =Z150+1 -> 2047 | AB150: =AA150+1 -> 2048 | AC150: =AB150+1 -> 2049 | AD150: =AC150+1 -> 2050 | AE150: =AD150+1 -> 2051 | AF150: =AE150+1 -> 2052 | AG150: =AF150+1 -> 2053
C151: Coleta Manual E Conteinerizada Resíduos Comuns | D151: =OPEX!C15*(1+$D$147) -> 2663.145805 | E151: =OPEX!D15*(1+$D$147) -> 2817.393805 | F151: =OPEX!E15*(1+$D$147) -> 2971.641805 | G151: =OPEX!F15*(1+$D$147) -> 3125.889805 | H151: =OPEX!G15*(1+$D$147) -> 3125.889805 | I151: =OPEX!H15*(1+$D$147) -> 3125.889805 | J151: =OPEX!I15*(1+$D$147) -> 3125.889805 | K151: =OPEX!J15*(1+$D$147) -> 3125.889805 | L151: =OPEX!K15*(1+$D$147) -> 3125.889805 | M151: =OPEX!L15*(1+$D$147) -> 3125.889805 | N151: =OPEX!M15*(1+$D$147) -> 3125.889805 | O151: =OPEX!N15*(1+$D$147) -> 3125.889805 | P151: =OPEX!O15*(1+$D$147) -> 3125.889805 | Q151: =OPEX!P15*(1+$D$147) -> 3125.889805 | R151: =OPEX!Q15*(1+$D$147) -> 3125.889805 | S151: =OPEX!R15*(1+$D$147) -> 3125.889805 | T151: =OPEX!S15*(1+$D$147) -> 3125.889805 | U151: =OPEX!T15*(1+$D$147) -> 3125.889805 | V151: =OPEX!U15*(1+$D$147) -> 3125.889805 | W151: =OPEX!V15*(1+$D$147) -> 3125.889805 | X151: =OPEX!W15*(1+$D$147) -> 3125.889805 | Y151: =OPEX!X15*(1+$D$147) -> 3125.889805 | Z151: =OPEX!Y15*(1+$D$147) -> 3125.889805 | AA151: =OPEX!Z15*(1+$D$147) -> 3125.889805 | AB151: =OPEX!AA15*(1+$D$147) -> 3291.73788 | AC151: =OPEX!AB15*(1+$D$147) -> 3291.73788 | AD151: =OPEX!AC15*(1+$D$147) -> 3291.73788 | AE151: =OPEX!AD15*(1+$D$147) -> 3291.73788 | AF151: =OPEX!AE15*(1+$D$147) -> 3291.73788 | AG151: =OPEX!AF15*(1+$D$147) -> 3291.73788
C152: Coleta Materias Recicláveis | D152: =OPEX!C304*(1+$D$147) -> 1743.964231 | E152: =OPEX!D304*(1+$D$147) -> 1898.212231 | F152: =OPEX!E304*(1+$D$147) -> 2052.460231 | G152: =OPEX!F304*(1+$D$147) -> 2206.708231 | H152: =OPEX!G304*(1+$D$147) -> 2206.708231 | I152: =OPEX!H304*(1+$D$147) -> 2206.708231 | J152: =OPEX!I304*(1+$D$147) -> 2206.708231 | K152: =OPEX!J304*(1+$D$147) -> 2206.708231 | L152: =OPEX!K304*(1+$D$147) -> 2206.708231 | M152: =OPEX!L304*(1+$D$147) -> 2206.708231 | N152: =OPEX!M304*(1+$D$147) -> 2206.708231 | O152: =OPEX!N304*(1+$D$147) -> 2206.708231 | P152: =OPEX!O304*(1+$D$147) -> 2206.708231 | Q152: =OPEX!P304*(1+$D$147) -> 2206.708231 | R152: =OPEX!Q304*(1+$D$147) -> 2206.708231 | S152: =OPEX!R304*(1+$D$147) -> 2206.708231 | T152: =OPEX!S304*(1+$D$147) -> 2206.708231 | U152: =OPEX!T304*(1+$D$147) -> 2206.708231 | V152: =OPEX!U304*(1+$D$147) -> 2206.708231 | W152: =OPEX!V304*(1+$D$147) -> 2206.708231 | X152: =OPEX!W304*(1+$D$147) -> 2206.708231 | Y152: =OPEX!X304*(1+$D$147) -> 2206.708231 | Z152: =OPEX!Y304*(1+$D$147) -> 2206.708231 | AA152: =OPEX!Z304*(1+$D$147) -> 2206.708231 | AB152: =OPEX!AA304*(1+$D$147) -> 2206.708231 | AC152: =OPEX!AB304*(1+$D$147) -> 2206.708231 | AD152: =OPEX!AC304*(1+$D$147) -> 2206.708231 | AE152: =OPEX!AD304*(1+$D$147) -> 2206.708231 | AF152: =OPEX!AE304*(1+$D$147) -> 2206.708231 | AG152: =OPEX!AF304*(1+$D$147) -> 2206.708231
C153: Coleta De Resíduos Do Serviço De Saúde Municipal | D153: =OPEX!C595 -> 208.7700166 | E153: =OPEX!D595 -> 210.9203477 | F153: =OPEX!E595 -> 213.0928273 | G153: =OPEX!F595 -> 215.2876834 | H153: =OPEX!G595 -> 217.5051466 | I153: =OPEX!H595 -> 219.7454496 | J153: =OPEX!I595 -> 222.0088277 | K153: =OPEX!J595 -> 224.2955186 | L153: =OPEX!K595 -> 226.6057625 | M153: =OPEX!L595 -> 228.9398018 | N153: =OPEX!M595 -> 231.2978818 | O153: =OPEX!N595 -> 233.68025 | P153: =OPEX!O595 -> 236.0871566 | Q153: =OPEX!P595 -> 238.5188543 | R153: =OPEX!Q595 -> 240.9755985 | S153: =OPEX!R595 -> 243.4576471 | T153: =OPEX!S595 -> 245.9652609 | U153: =OPEX!T595 -> 248.4987031 | V153: =OPEX!U595 -> 251.0582397 | W153: =OPEX!V595 -> 253.6441396 | X153: =OPEX!W595 -> 256.2566742 | Y153: =OPEX!X595 -> 258.896118 | Z153: =OPEX!Y595 -> 261.562748 | AA153: =OPEX!Z595 -> 264.2568443 | AB153: =OPEX!AA595 -> 266.9786898 | AC153: =OPEX!AB595 -> 269.7285703 | AD153: =OPEX!AC595 -> 272.5067746 | AE153: =OPEX!AD595 -> 275.3135943 | AF153: =OPEX!AE595 -> 278.1493244 | AG153: =OPEX!AF595 -> 281.0142624
C154: Transporte E Destinação - Resíduos Dos Pevs | D154: =OPEX!C606*(1+$D$147) -> 0 | E154: =OPEX!D606*(1+$D$147) -> 0 | F154: =OPEX!E606*(1+$D$147) -> 0 | G154: =OPEX!F606*(1+$D$147) -> 0 | H154: =OPEX!G606*(1+$D$147) -> 0 | I154: =OPEX!H606*(1+$D$147) -> 0 | J154: =OPEX!I606*(1+$D$147) -> 0 | K154: =OPEX!J606*(1+$D$147) -> 0 | L154: =OPEX!K606*(1+$D$147) -> 0 | M154: =OPEX!L606*(1+$D$147) -> 0 | N154: =OPEX!M606*(1+$D$147) -> 0 | O154: =OPEX!N606*(1+$D$147) -> 0 | P154: =OPEX!O606*(1+$D$147) -> 0 | Q154: =OPEX!P606*(1+$D$147) -> 0 | R154: =OPEX!Q606*(1+$D$147) -> 0 | S154: =OPEX!R606*(1+$D$147) -> 0 | T154: =OPEX!S606*(1+$D$147) -> 0 | U154: =OPEX!T606*(1+$D$147) -> 0 | V154: =OPEX!U606*(1+$D$147) -> 0 | W154: =OPEX!V606*(1+$D$147) -> 0 | X154: =OPEX!W606*(1+$D$147) -> 0 | Y154: =OPEX!X606*(1+$D$147) -> 0 | Z154: =OPEX!Y606*(1+$D$147) -> 0 | AA154: =OPEX!Z606*(1+$D$147) -> 0 | AB154: =OPEX!AA606*(1+$D$147) -> 0 | AC154: =OPEX!AB606*(1+$D$147) -> 0 | AD154: =OPEX!AC606*(1+$D$147) -> 0 | AE154: =OPEX!AD606*(1+$D$147) -> 0 | AF154: =OPEX!AE606*(1+$D$147) -> 0 | AG154: =OPEX!AF606*(1+$D$147) -> 0
C155: Coleta Programada De Volumosos | D155: =OPEX!C714*(1+$D$147) -> 252.0180978 | E155: =OPEX!D714*(1+$D$147) -> 252.0180978 | F155: =OPEX!E714*(1+$D$147) -> 252.0180978 | G155: =OPEX!F714*(1+$D$147) -> 252.0180978 | H155: =OPEX!G714*(1+$D$147) -> 252.0180978 | I155: =OPEX!H714*(1+$D$147) -> 252.0180978 | J155: =OPEX!I714*(1+$D$147) -> 252.0180978 | K155: =OPEX!J714*(1+$D$147) -> 252.0180978 | L155: =OPEX!K714*(1+$D$147) -> 252.0180978 | M155: =OPEX!L714*(1+$D$147) -> 252.0180978 | N155: =OPEX!M714*(1+$D$147) -> 252.0180978 | O155: =OPEX!N714*(1+$D$147) -> 252.0180978 | P155: =OPEX!O714*(1+$D$147) -> 252.0180978 | Q155: =OPEX!P714*(1+$D$147) -> 252.0180978 | R155: =OPEX!Q714*(1+$D$147) -> 252.0180978 | S155: =OPEX!R714*(1+$D$147) -> 252.0180978 | T155: =OPEX!S714*(1+$D$147) -> 252.0180978 | U155: =OPEX!T714*(1+$D$147) -> 252.0180978 | V155: =OPEX!U714*(1+$D$147) -> 252.0180978 | W155: =OPEX!V714*(1+$D$147) -> 252.0180978 | X155: =OPEX!W714*(1+$D$147) -> 252.0180978 | Y155: =OPEX!X714*(1+$D$147) -> 252.0180978 | Z155: =OPEX!Y714*(1+$D$147) -> 252.0180978 | AA155: =OPEX!Z714*(1+$D$147) -> 252.0180978 | AB155: =OPEX!AA714*(1+$D$147) -> 252.0180978 | AC155: =OPEX!AB714*(1+$D$147) -> 252.0180978 | AD155: =OPEX!AC714*(1+$D$147) -> 252.0180978 | AE155: =OPEX!AD714*(1+$D$147) -> 252.0180978 | AF155: =OPEX!AE714*(1+$D$147) -> 252.0180978 | AG155: =OPEX!AF714*(1+$D$147) -> 252.0180978
C156: Varrição Manual | D156: =OPEX!C877*(1+$D$147) -> 414.328999 | E156: =OPEX!D877*(1+$D$147) -> 462.9360187 | F156: =OPEX!E877*(1+$D$147) -> 462.9360187 | G156: =OPEX!F877*(1+$D$147) -> 462.9360187 | H156: =OPEX!G877*(1+$D$147) -> 462.9360187 | I156: =OPEX!H877*(1+$D$147) -> 462.9360187 | J156: =OPEX!I877*(1+$D$147) -> 462.9360187 | K156: =OPEX!J877*(1+$D$147) -> 462.9360187 | L156: =OPEX!K877*(1+$D$147) -> 462.9360187 | M156: =OPEX!L877*(1+$D$147) -> 462.9360187 | N156: =OPEX!M877*(1+$D$147) -> 462.9360187 | O156: =OPEX!N877*(1+$D$147) -> 462.9360187 | P156: =OPEX!O877*(1+$D$147) -> 462.9360187 | Q156: =OPEX!P877*(1+$D$147) -> 462.9360187 | R156: =OPEX!Q877*(1+$D$147) -> 462.9360187 | S156: =OPEX!R877*(1+$D$147) -> 462.9360187 | T156: =OPEX!S877*(1+$D$147) -> 462.9360187 | U156: =OPEX!T877*(1+$D$147) -> 462.9360187 | V156: =OPEX!U877*(1+$D$147) -> 511.5430384 | W156: =OPEX!V877*(1+$D$147) -> 511.5430384 | X156: =OPEX!W877*(1+$D$147) -> 511.5430384 | Y156: =OPEX!X877*(1+$D$147) -> 511.5430384 | Z156: =OPEX!Y877*(1+$D$147) -> 511.5430384 | AA156: =OPEX!Z877*(1+$D$147) -> 511.5430384 | AB156: =OPEX!AA877*(1+$D$147) -> 511.5430384 | AC156: =OPEX!AB877*(1+$D$147) -> 511.5430384 | AD156: =OPEX!AC877*(1+$D$147) -> 511.5430384 | AE156: =OPEX!AD877*(1+$D$147) -> 511.5430384 | AF156: =OPEX!AE877*(1+$D$147) -> 511.5430384 | AG156: =OPEX!AF877*(1+$D$147) -> 511.5430384
C157: Serviços Gerais (Tipos I E II) | D157: =OPEX!C1083*(1+$D$147) -> 2268.450477 | E157: =OPEX!D1083*(1+$D$147) -> 2268.450477 | F157: =OPEX!E1083*(1+$D$147) -> 2268.450477 | G157: =OPEX!F1083*(1+$D$147) -> 2268.450477 | H157: =OPEX!G1083*(1+$D$147) -> 2268.450477 | I157: =OPEX!H1083*(1+$D$147) -> 2268.450477 | J157: =OPEX!I1083*(1+$D$147) -> 2268.450477 | K157: =OPEX!J1083*(1+$D$147) -> 2268.450477 | L157: =OPEX!K1083*(1+$D$147) -> 2268.450477 | M157: =OPEX!L1083*(1+$D$147) -> 2268.450477 | N157: =OPEX!M1083*(1+$D$147) -> 2268.450477 | O157: =OPEX!N1083*(1+$D$147) -> 2268.450477 | P157: =OPEX!O1083*(1+$D$147) -> 2268.450477 | Q157: =OPEX!P1083*(1+$D$147) -> 2268.450477 | R157: =OPEX!Q1083*(1+$D$147) -> 2268.450477 | S157: =OPEX!R1083*(1+$D$147) -> 2268.450477 | T157: =OPEX!S1083*(1+$D$147) -> 2268.450477 | U157: =OPEX!T1083*(1+$D$147) -> 2268.450477 | V157: =OPEX!U1083*(1+$D$147) -> 2268.450477 | W157: =OPEX!V1083*(1+$D$147) -> 2268.450477 | X157: =OPEX!W1083*(1+$D$147) -> 2268.450477 | Y157: =OPEX!X1083*(1+$D$147) -> 2268.450477 | Z157: =OPEX!Y1083*(1+$D$147) -> 2268.450477 | AA157: =OPEX!Z1083*(1+$D$147) -> 2268.450477 | AB157: =OPEX!AA1083*(1+$D$147) -> 2268.450477 | AC157: =OPEX!AB1083*(1+$D$147) -> 2268.450477 | AD157: =OPEX!AC1083*(1+$D$147) -> 2268.450477 | AE157: =OPEX!AD1083*(1+$D$147) -> 2268.450477 | AF157: =OPEX!AE1083*(1+$D$147) -> 2268.450477 | AG157: =OPEX!AF1083*(1+$D$147) -> 2268.450477
C158: Destinação Final | D158: =OPEX!C1335*(1+$D$147) -> 1525.762869 | E158: =OPEX!D1335*(1+$D$147) -> 1561.539491 | F158: =OPEX!E1335*(1+$D$147) -> 1594.421036 | G158: =OPEX!F1335*(1+$D$147) -> 1627.81412 | H158: =OPEX!G1335*(1+$D$147) -> 1665.128074 | I158: =OPEX!H1335*(1+$D$147) -> 1699.563548 | J158: =OPEX!I1335*(1+$D$147) -> 1716.869205 | K158: =OPEX!J1335*(1+$D$147) -> 1734.350426 | L158: =OPEX!K1335*(1+$D$147) -> 1752.01425 | M158: =OPEX!L1335*(1+$D$147) -> 1769.856931 | N158: =OPEX!M1335*(1+$D$147) -> 1787.88554 | O158: =OPEX!N1335*(1+$D$147) -> 1806.096367 | P158: =OPEX!O1335*(1+$D$147) -> 1824.496517 | Q158: =OPEX!P1335*(1+$D$147) -> 1843.082314 | R158: =OPEX!Q1335*(1+$D$147) -> 2537.701213 | S158: =OPEX!R1335*(1+$D$147) -> 2700.176854 | T158: =OPEX!S1335*(1+$D$147) -> 2865.726894 | U158: =OPEX!T1335*(1+$D$147) -> 3034.391726 | V158: =OPEX!U1335*(1+$D$147) -> 3206.223164 | W158: =OPEX!V1335*(1+$D$147) -> 3381.268248 | X158: =OPEX!W1335*(1+$D$147) -> 3415.855062 | Y158: =OPEX!X1335*(1+$D$147) -> 3450.797603 | Z158: =OPEX!Y1335*(1+$D$147) -> 3486.099304 | AA158: =OPEX!Z1335*(1+$D$147) -> 3521.763634 | AB158: =OPEX!AA1335*(1+$D$147) -> 3557.794099 | AC158: =OPEX!AB1335*(1+$D$147) -> 3594.194238 | AD158: =OPEX!AC1335*(1+$D$147) -> 3630.973029 | AE158: =OPEX!AD1335*(1+$D$147) -> 3668.123286 | AF158: =OPEX!AE1335*(1+$D$147) -> 3705.659459 | AG158: =OPEX!AF1335*(1+$D$147) -> 3743.579837
C159: Educaçao Ambiental | D159: =OPEX!C1423*(1+$D$147) -> 209.6095832 | E159: =OPEX!D1423*(1+$D$147) -> 209.6095832 | F159: =OPEX!E1423*(1+$D$147) -> 209.6095832 | G159: =OPEX!F1423*(1+$D$147) -> 209.6095832 | H159: =OPEX!G1423*(1+$D$147) -> 209.6095832 | I159: =OPEX!H1423*(1+$D$147) -> 209.6095832 | J159: =OPEX!I1423*(1+$D$147) -> 209.6095832 | K159: =OPEX!J1423*(1+$D$147) -> 209.6095832 | L159: =OPEX!K1423*(1+$D$147) -> 209.6095832 | M159: =OPEX!L1423*(1+$D$147) -> 209.6095832 | N159: =OPEX!M1423*(1+$D$147) -> 209.6095832 | O159: =OPEX!N1423*(1+$D$147) -> 209.6095832 | P159: =OPEX!O1423*(1+$D$147) -> 209.6095832 | Q159: =OPEX!P1423*(1+$D$147) -> 209.6095832 | R159: =OPEX!Q1423*(1+$D$147) -> 209.6095832 | S159: =OPEX!R1423*(1+$D$147) -> 209.6095832 | T159: =OPEX!S1423*(1+$D$147) -> 209.6095832 | U159: =OPEX!T1423*(1+$D$147) -> 209.6095832 | V159: =OPEX!U1423*(1+$D$147) -> 209.6095832 | W159: =OPEX!V1423*(1+$D$147) -> 209.6095832 | X159: =OPEX!W1423*(1+$D$147) -> 209.6095832 | Y159: =OPEX!X1423*(1+$D$147) -> 209.6095832 | Z159: =OPEX!Y1423*(1+$D$147) -> 209.6095832 | AA159: =OPEX!Z1423*(1+$D$147) -> 209.6095832 | AB159: =OPEX!AA1423*(1+$D$147) -> 209.6095832 | AC159: =OPEX!AB1423*(1+$D$147) -> 209.6095832 | AD159: =OPEX!AC1423*(1+$D$147) -> 209.6095832 | AE159: =OPEX!AD1423*(1+$D$147) -> 209.6095832 | AF159: =OPEX!AE1423*(1+$D$147) -> 209.6095832 | AG159: =OPEX!AF1423*(1+$D$147) -> 209.6095832
C160: Relação Com O Usuário | D160: =OPEX!C1532*(1+$D$147) -> 0 | E160: =OPEX!D1532*(1+$D$147) -> 838.9305068 | F160: =OPEX!E1532*(1+$D$147) -> 840.806684 | G160: =OPEX!F1532*(1+$D$147) -> 843.194069 | H160: =OPEX!G1532*(1+$D$147) -> 845.5970577 | I160: =OPEX!H1532*(1+$D$147) -> 848.0312541 | J160: =OPEX!I1532*(1+$D$147) -> 850.4966581 | K160: =OPEX!J1532*(1+$D$147) -> 852.977666 | L160: =OPEX!K1532*(1+$D$147) -> 855.4898815 | M160: =OPEX!L1532*(1+$D$147) -> 858.0177008 | N160: =OPEX!M1532*(1+$D$147) -> 860.5767278 | O160: =OPEX!N1532*(1+$D$147) -> 863.1669624 | P160: =OPEX!O1532*(1+$D$147) -> 865.7728008 | Q160: =OPEX!P1532*(1+$D$147) -> 868.4098469 | R160: =OPEX!Q1532*(1+$D$147) -> 871.0781006 | S160: =OPEX!R1532*(1+$D$147) -> 873.777562 | T160: =OPEX!S1532*(1+$D$147) -> 876.508231 | U160: =OPEX!T1532*(1+$D$147) -> 879.2545039 | V160: =OPEX!U1532*(1+$D$147) -> 882.0319844 | W160: =OPEX!V1532*(1+$D$147) -> 884.8406725 | X160: =OPEX!W1532*(1+$D$147) -> 887.6805683 | Y160: =OPEX!X1532*(1+$D$147) -> 890.5360679 | Z160: =OPEX!Y1532*(1+$D$147) -> 893.438379 | AA160: =OPEX!Z1532*(1+$D$147) -> 896.3562938 | AB160: =OPEX!AA1532*(1+$D$147) -> 899.3210202 | AC160: =OPEX!AB1532*(1+$D$147) -> 902.3013504 | AD160: =OPEX!AC1532*(1+$D$147) -> 905.3128882 | AE160: =OPEX!AD1532*(1+$D$147) -> 908.3712375 | AF160: =OPEX!AE1532*(1+$D$147) -> 911.4451907 | AG160: =OPEX!AF1532*(1+$D$147) -> 914.5503514
C161: Administração Local | D161: =OPEX!C1788*(1+$D$147) -> 477.6424899 | E161: =OPEX!D1788*(1+$D$147) -> 478.0996899 | F161: =OPEX!E1788*(1+$D$147) -> 478.0996899 | G161: =OPEX!F1788*(1+$D$147) -> 478.0996899 | H161: =OPEX!G1788*(1+$D$147) -> 478.0996899 | I161: =OPEX!H1788*(1+$D$147) -> 478.0996899 | J161: =OPEX!I1788*(1+$D$147) -> 478.0996899 | K161: =OPEX!J1788*(1+$D$147) -> 478.0996899 | L161: =OPEX!K1788*(1+$D$147) -> 478.0996899 | M161: =OPEX!L1788*(1+$D$147) -> 478.0996899 | N161: =OPEX!M1788*(1+$D$147) -> 478.0996899 | O161: =OPEX!N1788*(1+$D$147) -> 478.0996899 | P161: =OPEX!O1788*(1+$D$147) -> 478.0996899 | Q161: =OPEX!P1788*(1+$D$147) -> 478.0996899 | R161: =OPEX!Q1788*(1+$D$147) -> 478.0996899 | S161: =OPEX!R1788*(1+$D$147) -> 478.0996899 | T161: =OPEX!S1788*(1+$D$147) -> 478.0996899 | U161: =OPEX!T1788*(1+$D$147) -> 478.0996899 | V161: =OPEX!U1788*(1+$D$147) -> 478.2520899 | W161: =OPEX!V1788*(1+$D$147) -> 478.2520899 | X161: =OPEX!W1788*(1+$D$147) -> 478.2520899 | Y161: =OPEX!X1788*(1+$D$147) -> 478.2520899 | Z161: =OPEX!Y1788*(1+$D$147) -> 478.2520899 | AA161: =OPEX!Z1788*(1+$D$147) -> 478.2520899 | AB161: =OPEX!AA1788*(1+$D$147) -> 478.7092899 | AC161: =OPEX!AB1788*(1+$D$147) -> 478.7092899 | AD161: =OPEX!AC1788*(1+$D$147) -> 478.7092899 | AE161: =OPEX!AD1788*(1+$D$147) -> 478.7092899 | AF161: =OPEX!AE1788*(1+$D$147) -> 478.7092899 | AG161: =OPEX!AF1788*(1+$D$147) -> 478.7092899
C162: Administração Central | D162: =OPEX!C1961 -> 0 | E162: =OPEX!D1961 -> 0 | F162: =OPEX!E1961 -> 0 | G162: =OPEX!F1961 -> 0 | H162: =OPEX!G1961 -> 0 | I162: =OPEX!H1961 -> 0 | J162: =OPEX!I1961 -> 0 | K162: =OPEX!J1961 -> 0 | L162: =OPEX!K1961 -> 0 | M162: =OPEX!L1961 -> 0 | N162: =OPEX!M1961 -> 0 | O162: =OPEX!N1961 -> 0 | P162: =OPEX!O1961 -> 0 | Q162: =OPEX!P1961 -> 0 | R162: =OPEX!Q1961 -> 0 | S162: =OPEX!R1961 -> 0 | T162: =OPEX!S1961 -> 0 | U162: =OPEX!T1961 -> 0 | V162: =OPEX!U1961 -> 0 | W162: =OPEX!V1961 -> 0 | X162: =OPEX!W1961 -> 0 | Y162: =OPEX!X1961 -> 0 | Z162: =OPEX!Y1961 -> 0 | AA162: =OPEX!Z1961 -> 0 | AB162: =OPEX!AA1961 -> 0 | AC162: =OPEX!AB1961 -> 0 | AD162: =OPEX!AC1961 -> 0 | AE162: =OPEX!AD1961 -> 0 | AF162: =OPEX!AE1961 -> 0 | AG162: =OPEX!AF1961 -> 0
C163: Gerencialmento Contrato | D163: =$D$144*$D$145 -> 33.22692958 | E163: 33.22692958 | F163: 33.22692958 | G163: 33.22692958 | H163: 33.22692958 | I163: 33.22692958 | J163: 33.22692958 | K163: 33.22692958 | L163: 33.22692958 | M163: 33.22692958 | N163: 33.22692958 | O163: 33.22692958 | P163: 33.22692958 | Q163: 33.22692958 | R163: 33.22692958 | S163: 33.22692958 | T163: 33.22692958 | U163: 33.22692958 | V163: 33.22692958 | W163: 33.22692958 | X163: 33.22692958 | Y163: 33.22692958 | Z163: 33.22692958 | AA163: 33.22692958 | AB163: 33.22692958 | AC163: 33.22692958 | AD163: 33.22692958 | AE163: 33.22692958 | AF163: 33.22692958 | AG163: 33.22692958
C166: Taxa ARIS
C168: Taxas pagas mensalmente pelo prestador de serviço | G168: *PROTOCOLO DE INTENÇÕES ARIS: Art. 88. No caso da prestadora de serviços executar duas ou mais atividades objeto das taxas de regulação e fiscalização, serão devidas as respectivas taxas cumulativamente, conforme cada atividade desempenhada pela prestadora de serviços regulada pela ARIS.
C170: Varrição e Limpeza de Vias Públicas
C171: TRVL=NHxR$0,0200
C172: TRVL - Taxa de Regulação de Varrição e Limpeza de Vias Públicas
C173: NH - Número de habitantes no município
C174: R$ 0,0200 - valor apurado para o custo da regulação dos serviços de varrição e limpeza de vias públicas por habitante
C176: Coleta de Resíduos Sólidos
C177: TRCR=NHxR$0,0300, onde
C178: TRCR - Taxa de Regulação de Coleta de Resíduos Sólidos
C179: NH - Número de habitantes no município
C180: R$ 0,0300 - valor apurado para o custo da regulação dos serviços de coleta de resíduos sólidos por habitante
C182: Transbordo e Transporte de Resíduos Sólidos
C183: TRTR=NHxR$0,0100, onde
C184: TRTR - Taxa de Regulação de Transbordo e Transporte de Resíduos Sólidos
C185: NH - Número de habitantes no município
C186: R$ 0,0100 - valor apurado para o custo da regulação dos serviços de transbordo e transporte de resíduos sólidos por habitante.
C188: Tratamento e Destinação Final de Resíduos Sólidos
C189: TRDR=NHxR$0,0300, onde
C190: TRDR - Taxa de Regulação de Tratamento e Destinação Final de Resíduos Sólidos
C191: NH - Número de habitantes no município
C192: R$ 0,0300 - valor apurado para o custo da regulação dos serviços de tratamento e destinação final de resíduos sólidos por habitante
C194: PROJEÇÃO POPULACIONAL | D194: =YEAR(Model_Start) -> 2024 | E194: =D194+1 -> 2025 | F194: =E194+1 -> 2026 | G194: =F194+1 -> 2027 | H194: =G194+1 -> 2028 | I194: =H194+1 -> 2029 | J194: =I194+1 -> 2030 | K194: =J194+1 -> 2031 | L194: =K194+1 -> 2032 | M194: =L194+1 -> 2033 | N194: =M194+1 -> 2034 | O194: =N194+1 -> 2035 | P194: =O194+1 -> 2036 | Q194: =P194+1 -> 2037 | R194: =Q194+1 -> 2038 | S194: =R194+1 -> 2039 | T194: =S194+1 -> 2040 | U194: =T194+1 -> 2041 | V194: =U194+1 -> 2042 | W194: =V194+1 -> 2043 | X194: =W194+1 -> 2044 | Y194: =X194+1 -> 2045 | Z194: =Y194+1 -> 2046 | AA194: =Z194+1 -> 2047 | AB194: =AA194+1 -> 2048 | AC194: =AB194+1 -> 2049 | AD194: =AC194+1 -> 2050 | AE194: =AD194+1 -> 2051 | AF194: =AE194+1 -> 2052 | AG194: =AF194+1 -> 2053
C195: Ano Concessão | D195: ANO 1 | E195: ANO 2 | F195: ANO 3 | G195: ANO 4 | H195: ANO 5 | I195: ANO 6 | J195: ANO 7 | K195: ANO 8 | L195: ANO 9 | M195: ANO 10 | N195: ANO 11 | O195: ANO 12 | P195: ANO 13 | Q195: ANO 14 | R195: ANO 15 | S195: ANO 16 | T195: ANO 17 | U195: ANO 18 | V195: ANO 19 | W195: ANO 20 | X195: ANO 21 | Y195: ANO 22 | Z195: ANO 23 | AA195: ANO 24 | AB195: ANO 25 | AC195: ANO 26 | AD195: ANO 27 | AE195: ANO 28 | AF195: ANO 29 | AG195: ANO 30
C196: População Total | D196: 30876.66024 | E196: 31318.46958 | F196: 31759.41662 | G196: 32201.312 | H196: 32645.35258 | I196: 33092.38186 | J196: 33543.02575 | K196: 33997.76891 | L196: 34457.00049 | M196: 34921.04289 | N196: 35390.17054 | O196: 35864.62262 | P196: 36344.61197 | Q196: 36830.33135 | R196: 37321.95816 | S196: 37819.65779 | T196: 38323.5863 | U196: 38833.89237 | V196: 39350.7189 | W196: 39874.2042 | X196: 40404.48302 | Y196: 40941.68733 | Z196: 41485.94696 | AA196: 42037.39014 | AB196: 42596.14396 | AC196: 43162.33472 | AD196: 43736.08825 | AE196: 44317.53021 | AF196: 44906.78627 | AG196: 45503.98236
C200: Seguro - Multiriscos (Cobertura de 2,5 milhões)
C201: Despesas com seguros | D201: Valor
C202: Valor total de cobertura | D202: =2500 -> 2500
C203: % para pagamento da apólice anual | D203: 0.001
C204: Despesas com seguros multiriscos | D204: =(D202*D203) -> 2.5
C208: Despesas com Seguros e Garantias da PPP
C210: Seguro - Responsabilidade Civil (5 milhões até o 3º ano)
C211: Valor total de cobertura | D211: 5000
C213: Seguro Garantia Execução | D213: 0.0055
C214: Valor seguro garantia | D214: =D211*D213 -> 27.5
D216: =YEAR(Model_Start) -> 2024 | E216: =D216+1 -> 2025 | F216: =E216+1 -> 2026 | G216: =F216+1 -> 2027
C217: Alocação seguro garantia de execução | D217: 1 | E217: 1 | F217: 1 | G217: 0
C218: Valor seguro garantia de execução | D218: =D217*$D$214 -> 27.5 | E218: =E217*$D$214 -> 27.5 | F218: =F217*$D$214 -> 27.5 | G218: =G217*$D$214 -> 0
C221: Seguro - Garantia de Execução (5% do valor do contrato)
C222: Valor contrato PPP | D222: =Summary!E66*5% -> 1661.346479
C224: Seguro Garantia Execução | D224: 0.0075
C225: Valor seguro garantia | D225: =D222*D224 -> 12.46009859
D227: Parcela PPP
C228: Alocação seguro garantia operacional de execução | D228: 1
C229: Valor seguro garantia operacional de execução | D229: =D225/D228 -> 12.46009859
C232: Seguro - Engenharia (0,35% do valor do Capex)
C234: Total Capex | D234: 2024 | E234: 2025 | F234: 2026 | G234: 2027 | H234: 2028 | I234: 2029 | J234: 2030 | K234: 2031 | L234: 2032 | M234: 2033 | N234: 2034 | O234: 2035 | P234: 2036 | Q234: 2037 | R234: 2038 | S234: 2039 | T234: 2040 | U234: 2041 | V234: 2042 | W234: 2043 | X234: 2044 | Y234: 2045 | Z234: 2046 | AA234: 2047 | AB234: 2048 | AC234: 2049 | AD234: 2050 | AE234: 2051 | AF234: 2052 | AG234: 2053
C235: =C49 -> Investimentos Destinação Final | D235: 66.633105 | E235: 22.689205 | F235: 2147.607442 | G235: 3.208205 | H235: 25.89741 | I235: 0 | J235: 3.208205 | K235: 6.41641 | L235: 0 | M235: 3.208205 | N235: 10.31261 | O235: 3.8962 | P235: 3.208205 | Q235: 6.41641 | R235: 3.8962 | S235: 3.208205 | T235: 6.41641 | U235: 0 | V235: 3.208205 | W235: 6.41641 | X235: 3.8962 | Y235: 7.104405 | Z235: 6.41641 | AA235: 0 | AB235: 7.104405 | AC235: 6.41641 | AD235: 0 | AE235: 3.208205 | AF235: 6.41641 | AG235: 0
C236: 0.0035 | D236: =$C$236*D235 -> 0.2332158675 | E236: 0.0794122175 | F236: 7.516626048 | G236: 0.0112287175 | H236: 0.090640935 | I236: 0 | J236: 0.0112287175 | K236: 0.022457435 | L236: 0 | M236: 0.0112287175 | N236: 0.036094135 | O236: 0.0136367 | P236: 0.0112287175 | Q236: 0.022457435 | R236: 0.0136367 | S236: 0.0112287175 | T236: 0.022457435 | U236: 0 | V236: 0.0112287175 | W236: 0.022457435 | X236: 0.0136367 | Y236: 0.0248654175 | Z236: 0.022457435 | AA236: 0 | AB236: 0.0248654175 | AC236: 0.022457435 | AD236: 0 | AE236: 0.0112287175 | AF236: 0.022457435 | AG236: 0
C239: Funding
C241: Alavancagem Indivisíveis | E241: 0.6 | F241: % | G241: =1-E241 -> 0.4
C243: Desembolsos Indivisíveis | E243: 5 | F243: Anos
C244: Desembolsos máximo | E244: 6 | F244: Anos
C246: Debt Upfront | E246: 0.005 | F246: %
C250: Imobilizado (fins fiscais)
C252: Classe de imobilizado
C253: Estudos
C254: Veículos
C255: Equipamentos
C256: Adicionais
C258: Grupo macro
C259: Indivisível
C260: Divisivel
C262: Taxa de depreciação | D262: Taxa de depreciação | E262: Valor residual
C263: Estudos | D263: =1/10 -> 0.1 | E263: 0
C264: Veículos | D264: =1/5 -> 0.2 | E264: 0.3
C265: Equipamentos | D265: =1/25 -> 0.04 | E265: 0
C266: Adicionais | D266: =1/10 -> 0.1 | E266: 0
C269: Capital de Giro
C271: Dias | E271: Dias
C272: Contas a receber | D272: Dias | E272: 30
C273: Estoques | D273: Dias | E273: 30
C274: Contas a pagar | D274: Dias | E274: 45
C275: Obrigações sociais e trabalhistas | D275: Dias | E275: 45
C277: Imposto
C278: IR e CSLL
C279: Aliquota IRPJ | D279: % | E279: 0.15
C280: Adicional IR | D280: % | E280: 0.1
C281: Base IR | D281: $ R$ | E281: 240000
C282: Alíquota CSLL | D282: % | E282: 0.09
C283: Uso benefício fiscal | D283: % | E283: 0.3
C285: Dívida
C287: Dívida Senior
C288: Taxa de juros
C289: Base | D289: CDI | F289: CDI
C290: Indexador | D290: None | H290: Cronograma de desembolsos
H291: ANO 1 | I291: ANO 2 | J291: ANO 3 | K291: ANO 4 | L291: ANO 5 | M291: ANO 6 | N291: ANO 7 | O291: ANO 8 | P291: ANO 9 | Q291: ANO 10 | R291: ANO 11 | S291: ANO 12 | T291: ANO 13 | U291: ANO 14 | V291: ANO 15 | W291: ANO 16 | X291: ANO 17 | Y291: ANO 18 | Z291: ANO 19 | AA291: ANO 20 | AB291: ANO 21 | AC291: ANO 22 | AD291: ANO 23 | AE291: ANO 24 | AF291: ANO 25 | AG291: ANO 26 | AH291: ANO 27 | AI291: ANO 28 | AJ291: ANO 29 | AK291: ANO 30
C292: Spread dívida 1º Ciclo | D292: 0.025 | G292: 1º Ciclo | H292: =CAPEX!C263 -> 0.3886342353 | I292: =CAPEX!D263 -> 0.01059445098 | J292: =CAPEX!E263 -> 0.0927977467 | K292: =CAPEX!F263 -> 0.0008726745303 | L292: =CAPEX!G263 -> 0.001119022614 | M292: =CAPEX!H263 -> 0.002940710908 | N292: =CAPEX!I263 -> 0.001718334925 | O292: =CAPEX!J263 -> 0.23097452 | P292: =CAPEX!K263 -> 0 | Q292: =CAPEX!L263 -> 0.0008726745303 | R292: =CAPEX!M263 -> 0.03513348497 | S292: =CAPEX!N263 -> 0.002326595991 | T292: =CAPEX!O263 -> 0.0008726745303 | U292: =CAPEX!P263 -> 0.000277251968 | V292: =CAPEX!Q263 -> 0.2308656221 | W292: =CAPEX!R263 -> 0 | X292: =CAPEX!S263 -> 0 | Y292: =CAPEX!T263 -> 0 | Z292: =CAPEX!U263 -> 0 | AA292: =CAPEX!V263 -> 0 | AB292: =CAPEX!W263 -> 0 | AC292: =CAPEX!X263 -> 0 | AD292: =CAPEX!Y263 -> 0 | AE292: =CAPEX!Z263 -> 0 | AF292: =CAPEX!AA263 -> 0 | AG292: =CAPEX!AB263 -> 0 | AH292: =CAPEX!AC263 -> 0 | AI292: =CAPEX!AD263 -> 0 | AJ292: =CAPEX!AE263 -> 0 | AK292: =CAPEX!AF263 -> 0
... 45 more rows

Sheet Ops
A1: OPERAÇÕES | D1: Alerta | E1: Erro | F1: IRR | G1: NPV | H1: Macro
D2: =CHECKS!$F$9 -> 0 | E2: =CHECKS!$F$15 -> 0 | F2: =Project_IRR -> 0.1109370053 | G2: =Project_NPV -> 3.285987481 | H2: =Master_Check -> 0
C4: =Flags!C4 -> Começo período | G4: =Flags!G4 -> 2024-01-01 | H4: =Flags!H4 -> 2025-01-01 | I4: =Flags!I4 -> 2026-01-01 | J4: =Flags!J4 -> 2027-01-01 | K4: =Flags!K4 -> 2028-01-01 | L4: =Flags!L4 -> 2029-01-01 | M4: =Flags!M4 -> 2030-01-01 | N4: =Flags!N4 -> 2031-01-01 | O4: =Flags!O4 -> 2032-01-01 | P4: =Flags!P4 -> 2033-01-01 | Q4: =Flags!Q4 -> 2034-01-01 | R4: =Flags!R4 -> 2035-01-01 | S4: =Flags!S4 -> 2036-01-01 | T4: =Flags!T4 -> 2037-01-01 | U4: =Flags!U4 -> 2038-01-01 | V4: =Flags!V4 -> 2039-01-01 | W4: =Flags!W4 -> 2040-01-01 | X4: =Flags!X4 -> 2041-01-01 | Y4: =Flags!Y4 -> 2042-01-01 | Z4: =Flags!Z4 -> 2043-01-01 | AA4: =Flags!AA4 -> 2044-01-01 | AB4: =Flags!AB4 -> 2045-01-01 | AC4: =Flags!AC4 -> 2046-01-01 | AD4: =Flags!AD4 -> 2047-01-01 | AE4: =Flags!AE4 -> 2048-01-01 | AF4: =Flags!AF4 -> 2049-01-01 | AG4: =Flags!AG4 -> 2050-01-01 | AH4: =Flags!AH4 -> 2051-01-01 | AI4: =Flags!AI4 -> 2052-01-01 | AJ4: =Flags!AJ4 -> 2053-01-01 | AK4: =Flags!AK4 -> 2054-01-01 | AL4: =Flags!AL4 -> 2055-01-01 | AM4: =Flags!AM4 -> 2056-01-01 | AN4: =Flags!AN4 -> 2057-01-01
C5: =Flags!C5 -> Fim período | G5: =Flags!G5 -> 2024-12-31 | H5: =Flags!H5 -> 2025-12-31 | I5: =Flags!I5 -> 2026-12-31 | J5: =Flags!J5 -> 2027-12-31 | K5: =Flags!K5 -> 2028-12-31 | L5: =Flags!L5 -> 2029-12-31 | M5: =Flags!M5 -> 2030-12-31 | N5: =Flags!N5 -> 2031-12-31 | O5: =Flags!O5 -> 2032-12-31 | P5: =Flags!P5 -> 2033-12-31 | Q5: =Flags!Q5 -> 2034-12-31 | R5: =Flags!R5 -> 2035-12-31 | S5: =Flags!S5 -> 2036-12-31 | T5: =Flags!T5 -> 2037-12-31 | U5: =Flags!U5 -> 2038-12-31 | V5: =Flags!V5 -> 2039-12-31 | W5: =Flags!W5 -> 2040-12-31 | X5: =Flags!X5 -> 2041-12-31 | Y5: =Flags!Y5 -> 2042-12-31 | Z5: =Flags!Z5 -> 2043-12-31 | AA5: =Flags!AA5 -> 2044-12-31 | AB5: =Flags!AB5 -> 2045-12-31 | AC5: =Flags!AC5 -> 2046-12-31 | AD5: =Flags!AD5 -> 2047-12-31 | AE5: =Flags!AE5 -> 2048-12-31 | AF5: =Flags!AF5 -> 2049-12-31 | AG5: =Flags!AG5 -> 2050-12-31 | AH5: =Flags!AH5 -> 2051-12-31 | AI5: =Flags!AI5 -> 2052-12-31 | AJ5: =Flags!AJ5 -> 2053-12-31 | AK5: =Flags!AK5 -> 2054-12-31 | AL5: =Flags!AL5 -> 2055-12-31 | AM5: =Flags!AM5 -> 2056-12-31 | AN5: =Flags!AN5 -> 2057-12-31
C6: Ano | G6: =YEAR(G5) -> 2024 | H6: 2025 | I6: 2026 | J6: 2027 | K6: 2028 | L6: 2029 | M6: 2030 | N6: 2031 | O6: 2032 | P6: 2033 | Q6: 2034 | R6: 2035 | S6: 2036 | T6: 2037 | U6: 2038 | V6: 2039 | W6: 2040 | X6: 2041 | Y6: 2042 | Z6: 2043 | AA6: 2044 | AB6: 2045 | AC6: 2046 | AD6: 2047 | AE6: 2048 | AF6: 2049 | AG6: 2050 | AH6: 2051 | AI6: 2052 | AJ6: 2053 | AK6: 2054 | AL6: 2055 | AM6: =YEAR(AM5) -> 2056 | AN6: 2057
C7: Ano de Concessão | G7: =Flags!G15 -> 1 | H7: =Flags!H15 -> 2 | I7: =Flags!I15 -> 3 | J7: =Flags!J15 -> 4 | K7: =Flags!K15 -> 5 | L7: =Flags!L15 -> 6 | M7: =Flags!M15 -> 7 | N7: =Flags!N15 -> 8 | O7: =Flags!O15 -> 9 | P7: =Flags!P15 -> 10 | Q7: =Flags!Q15 -> 11 | R7: =Flags!R15 -> 12 | S7: =Flags!S15 -> 13 | T7: =Flags!T15 -> 14 | U7: =Flags!U15 -> 15 | V7: =Flags!V15 -> 16 | W7: =Flags!W15 -> 17 | X7: =Flags!X15 -> 18 | Y7: =Flags!Y15 -> 19 | Z7: =Flags!Z15 -> 20 | AA7: =Flags!AA15 -> 21 | AB7: =Flags!AB15 -> 22 | AC7: =Flags!AC15 -> 23 | AD7: =Flags!AD15 -> 24 | AE7: =Flags!AE15 -> 25 | AF7: =Flags!AF15 -> 26 | AG7: =Flags!AG15 -> 27 | AH7: =Flags!AH15 -> 28 | AI7: =Flags!AI15 -> 29 | AJ7: =Flags!AJ15 -> 30 | AK7: =Flags!AK15 -> 31 | AL7: =Flags!AL15 -> 32 | AM7: =Flags!AM15 -> 33 | AN7: =Flags!AN15 -> 34
C8: =Flags!C6 -> Timeline | G8: =Flags!G90 -> Ops | H8: =Flags!H90 -> Ops | I8: =Flags!I90 -> Ops | J8: =Flags!J90 -> Ops | K8: =Flags!K90 -> Ops | L8: =Flags!L90 -> Ops | M8: =Flags!M90 -> Ops | N8: =Flags!N90 -> Ops | O8: =Flags!O90 -> Ops | P8: =Flags!P90 -> Ops | Q8: =Flags!Q90 -> Ops | R8: =Flags!R90 -> Ops | S8: =Flags!S90 -> Ops | T8: =Flags!T90 -> Ops | U8: =Flags!U90 -> Ops | V8: =Flags!V90 -> Ops | W8: =Flags!W90 -> Ops | X8: =Flags!X90 -> Ops | Y8: =Flags!Y90 -> Ops | Z8: =Flags!Z90 -> Ops | AA8: =Flags!AA90 -> Ops | AB8: =Flags!AB90 -> Ops | AC8: =Flags!AC90 -> Ops | AD8: =Flags!AD90 -> Ops | AE8: =Flags!AE90 -> Ops | AF8: =Flags!AF90 -> Ops | AG8: =Flags!AG90 -> Ops | AH8: =Flags!AH90 -> Ops | AI8: =Flags!AI90 -> Ops | AJ8: =Flags!AJ90 -> Ops | AK8: =Flags!AK90 -> Post Ops. | AL8: =Flags!AL90 -> Post Ops. | AM8: =Flags!AM90 -> Post Ops. | AN8: =Flags!AN90 -> Post Ops.
D10: =Flags!D8 -> Inputs | E10: =Flags!E8 -> Units | F10: =Flags!F8 -> Total
C12: Correção Monetária
C14: Ano de Operação | E14: Ano | G14: =YEAR(G$5) -> 2024 | H14: 2025 | I14: 2026 | J14: 2027 | K14: 2028 | L14: 2029 | M14: 2030 | N14: 2031 | O14: 2032 | P14: 2033 | Q14: 2034 | R14: 2035 | S14: 2036 | T14: 2037 | U14: 2038 | V14: 2039 | W14: 2040 | X14: 2041 | Y14: 2042 | Z14: 2043 | AA14: 2044 | AB14: 2045 | AC14: 2046 | AD14: 2047 | AE14: 2048 | AF14: 2049 | AG14: 2050 | AH14: 2051 | AI14: 2052 | AJ14: 2053 | AK14: 2054 | AL14: 2055 | AM14: =YEAR(AM$5) -> 2056 | AN14: 2057
C15: Dias no período | E15: Dias | G15: =Flags!H$26 -> 365 | H15: =Flags!I$26 -> 365 | I15: =Flags!J$26 -> 365 | J15: =Flags!K$26 -> 366 | K15: =Flags!L$26 -> 365 | L15: =Flags!M$26 -> 365 | M15: =Flags!N$26 -> 365 | N15: =Flags!O$26 -> 366 | O15: =Flags!P$26 -> 365 | P15: =Flags!Q$26 -> 365 | Q15: =Flags!R$26 -> 365 | R15: =Flags!S$26 -> 366 | S15: =Flags!T$26 -> 365 | T15: =Flags!U$26 -> 365 | U15: =Flags!V$26 -> 365 | V15: =Flags!W$26 -> 366 | W15: =Flags!X$26 -> 365 | X15: =Flags!Y$26 -> 365 | Y15: =Flags!Z$26 -> 365 | Z15: =Flags!AA$26 -> 366 | AA15: =Flags!AB$26 -> 365 | AB15: =Flags!AC$26 -> 365 | AC15: =Flags!AD$26 -> 365 | AD15: =Flags!AE$26 -> 366 | AE15: =Flags!AF$26 -> 365 | AF15: =Flags!AG$26 -> 365 | AG15: =Flags!AH$26 -> 365 | AH15: =Flags!AI$26 -> 366 | AI15: =Flags!AJ$26 -> 365 | AJ15: =Flags!AK$26 -> 365 | AK15: =Flags!AL$26 -> 365 | AL15: =Flags!AM$26 -> 366 | AM15: =Flags!AN$26 -> 365 | AN15: =Flags!AO$26 -> 0
C16: Dias no ano | E16: Dias | G16: =SUMIF($G$14:$AN$14,G14,$G$15:$AN$15) -> 365 | H16: 365 | I16: 365 | J16: 366 | K16: 365 | L16: 365 | M16: 365 | N16: 366 | O16: 365 | P16: 365 | Q16: 365 | R16: 366 | S16: 365 | T16: 365 | U16: 365 | V16: 366 | W16: 365 | X16: 365 | Y16: 365 | Z16: 366 | AA16: 365 | AB16: 365 | AC16: 365 | AD16: 366 | AE16: 365 | AF16: 365 | AG16: 365 | AH16: 366 | AI16: 365 | AJ16: 365 | AK16: 365 | AL16: 366 | AM16: 365 | AN16: 0
C18: Correção
C19: % p.a
C20: =Inputs!C341 -> None | E20: % p.a | G20: =LOOKUP(G$14,Inputs!$G$340:$K$340,Inputs!$G341:$K341) -> 0 | H20: =LOOKUP(H$14,Inputs!$G$340:$K$340,Inputs!$G341:$K341) -> 0 | I20: =LOOKUP(I$14,Inputs!$G$340:$K$340,Inputs!$G341:$K341) -> 0 | J20: =LOOKUP(J$14,Inputs!$G$340:$K$340,Inputs!$G341:$K341) -> 0 | K20: =LOOKUP(K$14,Inputs!$G$340:$K$340,Inputs!$G341:$K341) -> 0 | L20: =LOOKUP(L$14,Inputs!$G$340:$K$340,Inputs!$G341:$K341) -> 0 | M20: =LOOKUP(M$14,Inputs!$G$340:$K$340,Inputs!$G341:$K341) -> 0 | N20: =LOOKUP(N$14,Inputs!$G$340:$K$340,Inputs!$G341:$K341) -> 0 | O20: =LOOKUP(O$14,Inputs!$G$340:$K$340,Inputs!$G341:$K341) -> 0 | P20: =LOOKUP(P$14,Inputs!$G$340:$K$340,Inputs!$G341:$K341) -> 0 | Q20: =LOOKUP(Q$14,Inputs!$G$340:$K$340,Inputs!$G341:$K341) -> 0 | R20: =LOOKUP(R$14,Inputs!$G$340:$K$340,Inputs!$G341:$K341) -> 0 | S20: =LOOKUP(S$14,Inputs!$G$340:$K$340,Inputs!$G341:$K341) -> 0 | T20: =LOOKUP(T$14,Inputs!$G$340:$K$340,Inputs!$G341:$K341) -> 0 | U20: =LOOKUP(U$14,Inputs!$G$340:$K$340,Inputs!$G341:$K341) -> 0 | V20: =LOOKUP(V$14,Inputs!$G$340:$K$340,Inputs!$G341:$K341) -> 0 | W20: =LOOKUP(W$14,Inputs!$G$340:$K$340,Inputs!$G341:$K341) -> 0 | X20: =LOOKUP(X$14,Inputs!$G$340:$K$340,Inputs!$G341:$K341) -> 0 | Y20: =LOOKUP(Y$14,Inputs!$G$340:$K$340,Inputs!$G341:$K341) -> 0 | Z20: =LOOKUP(Z$14,Inputs!$G$340:$K$340,Inputs!$G341:$K341) -> 0 | AA20: =LOOKUP(AA$14,Inputs!$G$340:$K$340,Inputs!$G341:$K341) -> 0 | AB20: =LOOKUP(AB$14,Inputs!$G$340:$K$340,Inputs!$G341:$K341) -> 0 | AC20: =LOOKUP(AC$14,Inputs!$G$340:$K$340,Inputs!$G341:$K341) -> 0 | AD20: =LOOKUP(AD$14,Inputs!$G$340:$K$340,Inputs!$G341:$K341) -> 0 | AE20: =LOOKUP(AE$14,Inputs!$G$340:$K$340,Inputs!$G341:$K341) -> 0 | AF20: =LOOKUP(AF$14,Inputs!$G$340:$K$340,Inputs!$G341:$K341) -> 0 | AG20: =LOOKUP(AG$14,Inputs!$G$340:$K$340,Inputs!$G341:$K341) -> 0 | AH20: =LOOKUP(AH$14,Inputs!$G$340:$K$340,Inputs!$G341:$K341) -> 0 | AI20: =LOOKUP(AI$14,Inputs!$G$340:$K$340,Inputs!$G341:$K341) -> 0 | AJ20: =LOOKUP(AJ$14,Inputs!$G$340:$K$340,Inputs!$G341:$K341) -> 0 | AK20: =LOOKUP(AK$14,Inputs!$G$340:$K$340,Inputs!$G341:$K341) -> 0 | AL20: =LOOKUP(AL$14,Inputs!$G$340:$K$340,Inputs!$G341:$K341) -> 0 | AM20: =LOOKUP(AM$14,Inputs!$G$340:$K$340,Inputs!$G341:$K341) -> 0 | AN20: =LOOKUP(AN$14,Inputs!$G$340:$K$340,Inputs!$G341:$K341) -> 0
C21: =Inputs!C342 -> IPG-M | E21: % p.a | G21: =LOOKUP(G$14,Inputs!$G$340:$K$340,Inputs!$G342:$K342) -> 0.041 | H21: =LOOKUP(H$14,Inputs!$G$340:$K$340,Inputs!$G342:$K342) -> 0.04 | I21: =LOOKUP(I$14,Inputs!$G$340:$K$340,Inputs!$G342:$K342) -> 0.04 | J21: =LOOKUP(J$14,Inputs!$G$340:$K$340,Inputs!$G342:$K342) -> 0.04 | K21: =LOOKUP(K$14,Inputs!$G$340:$K$340,Inputs!$G342:$K342) -> 0.04 | L21: =LOOKUP(L$14,Inputs!$G$340:$K$340,Inputs!$G342:$K342) -> 0.04 | M21: =LOOKUP(M$14,Inputs!$G$340:$K$340,Inputs!$G342:$K342) -> 0.04 | N21: =LOOKUP(N$14,Inputs!$G$340:$K$340,Inputs!$G342:$K342) -> 0.04 | O21: =LOOKUP(O$14,Inputs!$G$340:$K$340,Inputs!$G342:$K342) -> 0.04 | P21: =LOOKUP(P$14,Inputs!$G$340:$K$340,Inputs!$G342:$K342) -> 0.04 | Q21: =LOOKUP(Q$14,Inputs!$G$340:$K$340,Inputs!$G342:$K342) -> 0.04 | R21: =LOOKUP(R$14,Inputs!$G$340:$K$340,Inputs!$G342:$K342) -> 0.04 | S21: =LOOKUP(S$14,Inputs!$G$340:$K$340,Inputs!$G342:$K342) -> 0.04 | T21: =LOOKUP(T$14,Inputs!$G$340:$K$340,Inputs!$G342:$K342) -> 0.04 | U21: =LOOKUP(U$14,Inputs!$G$340:$K$340,Inputs!$G342:$K342) -> 0.04 | V21: =LOOKUP(V$14,Inputs!$G$340:$K$340,Inputs!$G342:$K342) -> 0.04 | W21: =LOOKUP(W$14,Inputs!$G$340:$K$340,Inputs!$G342:$K342) -> 0.04 | X21: =LOOKUP(X$14,Inputs!$G$340:$K$340,Inputs!$G342:$K342) -> 0.04 | Y21: =LOOKUP(Y$14,Inputs!$G$340:$K$340,Inputs!$G342:$K342) -> 0.04 | Z21: =LOOKUP(Z$14,Inputs!$G$340:$K$340,Inputs!$G342:$K342) -> 0.04 | AA21: =LOOKUP(AA$14,Inputs!$G$340:$K$340,Inputs!$G342:$K342) -> 0.04 | AB21: =LOOKUP(AB$14,Inputs!$G$340:$K$340,Inputs!$G342:$K342) -> 0.04 | AC21: =LOOKUP(AC$14,Inputs!$G$340:$K$340,Inputs!$G342:$K342) -> 0.04 | AD21: =LOOKUP(AD$14,Inputs!$G$340:$K$340,Inputs!$G342:$K342) -> 0.04 | AE21: =LOOKUP(AE$14,Inputs!$G$340:$K$340,Inputs!$G342:$K342) -> 0.04 | AF21: =LOOKUP(AF$14,Inputs!$G$340:$K$340,Inputs!$G342:$K342) -> 0.04 | AG21: =LOOKUP(AG$14,Inputs!$G$340:$K$340,Inputs!$G342:$K342) -> 0.04 | AH21: =LOOKUP(AH$14,Inputs!$G$340:$K$340,Inputs!$G342:$K342) -> 0.04 | AI21: =LOOKUP(AI$14,Inputs!$G$340:$K$340,Inputs!$G342:$K342) -> 0.04 | AJ21: =LOOKUP(AJ$14,Inputs!$G$340:$K$340,Inputs!$G342:$K342) -> 0.04 | AK21: =LOOKUP(AK$14,Inputs!$G$340:$K$340,Inputs!$G342:$K342) -> 0.04 | AL21: =LOOKUP(AL$14,Inputs!$G$340:$K$340,Inputs!$G342:$K342) -> 0.04 | AM21: =LOOKUP(AM$14,Inputs!$G$340:$K$340,Inputs!$G342:$K342) -> 0.04 | AN21: =LOOKUP(AN$14,Inputs!$G$340:$K$340,Inputs!$G342:$K342) -> 0.04
C22: =Inputs!C343 -> PIB | E22: % p.a | G22: =LOOKUP(G$14,Inputs!$G$340:$K$340,Inputs!$G343:$K343) -> 0.0128 | H22: =LOOKUP(H$14,Inputs!$G$340:$K$340,Inputs!$G343:$K343) -> 0.017 | I22: =LOOKUP(I$14,Inputs!$G$340:$K$340,Inputs!$G343:$K343) -> 0.019 | J22: =LOOKUP(J$14,Inputs!$G$340:$K$340,Inputs!$G343:$K343) -> 0.019 | K22: =LOOKUP(K$14,Inputs!$G$340:$K$340,Inputs!$G343:$K343) -> 0.019 | L22: =LOOKUP(L$14,Inputs!$G$340:$K$340,Inputs!$G343:$K343) -> 0.019 | M22: =LOOKUP(M$14,Inputs!$G$340:$K$340,Inputs!$G343:$K343) -> 0.019 | N22: =LOOKUP(N$14,Inputs!$G$340:$K$340,Inputs!$G343:$K343) -> 0.019 | O22: =LOOKUP(O$14,Inputs!$G$340:$K$340,Inputs!$G343:$K343) -> 0.019 | P22: =LOOKUP(P$14,Inputs!$G$340:$K$340,Inputs!$G343:$K343) -> 0.019 | Q22: =LOOKUP(Q$14,Inputs!$G$340:$K$340,Inputs!$G343:$K343) -> 0.019 | R22: =LOOKUP(R$14,Inputs!$G$340:$K$340,Inputs!$G343:$K343) -> 0.019 | S22: =LOOKUP(S$14,Inputs!$G$340:$K$340,Inputs!$G343:$K343) -> 0.019 | T22: =LOOKUP(T$14,Inputs!$G$340:$K$340,Inputs!$G343:$K343) -> 0.019 | U22: =LOOKUP(U$14,Inputs!$G$340:$K$340,Inputs!$G343:$K343) -> 0.019 | V22: =LOOKUP(V$14,Inputs!$G$340:$K$340,Inputs!$G343:$K343) -> 0.019 | W22: =LOOKUP(W$14,Inputs!$G$340:$K$340,Inputs!$G343:$K343) -> 0.019 | X22: =LOOKUP(X$14,Inputs!$G$340:$K$340,Inputs!$G343:$K343) -> 0.019 | Y22: =LOOKUP(Y$14,Inputs!$G$340:$K$340,Inputs!$G343:$K343) -> 0.019 | Z22: =LOOKUP(Z$14,Inputs!$G$340:$K$340,Inputs!$G343:$K343) -> 0.019 | AA22: =LOOKUP(AA$14,Inputs!$G$340:$K$340,Inputs!$G343:$K343) -> 0.019 | AB22: =LOOKUP(AB$14,Inputs!$G$340:$K$340,Inputs!$G343:$K343) -> 0.019 | AC22: =LOOKUP(AC$14,Inputs!$G$340:$K$340,Inputs!$G343:$K343) -> 0.019 | AD22: =LOOKUP(AD$14,Inputs!$G$340:$K$340,Inputs!$G343:$K343) -> 0.019 | AE22: =LOOKUP(AE$14,Inputs!$G$340:$K$340,Inputs!$G343:$K343) -> 0.019 | AF22: =LOOKUP(AF$14,Inputs!$G$340:$K$340,Inputs!$G343:$K343) -> 0.019 | AG22: =LOOKUP(AG$14,Inputs!$G$340:$K$340,Inputs!$G343:$K343) -> 0.019 | AH22: =LOOKUP(AH$14,Inputs!$G$340:$K$340,Inputs!$G343:$K343) -> 0.019 | AI22: =LOOKUP(AI$14,Inputs!$G$340:$K$340,Inputs!$G343:$K343) -> 0.019 | AJ22: =LOOKUP(AJ$14,Inputs!$G$340:$K$340,Inputs!$G343:$K343) -> 0.019 | AK22: =LOOKUP(AK$14,Inputs!$G$340:$K$340,Inputs!$G343:$K343) -> 0.019 | AL22: =LOOKUP(AL$14,Inputs!$G$340:$K$340,Inputs!$G343:$K343) -> 0.019 | AM22: =LOOKUP(AM$14,Inputs!$G$340:$K$340,Inputs!$G343:$K343) -> 0.019 | AN22: =LOOKUP(AN$14,Inputs!$G$340:$K$340,Inputs!$G343:$K343) -> 0.019
C23: =Inputs!C344 -> PIB Serviços | E23: % p.a | G23: =LOOKUP(G$14,Inputs!$G$340:$K$340,Inputs!$G344:$K344) -> 0.0169 | H23: =LOOKUP(H$14,Inputs!$G$340:$K$340,Inputs!$G344:$K344) -> 0.0169 | I23: =LOOKUP(I$14,Inputs!$G$340:$K$340,Inputs!$G344:$K344) -> 0.0169 | J23: =LOOKUP(J$14,Inputs!$G$340:$K$340,Inputs!$G344:$K344) -> 0.0169 | K23: =LOOKUP(K$14,Inputs!$G$340:$K$340,Inputs!$G344:$K344) -> 0.0169 | L23: =LOOKUP(L$14,Inputs!$G$340:$K$340,Inputs!$G344:$K344) -> 0.0169 | M23: =LOOKUP(M$14,Inputs!$G$340:$K$340,Inputs!$G344:$K344) -> 0.0169 | N23: =LOOKUP(N$14,Inputs!$G$340:$K$340,Inputs!$G344:$K344) -> 0.0169 | O23: =LOOKUP(O$14,Inputs!$G$340:$K$340,Inputs!$G344:$K344) -> 0.0169 | P23: =LOOKUP(P$14,Inputs!$G$340:$K$340,Inputs!$G344:$K344) -> 0.0169 | Q23: =LOOKUP(Q$14,Inputs!$G$340:$K$340,Inputs!$G344:$K344) -> 0.0169 | R23: =LOOKUP(R$14,Inputs!$G$340:$K$340,Inputs!$G344:$K344) -> 0.0169 | S23: =LOOKUP(S$14,Inputs!$G$340:$K$340,Inputs!$G344:$K344) -> 0.0169 | T23: =LOOKUP(T$14,Inputs!$G$340:$K$340,Inputs!$G344:$K344) -> 0.0169 | U23: =LOOKUP(U$14,Inputs!$G$340:$K$340,Inputs!$G344:$K344) -> 0.0169 | V23: =LOOKUP(V$14,Inputs!$G$340:$K$340,Inputs!$G344:$K344) -> 0.0169 | W23: =LOOKUP(W$14,Inputs!$G$340:$K$340,Inputs!$G344:$K344) -> 0.0169 | X23: =LOOKUP(X$14,Inputs!$G$340:$K$340,Inputs!$G344:$K344) -> 0.0169 | Y23: =LOOKUP(Y$14,Inputs!$G$340:$K$340,Inputs!$G344:$K344) -> 0.0169 | Z23: =LOOKUP(Z$14,Inputs!$G$340:$K$340,Inputs!$G344:$K344) -> 0.0169 | AA23: =LOOKUP(AA$14,Inputs!$G$340:$K$340,Inputs!$G344:$K344) -> 0.0169 | AB23: =LOOKUP(AB$14,Inputs!$G$340:$K$340,Inputs!$G344:$K344) -> 0.0169 | AC23: =LOOKUP(AC$14,Inputs!$G$340:$K$340,Inputs!$G344:$K344) -> 0.0169 | AD23: =LOOKUP(AD$14,Inputs!$G$340:$K$340,Inputs!$G344:$K344) -> 0.0169 | AE23: =LOOKUP(AE$14,Inputs!$G$340:$K$340,Inputs!$G344:$K344) -> 0.0169 | AF23: =LOOKUP(AF$14,Inputs!$G$340:$K$340,Inputs!$G344:$K344) -> 0.0169 | AG23: =LOOKUP(AG$14,Inputs!$G$340:$K$340,Inputs!$G344:$K344) -> 0.0169 | AH23: =LOOKUP(AH$14,Inputs!$G$340:$K$340,Inputs!$G344:$K344) -> 0.0169 | AI23: =LOOKUP(AI$14,Inputs!$G$340:$K$340,Inputs!$G344:$K344) -> 0.0169 | AJ23: =LOOKUP(AJ$14,Inputs!$G$340:$K$340,Inputs!$G344:$K344) -> 0.0169 | AK23: =LOOKUP(AK$14,Inputs!$G$340:$K$340,Inputs!$G344:$K344) -> 0.0169 | AL23: =LOOKUP(AL$14,Inputs!$G$340:$K$340,Inputs!$G344:$K344) -> 0.0169 | AM23: =LOOKUP(AM$14,Inputs!$G$340:$K$340,Inputs!$G344:$K344) -> 0.0169 | AN23: =LOOKUP(AN$14,Inputs!$G$340:$K$340,Inputs!$G344:$K344) -> 0.0169
C24: =Inputs!C345 -> CPI US | E24: % p.a | G24: =LOOKUP(G$14,Inputs!$G$340:$K$340,Inputs!$G345:$K345) -> 0.004 | H24: =LOOKUP(H$14,Inputs!$G$340:$K$340,Inputs!$G345:$K345) -> 0.004 | I24: =LOOKUP(I$14,Inputs!$G$340:$K$340,Inputs!$G345:$K345) -> 0.004 | J24: =LOOKUP(J$14,Inputs!$G$340:$K$340,Inputs!$G345:$K345) -> 0.004 | K24: =LOOKUP(K$14,Inputs!$G$340:$K$340,Inputs!$G345:$K345) -> 0.004 | L24: =LOOKUP(L$14,Inputs!$G$340:$K$340,Inputs!$G345:$K345) -> 0.004 | M24: =LOOKUP(M$14,Inputs!$G$340:$K$340,Inputs!$G345:$K345) -> 0.004 | N24: =LOOKUP(N$14,Inputs!$G$340:$K$340,Inputs!$G345:$K345) -> 0.004 | O24: =LOOKUP(O$14,Inputs!$G$340:$K$340,Inputs!$G345:$K345) -> 0.004 | P24: =LOOKUP(P$14,Inputs!$G$340:$K$340,Inputs!$G345:$K345) -> 0.004 | Q24: =LOOKUP(Q$14,Inputs!$G$340:$K$340,Inputs!$G345:$K345) -> 0.004 | R24: =LOOKUP(R$14,Inputs!$G$340:$K$340,Inputs!$G345:$K345) -> 0.004 | S24: =LOOKUP(S$14,Inputs!$G$340:$K$340,Inputs!$G345:$K345) -> 0.004 | T24: =LOOKUP(T$14,Inputs!$G$340:$K$340,Inputs!$G345:$K345) -> 0.004 | U24: =LOOKUP(U$14,Inputs!$G$340:$K$340,Inputs!$G345:$K345) -> 0.004 | V24: =LOOKUP(V$14,Inputs!$G$340:$K$340,Inputs!$G345:$K345) -> 0.004 | W24: =LOOKUP(W$14,Inputs!$G$340:$K$340,Inputs!$G345:$K345) -> 0.004 | X24: =LOOKUP(X$14,Inputs!$G$340:$K$340,Inputs!$G345:$K345) -> 0.004 | Y24: =LOOKUP(Y$14,Inputs!$G$340:$K$340,Inputs!$G345:$K345) -> 0.004 | Z24: =LOOKUP(Z$14,Inputs!$G$340:$K$340,Inputs!$G345:$K345) -> 0.004 | AA24: =LOOKUP(AA$14,Inputs!$G$340:$K$340,Inputs!$G345:$K345) -> 0.004 | AB24: =LOOKUP(AB$14,Inputs!$G$340:$K$340,Inputs!$G345:$K345) -> 0.004 | AC24: =LOOKUP(AC$14,Inputs!$G$340:$K$340,Inputs!$G345:$K345) -> 0.004 | AD24: =LOOKUP(AD$14,Inputs!$G$340:$K$340,Inputs!$G345:$K345) -> 0.004 | AE24: =LOOKUP(AE$14,Inputs!$G$340:$K$340,Inputs!$G345:$K345) -> 0.004 | AF24: =LOOKUP(AF$14,Inputs!$G$340:$K$340,Inputs!$G345:$K345) -> 0.004 | AG24: =LOOKUP(AG$14,Inputs!$G$340:$K$340,Inputs!$G345:$K345) -> 0.004 | AH24: =LOOKUP(AH$14,Inputs!$G$340:$K$340,Inputs!$G345:$K345) -> 0.004 | AI24: =LOOKUP(AI$14,Inputs!$G$340:$K$340,Inputs!$G345:$K345) -> 0.004 | AJ24: =LOOKUP(AJ$14,Inputs!$G$340:$K$340,Inputs!$G345:$K345) -> 0.004 | AK24: =LOOKUP(AK$14,Inputs!$G$340:$K$340,Inputs!$G345:$K345) -> 0.004 | AL24: =LOOKUP(AL$14,Inputs!$G$340:$K$340,Inputs!$G345:$K345) -> 0.004 | AM24: =LOOKUP(AM$14,Inputs!$G$340:$K$340,Inputs!$G345:$K345) -> 0.004 | AN24: =LOOKUP(AN$14,Inputs!$G$340:$K$340,Inputs!$G345:$K345) -> 0.004
C25: =Inputs!C346 -> SELIC | E25: % p.a | G25: =LOOKUP(G$14,Inputs!$G$340:$K$340,Inputs!$G346:$K346) -> 0.1 | H25: =LOOKUP(H$14,Inputs!$G$340:$K$340,Inputs!$G346:$K346) -> 0.09 | I25: =LOOKUP(I$14,Inputs!$G$340:$K$340,Inputs!$G346:$K346) -> 0.09 | J25: =LOOKUP(J$14,Inputs!$G$340:$K$340,Inputs!$G346:$K346) -> 0.09 | K25: =LOOKUP(K$14,Inputs!$G$340:$K$340,Inputs!$G346:$K346) -> 0.09 | L25: =LOOKUP(L$14,Inputs!$G$340:$K$340,Inputs!$G346:$K346) -> 0.09 | M25: =LOOKUP(M$14,Inputs!$G$340:$K$340,Inputs!$G346:$K346) -> 0.09 | N25: =LOOKUP(N$14,Inputs!$G$340:$K$340,Inputs!$G346:$K346) -> 0.09 | O25: =LOOKUP(O$14,Inputs!$G$340:$K$340,Inputs!$G346:$K346) -> 0.09 | P25: =LOOKUP(P$14,Inputs!$G$340:$K$340,Inputs!$G346:$K346) -> 0.09 | Q25: =LOOKUP(Q$14,Inputs!$G$340:$K$340,Inputs!$G346:$K346) -> 0.09 | R25: =LOOKUP(R$14,Inputs!$G$340:$K$340,Inputs!$G346:$K346) -> 0.09 | S25: =LOOKUP(S$14,Inputs!$G$340:$K$340,Inputs!$G346:$K346) -> 0.09 | T25: =LOOKUP(T$14,Inputs!$G$340:$K$340,Inputs!$G346:$K346) -> 0.09 | U25: =LOOKUP(U$14,Inputs!$G$340:$K$340,Inputs!$G346:$K346) -> 0.09 | V25: =LOOKUP(V$14,Inputs!$G$340:$K$340,Inputs!$G346:$K346) -> 0.09 | W25: =LOOKUP(W$14,Inputs!$G$340:$K$340,Inputs!$G346:$K346) -> 0.09 | X25: =LOOKUP(X$14,Inputs!$G$340:$K$340,Inputs!$G346:$K346) -> 0.09 | Y25: =LOOKUP(Y$14,Inputs!$G$340:$K$340,Inputs!$G346:$K346) -> 0.09 | Z25: =LOOKUP(Z$14,Inputs!$G$340:$K$340,Inputs!$G346:$K346) -> 0.09 | AA25: =LOOKUP(AA$14,Inputs!$G$340:$K$340,Inputs!$G346:$K346) -> 0.09 | AB25: =LOOKUP(AB$14,Inputs!$G$340:$K$340,Inputs!$G346:$K346) -> 0.09 | AC25: =LOOKUP(AC$14,Inputs!$G$340:$K$340,Inputs!$G346:$K346) -> 0.09 | AD25: =LOOKUP(AD$14,Inputs!$G$340:$K$340,Inputs!$G346:$K346) -> 0.09 | AE25: =LOOKUP(AE$14,Inputs!$G$340:$K$340,Inputs!$G346:$K346) -> 0.09 | AF25: =LOOKUP(AF$14,Inputs!$G$340:$K$340,Inputs!$G346:$K346) -> 0.09 | AG25: =LOOKUP(AG$14,Inputs!$G$340:$K$340,Inputs!$G346:$K346) -> 0.09 | AH25: =LOOKUP(AH$14,Inputs!$G$340:$K$340,Inputs!$G346:$K346) -> 0.09 | AI25: =LOOKUP(AI$14,Inputs!$G$340:$K$340,Inputs!$G346:$K346) -> 0.09 | AJ25: =LOOKUP(AJ$14,Inputs!$G$340:$K$340,Inputs!$G346:$K346) -> 0.09 | AK25: =LOOKUP(AK$14,Inputs!$G$340:$K$340,Inputs!$G346:$K346) -> 0.09 | AL25: =LOOKUP(AL$14,Inputs!$G$340:$K$340,Inputs!$G346:$K346) -> 0.09 | AM25: =LOOKUP(AM$14,Inputs!$G$340:$K$340,Inputs!$G346:$K346) -> 0.09 | AN25: =LOOKUP(AN$14,Inputs!$G$340:$K$340,Inputs!$G346:$K346) -> 0.09
C26: =Inputs!C347 -> CDI | E26: % p.a | G26: =LOOKUP(G$14,Inputs!$G$340:$K$340,Inputs!$G347:$K347) -> 0.099 | H26: =LOOKUP(H$14,Inputs!$G$340:$K$340,Inputs!$G347:$K347) -> 0.094 | I26: =LOOKUP(I$14,Inputs!$G$340:$K$340,Inputs!$G347:$K347) -> 0.094 | J26: =LOOKUP(J$14,Inputs!$G$340:$K$340,Inputs!$G347:$K347) -> 0.094 | K26: =LOOKUP(K$14,Inputs!$G$340:$K$340,Inputs!$G347:$K347) -> 0.094 | L26: =LOOKUP(L$14,Inputs!$G$340:$K$340,Inputs!$G347:$K347) -> 0.094 | M26: =LOOKUP(M$14,Inputs!$G$340:$K$340,Inputs!$G347:$K347) -> 0.094 | N26: =LOOKUP(N$14,Inputs!$G$340:$K$340,Inputs!$G347:$K347) -> 0.094 | O26: =LOOKUP(O$14,Inputs!$G$340:$K$340,Inputs!$G347:$K347) -> 0.094 | P26: =LOOKUP(P$14,Inputs!$G$340:$K$340,Inputs!$G347:$K347) -> 0.094 | Q26: =LOOKUP(Q$14,Inputs!$G$340:$K$340,Inputs!$G347:$K347) -> 0.094 | R26: =LOOKUP(R$14,Inputs!$G$340:$K$340,Inputs!$G347:$K347) -> 0.094 | S26: =LOOKUP(S$14,Inputs!$G$340:$K$340,Inputs!$G347:$K347) -> 0.094 | T26: =LOOKUP(T$14,Inputs!$G$340:$K$340,Inputs!$G347:$K347) -> 0.094 | U26: =LOOKUP(U$14,Inputs!$G$340:$K$340,Inputs!$G347:$K347) -> 0.094 | V26: =LOOKUP(V$14,Inputs!$G$340:$K$340,Inputs!$G347:$K347) -> 0.094 | W26: =LOOKUP(W$14,Inputs!$G$340:$K$340,Inputs!$G347:$K347) -> 0.094 | X26: =LOOKUP(X$14,Inputs!$G$340:$K$340,Inputs!$G347:$K347) -> 0.094 | Y26: =LOOKUP(Y$14,Inputs!$G$340:$K$340,Inputs!$G347:$K347) -> 0.094 | Z26: =LOOKUP(Z$14,Inputs!$G$340:$K$340,Inputs!$G347:$K347) -> 0.094 | AA26: =LOOKUP(AA$14,Inputs!$G$340:$K$340,Inputs!$G347:$K347) -> 0.094 | AB26: =LOOKUP(AB$14,Inputs!$G$340:$K$340,Inputs!$G347:$K347) -> 0.094 | AC26: =LOOKUP(AC$14,Inputs!$G$340:$K$340,Inputs!$G347:$K347) -> 0.094 | AD26: =LOOKUP(AD$14,Inputs!$G$340:$K$340,Inputs!$G347:$K347) -> 0.094 | AE26: =LOOKUP(AE$14,Inputs!$G$340:$K$340,Inputs!$G347:$K347) -> 0.094 | AF26: =LOOKUP(AF$14,Inputs!$G$340:$K$340,Inputs!$G347:$K347) -> 0.094 | AG26: =LOOKUP(AG$14,Inputs!$G$340:$K$340,Inputs!$G347:$K347) -> 0.094 | AH26: =LOOKUP(AH$14,Inputs!$G$340:$K$340,Inputs!$G347:$K347) -> 0.094 | AI26: =LOOKUP(AI$14,Inputs!$G$340:$K$340,Inputs!$G347:$K347) -> 0.094 | AJ26: =LOOKUP(AJ$14,Inputs!$G$340:$K$340,Inputs!$G347:$K347) -> 0.094 | AK26: =LOOKUP(AK$14,Inputs!$G$340:$K$340,Inputs!$G347:$K347) -> 0.094 | AL26: =LOOKUP(AL$14,Inputs!$G$340:$K$340,Inputs!$G347:$K347) -> 0.094 | AM26: =LOOKUP(AM$14,Inputs!$G$340:$K$340,Inputs!$G347:$K347) -> 0.094 | AN26: =LOOKUP(AN$14,Inputs!$G$340:$K$340,Inputs!$G347:$K347) -> 0.094
C27: =Inputs!C348 -> TLP | E27: % p.a | G27: =LOOKUP(G$14,Inputs!$G$340:$K$340,Inputs!$G348:$K348) -> 0.0981 | H27: =LOOKUP(H$14,Inputs!$G$340:$K$340,Inputs!$G348:$K348) -> 0.0969 | I27: =LOOKUP(I$14,Inputs!$G$340:$K$340,Inputs!$G348:$K348) -> 0.0969 | J27: =LOOKUP(J$14,Inputs!$G$340:$K$340,Inputs!$G348:$K348) -> 0.0969 | K27: =LOOKUP(K$14,Inputs!$G$340:$K$340,Inputs!$G348:$K348) -> 0.0969 | L27: =LOOKUP(L$14,Inputs!$G$340:$K$340,Inputs!$G348:$K348) -> 0.0969 | M27: =LOOKUP(M$14,Inputs!$G$340:$K$340,Inputs!$G348:$K348) -> 0.0969 | N27: =LOOKUP(N$14,Inputs!$G$340:$K$340,Inputs!$G348:$K348) -> 0.0969 | O27: =LOOKUP(O$14,Inputs!$G$340:$K$340,Inputs!$G348:$K348) -> 0.0969 | P27: =LOOKUP(P$14,Inputs!$G$340:$K$340,Inputs!$G348:$K348) -> 0.0969 | Q27: =LOOKUP(Q$14,Inputs!$G$340:$K$340,Inputs!$G348:$K348) -> 0.0969 | R27: =LOOKUP(R$14,Inputs!$G$340:$K$340,Inputs!$G348:$K348) -> 0.0969 | S27: =LOOKUP(S$14,Inputs!$G$340:$K$340,Inputs!$G348:$K348) -> 0.0969 | T27: =LOOKUP(T$14,Inputs!$G$340:$K$340,Inputs!$G348:$K348) -> 0.0969 | U27: =LOOKUP(U$14,Inputs!$G$340:$K$340,Inputs!$G348:$K348) -> 0.0969 | V27: =LOOKUP(V$14,Inputs!$G$340:$K$340,Inputs!$G348:$K348) -> 0.0969 | W27: =LOOKUP(W$14,Inputs!$G$340:$K$340,Inputs!$G348:$K348) -> 0.0969 | X27: =LOOKUP(X$14,Inputs!$G$340:$K$340,Inputs!$G348:$K348) -> 0.0969 | Y27: =LOOKUP(Y$14,Inputs!$G$340:$K$340,Inputs!$G348:$K348) -> 0.0969 | Z27: =LOOKUP(Z$14,Inputs!$G$340:$K$340,Inputs!$G348:$K348) -> 0.0969 | AA27: =LOOKUP(AA$14,Inputs!$G$340:$K$340,Inputs!$G348:$K348) -> 0.0969 | AB27: =LOOKUP(AB$14,Inputs!$G$340:$K$340,Inputs!$G348:$K348) -> 0.0969 | AC27: =LOOKUP(AC$14,Inputs!$G$340:$K$340,Inputs!$G348:$K348) -> 0.0969 | AD27: =LOOKUP(AD$14,Inputs!$G$340:$K$340,Inputs!$G348:$K348) -> 0.0969 | AE27: =LOOKUP(AE$14,Inputs!$G$340:$K$340,Inputs!$G348:$K348) -> 0.0969 | AF27: =LOOKUP(AF$14,Inputs!$G$340:$K$340,Inputs!$G348:$K348) -> 0.0969 | AG27: =LOOKUP(AG$14,Inputs!$G$340:$K$340,Inputs!$G348:$K348) -> 0.0969 | AH27: =LOOKUP(AH$14,Inputs!$G$340:$K$340,Inputs!$G348:$K348) -> 0.0969 | AI27: =LOOKUP(AI$14,Inputs!$G$340:$K$340,Inputs!$G348:$K348) -> 0.0969 | AJ27: =LOOKUP(AJ$14,Inputs!$G$340:$K$340,Inputs!$G348:$K348) -> 0.0969 | AK27: =LOOKUP(AK$14,Inputs!$G$340:$K$340,Inputs!$G348:$K348) -> 0.0969 | AL27: =LOOKUP(AL$14,Inputs!$G$340:$K$340,Inputs!$G348:$K348) -> 0.0969 | AM27: =LOOKUP(AM$14,Inputs!$G$340:$K$340,Inputs!$G348:$K348) -> 0.0969 | AN27: =LOOKUP(AN$14,Inputs!$G$340:$K$340,Inputs!$G348:$K348) -> 0.0969
C28: =Inputs!C349 -> IPCA | E28: % p.a | G28: =LOOKUP(G$14,Inputs!$G$340:$K$340,Inputs!$G349:$K349) -> 0.0412 | H28: =LOOKUP(H$14,Inputs!$G$340:$K$340,Inputs!$G349:$K349) -> 0.04 | I28: =LOOKUP(I$14,Inputs!$G$340:$K$340,Inputs!$G349:$K349) -> 0.04 | J28: =LOOKUP(J$14,Inputs!$G$340:$K$340,Inputs!$G349:$K349) -> 0.04 | K28: =LOOKUP(K$14,Inputs!$G$340:$K$340,Inputs!$G349:$K349) -> 0.04 | L28: =LOOKUP(L$14,Inputs!$G$340:$K$340,Inputs!$G349:$K349) -> 0.04 | M28: =LOOKUP(M$14,Inputs!$G$340:$K$340,Inputs!$G349:$K349) -> 0.04 | N28: =LOOKUP(N$14,Inputs!$G$340:$K$340,Inputs!$G349:$K349) -> 0.04 | O28: =LOOKUP(O$14,Inputs!$G$340:$K$340,Inputs!$G349:$K349) -> 0.04 | P28: =LOOKUP(P$14,Inputs!$G$340:$K$340,Inputs!$G349:$K349) -> 0.04 | Q28: =LOOKUP(Q$14,Inputs!$G$340:$K$340,Inputs!$G349:$K349) -> 0.04 | R28: =LOOKUP(R$14,Inputs!$G$340:$K$340,Inputs!$G349:$K349) -> 0.04 | S28: =LOOKUP(S$14,Inputs!$G$340:$K$340,Inputs!$G349:$K349) -> 0.04 | T28: =LOOKUP(T$14,Inputs!$G$340:$K$340,Inputs!$G349:$K349) -> 0.04 | U28: =LOOKUP(U$14,Inputs!$G$340:$K$340,Inputs!$G349:$K349) -> 0.04 | V28: =LOOKUP(V$14,Inputs!$G$340:$K$340,Inputs!$G349:$K349) -> 0.04 | W28: =LOOKUP(W$14,Inputs!$G$340:$K$340,Inputs!$G349:$K349) -> 0.04 | X28: =LOOKUP(X$14,Inputs!$G$340:$K$340,Inputs!$G349:$K349) -> 0.04 | Y28: =LOOKUP(Y$14,Inputs!$G$340:$K$340,Inputs!$G349:$K349) -> 0.04 | Z28: =LOOKUP(Z$14,Inputs!$G$340:$K$340,Inputs!$G349:$K349) -> 0.04 | AA28: =LOOKUP(AA$14,Inputs!$G$340:$K$340,Inputs!$G349:$K349) -> 0.04 | AB28: =LOOKUP(AB$14,Inputs!$G$340:$K$340,Inputs!$G349:$K349) -> 0.04 | AC28: =LOOKUP(AC$14,Inputs!$G$340:$K$340,Inputs!$G349:$K349) -> 0.04 | AD28: =LOOKUP(AD$14,Inputs!$G$340:$K$340,Inputs!$G349:$K349) -> 0.04 | AE28: =LOOKUP(AE$14,Inputs!$G$340:$K$340,Inputs!$G349:$K349) -> 0.04 | AF28: =LOOKUP(AF$14,Inputs!$G$340:$K$340,Inputs!$G349:$K349) -> 0.04 | AG28: =LOOKUP(AG$14,Inputs!$G$340:$K$340,Inputs!$G349:$K349) -> 0.04 | AH28: =LOOKUP(AH$14,Inputs!$G$340:$K$340,Inputs!$G349:$K349) -> 0.04 | AI28: =LOOKUP(AI$14,Inputs!$G$340:$K$340,Inputs!$G349:$K349) -> 0.04 | AJ28: =LOOKUP(AJ$14,Inputs!$G$340:$K$340,Inputs!$G349:$K349) -> 0.04 | AK28: =LOOKUP(AK$14,Inputs!$G$340:$K$340,Inputs!$G349:$K349) -> 0.04 | AL28: =LOOKUP(AL$14,Inputs!$G$340:$K$340,Inputs!$G349:$K349) -> 0.04 | AM28: =LOOKUP(AM$14,Inputs!$G$340:$K$340,Inputs!$G349:$K349) -> 0.04 | AN28: =LOOKUP(AN$14,Inputs!$G$340:$K$340,Inputs!$G349:$K349) -> 0.04
C30: Index
C31: =C20 -> None | F31: =Inputs!E341 -> 1 | G31: =IFERROR(F31*(1+G20)^(G$15/G$16),1) -> 1 | H31: =IFERROR(G31*(1+H20)^(H$15/H$16),1) -> 1 | I31: 1 | J31: 1 | K31: 1 | L31: 1 | M31: 1 | N31: 1 | O31: 1 | P31: 1 | Q31: 1 | R31: 1 | S31: 1 | T31: 1 | U31: 1 | V31: 1 | W31: 1 | X31: 1 | Y31: 1 | Z31: 1 | AA31: 1 | AB31: 1 | AC31: 1 | AD31: 1 | AE31: 1 | AF31: 1 | AG31: 1 | AH31: 1 | AI31: 1 | AJ31: 1 | AK31: 1 | AL31: 1 | AM31: 1 | AN31: 1
C32: IPG-M | F32: =Inputs!E342 -> 1 | G32: =IFERROR(F32*(1+G21)^(G$15/G$16),1) -> 1.041 | H32: 1.08264 | I32: 1.1259456 | J32: 1.170983424 | K32: 1.217822761 | L32: 1.266535671 | M32: 1.317197098 | N32: 1.369884982 | O32: 1.424680381 | P32: 1.481667597 | Q32: 1.540934301 | R32: 1.602571673 | S32: 1.66667454 | T32: 1.733341521 | U32: 1.802675182 | V32: 1.874782189 | W32: 1.949773477 | X32: 2.027764416 | Y32: 2.108874993 | Z32: 2.193229992 | AA32: 2.280959192 | AB32: 2.37219756 | AC32: 2.467085462 | AD32: 2.56576888 | AE32: 2.668399636 | AF32: 2.775135621 | AG32: 2.886141046 | AH32: 3.001586688 | AI32: 3.121650155 | AJ32: 3.246516161 | AK32: 3.376376808 | AL32: 3.51143188 | AM32: 3.651889155 | AN32: 1
C33: PIB | F33: =Inputs!E343 -> 1 | G33: =IFERROR(F33*(1+G22)^(G$15/G$16),1) -> 1.0128 | H33: 1.0300176 | I33: 1.049587934 | J33: 1.069530105 | K33: 1.089851177 | L33: 1.11055835 | M33: 1.131658958 | N33: 1.153160478 | O33: 1.175070527 | P33: 1.197396867 | Q33: 1.220147408 | R33: 1.243330209 | S33: 1.266953483 | T33: 1.291025599 | U33: 1.315555085 | V33: 1.340550632 | W33: 1.366021094 | X33: 1.391975495 | Y33: 1.418423029 | Z33: 1.445373067 | AA33: 1.472835155 | AB33: 1.500819023 | AC33: 1.529334584 | AD33: 1.558391941 | AE33: 1.588001388 | AF33: 1.618173415 | AG33: 1.648918709 | AH33: 1.680248165 | AI33: 1.71217288 | AJ33: 1.744704165 | AK33: 1.777853544 | AL33: 1.811632761 | AM33: 1.846053784 | AN33: 1
C34: PIB Serviços | F34: =Inputs!E344 -> 1 | G34: =IFERROR(F34*(1+G23)^(G$15/G$16),1) -> 1.0169 | H34: 1.03408561 | I34: 1.051561657 | J34: 1.069333049 | K34: 1.087404777 | L34: 1.105781918 | M34: 1.124469632 | N34: 1.143473169 | O34: 1.162797866 | P34: 1.18244915 | Q34: 1.20243254 | R34: 1.22275365 | S34: 1.243418187 | T34: 1.264431954 | U34: 1.285800854 | V34: 1.307530889 | W34: 1.329628161 | X34: 1.352098877 | Y34: 1.374949348 | Z34: 1.398185992 | AA34: 1.421815335 | AB34: 1.445844014 | AC34: 1.470278778 | AD34: 1.495126489 | AE34: 1.520394127 | AF34: 1.546088788 | AG34: 1.572217688 | AH34: 1.598788167 | AI34: 1.625807687 | AJ34: 1.653283837 | AK34: 1.681224334 | AL34: 1.709637025 | AM34: 1.738529891 | AN34: 1
C35: CPI US | F35: =Inputs!E345 -> 1 | G35: =IFERROR(F35*(1+G24)^(G$15/G$16),1) -> 1.004 | H35: 1.008016 | I35: 1.012048064 | J35: 1.016096256 | K35: 1.020160641 | L35: 1.024241284 | M35: 1.028338249 | N35: 1.032451602 | O35: 1.036581408 | P35: 1.040727734 | Q35: 1.044890645 | R35: 1.049070208 | S35: 1.053266488 | T35: 1.057479554 | U35: 1.061709473 | V35: 1.06595631 | W35: 1.070220136 | X35: 1.074501016 | Y35: 1.07879902 | Z35: 1.083114216 | AA35: 1.087446673 | AB35: 1.09179646 | AC35: 1.096163646 | AD35: 1.1005483 | AE35: 1.104950494 | AF35: 1.109370296 | AG35: 1.113807777 | AH35: 1.118263008 | AI35: 1.12273606 | AJ35: 1.127227004 | AK35: 1.131735912 | AL35: 1.136262856 | AM35: 1.140807907 | AN35: 1
C36: SELIC | F36: =Inputs!E346 -> 1 | G36: =IFERROR(F36*(1+G25)^(G$15/G$16),1) -> 1.1 | H36: 1.199 | I36: 1.30691 | J36: 1.4245319 | K36: 1.552739771 | L36: 1.69248635 | M36: 1.844810122 | N36: 2.010843033 | O36: 2.191818906 | P36: 2.389082607 | Q36: 2.604100042 | R36: 2.838469046 | S36: 3.09393126 | T36: 3.372385073 | U36: 3.67589973 | V36: 4.006730706 | W36: 4.367336469 | X36: 4.760396751 | Y36: 5.188832459 | Z36: 5.65582738 | AA36: 6.164851845 | AB36: 6.719688511 | AC36: 7.324460477 | AD36: 7.983661919 | AE36: 8.702191492 | AF36: 9.485388726 | AG36: 10.33907371 | AH36: 11.26959035 | AI36: 12.28385348 | AJ36: 13.38940029 | AK36: 14.59444632 | AL36: 15.90794648 | AM36: 17.33966167 | AN36: 1
C37: CDI | F37: =Inputs!E347 -> 1 | G37: =IFERROR(F37*(1+G26)^(G$15/G$16),1) -> 1.099 | H37: 1.202306 | I37: 1.315322764 | J37: 1.438963104 | K37: 1.574225636 | L37: 1.722202845 | M37: 1.884089913 | N37: 2.061194365 | O37: 2.254946635 | P37: 2.466911619 | Q37: 2.698801311 | R37: 2.952488634 | S37: 3.230022565 | T37: 3.533644687 | U37: 3.865807287 | V37: 4.229193172 | W37: 4.62673733 | X37: 5.061650639 | Y37: 5.537445799 | Z37: 6.057965705 | AA37: 6.627414481 | AB37: 7.250391442 | AC37: 7.931928238 | AD37: 8.677529492 | AE37: 9.493217264 | AF37: 10.38557969 | AG37: 11.36182418 | AH37: 12.42983565 | AI37: 13.5982402 | AJ37: 14.87647478 | AK37: 16.27486341 | AL37: 17.80470057 | AM37: 19.47834242 | AN37: 1
C38: TLP | F38: =Inputs!E348 -> 1 | G38: =IFERROR(F38*(1+G27)^(G$15/G$16),1) -> 1.0981 | H38: 1.20450589 | I38: 1.321222511 | J38: 1.449248972 | K38: 1.589681197 | L38: 1.743721305 | M38: 1.9126879 | N38: 2.098027357 | O38: 2.301326208 | P38: 2.524324718 | Q38: 2.768931783 | R38: 3.037241273 | S38: 3.331549952 | T38: 3.654377143 | U38: 4.008486288 | V38: 4.396908609 | W38: 4.822969053 | X38: 5.290314755 | Y38: 5.802946254 | Z38: 6.365251746 | AA38: 6.982044641 | AB38: 7.658604766 | AC38: 8.400723568 | AD38: 9.214753682 | AE38: 10.10766331 | AF38: 11.08709589 | AG38: 12.16143548 | AH38: 13.33987858 | AI38: 14.63251281 | AJ38: 16.0504033 | AK38: 17.60568738 | AL38: 19.31167849 | AM38: 21.18298014 | AN38: 1
C39: IPCA | F39: =Inputs!E349 -> 1 | G39: =IFERROR(F39*(1+G28)^(G$15/G$16),1) -> 1.0412 | H39: 1.082848 | I39: 1.12616192 | J39: 1.171208397 | K39: 1.218056733 | L39: 1.266779002 | M39: 1.317450162 | N39: 1.370148169 | O39: 1.424954095 | P39: 1.481952259 | Q39: 1.541230349 | R39: 1.602879563 | S39: 1.666994746 | T39: 1.733674536 | U39: 1.803021517 | V39: 1.875142378 | W39: 1.950148073 | X39: 2.028153996 | Y39: 2.109280156 | Z39: 2.193651362 | AA39: 2.281397417 | AB39: 2.372653313 | AC39: 2.467559446 | AD39: 2.566261824 | AE39: 2.668912296 | AF39: 2.775668788 | AG39: 2.88669554 | AH39: 3.002163361 | AI39: 3.122249896 | AJ39: 3.247139892 | AK39: 3.377025487 | AL39: 3.512106507 | AM39: 3.652590767 | AN39: 1
C42: Receitas e Deduções
C44: Contraprestação Pública Mensal
C46: Contraprestação mensal máxima (CMM)
C48: 𝐶𝑀𝐴 = CONTRAPRESTAÇÃO MENSAL MÁXIMA
D50: =CP -> 3723 | E50: R$
D51: 0 | E51: %
D52: 1 | E52: %
C55: 𝐶𝑀𝐴1 = CONTRAPRESTAÇÃO MENSAL MÁXIMA - PARCELA A1,
C56: =Flags!C72 -> Cons + Ops Flag | E56: =Flags!E72 -> Flag | F56: =Flags!F72 -> 30 | G56: =Flags!G72 -> 1 | H56: =Flags!H72 -> 1 | I56: =Flags!I72 -> 1 | J56: =Flags!J72 -> 1 | K56: =Flags!K72 -> 1 | L56: =Flags!L72 -> 1 | M56: =Flags!M72 -> 1 | N56: =Flags!N72 -> 1 | O56: =Flags!O72 -> 1 | P56: =Flags!P72 -> 1 | Q56: =Flags!Q72 -> 1 | R56: =Flags!R72 -> 1 | S56: =Flags!S72 -> 1 | T56: =Flags!T72 -> 1 | U56: =Flags!U72 -> 1 | V56: =Flags!V72 -> 1 | W56: =Flags!W72 -> 1 | X56: =Flags!X72 -> 1 | Y56: =Flags!Y72 -> 1 | Z56: =Flags!Z72 -> 1 | AA56: =Flags!AA72 -> 1 | AB56: =Flags!AB72 -> 1 | AC56: =Flags!AC72 -> 1 | AD56: =Flags!AD72 -> 1 | AE56: =Flags!AE72 -> 1 | AF56: =Flags!AF72 -> 1 | AG56: =Flags!AG72 -> 1 | AH56: =Flags!AH72 -> 1 | AI56: =Flags!AI72 -> 1 | AJ56: =Flags!AJ72 -> 1 | AK56: =Flags!AK72 -> 0 | AL56: =Flags!AL72 -> 0 | AM56: =Flags!AM72 -> 0 | AN56: =Flags!AN72 -> 0
C57: =Flags!C28 -> Ano | E57: =Flags!E28 -> Ano | G57: =Flags!G28 -> 2024 | H57: =Flags!H28 -> 2025 | I57: =Flags!I28 -> 2026 | J57: =Flags!J28 -> 2027 | K57: =Flags!K28 -> 2028 | L57: =Flags!L28 -> 2029 | M57: =Flags!M28 -> 2030 | N57: =Flags!N28 -> 2031 | O57: =Flags!O28 -> 2032 | P57: =Flags!P28 -> 2033 | Q57: =Flags!Q28 -> 2034 | R57: =Flags!R28 -> 2035 | S57: =Flags!S28 -> 2036 | T57: =Flags!T28 -> 2037 | U57: =Flags!U28 -> 2038 | V57: =Flags!V28 -> 2039 | W57: =Flags!W28 -> 2040 | X57: =Flags!X28 -> 2041 | Y57: =Flags!Y28 -> 2042 | Z57: =Flags!Z28 -> 2043 | AA57: =Flags!AA28 -> 2044 | AB57: =Flags!AB28 -> 2045 | AC57: =Flags!AC28 -> 2046 | AD57: =Flags!AD28 -> 2047 | AE57: =Flags!AE28 -> 2048 | AF57: =Flags!AF28 -> 2049 | AG57: =Flags!AG28 -> 2050 | AH57: =Flags!AH28 -> 2051 | AI57: =Flags!AI28 -> 2052 | AJ57: =Flags!AJ28 -> 2053 | AK57: =Flags!AK28 -> 2054 | AL57: =Flags!AL28 -> 2055 | AM57: =Flags!AM28 -> 2056 | AN57: =Flags!AN28 -> 2057
C58: % de recebimento contraprestação | E58: % | G58: =D52 -> 1 | H58: =G58 -> 1 | I58: =H58 -> 1 | J58: 1 | K58: 1 | L58: 1 | M58: 1 | N58: 1 | O58: 1 | P58: 1 | Q58: 1 | R58: 1 | S58: 1 | T58: 1 | U58: 1 | V58: 1 | W58: 1 | X58: 1 | Y58: 1 | Z58: 1 | AA58: 1 | AB58: 1 | AC58: 1 | AD58: 1 | AE58: 1 | AF58: 1 | AG58: 1 | AH58: 1 | AI58: 1 | AJ58: 1 | AK58: 1 | AL58: 1 | AM58: 1 | AN58: 1
E59: $R$ | F59: =SUM(G59:AN59) -> 150704.2259 | G59: =(((($D$50*(1-$D$51))*$D$52)*G56)*G58)+((((($D$50*(1-$D$51))*$D$52)*G56)*G58)*G61) -> 3723 | H59: =(((((G59)*(1-$D$51)))*H56)*H58)+((((($D$50*(1-$D$51))*$D$52)*H56)*H58)*H61)+(G59*H63) -> 4133.535497 | I59: =(((((H59)*(1-$D$51)))*I56)*I58)+((((($D$50*(1-$D$51))*$D$52)*I56)*I58)*I61)+(H59*I63) -> 4585.214927 | J59: =(((((I59)*(1-$D$51)))*J56)*J58)+((((($D$50*(1-$D$51))*$D$52)*J56)*J58)*J61) -> 4623.505932 | K59: =(((((J59)*(1-$D$51)))*K56)*K58)+((((($D$50*(1-$D$51))*$D$52)*K56)*K58)*K61)+((((($D$50*(1-$D$51))*$D$52)*K56)*K58)*K63) -> 4661.759147 | L59: =(((((K59)*(1-$D$51)))*L56)*L58)+((((($D$50*(1-$D$51))*$D$52)*L56)*L58)*L61)+((((($D$50*(1-$D$51))*$D$52)*L56)*L58)*L63) -> 4699.971757 | M59: 4738.256011 | N59: 4776.491981 | O59: 4814.789814 | P59: 4853.032178 | Q59: 4891.327153 | R59: 4929.559945 | S59: 4967.836606 | T59: 5006.044822 | U59: 5044.288654 | V59: 5082.563074 | W59: 5120.863194 | X59: 5159.081529 | Y59: 5197.318294 | Z59: 5235.568984 | AA59: 5273.82922 | AB59: 5312.094757 | AC59: 5350.361472 | AD59: 5388.625371 | AE59: 5426.882577 | AF59: 5465.129335 | AG59: 5503.455713 | AH59: 5541.669819 | AI59: 5579.954719 | AJ59: 5618.213433 | AK59: 0 | AL59: 0 | AM59: 0 | AN59: 0
C61: CRESCIMENTO POPULACIONAL | H61: =Inputs!F123 -> 0.01027007703 | I61: =Inputs!G123 -> 0.01029435419 | J61: =Inputs!H123 -> 0.01028498647 | K61: =Inputs!I123 -> 0.01027483611 | L61: =Inputs!J123 -> 0.01026392962 | M61: =Inputs!K123 -> 0.01028317327 | N61: =Inputs!L123 -> 0.01027020418 | O61: =Inputs!M123 -> 0.01028682077 | P61: =Inputs!N123 -> 0.01027192142 | Q61: =Inputs!O123 -> 0.01028605306 | R61: =Inputs!P123 -> 0.01026935039 | S61: =Inputs!Q123 -> 0.01028113383 | T61: =Inputs!R123 -> 0.01026274938 | U61: =Inputs!S123 -> 0.01027231597 | V61: =Inputs!T123 -> 0.01028053177 | W61: =Inputs!U123 -> 0.01028743483 | X61: =Inputs!V123 -> 0.01026546719 | Y61: =Inputs!W123 -> 0.01027041792 | Z61: =Inputs!X123 -> 0.01027415779 | AA61: =Inputs!Y123 -> 0.01027672215 | AB61: =Inputs!Z123 -> 0.0102781457 | AC61: =Inputs!AA123 -> 0.01027846243 | AD61: =Inputs!AB123 -> 0.01027770568 | AE61: =Inputs!AC123 -> 0.01027590813 | AF61: =Inputs!AD123 -> 0.01027310176 | AG61: =Inputs!AE123 -> 0.01029448779 | AH61: =Inputs!AF123 -> 0.01026433145 | AI61: =Inputs!AG123 -> 0.0102833469 | AJ61: =Inputs!AH123 -> 0.01027631322 | AK61: =Inputs!AI123 -> 0 | AL61: =Inputs!AJ123 -> 0 | AM61: =Inputs!AK123 -> 0 | AN61: =Inputs!AL123 -> 0
C63: ESCALONAMENTO DA CONTRAPRESTAÇÃO | H63: 0.1 | I63: 0.1
C66: 𝐶𝑀𝐵 = CONTRAPRESTAÇÃO TRANSITÓRIA
C68: Contraprestação Transitória | D68: =Inputs!D76 -> 4997 | E68: R$
D69: =Inputs!$D$78 -> 0 | E69: %
C70: Indicador | D70: =D52 -> 1 | E70: %
C72: =Flags!C72 -> Cons + Ops Flag | E72: =Flags!E72 -> Flag | F72: =Flags!F72 -> 30 | G72: =Flags!G72 -> 1 | H72: =Flags!H72 -> 1 | I72: =Flags!I72 -> 1 | J72: =Flags!J72 -> 1 | K72: =Flags!K72 -> 1 | L72: =Flags!L72 -> 1 | M72: =Flags!M72 -> 1 | N72: =Flags!N72 -> 1 | O72: =Flags!O72 -> 1 | P72: =Flags!P72 -> 1 | Q72: =Flags!Q72 -> 1 | R72: =Flags!R72 -> 1 | S72: =Flags!S72 -> 1 | T72: =Flags!T72 -> 1 | U72: =Flags!U72 -> 1 | V72: =Flags!V72 -> 1 | W72: =Flags!W72 -> 1 | X72: =Flags!X72 -> 1 | Y72: =Flags!Y72 -> 1 | Z72: =Flags!Z72 -> 1 | AA72: =Flags!AA72 -> 1 | AB72: =Flags!AB72 -> 1 | AC72: =Flags!AC72 -> 1 | AD72: =Flags!AD72 -> 1 | AE72: =Flags!AE72 -> 1 | AF72: =Flags!AF72 -> 1 | AG72: =Flags!AG72 -> 1 | AH72: =Flags!AH72 -> 1 | AI72: =Flags!AI72 -> 1 | AJ72: =Flags!AJ72 -> 1 | AK72: =Flags!AK72 -> 0 | AL72: =Flags!AL72 -> 0 | AM72: =Flags!AM72 -> 0 | AN72: =Flags!AN72 -> 0
C73: =Inputs!C78 -> Desconto | E73: =Flags!E28 -> Ano | G73: =Flags!G28 -> 2024 | H73: =Flags!H28 -> 2025 | I73: =Flags!I28 -> 2026 | J73: =Flags!J28 -> 2027 | K73: =Flags!K28 -> 2028 | L73: =Flags!L28 -> 2029 | M73: =Flags!M28 -> 2030 | N73: =Flags!N28 -> 2031 | O73: =Flags!O28 -> 2032 | P73: =Flags!P28 -> 2033 | Q73: =Flags!Q28 -> 2034 | R73: =Flags!R28 -> 2035 | S73: =Flags!S28 -> 2036 | T73: =Flags!T28 -> 2037 | U73: =Flags!U28 -> 2038 | V73: =Flags!V28 -> 2039 | W73: =Flags!W28 -> 2040 | X73: =Flags!X28 -> 2041 | Y73: =Flags!Y28 -> 2042 | Z73: =Flags!Z28 -> 2043 | AA73: =Flags!AA28 -> 2044 | AB73: =Flags!AB28 -> 2045 | AC73: =Flags!AC28 -> 2046 | AD73: =Flags!AD28 -> 2047 | AE73: =Flags!AE28 -> 2048 | AF73: =Flags!AF28 -> 2049 | AG73: =Flags!AG28 -> 2050 | AH73: =Flags!AH28 -> 2051 | AI73: =Flags!AI28 -> 2052 | AJ73: =Flags!AJ28 -> 2053 | AK73: =Flags!AK28 -> 2054 | AL73: =Flags!AL28 -> 2055 | AM73: =Flags!AM28 -> 2056 | AN73: =Flags!AN28 -> 2057
C74: % de recebimento contraprestação | E74: % | G74: =D70 -> 1 | H74: =G74 -> 1 | I74: =H74 -> 1 | J74: 1 | K74: 1 | L74: 1 | M74: 1 | N74: 1 | O74: 1 | P74: 1 | Q74: 1 | R74: 1 | S74: 1 | T74: 1 | U74: 1 | V74: 1 | W74: 1 | X74: 1 | Y74: 1 | Z74: 1 | AA74: 1 | AB74: 1 | AC74: 1 | AD74: 1 | AE74: 1 | AF74: 1 | AG74: 1 | AH74: 1 | AI74: 1 | AJ74: 1 | AK74: 1 | AL74: 1 | AM74: 1 | AN74: 1
C76: 𝐶𝑀B = CONTRAPRESTAÇÃO MENSAL EXCEDENTE - PARCELA B (Total)
C77: Parcela B total | E77: $R$ | F77: =SUM(G77:AN77) -> 4997 | G77: =IF(OPEX!$C$1=0,(((($D$68*(1-$D$69))*$D$70)*G72)*G74)+((((($D$68*(1-$D$69))*$D$70)*G72)*G74)*G61),0) -> 4997 | H77: 0 | I77: =H77 -> 0 | J77: =I77 -> 0 | K77: 0 | L77: 0 | M77: 0 | N77: 0 | O77: 0 | P77: 0 | Q77: 0 | R77: 0 | S77: 0 | T77: 0 | U77: 0 | V77: 0 | W77: 0 | X77: 0 | Y77: 0 | Z77: 0 | AA77: 0 | AB77: 0 | AC77: 0 | AD77: 0 | AE77: 0 | AF77: 0 | AG77: 0 | AH77: 0 | AI77: 0 | AJ77: 0 | AK77: 0 | AL77: 0 | AM77: 0 | AN77: 0
C82: Contraprestação Pública Mensal
C84: Contraprestação mensal máxima (CMM)
C86: 𝐶𝑀𝐴 = CONTRAPRESTAÇÃO MENSAL MÁXIMA - PARCELA A
C88: =Inputs!C74 -> Contraprestação 2024 | E88: R$
C89: =Inputs!C78 -> Desconto | D89: =Inputs!D78 -> 0 | E89: %
C90: Parcela A | E90: %
C93: 𝐶𝑀𝐴1 = CONTRAPRESTAÇÃO MENSAL MÁXIMA - PARCELA A1,
C94: =Flags!C72 -> Cons + Ops Flag | E94: =Flags!E72 -> Flag | F94: =Flags!F72 -> 30 | G94: =Flags!G72 -> 1 | H94: =Flags!H72 -> 1 | I94: =Flags!I72 -> 1 | J94: =Flags!J72 -> 1 | K94: =Flags!K72 -> 1 | L94: =Flags!L72 -> 1 | M94: =Flags!M72 -> 1 | N94: =Flags!N72 -> 1 | O94: =Flags!O72 -> 1 | P94: =Flags!P72 -> 1 | Q94: =Flags!Q72 -> 1 | R94: =Flags!R72 -> 1 | S94: =Flags!S72 -> 1 | T94: =Flags!T72 -> 1 | U94: =Flags!U72 -> 1 | V94: =Flags!V72 -> 1 | W94: =Flags!W72 -> 1 | X94: =Flags!X72 -> 1 | Y94: =Flags!Y72 -> 1 | Z94: =Flags!Z72 -> 1 | AA94: =Flags!AA72 -> 1 | AB94: =Flags!AB72 -> 1 | AC94: =Flags!AC72 -> 1 | AD94: =Flags!AD72 -> 1 | AE94: =Flags!AE72 -> 1 | AF94: =Flags!AF72 -> 1 | AG94: =Flags!AG72 -> 1 | AH94: =Flags!AH72 -> 1 | AI94: =Flags!AI72 -> 1 | AJ94: =Flags!AJ72 -> 1 | AK94: =Flags!AK72 -> 0 | AL94: =Flags!AL72 -> 0 | AM94: =Flags!AM72 -> 0 | AN94: =Flags!AN72 -> 0
C95: =Flags!C28 -> Ano | E95: =Flags!E28 -> Ano | G95: =Flags!G28 -> 2024 | H95: =Flags!H28 -> 2025 | I95: =Flags!I28 -> 2026 | J95: =Flags!J28 -> 2027 | K95: =Flags!K28 -> 2028 | L95: =Flags!L28 -> 2029 | M95: =Flags!M28 -> 2030 | N95: =Flags!N28 -> 2031 | O95: =Flags!O28 -> 2032 | P95: =Flags!P28 -> 2033 | Q95: =Flags!Q28 -> 2034 | R95: =Flags!R28 -> 2035 | S95: =Flags!S28 -> 2036 | T95: =Flags!T28 -> 2037 | U95: =Flags!U28 -> 2038 | V95: =Flags!V28 -> 2039 | W95: =Flags!W28 -> 2040 | X95: =Flags!X28 -> 2041 | Y95: =Flags!Y28 -> 2042 | Z95: =Flags!Z28 -> 2043 | AA95: =Flags!AA28 -> 2044 | AB95: =Flags!AB28 -> 2045 | AC95: =Flags!AC28 -> 2046 | AD95: =Flags!AD28 -> 2047 | AE95: =Flags!AE28 -> 2048 | AF95: =Flags!AF28 -> 2049 | AG95: =Flags!AG28 -> 2050 | AH95: =Flags!AH28 -> 2051 | AI95: =Flags!AI28 -> 2052 | AJ95: =Flags!AJ28 -> 2053 | AK95: =Flags!AK28 -> 2054 | AL95: =Flags!AL28 -> 2055 | AM95: =Flags!AM28 -> 2056 | AN95: =Flags!AN28 -> 2057
C96: % de recebimento contraprestação | E96: % | G96: =LOOKUP(G95,Inputs!$D$85:$H$85,Inputs!$D$86:$H$86) -> 2.342197153 | H96: =LOOKUP(H95,Inputs!$D$85:$H$85,Inputs!$D$86:$H$86) -> 1 | I96: =LOOKUP(I95,Inputs!$D$85:$H$85,Inputs!$D$86:$H$86) -> 1 | J96: =LOOKUP(J95,Inputs!$D$85:$H$85,Inputs!$D$86:$H$86) -> 1 | K96: =LOOKUP(K95,Inputs!$D$85:$H$85,Inputs!$D$86:$H$86) -> 1 | L96: =LOOKUP(L95,Inputs!$D$85:$H$85,Inputs!$D$86:$H$86) -> 1 | M96: =LOOKUP(M95,Inputs!$D$85:$H$85,Inputs!$D$86:$H$86) -> 1 | N96: =LOOKUP(N95,Inputs!$D$85:$H$85,Inputs!$D$86:$H$86) -> 1 | O96: =LOOKUP(O95,Inputs!$D$85:$H$85,Inputs!$D$86:$H$86) -> 1 | P96: =LOOKUP(P95,Inputs!$D$85:$H$85,Inputs!$D$86:$H$86) -> 1 | Q96: =LOOKUP(Q95,Inputs!$D$85:$H$85,Inputs!$D$86:$H$86) -> 1 | R96: =LOOKUP(R95,Inputs!$D$85:$H$85,Inputs!$D$86:$H$86) -> 1 | S96: =LOOKUP(S95,Inputs!$D$85:$H$85,Inputs!$D$86:$H$86) -> 1 | T96: =LOOKUP(T95,Inputs!$D$85:$H$85,Inputs!$D$86:$H$86) -> 1 | U96: =LOOKUP(U95,Inputs!$D$85:$H$85,Inputs!$D$86:$H$86) -> 1 | V96: =LOOKUP(V95,Inputs!$D$85:$H$85,Inputs!$D$86:$H$86) -> 1 | W96: =LOOKUP(W95,Inputs!$D$85:$H$85,Inputs!$D$86:$H$86) -> 1 | X96: =LOOKUP(X95,Inputs!$D$85:$H$85,Inputs!$D$86:$H$86) -> 1 | Y96: =LOOKUP(Y95,Inputs!$D$85:$H$85,Inputs!$D$86:$H$86) -> 1 | Z96: =LOOKUP(Z95,Inputs!$D$85:$H$85,Inputs!$D$86:$H$86) -> 1 | AA96: =LOOKUP(AA95,Inputs!$D$85:$H$85,Inputs!$D$86:$H$86) -> 1 | AB96: =LOOKUP(AB95,Inputs!$D$85:$H$85,Inputs!$D$86:$H$86) -> 1 | AC96: =LOOKUP(AC95,Inputs!$D$85:$H$85,Inputs!$D$86:$H$86) -> 1 | AD96: =LOOKUP(AD95,Inputs!$D$85:$H$85,Inputs!$D$86:$H$86) -> 1 | AE96: =LOOKUP(AE95,Inputs!$D$85:$H$85,Inputs!$D$86:$H$86) -> 1 | AF96: =LOOKUP(AF95,Inputs!$D$85:$H$85,Inputs!$D$86:$H$86) -> 1 | AG96: =LOOKUP(AG95,Inputs!$D$85:$H$85,Inputs!$D$86:$H$86) -> 1 | AH96: =LOOKUP(AH95,Inputs!$D$85:$H$85,Inputs!$D$86:$H$86) -> 1 | AI96: =LOOKUP(AI95,Inputs!$D$85:$H$85,Inputs!$D$86:$H$86) -> 1 | AJ96: =LOOKUP(AJ95,Inputs!$D$85:$H$85,Inputs!$D$86:$H$86) -> 1 | AK96: =LOOKUP(AK95,Inputs!$D$85:$H$85,Inputs!$D$86:$H$86) -> 1 | AL96: =LOOKUP(AL95,Inputs!$D$85:$H$85,Inputs!$D$86:$H$86) -> 1 | AM96: =LOOKUP(AM95,Inputs!$D$85:$H$85,Inputs!$D$86:$H$86) -> 1 | AN96: =LOOKUP(AN95,Inputs!$D$85:$H$85,Inputs!$D$86:$H$86) -> 1
E97: $R$ | F97: =SUM(G97:AN97) -> 0 | G97: =(((($D$88*(1-$D$89))*$D$90)*G94)*G96)+((((($D$88*(1-$D$89))*$D$90)*G94)*G96)*G139) -> 0 | H97: =(((($D$88*(1-$D$89))*$D$90)*H94)*H96)+((((($D$88*(1-$D$89))*$D$90)*H94)*H96)*H139) -> 0 | I97: =(((((H97)*(1-$D$89)))*I94)*I96)+((((($D$88*(1-$D$89))*$D$90)*I94)*I96)*I139) -> 0 | J97: =(((((I97)*(1-$D$89)))*J94)*J96)+((((($D$88*(1-$D$89))*$D$90)*J94)*J96)*J139) -> 0 | K97: 0 | L97: 0 | M97: 0 | N97: 0 | O97: 0 | P97: 0 | Q97: 0 | R97: 0 | S97: 0 | T97: 0 | U97: 0 | V97: 0 | W97: 0 | X97: 0 | Y97: 0 | Z97: 0 | AA97: 0 | AB97: 0 | AC97: 0 | AD97: 0 | AE97: 0 | AF97: 0 | AG97: 0 | AH97: 0 | AI97: 0 | AJ97: 0 | AK97: 0 | AL97: 0 | AM97: 0 | AN97: 0
C100: 𝐶𝑀𝐵 = CONTRAPRESTAÇÃO MENSAL MÁXIMA - PARCELA B.
C102: =Inputs!C74 -> Contraprestação 2024 | E102: R$
C103: =Inputs!C78 -> Desconto | D103: =Inputs!$D$78 -> 0 | E103: %
C104: Parcela B | E104: %
C106: =Flags!C72 -> Cons + Ops Flag | E106: =Flags!E72 -> Flag | F106: =Flags!F72 -> 30 | G106: =Flags!G72 -> 1 | H106: =Flags!H72 -> 1 | I106: =Flags!I72 -> 1 | J106: =Flags!J72 -> 1 | K106: =Flags!K72 -> 1 | L106: =Flags!L72 -> 1 | M106: =Flags!M72 -> 1 | N106: =Flags!N72 -> 1 | O106: =Flags!O72 -> 1 | P106: =Flags!P72 -> 1 | Q106: =Flags!Q72 -> 1 | R106: =Flags!R72 -> 1 | S106: =Flags!S72 -> 1 | T106: =Flags!T72 -> 1 | U106: =Flags!U72 -> 1 | V106: =Flags!V72 -> 1 | W106: =Flags!W72 -> 1 | X106: =Flags!X72 -> 1 | Y106: =Flags!Y72 -> 1 | Z106: =Flags!Z72 -> 1 | AA106: =Flags!AA72 -> 1 | AB106: =Flags!AB72 -> 1 | AC106: =Flags!AC72 -> 1 | AD106: =Flags!AD72 -> 1 | AE106: =Flags!AE72 -> 1 | AF106: =Flags!AF72 -> 1 | AG106: =Flags!AG72 -> 1 | AH106: =Flags!AH72 -> 1 | AI106: =Flags!AI72 -> 1 | AJ106: =Flags!AJ72 -> 1 | AK106: =Flags!AK72 -> 0 | AL106: =Flags!AL72 -> 0 | AM106: =Flags!AM72 -> 0 | AN106: =Flags!AN72 -> 0
C107: =Flags!C28 -> Ano | E107: =Flags!E28 -> Ano | G107: =Flags!G28 -> 2024 | H107: =Flags!H28 -> 2025 | I107: =Flags!I28 -> 2026 | J107: =Flags!J28 -> 2027 | K107: =Flags!K28 -> 2028 | L107: =Flags!L28 -> 2029 | M107: =Flags!M28 -> 2030 | N107: =Flags!N28 -> 2031 | O107: =Flags!O28 -> 2032 | P107: =Flags!P28 -> 2033 | Q107: =Flags!Q28 -> 2034 | R107: =Flags!R28 -> 2035 | S107: =Flags!S28 -> 2036 | T107: =Flags!T28 -> 2037 | U107: =Flags!U28 -> 2038 | V107: =Flags!V28 -> 2039 | W107: =Flags!W28 -> 2040 | X107: =Flags!X28 -> 2041 | Y107: =Flags!Y28 -> 2042 | Z107: =Flags!Z28 -> 2043 | AA107: =Flags!AA28 -> 2044 | AB107: =Flags!AB28 -> 2045 | AC107: =Flags!AC28 -> 2046 | AD107: =Flags!AD28 -> 2047 | AE107: =Flags!AE28 -> 2048 | AF107: =Flags!AF28 -> 2049 | AG107: =Flags!AG28 -> 2050 | AH107: =Flags!AH28 -> 2051 | AI107: =Flags!AI28 -> 2052 | AJ107: =Flags!AJ28 -> 2053 | AK107: =Flags!AK28 -> 2054 | AL107: =Flags!AL28 -> 2055 | AM107: =Flags!AM28 -> 2056 | AN107: =Flags!AN28 -> 2057
C108: % de recebimento contraprestação | E108: % | G108: =LOOKUP(G107,Inputs!$D$85:$H$85,Inputs!$D$86:$H$86) -> 2.342197153 | H108: =LOOKUP(H107,Inputs!$D$85:$H$85,Inputs!$D$86:$H$86) -> 1 | I108: =LOOKUP(I107,Inputs!$D$85:$H$85,Inputs!$D$86:$H$86) -> 1 | J108: =LOOKUP(J107,Inputs!$D$85:$H$85,Inputs!$D$86:$H$86) -> 1 | K108: =LOOKUP(K107,Inputs!$D$85:$H$85,Inputs!$D$86:$H$86) -> 1 | L108: =LOOKUP(L107,Inputs!$D$85:$H$85,Inputs!$D$86:$H$86) -> 1 | M108: =LOOKUP(M107,Inputs!$D$85:$H$85,Inputs!$D$86:$H$86) -> 1 | N108: =LOOKUP(N107,Inputs!$D$85:$H$85,Inputs!$D$86:$H$86) -> 1 | O108: =LOOKUP(O107,Inputs!$D$85:$H$85,Inputs!$D$86:$H$86) -> 1 | P108: =LOOKUP(P107,Inputs!$D$85:$H$85,Inputs!$D$86:$H$86) -> 1 | Q108: =LOOKUP(Q107,Inputs!$D$85:$H$85,Inputs!$D$86:$H$86) -> 1 | R108: =LOOKUP(R107,Inputs!$D$85:$H$85,Inputs!$D$86:$H$86) -> 1 | S108: =LOOKUP(S107,Inputs!$D$85:$H$85,Inputs!$D$86:$H$86) -> 1 | T108: =LOOKUP(T107,Inputs!$D$85:$H$85,Inputs!$D$86:$H$86) -> 1 | U108: =LOOKUP(U107,Inputs!$D$85:$H$85,Inputs!$D$86:$H$86) -> 1 | V108: =LOOKUP(V107,Inputs!$D$85:$H$85,Inputs!$D$86:$H$86) -> 1 | W108: =LOOKUP(W107,Inputs!$D$85:$H$85,Inputs!$D$86:$H$86) -> 1 | X108: =LOOKUP(X107,Inputs!$D$85:$H$85,Inputs!$D$86:$H$86) -> 1 | Y108: =LOOKUP(Y107,Inputs!$D$85:$H$85,Inputs!$D$86:$H$86) -> 1 | Z108: =LOOKUP(Z107,Inputs!$D$85:$H$85,Inputs!$D$86:$H$86) -> 1 | AA108: =LOOKUP(AA107,Inputs!$D$85:$H$85,Inputs!$D$86:$H$86) -> 1 | AB108: =LOOKUP(AB107,Inputs!$D$85:$H$85,Inputs!$D$86:$H$86) -> 1 | AC108: =LOOKUP(AC107,Inputs!$D$85:$H$85,Inputs!$D$86:$H$86) -> 1 | AD108: =LOOKUP(AD107,Inputs!$D$85:$H$85,Inputs!$D$86:$H$86) -> 1 | AE108: =LOOKUP(AE107,Inputs!$D$85:$H$85,Inputs!$D$86:$H$86) -> 1 | AF108: =LOOKUP(AF107,Inputs!$D$85:$H$85,Inputs!$D$86:$H$86) -> 1 | AG108: =LOOKUP(AG107,Inputs!$D$85:$H$85,Inputs!$D$86:$H$86) -> 1 | AH108: =LOOKUP(AH107,Inputs!$D$85:$H$85,Inputs!$D$86:$H$86) -> 1 | AI108: =LOOKUP(AI107,Inputs!$D$85:$H$85,Inputs!$D$86:$H$86) -> 1 | AJ108: =LOOKUP(AJ107,Inputs!$D$85:$H$85,Inputs!$D$86:$H$86) -> 1 | AK108: =LOOKUP(AK107,Inputs!$D$85:$H$85,Inputs!$D$86:$H$86) -> 1 | AL108: =LOOKUP(AL107,Inputs!$D$85:$H$85,Inputs!$D$86:$H$86) -> 1 | AM108: =LOOKUP(AM107,Inputs!$D$85:$H$85,Inputs!$D$86:$H$86) -> 1 | AN108: =LOOKUP(AN107,Inputs!$D$85:$H$85,Inputs!$D$86:$H$86) -> 1
C110: 𝐶𝑀B = CONTRAPRESTAÇÃO MENSAL MÁXIMA - PARCELA B (Total)
C111: Parcela B total | E111: $R$ | F111: =SUM(G111:AN111) -> 0 | G111: =(((($D$102*(1-$D$103))*$D$104)*G106)*G108)+((((($D$102*(1-$D$103))*$D$104)*G106)*G108)*G139) -> 0 | H111: =(((($D$102*(1-$D$103))*$D$104)*H106)*H108)+((((($D$102*(1-$D$103))*$D$104)*H106)*H108)*H139) -> 0 | I111: =(((((H111)*(1-$D$103)))*I106)*I108)+((((($D$102*(1-$D$103))*$D$104)*I106)*I108)*I139) -> 0 | J111: =(((((I111)*(1-$D$103)))*J106)*J108)+((((($D$102*(1-$D$103))*$D$104)*J106)*J108)*J139) -> 0 | K111: 0 | L111: 0 | M111: 0 | N111: 0 | O111: 0 | P111: 0 | Q111: 0 | R111: 0 | S111: 0 | T111: 0 | U111: 0 | V111: 0 | W111: 0 | X111: 0 | Y111: 0 | Z111: 0 | AA111: 0 | AB111: 0 | AC111: 0 | AD111: 0 | AE111: 0 | AF111: 0 | AG111: 0 | AH111: 0 | AI111: 0 | AJ111: 0 | AK111: 0 | AL111: 0 | AM111: 0 | AN111: 0
C115: Contraprestação mensal máxima (CMM) | E115: $R$ | F115: =SUM(G115:AN115) -> 155701.2259 | G115: =G59+G77 -> 8720 | H115: 4133.535497 | I115: 4585.214927 | J115: 4623.505932 | K115: 4661.759147 | L115: 4699.971757 | M115: 4738.256011 | N115: 4776.491981 | O115: 4814.789814 | P115: 4853.032178 | Q115: 4891.327153 | R115: 4929.559945 | S115: 4967.836606 | T115: 5006.044822 | U115: 5044.288654 | V115: 5082.563074 | W115: 5120.863194 | X115: 5159.081529 | Y115: 5197.318294 | Z115: 5235.568984 | AA115: 5273.82922 | AB115: 5312.094757 | AC115: 5350.361472 | AD115: 5388.625371 | AE115: 5426.882577 | AF115: 5465.129335 | AG115: 5503.455713 | AH115: 5541.669819 | AI115: 5579.954719 | AJ115: 5618.213433 | AK115: 0 | AL115: 0 | AM115: 0 | AN115: 0
C118: Fator de Desempenho
C119: =Inputs!C83 -> Fator de Desempenho | D119: =Inputs!D83 -> 1 | E119: Fator | G119: =IF(G115<>0,$D$119,0) -> 1 | H119: 1 | I119: 1 | J119: 1 | K119: 1 | L119: 1 | M119: 1 | N119: 1 | O119: 1 | P119: 1 | Q119: 1 | R119: 1 | S119: 1 | T119: 1 | U119: 1 | V119: 1 | W119: 1 | X119: 1 | Y119: 1 | Z119: 1 | AA119: 1 | AB119: 1 | AC119: 1 | AD119: 1 | AE119: 1 | AF119: 1 | AG119: 1 | AH119: 1 | AI119: 1 | AJ119: 1 | AK119: 0 | AL119: 0 | AM119: =IF(AM115<>0,$D$119,0) -> 0 | AN119: =IF(AN115<>0,$D$119,0) -> 0
C121: Atualização IPCA
C123: =Flags!C$14 -> Counter | D123: =Flags!D$14 -> 0 | E123: =Flags!E$14 -> Counter | F123: =Flags!F$14 -> 0 | G123: =Flags!G$14 -> 1 | H123: =Flags!H$14 -> 2 | I123: =Flags!I$14 -> 3 | J123: =Flags!J$14 -> 4 | K123: =Flags!K$14 -> 5 | L123: =Flags!L$14 -> 6 | M123: =Flags!M$14 -> 7 | N123: =Flags!N$14 -> 8 | O123: =Flags!O$14 -> 9 | P123: =Flags!P$14 -> 10 | Q123: =Flags!Q$14 -> 11 | R123: =Flags!R$14 -> 12 | S123: =Flags!S$14 -> 13 | T123: =Flags!T$14 -> 14 | U123: =Flags!U$14 -> 15 | V123: =Flags!V$14 -> 16 | W123: =Flags!W$14 -> 17 | X123: =Flags!X$14 -> 18 | Y123: =Flags!Y$14 -> 19 | Z123: =Flags!Z$14 -> 20 | AA123: =Flags!AA$14 -> 21 | AB123: =Flags!AB$14 -> 22 | AC123: =Flags!AC$14 -> 23 | AD123: =Flags!AD$14 -> 24 | AE123: =Flags!AE$14 -> 25 | AF123: =Flags!AF$14 -> 26 | AG123: =Flags!AG$14 -> 27 | AH123: =Flags!AH$14 -> 28 | AI123: =Flags!AI$14 -> 29 | AJ123: =Flags!AJ$14 -> 30 | AK123: =Flags!AK$14 -> 31 | AL123: =Flags!AL$14 -> 32 | AM123: =Flags!AM$14 -> 33 | AN123: =Flags!AN$14 -> 34
C124: Atualização IPCA | E124: Flag | G124: =IF(G123=1,0,1) -> 0 | H124: 1 | I124: 1 | J124: 1 | K124: 1 | L124: 1 | M124: 1 | N124: 1 | O124: 1 | P124: 1 | Q124: 1 | R124: 1 | S124: 1 | T124: 1 | U124: 1 | V124: 1 | W124: 1 | X124: 1 | Y124: 1 | Z124: 1 | AA124: 1 | AB124: 1 | AC124: 1 | AD124: 1 | AE124: 1 | AF124: 1 | AG124: 1 | AH124: 1 | AI124: 1 | AJ124: 1 | AK124: 1 | AL124: 1 | AM124: 1 | AN124: 1
C125: IPCA | E125: Fator | F125: 1 | G125: =IF(G124=1,G$39,F125) -> 1 | H125: 1.082848 | I125: 1.12616192 | J125: 1.171208397 | K125: 1.218056733 | L125: 1.266779002 | M125: 1.317450162 | N125: 1.370148169 | O125: 1.424954095 | P125: 1.481952259 | Q125: 1.541230349 | R125: 1.602879563 | S125: 1.666994746 | T125: 1.733674536 | U125: 1.803021517 | V125: 1.875142378 | W125: 1.950148073 | X125: 2.028153996 | Y125: 2.109280156 | Z125: 2.193651362 | AA125: 2.281397417 | AB125: 2.372653313 | AC125: 2.467559446 | AD125: 2.566261824 | AE125: 2.668912296 | AF125: 2.775668788 | AG125: 2.88669554 | AH125: 3.002163361 | AI125: 3.122249896 | AJ125: 3.247139892 | AK125: 3.377025487 | AL125: 3.512106507 | AM125: 3.652590767 | AN125: 1
C127: Contraprestação anual | E127: R$ | F127: =SUM(G127:AN127) -> 155701.2259 | G127: =IF(OPEX!$C$2=0,IF(Inputs!$E$19=2,Ops!G115,G115*G119*G125),0) -> 8720 | H127: =IF(OPEX!$C$2=0,IF(Inputs!$E$19=2,Ops!H115,H115*H119*H125),0) -> 4133.535497 | I127: =IF(OPEX!$C$2=0,IF(Inputs!$E$19=2,Ops!I115,I115*I119*I125),0) -> 4585.214927 | J127: =IF(OPEX!$C$2=0,IF(Inputs!$E$19=2,Ops!J115,J115*J119*J125),0) -> 4623.505932 | K127: =IF(OPEX!$C$2=0,IF(Inputs!$E$19=2,Ops!K115,K115*K119*K125),0) -> 4661.759147 | L127: =IF(OPEX!$C$2=0,IF(Inputs!$E$19=2,Ops!L115,L115*L119*L125),0) -> 4699.971757 | M127: =IF(OPEX!$C$2=0,IF(Inputs!$E$19=2,Ops!M115,M115*M119*M125),0) -> 4738.256011 | N127: =IF(OPEX!$C$2=0,IF(Inputs!$E$19=2,Ops!N115,N115*N119*N125),0) -> 4776.491981 | O127: =IF(OPEX!$C$2=0,IF(Inputs!$E$19=2,Ops!O115,O115*O119*O125),0) -> 4814.789814 | P127: =IF(OPEX!$C$2=0,IF(Inputs!$E$19=2,Ops!P115,P115*P119*P125),0) -> 4853.032178 | Q127: =IF(OPEX!$C$2=0,IF(Inputs!$E$19=2,Ops!Q115,Q115*Q119*Q125),0) -> 4891.327153 | R127: =IF(OPEX!$C$2=0,IF(Inputs!$E$19=2,Ops!R115,R115*R119*R125),0) -> 4929.559945 | S127: =IF(OPEX!$C$2=0,IF(Inputs!$E$19=2,Ops!S115,S115*S119*S125),0) -> 4967.836606 | T127: =IF(OPEX!$C$2=0,IF(Inputs!$E$19=2,Ops!T115,T115*T119*T125),0) -> 5006.044822 | U127: =IF(OPEX!$C$2=0,IF(Inputs!$E$19=2,Ops!U115,U115*U119*U125),0) -> 5044.288654 | V127: =IF(OPEX!$C$2=0,IF(Inputs!$E$19=2,Ops!V115,V115*V119*V125),0) -> 5082.563074 | W127: =IF(OPEX!$C$2=0,IF(Inputs!$E$19=2,Ops!W115,W115*W119*W125),0) -> 5120.863194 | X127: =IF(OPEX!$C$2=0,IF(Inputs!$E$19=2,Ops!X115,X115*X119*X125),0) -> 5159.081529 | Y127: =IF(OPEX!$C$2=0,IF(Inputs!$E$19=2,Ops!Y115,Y115*Y119*Y125),0) -> 5197.318294 | Z127: =IF(OPEX!$C$2=0,IF(Inputs!$E$19=2,Ops!Z115,Z115*Z119*Z125),0) -> 5235.568984 | AA127: =IF(OPEX!$C$2=0,IF(Inputs!$E$19=2,Ops!AA115,AA115*AA119*AA125),0) -> 5273.82922 | AB127: =IF(OPEX!$C$2=0,IF(Inputs!$E$19=2,Ops!AB115,AB115*AB119*AB125),0) -> 5312.094757 | AC127: =IF(OPEX!$C$2=0,IF(Inputs!$E$19=2,Ops!AC115,AC115*AC119*AC125),0) -> 5350.361472 | AD127: =IF(OPEX!$C$2=0,IF(Inputs!$E$19=2,Ops!AD115,AD115*AD119*AD125),0) -> 5388.625371 | AE127: =IF(OPEX!$C$2=0,IF(Inputs!$E$19=2,Ops!AE115,AE115*AE119*AE125),0) -> 5426.882577 | AF127: =IF(OPEX!$C$2=0,IF(Inputs!$E$19=2,Ops!AF115,AF115*AF119*AF125),0) -> 5465.129335 | AG127: =IF(OPEX!$C$2=0,IF(Inputs!$E$19=2,Ops!AG115,AG115*AG119*AG125),0) -> 5503.455713 | AH127: =IF(OPEX!$C$2=0,IF(Inputs!$E$19=2,Ops!AH115,AH115*AH119*AH125),0) -> 5541.669819 | AI127: =IF(OPEX!$C$2=0,IF(Inputs!$E$19=2,Ops!AI115,AI115*AI119*AI125),0) -> 5579.954719 | AJ127: =IF(OPEX!$C$2=0,IF(Inputs!$E$19=2,Ops!AJ115,AJ115*AJ119*AJ125),0) -> 5618.213433 | AK127: =IF(OPEX!$C$2=0,IF(Inputs!$E$19=2,Ops!AK115,AK115*AK119*AK125),0) -> 0 | AL127: =IF(OPEX!$C$2=0,IF(Inputs!$E$19=2,Ops!AL115,AL115*AL119*AL125),0) -> 0 | AM127: =IF(OPEX!$C$2=0,IF(Inputs!$E$19=2,Ops!AM115,AM115*AM119*AM125),0) -> 0 | AN127: =IF(OPEX!$C$2=0,IF(Inputs!$E$19=2,Ops!AN115,AN115*AN119*AN125),0) -> 0
C129: Receitas tarifárias
I130: =I149/$H$149-1 -> 0 | J130: =J149/$H$149-1 -> 0 | K130: =K149/$H$149-1 -> 0 | L130: =L149/$H$149-1 -> 0 | M130: =M149/$H$149-1 -> 0 | N130: 0 | O130: 0 | P130: 0 | Q130: 0 | R130: 0
C131: Volume esperado
C132: =Flags!C50 -> Flag de operação | E132: =Flags!E50 -> Flag | F132: =Flags!F50 -> 29 | G132: =Flags!G50 -> 0 | H132: 1 | I132: =Flags!I50 -> 1 | J132: =Flags!J50 -> 1 | K132: =Flags!K50 -> 1 | L132: =Flags!L50 -> 1 | M132: =Flags!M50 -> 1 | N132: =Flags!N50 -> 1 | O132: =Flags!O50 -> 1 | P132: =Flags!P50 -> 1 | Q132: =Flags!Q50 -> 1 | R132: =Flags!R50 -> 1 | S132: =Flags!S50 -> 1 | T132: =Flags!T50 -> 1 | U132: =Flags!U50 -> 1 | V132: =Flags!V50 -> 1 | W132: =Flags!W50 -> 1 | X132: =Flags!X50 -> 1 | Y132: =Flags!Y50 -> 1 | Z132: =Flags!Z50 -> 1 | AA132: =Flags!AA50 -> 1 | AB132: =Flags!AB50 -> 1 | AC132: =Flags!AC50 -> 1 | AD132: =Flags!AD50 -> 1 | AE132: =Flags!AE50 -> 1 | AF132: =Flags!AF50 -> 1 | AG132: =Flags!AG50 -> 1 | AH132: =Flags!AH50 -> 1 | AI132: =Flags!AI50 -> 1 | AJ132: =Flags!AJ50 -> 1 | AK132: =Flags!AK50 -> 0 | AL132: =Flags!AL50 -> 0 | AM132: =Flags!AM50 -> 0 | AN132: =Flags!AN50 -> 0
C134: Tarifas aplicáveis
C135: Flag de aumento | F135: =SUM(G135:AN135) -> 2 | G135: 0 | I135: 1 | J135: 1 | K135: 0 | L135: 0 | M135: 0 | N135: 0 | O135: 0 | P135: 0
C137: Aumento Real | D137: =Aumento_real -> 0.6004109779 | F137: =SUM(G137:AN137) -> 0.6004109779 | G137: =IF(G135=1,Inputs!$D93/$F$135,0) -> 0 | H137: =IF(H135=1,Inputs!$D93/$F$135,0) -> 0 | I137: =IF(I135=1,Inputs!$D93/$F$135,0) -> 0.3002054889 | J137: =IF(J135=1,Inputs!$D93/$F$135,0) -> 0.3002054889 | K137: =IF(K135=1,Inputs!$D93/$F$135,0) -> 0 | L137: =IF(L135=1,Inputs!$D93/$F$135,0) -> 0 | M137: =IF(M135=1,Inputs!$D93/$F$135,0) -> 0 | N137: =IF(N135=1,Inputs!$D93/$F$135,0) -> 0 | O137: =IF(O135=1,Inputs!$D93/$F$135,0) -> 0 | P137: =IF(P135=1,Inputs!$D93/$F$135,0) -> 0 | Q137: =IF(Q135=1,Inputs!$D93/$F$135,0) -> 0 | R137: =IF(R135=1,Inputs!$D93/$F$135,0) -> 0 | S137: =IF(S135=1,Inputs!$D93/$F$135,0) -> 0 | T137: =IF(T135=1,Inputs!$D93/$F$135,0) -> 0 | U137: =IF(U135=1,Inputs!$D93/$F$135,0) -> 0 | V137: =IF(V135=1,Inputs!$D93/$F$135,0) -> 0 | W137: =IF(W135=1,Inputs!$D93/$F$135,0) -> 0 | X137: =IF(X135=1,Inputs!$D93/$F$135,0) -> 0 | Y137: =IF(Y135=1,Inputs!$D93/$F$135,0) -> 0 | Z137: =IF(Z135=1,Inputs!$D93/$F$135,0) -> 0 | AA137: =IF(AA135=1,Inputs!$D93/$F$135,0) -> 0 | AB137: =IF(AB135=1,Inputs!$D93/$F$135,0) -> 0 | AC137: =IF(AC135=1,Inputs!$D93/$F$135,0) -> 0 | AD137: =IF(AD135=1,Inputs!$D93/$F$135,0) -> 0 | AE137: =IF(AE135=1,Inputs!$D93/$F$135,0) -> 0 | AF137: =IF(AF135=1,Inputs!$D93/$F$135,0) -> 0 | AG137: =IF(AG135=1,Inputs!$D93/$F$135,0) -> 0 | AH137: =IF(AH135=1,Inputs!$D93/$F$135,0) -> 0 | AI137: =IF(AI135=1,Inputs!$D93/$F$135,0) -> 0 | AJ137: =IF(AJ135=1,Inputs!$D93/$F$135,0) -> 0 | AK137: =IF(AK135=1,Inputs!$D93/$F$135,0) -> 0 | AL137: =IF(AL135=1,Inputs!$D93/$F$135,0) -> 0 | AM137: =IF(AM135=1,Inputs!$D93/$F$135,0) -> 0 | AN137: =IF(AN135=1,Inputs!$D93/$F$135,0) -> 0
C139: Crescimento unidades | E139: Crescimento unidades | G139: =Inputs!E123 -> 0.01027712109 | H139: =Inputs!F123 -> 0.01027007703 | I139: =Inputs!G123 -> 0.01029435419 | J139: =Inputs!H123 -> 0.01028498647 | K139: =Inputs!I123 -> 0.01027483611 | L139: =Inputs!J123 -> 0.01026392962 | M139: =Inputs!K123 -> 0.01028317327 | N139: =Inputs!L123 -> 0.01027020418 | O139: =Inputs!M123 -> 0.01028682077 | P139: =Inputs!N123 -> 0.01027192142 | Q139: =Inputs!O123 -> 0.01028605306 | R139: =Inputs!P123 -> 0.01026935039 | S139: =Inputs!Q123 -> 0.01028113383 | T139: =Inputs!R123 -> 0.01026274938 | U139: =Inputs!S123 -> 0.01027231597 | V139: =Inputs!T123 -> 0.01028053177 | W139: =Inputs!U123 -> 0.01028743483 | X139: =Inputs!V123 -> 0.01026546719 | Y139: =Inputs!W123 -> 0.01027041792 | Z139: =Inputs!X123 -> 0.01027415779 | AA139: =Inputs!Y123 -> 0.01027672215 | AB139: =Inputs!Z123 -> 0.0102781457 | AC139: =Inputs!AA123 -> 0.01027846243 | AD139: =Inputs!AB123 -> 0.01027770568 | AE139: =Inputs!AC123 -> 0.01027590813 | AF139: =Inputs!AD123 -> 0.01027310176 | AG139: =Inputs!AE123 -> 0.01029448779 | AH139: =Inputs!AF123 -> 0.01026433145 | AI139: =Inputs!AG123 -> 0.0102833469 | AJ139: =Inputs!AH123 -> 0.01027631322
B141: 1 | C141: Residencial - 1 vez por semana | D141: 249 | E141: Unidades geradoras | F141: =SUM(G141:AN141) -> 8787.126281 | G141: =$D141*(1+G$139) -> 251.5590032 | H141: =G141*(1+H$139) -> 254.1425335 | I141: =IF(I$135=0,$D141*(1+I$139),H141*(1+I$139)) -> 256.7587667 | J141: =IF(J$132=0,$D141*(1+J$139),I141*(1+J$139)) -> 259.3995272 | K141: 262.0648148 | L141: 264.7546296 | M141: 267.4771474 | N141: 270.2241923 | O141: 273.0039401 | P141: 275.8082151 | Q141: 278.6451931 | R141: 281.5066982 | S141: 284.4009062 | T141: 287.3196414 | U141: 290.2710796 | V141: 293.2552206 | W141: 296.2720646 | X141: 299.3134358 | Y141: 302.3875099 | Z141: 305.4942868 | AA141: 308.6337667 | AB141: 311.8059496 | AC141: 315.0108353 | AD141: 318.248424 | AE141: 321.5187155 | AF141: 324.82171 | AG141: 328.1655831 | AH141: 331.5339835 | AI141: 334.9432624 | AJ141: 338.3852443
B142: 2 | C142: Residencial - 3 vezes por semana | D142: 8147 | E142: Unidades geradoras | F142: =SUM(G142:AN142) -> 287504.8908 | G142: =$D142*(1+G$139) -> 8230.727706 | H142: =G142*(1+H$139) -> 8315.257913 | I142: =IF(I$132=0,$D142*(1+I$139),H142*(1+I$139)) -> 8400.858123 | J142: 8487.260835 | K142: 8574.466049 | L142: 8662.473765 | M142: 8751.551484 | N142: 8841.431705 | O142: 8932.381928 | P142: 9024.134653 | Q142: 9116.957381 | R142: 9210.582611 | S142: 9305.277843 | T142: 9400.775578 | U142: 9497.343315 | V142: 9594.981055 | W142: 9693.688797 | X142: 9793.199041 | Y142: 9893.779288 | Z142: 9995.429538 | AA142: 10098.14979 | AB142: 10201.94004 | AC142: 10306.8003 | AD142: 10412.73056 | AE142: 10519.73082 | AF142: 10627.80109 | AG142: 10737.20886 | AH142: 10847.41913 | AI142: 10958.9669 | AJ142: 11071.58468
B143: 3 | C143: Residencial - 6 vezes por semana | D143: 3447 | E143: Unidades geradoras | F143: 121643.471 | G143: 3482.425236 | H143: =G143*(1+H$139) -> 3518.190012 | I143: =IF(I$132=0,$D143*(1+I$139),H143*(1+I$139)) -> 3554.407506 | J143: 3590.964539 | K143: 3627.861111 | L143: 3665.097222 | M143: 3702.786052 | N143: 3740.814421 | O143: 3779.295508 | P143: 3818.116135 | Q143: 3857.38948 | R143: 3897.002364 | S143: 3937.067967 | T143: 3977.473109 | U143: 4018.330969 | V143: 4059.641548 | W143: 4101.404846 | X143: 4143.507683 | Y143: 4186.063239 | Z143: 4229.071513 | AA143: 4272.532506 | AB143: 4316.446217 | AC143: 4360.812648 | AD143: 4405.631797 | AE143: 4450.903664 | AF143: 4496.628251 | AG143: 4542.918735 | AH143: 4589.548759 | AI143: 4636.744681 | AJ143: 4684.393322
B144: 4 | C144: Não Residencial - 1 vez por semana | D144: 90 | E144: Unidades geradoras | F144: 3176.06974 | G144: 90.9249409 | H144: 91.85874704 | I144: =IF(I$132=0,$D144*(1+I$139),H144*(1+I$139)) -> 92.80437352 | J144: 93.75886525 | K144: 94.72222222 | L144: 95.69444444 | M144: 96.678487 | N144: 97.6713948 | O144: 98.67612293 | P144: 99.68971631 | Q144: 100.71513 | R144: 101.749409 | S144: 102.7955083 | T144: 103.8504728 | U144: 104.9172577 | V144: 105.9958629 | W144: 107.0862884 | X144: 108.1855792 | Y144: 109.2966903 | Z144: 110.4196217 | AA144: 111.5543735 | AB144: 112.7009456 | AC144: 113.8593381 | AD144: 115.0295508 | AE144: 116.2115839 | AF144: 117.4054374 | AG144: 118.6140662 | AH144: 119.8315603 | AI144: 121.0638298 | AJ144: 122.3079196
B145: 5 | C145: Não Residencial - 2 vezes por semana | D145: 3 | E145: Unidades geradoras | F145: 105.8689913 | G145: 3.030831363 | H145: 3.061958235 | I145: =IF(I$132=0,$D145*(1+I$139),H145*(1+I$139)) -> 3.093479117 | J145: 3.125295508 | K145: 3.157407407 | L145: 3.189814815 | M145: 3.222616233 | N145: 3.25571316 | O145: 3.289204098 | P145: 3.322990544 | Q145: 3.357171001 | R145: 3.391646966 | S145: 3.426516942 | T145: 3.461682427 | U145: 3.497241923 | V145: 3.533195429 | W145: 3.569542947 | X145: 3.606185973 | Y145: 3.64322301 | Z145: 3.680654058 | AA145: 3.718479117 | AB145: 3.756698188 | AC145: 3.795311269 | AD145: 3.834318361 | AE145: 3.873719464 | AF145: 3.913514578 | AG145: 3.953802206 | AH145: 3.994385343 | AI145: 4.035460993 | AJ145: 4.076930654
B146: 6 | C146: Não Residencial - 3 vezes por semana | D146: 770 | E146: Unidades geradoras | F146: 27173.04111 | G146: 777.9133832 | H146: 785.9026136 | I146: =IF(I$132=0,$D146*(1+I$139),H146*(1+I$139)) -> 793.9929735 | J146: 802.1591805 | K146: 810.4012346 | L146: 818.7191358 | M146: 827.1381665 | N146: 835.6330444 | O146: 844.2290517 | P146: 852.9009062 | Q146: 861.6738902 | R146: 870.5227213 | S146: 879.4726819 | T146: 888.4984896 | U146: 897.6254268 | V146: 906.8534936 | W146: 916.1826898 | X146: 925.5877331 | Y146: 935.093906 | Z146: 944.7012083 | AA146: 954.4096401 | AB146: 964.2192015 | AC146: 974.1298923 | AD146: 984.1417126 | AE146: 994.2546625 | AF146: 1004.468742 | AG146: 1014.809233 | AH146: 1025.225571 | AI146: 1035.768322 | AJ146: 1046.412201
B147: 7 | C147: Não Residencial - 6 vezes por semana | D147: 1672 | E147: Unidades geradoras | F147: =SUM(G147:AN147) -> 59004.31784 | G147: 1689.183346 | H147: 1706.53139 | I147: =IF(I$132=0,$D147*(1+I$139),H147*(1+I$139)) -> 1724.099028 | J147: =IF(J$132=0,$D147*(1+J$139),I147*(1+J$139)) -> 1741.831363 | K147: =IF(K$132=0,$D147*(1+K$139),J147*(1+K$139)) -> 1759.728395 | L147: =IF(L$132=0,$D147*(1+L$139),K147*(1+L$139)) -> 1777.790123 | M147: =IF(M$132=0,$D147*(1+M$139),L147*(1+M$139)) -> 1796.071447 | N147: =IF(N$132=0,$D147*(1+N$139),M147*(1+N$139)) -> 1814.517468 | O147: =IF(O$132=0,$D147*(1+O$139),N147*(1+O$139)) -> 1833.183084 | P147: =IF(P$132=0,$D147*(1+P$139),O147*(1+P$139)) -> 1852.013396 | Q147: =IF(Q$132=0,$D147*(1+Q$139),P147*(1+Q$139)) -> 1871.063304 | R147: =IF(R$132=0,$D147*(1+R$139),Q147*(1+R$139)) -> 1890.277909 | S147: =IF(S$132=0,$D147*(1+S$139),R147*(1+S$139)) -> 1909.712109 | T147: =IF(T$132=0,$D147*(1+T$139),S147*(1+T$139)) -> 1929.311006 | U147: =IF(U$132=0,$D147*(1+U$139),T147*(1+U$139)) -> 1949.129498 | V147: =IF(V$132=0,$D147*(1+V$139),U147*(1+V$139)) -> 1969.167586 | W147: =IF(W$132=0,$D147*(1+W$139),V147*(1+W$139)) -> 1989.425269 | X147: =IF(X$132=0,$D147*(1+X$139),W147*(1+X$139)) -> 2009.847649 | Y147: =IF(Y$132=0,$D147*(1+Y$139),X147*(1+Y$139)) -> 2030.489624 | Z147: =IF(Z$132=0,$D147*(1+Z$139),Y147*(1+Z$139)) -> 2051.351195 | AA147: =IF(AA$132=0,$D147*(1+AA$139),Z147*(1+AA$139)) -> 2072.432361 | AB147: =IF(AB$132=0,$D147*(1+AB$139),AA147*(1+AB$139)) -> 2093.733123 | AC147: =IF(AC$132=0,$D147*(1+AC$139),AB147*(1+AC$139)) -> 2115.25348 | AD147: =IF(AD$132=0,$D147*(1+AD$139),AC147*(1+AD$139)) -> 2136.993433 | AE147: =IF(AE$132=0,$D147*(1+AE$139),AD147*(1+AE$139)) -> 2158.952981 | AF147: =IF(AF$132=0,$D147*(1+AF$139),AE147*(1+AF$139)) -> 2181.132125 | AG147: =IF(AG$132=0,$D147*(1+AG$139),AF147*(1+AG$139)) -> 2203.585763 | AH147: =IF(AH$132=0,$D147*(1+AH$139),AG147*(1+AH$139)) -> 2226.204098 | AI147: =IF(AI$132=0,$D147*(1+AI$139),AH147*(1+AI$139)) -> 2249.096927 | AJ147: =IF(AJ$132=0,$D147*(1+AJ$139),AI147*(1+AJ$139)) -> 2272.209351
B149: 1 | C149: =C141 -> Residencial - 1 vez por semana | D149: =AVERAGEIF('Base Tarifa'!$B$15:$B$14392,Ops!C149,'Base Tarifa'!$J$15:$J$14392) -> 102.7420604 | E149: M² Médio | F149: =AVERAGE(G149:AJ149) -> 102.7420604 | G149: =D149 -> 102.7420604 | H149: =G149 -> 102.7420604 | I149: =H149 -> 102.7420604 | J149: 102.7420604 | K149: 102.7420604 | L149: 102.7420604 | M149: 102.7420604 | N149: 102.7420604 | O149: 102.7420604 | P149: 102.7420604 | Q149: 102.7420604 | R149: 102.7420604 | S149: 102.7420604 | T149: 102.7420604 | U149: 102.7420604 | V149: 102.7420604 | W149: 102.7420604 | X149: 102.7420604 | Y149: 102.7420604 | Z149: 102.7420604 | AA149: 102.7420604 | AB149: 102.7420604 | AC149: 102.7420604 | AD149: 102.7420604 | AE149: 102.7420604 | AF149: 102.7420604 | AG149: 102.7420604 | AH149: 102.7420604 | AI149: 102.7420604 | AJ149: 102.7420604
B150: 2 | C150: =C142 -> Residencial - 3 vezes por semana | D150: =AVERAGEIF('Base Tarifa'!$B$15:$B$14392,Ops!C150,'Base Tarifa'!$J$15:$J$14392) -> 100.5168156 | E150: M² Médio | F150: 100.5168156 | G150: 100.5168156 | H150: =G150 -> 100.5168156 | I150: 100.5168156 | J150: 100.5168156 | K150: 100.5168156 | L150: 100.5168156 | M150: 100.5168156 | N150: 100.5168156 | O150: 100.5168156 | P150: 100.5168156 | Q150: 100.5168156 | R150: 100.5168156 | S150: 100.5168156 | T150: 100.5168156 | U150: 100.5168156 | V150: 100.5168156 | W150: 100.5168156 | X150: 100.5168156 | Y150: 100.5168156 | Z150: 100.5168156 | AA150: 100.5168156 | AB150: 100.5168156 | AC150: 100.5168156 | AD150: 100.5168156 | AE150: 100.5168156 | AF150: 100.5168156 | AG150: 100.5168156 | AH150: 100.5168156 | AI150: 100.5168156 | AJ150: 100.5168156
B151: 3 | C151: Residencial - 6 vezes por semana | D151: =AVERAGEIF('Base Tarifa'!$B$15:$B$14392,Ops!C151,'Base Tarifa'!$J$15:$J$14392) -> 133.4060249 | E151: M² Médio | F151: 133.4060249 | G151: 133.4060249 | H151: 133.4060249 | I151: 133.4060249 | J151: 133.4060249 | K151: 133.4060249 | L151: 133.4060249 | M151: 133.4060249 | N151: 133.4060249 | O151: 133.4060249 | P151: 133.4060249 | Q151: 133.4060249 | R151: 133.4060249 | S151: 133.4060249 | T151: 133.4060249 | U151: 133.4060249 | V151: 133.4060249 | W151: 133.4060249 | X151: 133.4060249 | Y151: 133.4060249 | Z151: 133.4060249 | AA151: 133.4060249 | AB151: 133.4060249 | AC151: 133.4060249 | AD151: 133.4060249 | AE151: 133.4060249 | AF151: 133.4060249 | AG151: 133.4060249 | AH151: 133.4060249 | AI151: 133.4060249 | AJ151: 133.4060249
B152: 4 | C152: Não Residencial - 1 vez por semana | D152: =AVERAGEIF('Base Tarifa'!$B$15:$B$14392,Ops!C152,'Base Tarifa'!$J$15:$J$14392) -> 207.2214595 | E152: M² Médio | F152: 207.2214595 | G152: 207.2214595 | H152: 207.2214595 | I152: 207.2214595 | J152: 207.2214595 | K152: 207.2214595 | L152: 207.2214595 | M152: 207.2214595 | N152: 207.2214595 | O152: 207.2214595 | P152: 207.2214595 | Q152: 207.2214595 | R152: 207.2214595 | S152: 207.2214595 | T152: 207.2214595 | U152: 207.2214595 | V152: 207.2214595 | W152: 207.2214595 | X152: 207.2214595 | Y152: 207.2214595 | Z152: 207.2214595 | AA152: 207.2214595 | AB152: 207.2214595 | AC152: 207.2214595 | AD152: 207.2214595 | AE152: 207.2214595 | AF152: 207.2214595 | AG152: 207.2214595 | AH152: 207.2214595 | AI152: 207.2214595 | AJ152: 207.2214595
B153: 5 | C153: Não Residencial - 2 vezes por semana | D153: =AVERAGEIF('Base Tarifa'!$B$15:$B$14392,Ops!C153,'Base Tarifa'!$J$15:$J$14392) -> 141 | E153: M² Médio | F153: 141 | G153: 141 | H153: 141 | I153: 141 | J153: 141 | K153: 141 | L153: 141 | M153: 141 | N153: 141 | O153: 141 | P153: 141 | Q153: 141 | R153: 141 | S153: 141 | T153: 141 | U153: 141 | V153: 141 | W153: 141 | X153: 141 | Y153: 141 | Z153: 141 | AA153: 141 | AB153: 141 | AC153: 141 | AD153: 141 | AE153: 141 | AF153: 141 | AG153: 141 | AH153: 141 | AI153: 141 | AJ153: 141
B154: 6 | C154: Não Residencial - 3 vezes por semana | D154: =AVERAGEIF('Base Tarifa'!$B$15:$B$14392,Ops!C154,'Base Tarifa'!$J$15:$J$14392) -> 172.3015207 | E154: M² Médio | F154: 172.3015207 | G154: 172.3015207 | H154: 172.3015207 | I154: 172.3015207 | J154: 172.3015207 | K154: 172.3015207 | L154: 172.3015207 | M154: 172.3015207 | N154: 172.3015207 | O154: 172.3015207 | P154: 172.3015207 | Q154: 172.3015207 | R154: 172.3015207 | S154: 172.3015207 | T154: 172.3015207 | U154: 172.3015207 | V154: 172.3015207 | W154: 172.3015207 | X154: 172.3015207 | Y154: 172.3015207 | Z154: 172.3015207 | AA154: 172.3015207 | AB154: 172.3015207 | AC154: 172.3015207 | AD154: 172.3015207 | AE154: 172.3015207 | AF154: 172.3015207 | AG154: 172.3015207 | AH154: 172.3015207 | AI154: 172.3015207 | AJ154: 172.3015207
B155: 7 | C155: Não Residencial - 6 vezes por semana | D155: =AVERAGEIF('Base Tarifa'!$B$15:$B$14392,Ops!C155,'Base Tarifa'!$J$15:$J$14392) -> 131.2635344 | E155: M² Médio | F155: =AVERAGE(G155:AJ155) -> 131.2635344 | G155: 131.2635344 | H155: 131.2635344 | I155: 131.2635344 | J155: 131.2635344 | K155: 131.2635344 | L155: 131.2635344 | M155: 131.2635344 | N155: 131.2635344 | O155: 131.2635344 | P155: 131.2635344 | Q155: 131.2635344 | R155: 131.2635344 | S155: 131.2635344 | T155: 131.2635344 | U155: 131.2635344 | V155: 131.2635344 | W155: 131.2635344 | X155: 131.2635344 | Y155: 131.2635344 | Z155: 131.2635344 | AA155: 131.2635344 | AB155: 131.2635344 | AC155: 131.2635344 | AD155: 131.2635344 | AE155: 131.2635344 | AF155: 131.2635344 | AG155: 131.2635344 | AH155: 131.2635344 | AI155: 131.2635344 | AJ155: 131.2635344
B157: 1 | C157: =C149 -> Residencial - 1 vez por semana | D157: 0.918852 | E157: Valor básico referencial | F157: =SUM(G157:AN157) -> 44.97287296 | G157: =$D157*(1+G$137) -> 0.918852 | H157: =G157*(1+H$137) -> 0.918852 | I157: =H157*(1+I$137) -> 1.194696414 | J157: 1.553350835 | K157: 1.553350835 | L157: 1.553350835 | M157: 1.553350835 | N157: 1.553350835 | O157: 1.553350835 | P157: 1.553350835 | Q157: 1.553350835 | R157: 1.553350835 | S157: 1.553350835 | T157: 1.553350835 | U157: 1.553350835 | V157: 1.553350835 | W157: 1.553350835 | X157: 1.553350835 | Y157: 1.553350835 | Z157: 1.553350835 | AA157: 1.553350835 | AB157: 1.553350835 | AC157: 1.553350835 | AD157: 1.553350835 | AE157: 1.553350835 | AF157: 1.553350835 | AG157: 1.553350835 | AH157: 1.553350835 | AI157: 1.553350835 | AJ157: 1.553350835
B158: 2 | C158: =C150 -> Residencial - 3 vezes por semana | D158: 2.57557 | E158: Valor básico referencial | F158: =SUM(G158:AN158) -> 126.0603257 | G158: 2.57557 | H158: =G158*(1+H$137) -> 2.57557 | I158: 3.348770251 | J158: 4.354089462 | K158: 4.354089462 | L158: 4.354089462 | M158: 4.354089462 | N158: 4.354089462 | O158: 4.354089462 | P158: 4.354089462 | Q158: 4.354089462 | R158: 4.354089462 | S158: 4.354089462 | T158: 4.354089462 | U158: 4.354089462 | V158: 4.354089462 | W158: 4.354089462 | X158: 4.354089462 | Y158: 4.354089462 | Z158: 4.354089462 | AA158: 4.354089462 | AB158: 4.354089462 | AC158: 4.354089462 | AD158: 4.354089462 | AE158: 4.354089462 | AF158: 4.354089462 | AG158: 4.354089462 | AH158: 4.354089462 | AI158: 4.354089462 | AJ158: 4.354089462
B159: 3 | C159: Residencial - 6 vezes por semana | D159: 4.274054 | E159: Valor básico referencial | F159: 209.192 | G159: 4.274054 | H159: 4.274054 | I159: 5.557148471 | J159: 7.225434945 | K159: 7.225434945 | L159: 7.225434945 | M159: 7.225434945 | N159: 7.225434945 | O159: 7.225434945 | P159: 7.225434945 | Q159: 7.225434945 | R159: 7.225434945 | S159: 7.225434945 | T159: 7.225434945 | U159: 7.225434945 | V159: 7.225434945 | W159: 7.225434945 | X159: 7.225434945 | Y159: 7.225434945 | Z159: 7.225434945 | AA159: 7.225434945 | AB159: 7.225434945 | AC159: 7.225434945 | AD159: 7.225434945 | AE159: 7.225434945 | AF159: 7.225434945 | AG159: 7.225434945 | AH159: 7.225434945 | AI159: 7.225434945 | AJ159: 7.225434945
B160: 4 | C160: Não Residencial - 1 vez por semana | D160: 1.127682 | E160: Valor básico referencial | F160: 55.19398045 | G160: 1.127682 | H160: 1.127682 | I160: 1.466218326 | J160: 1.906385116 | K160: 1.906385116 | L160: 1.906385116 | M160: 1.906385116 | N160: 1.906385116 | O160: 1.906385116 | P160: 1.906385116 | Q160: 1.906385116 | R160: 1.906385116 | S160: 1.906385116 | T160: 1.906385116 | U160: 1.906385116 | V160: 1.906385116 | W160: 1.906385116 | X160: 1.906385116 | Y160: 1.906385116 | Z160: 1.906385116 | AA160: 1.906385116 | AB160: 1.906385116 | AC160: 1.906385116 | AD160: 1.906385116 | AE160: 1.906385116 | AF160: 1.906385116 | AG160: 1.906385116 | AH160: 1.906385116 | AI160: 1.906385116 | AJ160: 1.906385116
B161: 5 | C161: Não Residencial - 2 vezes por semana | D161: 2.673024 | E161: Valor básico referencial | F161: 130.8301759 | G161: 2.673024 | H161: 2.673024 | I161: 3.475480477 | J161: 4.518838793 | K161: 4.518838793 | L161: 4.518838793 | M161: 4.518838793 | N161: 4.518838793 | O161: 4.518838793 | P161: 4.518838793 | Q161: 4.518838793 | R161: 4.518838793 | S161: 4.518838793 | T161: 4.518838793 | U161: 4.518838793 | V161: 4.518838793 | W161: 4.518838793 | X161: 4.518838793 | Y161: 4.518838793 | Z161: 4.518838793 | AA161: 4.518838793 | AB161: 4.518838793 | AC161: 4.518838793 | AD161: 4.518838793 | AE161: 4.518838793 | AF161: 4.518838793 | AG161: 4.518838793 | AH161: 4.518838793 | AI161: 4.518838793 | AJ161: 4.518838793
B162: 6 | C162: Não Residencial - 3 vezes por semana | D162: 3.96777 | E162: Valor básico referencial | F162: 194.2010423 | G162: 3.96777 | H162: 3.96777 | I162: 5.158916333 | J162: 6.707651333 | K162: 6.707651333 | L162: 6.707651333 | M162: 6.707651333 | N162: 6.707651333 | O162: 6.707651333 | P162: 6.707651333 | Q162: 6.707651333 | R162: 6.707651333 | S162: 6.707651333 | T162: 6.707651333 | U162: 6.707651333 | V162: 6.707651333 | W162: 6.707651333 | X162: 6.707651333 | Y162: 6.707651333 | Z162: 6.707651333 | AA162: 6.707651333 | AB162: 6.707651333 | AC162: 6.707651333 | AD162: 6.707651333 | AE162: 6.707651333 | AF162: 6.707651333 | AG162: 6.707651333 | AH162: 6.707651333 | AI162: 6.707651333 | AJ162: 6.707651333
B163: 7 | C163: Não Residencial - 6 vezes por semana | D163: 6.111758 | E163: Valor básico referencial | F163: 299.1377459 | G163: 6.111758 | H163: 6.111758 | I163: 7.946541299 | J163: 10.33213661 | K163: 10.33213661 | L163: 10.33213661 | M163: 10.33213661 | N163: 10.33213661 | O163: 10.33213661 | P163: 10.33213661 | Q163: 10.33213661 | R163: 10.33213661 | S163: 10.33213661 | T163: 10.33213661 | U163: 10.33213661 | V163: 10.33213661 | W163: 10.33213661 | X163: 10.33213661 | Y163: 10.33213661 | Z163: 10.33213661 | AA163: 10.33213661 | AB163: 10.33213661 | AC163: 10.33213661 | AD163: 10.33213661 | AE163: 10.33213661 | AF163: 10.33213661 | AG163: 10.33213661 | AH163: 10.33213661 | AI163: 10.33213661 | AJ163: 10.33213661
B165: 1 | C165: =C149 -> Residencial - 1 vez por semana | D165: =D141*D149*D157/1000 -> 23.50678216 | E165: $ 000 | F165: =SUM(G165:AN165) -> 1359.948903 | G165: =(G141*G149*G157)/1000 -> 23.74836421 | H165: =(H141*H149*H157)/1000 -> 23.99226174 | I165: =(I141*I149*I157)/1000 -> 31.51600145 | J165: 41.39872883 | K165: 41.82409398 | L165: 42.25337354 | M165: 42.6878723 | N165: 43.12628546 | O165: 43.56991783 | P165: 44.01746461 | Q165: 44.47023058 | R165: 44.92691096 | S165: 45.38881055 | T165: 45.85462453 | U165: 46.32565773 | V165: 46.80191012 | W165: 47.28338172 | X165: 47.76876773 | Y165: 48.25937293 | Z165: 48.75519735 | AA165: 49.25624096 | AB165: 49.76250378 | AC165: 50.27398581 | AD165: 50.79068704 | AE165: 51.31260747 | AF165: 51.83974711 | AG165: 52.37341075 | AH165: 52.9109888 | AI165: 53.45509085 | AJ165: 54.00441211
B166: 2 | C166: Residencial - 3 vezes por semana | D166: 2109.161307 | E166: $ 000 | F166: =SUM(G166:AN166) -> 122022.2992 | G166: =(G142*G150*G158)/1000 -> 2130.837413 | H166: 2152.721278 | I166: 2827.793713 | J166: 3714.52785 | K166: 3752.694015 | L166: 3791.211402 | M166: 3830.197086 | N166: 3869.533992 | O166: 3909.339195 | P166: 3949.49562 | Q166: 3990.120341 | R166: 4031.096285 | S166: 4072.540526 | T166: 4114.335988 | U166: 4156.599748 | V166: 4199.331803 | W166: 4242.532156 | X166: 4286.08373 | Y166: 4330.103601 | Z166: 4374.591769 | AA166: 4419.548233 | AB166: 4464.972994 | AC166: 4510.866051 | AD166: 4557.227405 | AE166: 4604.057055 | AF166: 4651.355001 | AG166: 4699.238319 | AH166: 4747.472858 | AI166: 4796.292769 | AJ166: 4845.580975
B167: 3 | C167: Residencial - 6 vezes por semana | D167: 1965.426158 | E167: $ 000 | F167: 113706.7221 | G167: 1985.625081 | H167: 2006.017603 | I167: 2635.085195 | J167: 3461.390163 | K167: 3496.95538 | L167: 3532.847884 | M167: 3569.176771 | N167: 3605.832945 | O167: 3642.925502 | P167: 3680.345347 | Q167: 3718.201574 | R167: 3756.385089 | S167: 3795.004987 | T167: 3833.952172 | U167: 3873.33574 | V167: 3913.155691 | W167: 3953.412025 | X167: 3993.995647 | Y167: 4035.015651 | Z167: 4076.472039 | AA167: 4118.364809 | AB167: 4160.693963 | AC167: 4203.459499 | AD167: 4246.661419 | AE167: 4290.299721 | AF167: 4334.374407 | AG167: 4378.994571 | AH167: 4423.942023 | AI167: 4469.434954 | AJ167: 4515.364267
B168: 4 | C168: Não Residencial - 1 vez por semana | D168: 21.03119189 | E168: $ 000 | F168: 1216.727417 | G168: 21.247332 | H168: 21.46554373 | I168: 28.19692928 | J168: 37.03886835 | K168: 37.41943666 | L168: 37.80350712 | M168: 38.19224713 | N168: 38.58448931 | O168: 38.98140104 | P168: 39.38181492 | Q168: 39.78689836 | R168: 40.19548396 | S168: 40.60873911 | T168: 41.02549643 | U168: 41.44692329 | V168: 41.8730197 | W168: 42.30378566 | X168: 42.73805378 | Y168: 43.17699146 | Z168: 43.62059868 | AA168: 44.06887545 | AB168: 44.52182178 | AC168: 44.97943765 | AD168: 45.44172307 | AE168: 45.90867804 | AF168: 46.38030256 | AG168: 46.85776402 | AH168: 47.33872764 | AI168: 47.8255282 | AJ168: 48.31699831
B169: 5 | C169: Não Residencial - 2 vezes por semana | D169: 1.130689152 | E169: $ 000 | F169: 65.41429027 | G169: 1.142309381 | H169: 1.154040987 | I169: 1.515937005 | J169: 1.991301628 | K169: 2.011761926 | L169: 2.032410509 | M169: 2.053310138 | N169: 2.074398052 | O169: 2.095737013 | P169: 2.117264259 | Q169: 2.139042552 | R169: 2.161009129 | S169: 2.183226753 | T169: 2.205632662 | U169: 2.228289618 | V169: 2.25119762 | W169: 2.274356669 | X169: 2.297704003 | Y169: 2.321302383 | Z169: 2.34515181 | AA169: 2.369252284 | AB169: 2.393603804 | AC169: 2.418206371 | AD169: 2.443059984 | AE169: 2.468164644 | AF169: 2.49352035 | AG169: 2.519189865 | AH169: 2.545047665 | AI169: 2.571219273 | AJ169: 2.597641928
B170: 6 | C170: Não Residencial - 3 vezes por semana | D170: 526.4126597 | E170: $ 000 | F170: 30454.7987 | G170: 531.8226663 | H170: 537.2845261 | I170: 705.7717228 | J170: 927.086268 | K170: 936.6119274 | L170: 946.2252463 | M170: 955.9554445 | N170: 965.7733021 | O170: 975.708039 | P170: 985.7304353 | Q170: 995.8697108 | R170: 1006.096646 | S170: 1016.44046 | T170: 1026.871934 | U170: 1037.420287 | V170: 1048.085519 | W170: 1058.86763 | X170: 1069.737401 | Y170: 1080.724052 | Z170: 1091.827581 | AA170: 1103.04799 | AB170: 1114.385278 | AC170: 1125.839445 | AD170: 1137.410491 | AE170: 1149.098417 | AF170: 1160.903222 | AG170: 1172.854126 | AH170: 1184.89269 | AI170: 1197.077352 | AJ170: 1209.378894
B171: 7 | C171: Não Residencial - 6 vezes por semana | D171: 1341.363599 | E171: $ 000 | F171: =SUM(G171:AN171) -> 77602.53794 | G171: 1355.148955 | H171: 1369.066439 | I171: 1798.392347 | J171: 2362.328774 | K171: 2386.601315 | L171: 2411.097223 | M171: 2435.890954 | N171: 2460.908051 | O171: 2486.222971 | P171: 2511.761258 | Q171: 2537.597368 | R171: 2563.656844 | S171: 2590.014143 | T171: 2616.594809 | U171: 2643.473298 | V171: 2670.649609 | W171: 2698.123743 | X171: 2725.821244 | Y171: 2753.816567 | Z171: 2782.109713 | AA171: 2810.700682 | AB171: 2839.589473 | AC171: 2868.776086 | AD171: 2898.260523 | AE171: 2928.042782 | AF171: 2958.122863 | AG171: 2988.575223 | AH171: 3019.250949 | AI171: 3050.298954 | AJ171: 3081.644782
C174: Receitas tarifárias
C175: Receita tarifária | E175: $ 000s / m² | F175: =SUM(G175:AN175) -> 340378.8764 | G175: =IF(OPEX!$C$1=0,IF(G132=0,0,SUM(G165:G171)),0) -> 0 | H175: =IF(OPEX!$C$1=0,IF(H132=0,0,SUM(H165:H171)),0) -> 6111.701693 | I175: =IF(OPEX!$C$1=0,IF(I132=0,0,SUM(I165:I171)),0) -> 8028.271845 | J175: =IF(OPEX!$C$1=0,IF(J132=0,0,SUM(J165:J171)),0) -> 10545.76195 | K175: =IF(OPEX!$C$1=0,IF(K132=0,0,SUM(K165:K171)),0) -> 10654.11793 | L175: =IF(OPEX!$C$1=0,IF(L132=0,0,SUM(L165:L171)),0) -> 10763.47105 | M175: =IF(OPEX!$C$1=0,IF(M132=0,0,SUM(M165:M171)),0) -> 10874.15368 | N175: =IF(OPEX!$C$1=0,IF(N132=0,0,SUM(N165:N171)),0) -> 10985.83346 | O175: =IF(OPEX!$C$1=0,IF(O132=0,0,SUM(O165:O171)),0) -> 11098.84276 | P175: =IF(OPEX!$C$1=0,IF(P132=0,0,SUM(P165:P171)),0) -> 11212.8492 | Q175: =IF(OPEX!$C$1=0,IF(Q132=0,0,SUM(Q165:Q171)),0) -> 11328.18517 | R175: =IF(OPEX!$C$1=0,IF(R132=0,0,SUM(R165:R171)),0) -> 11444.51827 | S175: =IF(OPEX!$C$1=0,IF(S132=0,0,SUM(S165:S171)),0) -> 11562.18089 | T175: =IF(OPEX!$C$1=0,IF(T132=0,0,SUM(T165:T171)),0) -> 11680.84066 | U175: =IF(OPEX!$C$1=0,IF(U132=0,0,SUM(U165:U171)),0) -> 11800.82994 | V175: =IF(OPEX!$C$1=0,IF(V132=0,0,SUM(V165:V171)),0) -> 11922.14875 | W175: =IF(OPEX!$C$1=0,IF(W132=0,0,SUM(W165:W171)),0) -> 12044.79708 | X175: =IF(OPEX!$C$1=0,IF(X132=0,0,SUM(X165:X171)),0) -> 12168.44255 | Y175: =IF(OPEX!$C$1=0,IF(Y132=0,0,SUM(Y165:Y171)),0) -> 12293.41754 | Z175: =IF(OPEX!$C$1=0,IF(Z132=0,0,SUM(Z165:Z171)),0) -> 12419.72205 | AA175: =IF(OPEX!$C$1=0,IF(AA132=0,0,SUM(AA165:AA171)),0) -> 12547.35608 | AB175: =IF(OPEX!$C$1=0,IF(AB132=0,0,SUM(AB165:AB171)),0) -> 12676.31964 | AC175: =IF(OPEX!$C$1=0,IF(AC132=0,0,SUM(AC165:AC171)),0) -> 12806.61271 | AD175: =IF(OPEX!$C$1=0,IF(AD132=0,0,SUM(AD165:AD171)),0) -> 12938.23531 | AE175: =IF(OPEX!$C$1=0,IF(AE132=0,0,SUM(AE165:AE171)),0) -> 13071.18742 | AF175: =IF(OPEX!$C$1=0,IF(AF132=0,0,SUM(AF165:AF171)),0) -> 13205.46906 | AG175: =IF(OPEX!$C$1=0,IF(AG132=0,0,SUM(AG165:AG171)),0) -> 13341.4126 | AH175: =IF(OPEX!$C$1=0,IF(AH132=0,0,SUM(AH165:AH171)),0) -> 13478.35328 | AI175: =IF(OPEX!$C$1=0,IF(AI132=0,0,SUM(AI165:AI171)),0) -> 13616.95587 | AJ175: =IF(OPEX!$C$1=0,IF(AJ132=0,0,SUM(AJ165:AJ171)),0) -> 13756.88797 | AK175: =IF(OPEX!$C$1=0,IF(AK132=0,0,SUM(AK165:AK171)),0) -> 0 | AL175: =IF(OPEX!$C$1=0,IF(AL132=0,0,SUM(AL165:AL171)),0) -> 0 | AM175: =IF(OPEX!$C$1=0,IF(AM132=0,0,SUM(AM165:AM171)),0) -> 0 | AN175: =IF(OPEX!$C$1=0,IF(AN132=0,0,SUM(AN165:AN171)),0) -> 0
C179: Receitas Acessórias
C181: =Flags!C50 -> Flag de operação | E181: =Flags!E50 -> Flag | F181: =Flags!F50 -> 29 | G181: =Flags!G50 -> 0 | H181: =Flags!H50 -> 1 | I181: =Flags!I50 -> 1 | J181: =Flags!J50 -> 1 | K181: =Flags!K50 -> 1 | L181: =Flags!L50 -> 1 | M181: =Flags!M50 -> 1 | N181: =Flags!N50 -> 1 | O181: =Flags!O50 -> 1 | P181: =Flags!P50 -> 1 | Q181: =Flags!Q50 -> 1 | R181: =Flags!R50 -> 1 | S181: =Flags!S50 -> 1 | T181: =Flags!T50 -> 1 | U181: =Flags!U50 -> 1 | V181: =Flags!V50 -> 1 | W181: =Flags!W50 -> 1 | X181: =Flags!X50 -> 1 | Y181: =Flags!Y50 -> 1 | Z181: =Flags!Z50 -> 1 | AA181: =Flags!AA50 -> 1 | AB181: =Flags!AB50 -> 1 | AC181: =Flags!AC50 -> 1 | AD181: =Flags!AD50 -> 1 | AE181: =Flags!AE50 -> 1 | AF181: =Flags!AF50 -> 1 | AG181: =Flags!AG50 -> 1 | AH181: =Flags!AH50 -> 1 | AI181: =Flags!AI50 -> 1 | AJ181: =Flags!AJ50 -> 1 | AK181: =Flags!AK50 -> 0 | AL181: =Flags!AL50 -> 0 | AM181: =Flags!AM50 -> 0 | AN181: =Flags!AN50 -> 0
C183: =Inputs!C115 -> Receitas acessórias esperadas | D183: =Inputs!D115 -> 0 | G183: =G181*$D$183 -> 0 | H183: 0 | I183: 0 | J183: 0 | K183: 0 | L183: 0 | M183: 0 | N183: 0 | O183: 0 | P183: 0 | Q183: 0 | R183: 0 | S183: 0 | T183: 0 | U183: 0 | V183: 0 | W183: 0 | X183: 0 | Y183: 0 | Z183: 0 | AA183: 0 | AB183: 0 | AC183: 0 | AD183: 0 | AE183: 0 | AF183: 0 | AG183: 0 | AH183: 0 | AI183: 0 | AJ183: 0 | AK183: 0 | AL183: 0 | AM183: 0 | AN183: 0
C185: Atualização IPCA
C186: =Flags!C$14 -> Counter | E186: =Flags!E$14 -> Counter | F186: =Flags!F$14 -> 0 | G186: =Flags!G$14 -> 1 | H186: =Flags!H$14 -> 2 | I186: =Flags!I$14 -> 3 | J186: =Flags!J$14 -> 4 | K186: =Flags!K$14 -> 5 | L186: =Flags!L$14 -> 6 | M186: =Flags!M$14 -> 7 | N186: =Flags!N$14 -> 8 | O186: =Flags!O$14 -> 9 | P186: =Flags!P$14 -> 10 | Q186: =Flags!Q$14 -> 11 | R186: =Flags!R$14 -> 12 | S186: =Flags!S$14 -> 13 | T186: =Flags!T$14 -> 14 | U186: =Flags!U$14 -> 15 | V186: =Flags!V$14 -> 16 | W186: =Flags!W$14 -> 17 | X186: =Flags!X$14 -> 18 | Y186: =Flags!Y$14 -> 19 | Z186: =Flags!Z$14 -> 20 | AA186: =Flags!AA$14 -> 21 | AB186: =Flags!AB$14 -> 22 | AC186: =Flags!AC$14 -> 23 | AD186: =Flags!AD$14 -> 24 | AE186: =Flags!AE$14 -> 25 | AF186: =Flags!AF$14 -> 26 | AG186: =Flags!AG$14 -> 27 | AH186: =Flags!AH$14 -> 28 | AI186: =Flags!AI$14 -> 29 | AJ186: =Flags!AJ$14 -> 30 | AK186: =Flags!AK$14 -> 31 | AL186: =Flags!AL$14 -> 32 | AM186: =Flags!AM$14 -> 33 | AN186: =Flags!AN$14 -> 34
C187: Atualização IPCA | E187: Flag | G187: =IF(G186=1,0,1) -> 0 | H187: 1 | I187: 1 | J187: 1 | K187: 1 | L187: 1 | M187: 1 | N187: 1 | O187: 1 | P187: 1 | Q187: 1 | R187: 1 | S187: 1 | T187: 1 | U187: 1 | V187: 1 | W187: 1 | X187: 1 | Y187: 1 | Z187: 1 | AA187: 1 | AB187: 1 | AC187: 1 | AD187: 1 | AE187: 1 | AF187: 1 | AG187: 1 | AH187: 1 | AI187: 1 | AJ187: 1 | AK187: 1 | AL187: 1 | AM187: 1 | AN187: 1
C188: IPCA | E188: Fator | F188: 1 | G188: =IF(G187=1,G$39,F188) -> 1 | H188: =IF(H187=1,H$39,G188) -> 1.082848 | I188: =IF(I187=1,I$39,H188) -> 1.12616192 | J188: =IF(J187=1,J$39,I188) -> 1.171208397 | K188: =IF(K187=1,K$39,J188) -> 1.218056733 | L188: =IF(L187=1,L$39,K188) -> 1.266779002 | M188: =IF(M187=1,M$39,L188) -> 1.317450162 | N188: =IF(N187=1,N$39,M188) -> 1.370148169 | O188: =IF(O187=1,O$39,N188) -> 1.424954095 | P188: =IF(P187=1,P$39,O188) -> 1.481952259 | Q188: =IF(Q187=1,Q$39,P188) -> 1.541230349 | R188: =IF(R187=1,R$39,Q188) -> 1.602879563 | S188: =IF(S187=1,S$39,R188) -> 1.666994746 | T188: =IF(T187=1,T$39,S188) -> 1.733674536 | U188: =IF(U187=1,U$39,T188) -> 1.803021517 | V188: =IF(V187=1,V$39,U188) -> 1.875142378 | W188: =IF(W187=1,W$39,V188) -> 1.950148073 | X188: =IF(X187=1,X$39,W188) -> 2.028153996 | Y188: =IF(Y187=1,Y$39,X188) -> 2.109280156 | Z188: =IF(Z187=1,Z$39,Y188) -> 2.193651362 | AA188: =IF(AA187=1,AA$39,Z188) -> 2.281397417 | AB188: =IF(AB187=1,AB$39,AA188) -> 2.372653313 | AC188: =IF(AC187=1,AC$39,AB188) -> 2.467559446 | AD188: =IF(AD187=1,AD$39,AC188) -> 2.566261824 | AE188: =IF(AE187=1,AE$39,AD188) -> 2.668912296 | AF188: =IF(AF187=1,AF$39,AE188) -> 2.775668788 | AG188: =IF(AG187=1,AG$39,AF188) -> 2.88669554 | AH188: =IF(AH187=1,AH$39,AG188) -> 3.002163361 | AI188: =IF(AI187=1,AI$39,AH188) -> 3.122249896 | AJ188: =IF(AJ187=1,AJ$39,AI188) -> 3.247139892 | AK188: =IF(AK187=1,AK$39,AJ188) -> 3.377025487 | AL188: =IF(AL187=1,AL$39,AK188) -> 3.512106507 | AM188: =IF(AM187=1,AM$39,AL188) -> 3.652590767 | AN188: =IF(AN187=1,AN$39,AM188) -> 1
C190: Receitas acessórias totais | E190: R$ | F190: =SUM(G190:AN190) -> 0 | G190: =IF(Inputs!$E$19=2,G183,G183*G188) -> 0 | H190: =IF(Inputs!$E$19=2,H183,H183*H188) -> 0 | I190: =IF(Inputs!$E$19=2,I183,I183*I188) -> 0 | J190: =IF(Inputs!$E$19=2,J183,J183*J188) -> 0 | K190: =IF(Inputs!$E$19=2,K183,K183*K188) -> 0 | L190: =IF(Inputs!$E$19=2,L183,L183*L188) -> 0 | M190: =IF(Inputs!$E$19=2,M183,M183*M188) -> 0 | N190: =IF(Inputs!$E$19=2,N183,N183*N188) -> 0 | O190: =IF(Inputs!$E$19=2,O183,O183*O188) -> 0 | P190: =IF(Inputs!$E$19=2,P183,P183*P188) -> 0 | Q190: =IF(Inputs!$E$19=2,Q183,Q183*Q188) -> 0 | R190: =IF(Inputs!$E$19=2,R183,R183*R188) -> 0 | S190: =IF(Inputs!$E$19=2,S183,S183*S188) -> 0 | T190: =IF(Inputs!$E$19=2,T183,T183*T188) -> 0 | U190: =IF(Inputs!$E$19=2,U183,U183*U188) -> 0 | V190: =IF(Inputs!$E$19=2,V183,V183*V188) -> 0 | W190: =IF(Inputs!$E$19=2,W183,W183*W188) -> 0 | X190: =IF(Inputs!$E$19=2,X183,X183*X188) -> 0 | Y190: =IF(Inputs!$E$19=2,Y183,Y183*Y188) -> 0 | Z190: =IF(Inputs!$E$19=2,Z183,Z183*Z188) -> 0 | AA190: =IF(Inputs!$E$19=2,AA183,AA183*AA188) -> 0 | AB190: =IF(Inputs!$E$19=2,AB183,AB183*AB188) -> 0 | AC190: =IF(Inputs!$E$19=2,AC183,AC183*AC188) -> 0 | AD190: =IF(Inputs!$E$19=2,AD183,AD183*AD188) -> 0 | AE190: =IF(Inputs!$E$19=2,AE183,AE183*AE188) -> 0 | AF190: =IF(Inputs!$E$19=2,AF183,AF183*AF188) -> 0 | AG190: =IF(Inputs!$E$19=2,AG183,AG183*AG188) -> 0 | AH190: =IF(Inputs!$E$19=2,AH183,AH183*AH188) -> 0 | AI190: =IF(Inputs!$E$19=2,AI183,AI183*AI188) -> 0 | AJ190: =IF(Inputs!$E$19=2,AJ183,AJ183*AJ188) -> 0 | AK190: =IF(Inputs!$E$19=2,AK183,AK183*AK188) -> 0 | AL190: =IF(Inputs!$E$19=2,AL183,AL183*AL188) -> 0 | AM190: =IF(Inputs!$E$19=2,AM183,AM183*AM188) -> 0 | AN190: =IF(Inputs!$E$19=2,AN183,AN183*AN188) -> 0
C193: Deduções da Receita
C194: =C127 -> Contraprestação anual | E194: R$ | F194: =SUM(G194:AN194) -> 155701.2259 | G194: =G127 -> 8720 | H194: 4133.535497 | I194: 4585.214927 | J194: 4623.505932 | K194: 4661.759147 | L194: 4699.971757 | M194: 4738.256011 | N194: 4776.491981 | O194: 4814.789814 | P194: 4853.032178 | Q194: 4891.327153 | R194: 4929.559945 | S194: 4967.836606 | T194: 5006.044822 | U194: 5044.288654 | V194: 5082.563074 | W194: 5120.863194 | X194: 5159.081529 | Y194: 5197.318294 | Z194: 5235.568984 | AA194: 5273.82922 | AB194: 5312.094757 | AC194: 5350.361472 | AD194: 5388.625371 | AE194: 5426.882577 | AF194: 5465.129335 | AG194: 5503.455713 | AH194: 5541.669819 | AI194: 5579.954719 | AJ194: 5618.213433 | AK194: 0 | AL194: 0 | AM194: 0 | AN194: 0
C195: Receita tarifária | E195: R$ | F195: =SUM(G195:AN195) -> 340378.8764 | G195: =SUM(G175:G175) -> 0 | H195: =SUM(H175:H175) -> 6111.701693 | I195: 8028.271845 | J195: 10545.76195 | K195: 10654.11793 | L195: 10763.47105 | M195: 10874.15368 | N195: 10985.83346 | O195: 11098.84276 | P195: 11212.8492 | Q195: 11328.18517 | R195: 11444.51827 | S195: 11562.18089 | T195: 11680.84066 | U195: 11800.82994 | V195: 11922.14875 | W195: 12044.79708 | X195: 12168.44255 | Y195: 12293.41754 | Z195: 12419.72205 | AA195: 12547.35608 | AB195: 12676.31964 | AC195: 12806.61271 | AD195: 12938.23531 | AE195: 13071.18742 | AF195: 13205.46906 | AG195: 13341.4126 | AH195: 13478.35328 | AI195: 13616.95587 | AJ195: 13756.88797 | AK195: 0 | AL195: 0 | AM195: 0 | AN195: 0
C196: Receitas acessórias | E196: R$ | F196: 0 | G196: =G190 -> 0 | H196: 0 | I196: 0 | J196: 0 | K196: 0 | L196: 0 | M196: 0 | N196: 0 | O196: 0 | P196: 0 | Q196: 0 | R196: 0 | S196: 0 | T196: 0 | U196: 0 | V196: 0 | W196: 0 | X196: 0 | Y196: 0 | Z196: 0 | AA196: 0 | AB196: 0 | AC196: 0 | AD196: 0 | AE196: 0 | AF196: 0 | AG196: 0 | AH196: 0 | AI196: 0 | AJ196: 0 | AK196: 0 | AL196: 0 | AM196: 0 | AN196: 0
C198: Receita total da PPP | E198: R$ | F198: =SUM(G198:AN198) -> 496080.1023 | G198: =SUM(G194:G197) -> 8720 | H198: 10245.23719 | I198: 12613.48677 | J198: 15169.26789 | K198: 15315.87708 | L198: 15463.4428 | M198: 15612.4097 | N198: 15762.32544 | O198: 15913.63258 | P198: 16065.88138 | Q198: 16219.51232 | R198: 16374.07821 | S198: 16530.0175 | T198: 16686.88548 | U198: 16845.1186 | V198: 17004.71182 | W198: 17165.66027 | X198: 17327.52408 | Y198: 17490.73583 | Z198: 17655.29103 | AA198: 17821.1853 | AB198: 17988.41439 | AC198: 18156.97418 | AD198: 18326.86068 | AE198: 18498.07 | AF198: 18670.5984 | AG198: 18844.86832 | AH198: 19020.0231 | AI198: 19196.91059 | AJ198: 19375.1014 | AK198: 0 | AL198: 0 | AM198: 0 | AN198: 0
C201: =Inputs!C129 -> Imposto s/ serviço - (ISS) | D201: =Inputs!D129 -> 0.03 | E201: R$ | F201: =SUM(G201:AN201) -> -14882.40307 | G201: =G$198*-$D201 -> -261.6 | H201: =H$198*-$D201 -> -307.3571157 | I201: -378.4046032 | J201: -455.0780366 | K201: -459.4763123 | L201: -463.9032841 | M201: -468.3722909 | N201: -472.8697633 | O201: -477.4089773 | P201: -481.9764414 | Q201: =Q$198*-$D201 -> -486.5853696 | R201: -491.2223464 | S201: -495.9005249 | T201: -500.6065644 | U201: -505.3535579 | V201: -510.1413547 | W201: -514.9698082 | X201: -519.8257223 | Y201: -524.722075 | Z201: -529.658731 | AA201: =AA$198*-$D201 -> -534.6355591 | AB201: -539.6524318 | AC201: -544.7092255 | AD201: -549.8058203 | AE201: -554.9421 | AF201: -560.1179519 | AG201: -565.3460495 | AH201: -570.6006931 | AI201: -575.9073176 | AJ201: -581.2530421 | AK201: 0 | AL201: 0 | AM201: 0 | AN201: 0
C202: =Inputs!C130 -> Programa Integração Social - (PIS) | D202: =Inputs!D130 -> 0.0165 | E202: R$ | F202: =SUM(G202:AN202) -> -8185.321689 | G202: =G$198*-$D202 -> -143.88 | H202: -169.0464136 | I202: -208.1225317 | J202: -250.2929201 | K202: -252.7119718 | L202: -255.1468063 | M202: -257.60476 | N202: -260.0783698 | O202: -262.5749375 | P202: -265.0870428 | Q202: -267.6219533 | R202: -270.1722905 | S202: -272.7452887 | T202: -275.3336104 | U202: -277.9444569 | V202: -280.5777451 | W202: -283.2333945 | X202: -285.9041473 | Y202: -288.5971412 | Z202: -291.3123021 | AA202: -294.0495575 | AB202: -296.8088375 | AC202: -299.590074 | AD202: -302.3932012 | AE202: -305.218155 | AF202: -308.0648736 | AG202: -310.9403272 | AH202: -313.8303812 | AI202: -316.7490247 | AJ202: -319.6891732 | AK202: 0 | AL202: 0 | AM202: 0 | AN202: 0
C203: =Inputs!C131 -> Contribuição para Financiamento de Seguridade Social - (COFINS) | D203: =Inputs!D131 -> 0.076 | E203: R$ | F203: =SUM(G203:AN203) -> -37702.08778 | G203: =G$198*-$D203 -> -662.72 | H203: -778.6380264 | I203: -958.6249947 | J203: -1152.864359 | K203: -1164.006658 | L203: -1175.221653 | M203: -1186.543137 | N203: -1197.936734 | O203: -1209.436076 | P203: -1221.006985 | Q203: -1232.682936 | R203: -1244.429944 | S203: -1256.28133 | T203: -1268.203296 | U203: -1280.229013 | V203: -1292.358099 | W203: -1304.590181 | X203: -1316.89183 | Y203: -1329.295923 | Z203: -1341.802119 | AA203: -1354.410083 | AB203: -1367.119494 | AC203: -1379.930038 | AD203: -1392.841412 | AE203: -1405.85332 | AF203: -1418.965478 | AG203: -1432.209992 | AH203: -1445.521756 | AI203: -1458.965205 | AJ203: -1472.507707 | AK203: 0 | AL203: 0 | AM203: 0 | AN203: 0
C204: Crédito de PIS / COFIS (não-cumulativo) | E204: R$ | F204: =SUM(G204:AN204) -> 37628.58186 | G204: =G242 -> 1555.253202 | H204: =H242 -> 1023.568275 | I204: =I242 -> 1231.293215 | J204: 1066.353248 | K204: 1070.554427 | L204: 1077.86459 | M204: 1077.076653 | N204: 1569.695708 | O204: 1077.110974 | P204: 1080.863394 | Q204: 1156.110441 | R204: 1087.804283 | S204: 1086.634903 | T204: 1087.323385 | U204: 1645.446827 | V204: 1174.671004 | W204: 1184.477428 | X204: 1197.929118 | Y204: 1220.505829 | Z204: 1235.635681 | AA204: 1313.121455 | AB204: 1742.753675 | AC204: 1246.127842 | AD204: 1249.103182 | AE204: 1270.369012 | AF204: 1278.624915 | AG204: 1277.227093 | AH204: 1281.051209 | AI204: 1777.343524 | AJ204: 1286.687369 | AK204: 0 | AL204: 0 | AM204: 0 | AN204: 0
C205: Inadimplência das Receitas Tarifárias | E205: R$ | F205: =SUM(G205:AN205) -> -10413.88305 | G205: =G252 -> 0 | H205: =H252 -> -305.5850847 | I205: =I252 -> -321.1308738 | J205: -316.3728586 | K205: -319.6235379 | L205: -322.9041314 | M205: -326.2246105 | N205: -329.5750039 | O205: -332.9652829 | P205: -336.3854761 | Q205: -339.845555 | R205: -343.335548 | S205: -346.8654268 | T205: -350.4252197 | U205: -354.0248983 | V205: -357.6644625 | W205: -361.3439124 | X205: -365.0532764 | Y205: -368.8025261 | Z205: -372.5916615 | AA205: -376.4206825 | AB205: -380.2895891 | AC205: -384.1983813 | AD205: -388.1470592 | AE205: -392.1356227 | AF205: -396.1640719 | AG205: -400.2423781 | AH205: -404.3505985 | AI205: -408.508676 | AJ205: -412.7066391 | AK205: 0 | AL205: 0 | AM205: 0 | AN205: 0
C207: Total de deduções da Receita | E207: R$ | F207: =SUM(G207:AN207) -> -33555.11372 | G207: =SUM(G201:G206) -> 487.0532017 | H207: =SUM(H200:H206) -> -537.0583651 | I207: -634.9897888 | J207: -1108.254926 | K207: -1125.264053 | L207: -1139.311285 | M207: -1161.668146 | N207: -690.7641623 | O207: -1205.274299 | P207: -1223.592551 | Q207: -1170.625373 | R207: -1261.355846 | S207: -1285.157667 | T207: -1307.245306 | U207: -772.1050994 | V207: -1266.070657 | W207: -1279.659867 | X207: -1289.745857 | Y207: -1290.911837 | Z207: -1299.729132 | AA207: -1246.394427 | AB207: -841.1166774 | AC207: -1362.299877 | AD207: -1384.084311 | AE207: -1387.780186 | AF207: -1404.687461 | AG207: -1431.511654 | AH207: -1453.25222 | AI207: -982.7866985 | AJ207: -1499.469192 | AK207: =SUM(AK201:AK206) -> 0 | AL207: =SUM(AL201:AL206) -> 0 | AM207: =SUM(AM201:AM206) -> 0 | AN207: 0
C209: Crédito de PIS / COFIS (não-cumulativo)
C211: CAPEX elegível
C212: =Ops!C418 -> CAPEX Total | D212: 1 | F212: =Ops!F418 -> 33226.92958 | G212: =Ops!G418 -> 7225.398645 | H212: =Ops!H418 -> 245.186145 | I212: =Ops!I418 -> 2147.607442 | J212: =Ops!J418 -> 20.196205 | K212: =Ops!K418 -> 25.89741 | L212: =Ops!L418 -> 68.05653 | M212: =Ops!M418 -> 39.767225 | N212: =Ops!N418 -> 5345.41641 | O212: =Ops!O418 -> 0 | P212: =Ops!P418 -> 20.196205 | Q212: =Ops!Q418 -> 813.09015 | R212: =Ops!R418 -> 53.84414 | S212: =Ops!S418 -> 20.196205 | T212: =Ops!T418 -> 6.41641 | U212: =Ops!U418 -> 5342.8962 | V212: =Ops!V418 -> 88.252735 | W212: =Ops!W418 -> 25.98743 | X212: =Ops!X418 -> 0 | Y212: =Ops!Y418 -> 20.704205 | Z212: =Ops!Z418 -> 6.41641 | AA212: =Ops!AA418 -> 806.67374 | AB212: =Ops!AB418 -> 5413.548345 | AC212: =Ops!AC418 -> 6.41641 | AD212: =Ops!AD418 -> 0 | AE212: =Ops!AE418 -> 24.600405 | AF212: =Ops!AF418 -> 74.47294 | AG212: =Ops!AG418 -> 19.57102 | AH212: =Ops!AH418 -> 20.704205 | AI212: =Ops!AI418 -> 5345.41641 | AJ212: =Ops!AJ418 -> 0 | AK212: =Ops!AK418 -> 0 | AL212: =Ops!AL418 -> 0 | AM212: =Ops!AM418 -> 0 | AN212: =Ops!AN418 -> 0
C214: Aproveitamento fiscal CAPEX | E214: R$ | F214: =SUM(G214:AN214) -> 33226.92958 | G214: =SUMPRODUCT(G212:G212,$D$212:$D$212) -> 7225.398645 | H214: 245.186145 | I214: 2147.607442 | J214: 20.196205 | K214: 25.89741 | L214: 68.05653 | M214: 39.767225 | N214: 5345.41641 | O214: 0 | P214: 20.196205 | Q214: 813.09015 | R214: 53.84414 | S214: 20.196205 | T214: 6.41641 | U214: 5342.8962 | V214: 88.252735 | W214: 25.98743 | X214: 0 | Y214: 20.704205 | Z214: 6.41641 | AA214: 806.67374 | AB214: 5413.548345 | AC214: 6.41641 | AD214: 0 | AE214: 24.600405 | AF214: 74.47294 | AG214: 19.57102 | AH214: 20.704205 | AI214: 5345.41641 | AJ214: 0 | AK214: 0 | AL214: 0 | AM214: 0 | AN214: 0
C217: OPEX Elegível
C219: =C339 -> Coleta Manual E Conteinerizada Resíduos Comuns | D219: =Inputs!$D$133 -> 1 | E219: =E339 -> $ 000s | F219: =SUM(G219:AN219) -> 93846.2946 | G219: =G339 -> 2663.145805 | H219: 2817.393805 | I219: 2971.641805 | J219: 3125.889805 | K219: 3125.889805 | L219: 3125.889805 | M219: 3125.889805 | N219: 3125.889805 | O219: 3125.889805 | P219: 3125.889805 | Q219: 3125.889805 | R219: 3125.889805 | S219: 3125.889805 | T219: 3125.889805 | U219: 3125.889805 | V219: 3125.889805 | W219: 3125.889805 | X219: 3125.889805 | Y219: 3125.889805 | Z219: 3125.889805 | AA219: 3125.889805 | AB219: 3125.889805 | AC219: 3125.889805 | AD219: 3125.889805 | AE219: 3291.73788 | AF219: 3291.73788 | AG219: 3291.73788 | AH219: 3291.73788 | AI219: 3291.73788 | AJ219: 3291.73788 | AK219: 0 | AL219: 0 | AM219: 0 | AN219: 0
C220: Coleta Materias Recicláveis | D220: =Inputs!$D$133 -> 1 | E220: $ 000s | F220: 65275.75894 | G220: =G340 -> 1743.964231 | H220: 1898.212231 | I220: 2052.460231 | J220: 2206.708231 | K220: 2206.708231 | L220: 2206.708231 | M220: 2206.708231 | N220: 2206.708231 | O220: 2206.708231 | P220: 2206.708231 | Q220: 2206.708231 | R220: 2206.708231 | S220: 2206.708231 | T220: 2206.708231 | U220: 2206.708231 | V220: 2206.708231 | W220: 2206.708231 | X220: 2206.708231 | Y220: 2206.708231 | Z220: 2206.708231 | AA220: 2206.708231 | AB220: 2206.708231 | AC220: 2206.708231 | AD220: 2206.708231 | AE220: 2206.708231 | AF220: 2206.708231 | AG220: 2206.708231 | AH220: 2206.708231 | AI220: 2206.708231 | AJ220: 2206.708231 | AK220: 0 | AL220: 0 | AM220: 0 | AN220: 0
C221: =C342 -> Transporte E Destinação - Resíduos Dos Pevs | D221: =Inputs!$D$133 -> 1 | E221: =E342 -> $ 000s | F221: 0 | G221: =G342 -> 0 | H221: 0 | I221: 0 | J221: 0 | K221: 0 | L221: 0 | M221: 0 | N221: 0 | O221: 0 | P221: 0 | Q221: 0 | R221: 0 | S221: 0 | T221: 0 | U221: 0 | V221: 0 | W221: 0 | X221: 0 | Y221: 0 | Z221: 0 | AA221: 0 | AB221: 0 | AC221: 0 | AD221: 0 | AE221: 0 | AF221: 0 | AG221: 0 | AH221: 0 | AI221: 0 | AJ221: 0 | AK221: 0 | AL221: 0 | AM221: 0 | AN221: 0
C222: =C343 -> Coleta Programada De Volumosos | D222: =Inputs!$D$133 -> 1 | E222: $ 000s | F222: 7560.542933 | G222: =G343 -> 252.0180978 | H222: 252.0180978 | I222: 252.0180978 | J222: 252.0180978 | K222: 252.0180978 | L222: 252.0180978 | M222: 252.0180978 | N222: 252.0180978 | O222: 252.0180978 | P222: 252.0180978 | Q222: 252.0180978 | R222: 252.0180978 | S222: 252.0180978 | T222: 252.0180978 | U222: 252.0180978 | V222: 252.0180978 | W222: 252.0180978 | X222: 252.0180978 | Y222: 252.0180978 | Z222: 252.0180978 | AA222: 252.0180978 | AB222: 252.0180978 | AC222: 252.0180978 | AD222: 252.0180978 | AE222: 252.0180978 | AF222: 252.0180978 | AG222: 252.0180978 | AH222: 252.0180978 | AI222: 252.0180978 | AJ222: 252.0180978 | AK222: 0 | AL222: 0 | AM222: 0 | AN222: 0
C223: =C344 -> Varrição Manual | D223: =Inputs!$D$133 -> 1 | E223: $ 000s | F223: 14422.75778 | G223: =G344 -> 414.328999 | H223: 462.9360187 | I223: 462.9360187 | J223: 462.9360187 | K223: 462.9360187 | L223: 462.9360187 | M223: 462.9360187 | N223: 462.9360187 | O223: 462.9360187 | P223: 462.9360187 | Q223: 462.9360187 | R223: 462.9360187 | S223: 462.9360187 | T223: 462.9360187 | U223: 462.9360187 | V223: 462.9360187 | W223: 462.9360187 | X223: 462.9360187 | Y223: 511.5430384 | Z223: 511.5430384 | AA223: 511.5430384 | AB223: 511.5430384 | AC223: 511.5430384 | AD223: 511.5430384 | AE223: 511.5430384 | AF223: 511.5430384 | AG223: 511.5430384 | AH223: 511.5430384 | AI223: 511.5430384 | AJ223: 511.5430384 | AK223: 0 | AL223: 0 | AM223: 0 | AN223: 0
C224: =C345 -> Serviços Gerais (Tipos I E II) | D224: =Inputs!$D$133 -> 1 | E224: $ 000s | F224: 68053.51432 | G224: =G345 -> 2268.450477 | H224: 2268.450477 | I224: 2268.450477 | J224: 2268.450477 | K224: 2268.450477 | L224: 2268.450477 | M224: 2268.450477 | N224: 2268.450477 | O224: 2268.450477 | P224: 2268.450477 | Q224: 2268.450477 | R224: 2268.450477 | S224: 2268.450477 | T224: 2268.450477 | U224: 2268.450477 | V224: 2268.450477 | W224: 2268.450477 | X224: 2268.450477 | Y224: 2268.450477 | Z224: 2268.450477 | AA224: 2268.450477 | AB224: 2268.450477 | AC224: 2268.450477 | AD224: 2268.450477 | AE224: 2268.450477 | AF224: 2268.450477 | AG224: 2268.450477 | AH224: 2268.450477 | AI224: 2268.450477 | AJ224: 2268.450477 | AK224: 0 | AL224: 0 | AM224: 0 | AN224: 0
C225: =C346 -> Destinação Final | D225: =Inputs!$D$133 -> 1 | E225: $ 000s | F225: 77409.20833 | G225: =G346 -> 1525.762869 | H225: 1561.539491 | I225: 1594.421036 | J225: 1627.81412 | K225: 1665.128074 | L225: 1699.563548 | M225: 1716.869205 | N225: 1734.350426 | O225: 1752.01425 | P225: 1769.856931 | Q225: 1787.88554 | R225: 1806.096367 | S225: 1824.496517 | T225: 1843.082314 | U225: 2537.701213 | V225: 2700.176854 | W225: 2865.726894 | X225: 3034.391726 | Y225: 3206.223164 | Z225: 3381.268248 | AA225: 3415.855062 | AB225: 3450.797603 | AC225: 3486.099304 | AD225: 3521.763634 | AE225: 3557.794099 | AF225: 3594.194238 | AG225: 3630.973029 | AH225: 3668.123286 | AI225: 3705.659459 | AJ225: 3743.579837 | AK225: 0 | AL225: 0 | AM225: 0 | AN225: 0
C226: Educaçao Ambiental | D226: =Inputs!$D$133 -> 1 | E226: $ 000s | F226: 6288.287497 | G226: =G347 -> 209.6095832 | H226: 209.6095832 | I226: 209.6095832 | J226: 209.6095832 | K226: 209.6095832 | L226: 209.6095832 | M226: 209.6095832 | N226: 209.6095832 | O226: 209.6095832 | P226: 209.6095832 | Q226: 209.6095832 | R226: 209.6095832 | S226: 209.6095832 | T226: 209.6095832 | U226: 209.6095832 | V226: 209.6095832 | W226: 209.6095832 | X226: 209.6095832 | Y226: 209.6095832 | Z226: 209.6095832 | AA226: 209.6095832 | AB226: 209.6095832 | AC226: 209.6095832 | AD226: 209.6095832 | AE226: 209.6095832 | AF226: 209.6095832 | AG226: 209.6095832 | AH226: 209.6095832 | AI226: 209.6095832 | AJ226: 209.6095832 | AK226: 0 | AL226: 0 | AM226: 0 | AN226: 0
C227: Relação Com O Usuário | D227: =Inputs!$D$133 -> 1 | E227: $ 000s | F227: 25368.27222 | G227: =G348 -> 0 | H227: 838.9305068 | I227: 840.806684 | J227: 843.194069 | K227: 845.5970577 | L227: 848.0312541 | M227: 850.4966581 | N227: 852.977666 | O227: 855.4898815 | P227: 858.0177008 | Q227: 860.5767278 | R227: 863.1669624 | S227: 865.7728008 | T227: 868.4098469 | U227: 871.0781006 | V227: 873.777562 | W227: 876.508231 | X227: 879.2545039 | Y227: 882.0319844 | Z227: 884.8406725 | AA227: 887.6805683 | AB227: 890.5360679 | AC227: 893.438379 | AD227: 896.3562938 | AE227: 899.3210202 | AF227: 902.3013504 | AG227: 905.3128882 | AH227: 908.3712375 | AI227: 911.4451907 | AJ227: 914.5503514 | AK227: 0 | AL227: 0 | AM227: 0 | AN227: 0
C228: Administração Local | D228: =Inputs!$D$133 -> 1 | E228: $ 000s | F228: 14347.1055 | G228: =G349 -> 477.6424899 | H228: 478.0996899 | I228: 478.0996899 | J228: 478.0996899 | K228: 478.0996899 | L228: 478.0996899 | M228: 478.0996899 | N228: 478.0996899 | O228: 478.0996899 | P228: 478.0996899 | Q228: 478.0996899 | R228: 478.0996899 | S228: 478.0996899 | T228: 478.0996899 | U228: 478.0996899 | V228: 478.0996899 | W228: 478.0996899 | X228: 478.0996899 | Y228: 478.2520899 | Z228: 478.2520899 | AA228: 478.2520899 | AB228: 478.2520899 | AC228: 478.2520899 | AD228: 478.2520899 | AE228: 478.7092899 | AF228: 478.7092899 | AG228: 478.7092899 | AH228: 478.7092899 | AI228: 478.7092899 | AJ228: 478.7092899 | AK228: 0 | AL228: 0 | AM228: 0 | AN228: 0
C229: Administração Central | D229: =Inputs!$D$133 -> 1 | E229: $ 000s | F229: 0 | G229: =G350 -> 0 | H229: 0 | I229: 0 | J229: 0 | K229: 0 | L229: 0 | M229: 0 | N229: 0 | O229: 0 | P229: 0 | Q229: 0 | R229: 0 | S229: 0 | T229: 0 | U229: 0 | V229: 0 | W229: 0 | X229: 0 | Y229: 0 | Z229: 0 | AA229: 0 | AB229: 0 | AC229: 0 | AD229: 0 | AE229: 0 | AF229: 0 | AG229: 0 | AH229: 0 | AI229: 0 | AJ229: 0 | AK229: 0 | AL229: 0 | AM229: 0 | AN229: 0
C230: Gerencialmento Contrato | D230: =Inputs!$D$133 -> 1 | F230: 996.8078873 | G230: =G351 -> 33.22692958 | H230: 33.22692958 | I230: 33.22692958 | J230: 33.22692958 | K230: 33.22692958 | L230: 33.22692958 | M230: 33.22692958 | N230: 33.22692958 | O230: 33.22692958 | P230: 33.22692958 | Q230: 33.22692958 | R230: 33.22692958 | S230: 33.22692958 | T230: 33.22692958 | U230: 33.22692958 | V230: 33.22692958 | W230: 33.22692958 | X230: 33.22692958 | Y230: 33.22692958 | Z230: 33.22692958 | AA230: 33.22692958 | AB230: 33.22692958 | AC230: 33.22692958 | AD230: 33.22692958 | AE230: 33.22692958 | AF230: 33.22692958 | AG230: 33.22692958 | AH230: 33.22692958 | AI230: 33.22692958 | AJ230: 33.22692958 | AK230: 0 | AL230: 0 | AM230: 0 | AN230: 0
C232: Aproveitamento fiscal OPEX | E232: R$ | F232: =SUM(G232:AN232) -> 373568.55 | G232: =SUMPRODUCT(G219:G230,$D$219:$D$230) -> 9588.149482 | H232: =SUMPRODUCT(H219:H230,$D$219:$D$230) -> 10820.41683 | I232: 11163.67055 | J232: 11507.94702 | K232: 11547.66396 | L232: 11584.53363 | M232: 11604.3047 | N232: 11624.26692 | O232: 11644.44296 | P232: 11664.81346 | Q232: 11685.4011 | R232: 11706.20216 | S232: 11727.20815 | T232: 11748.43099 | U232: 12445.71815 | V232: 12610.89325 | W232: 12779.17396 | X232: 12950.58506 | Y232: 13173.9534 | Z232: 13351.80717 | AA232: 13389.23388 | AB232: 13427.03192 | AC232: 13465.23594 | AD232: 13503.81818 | AE232: 13709.11865 | AF232: 13748.49912 | AG232: 13788.28944 | AH232: 13828.49805 | AI232: 13869.10818 | AJ232: 13910.13372 | AK232: 0 | AL232: 0 | AM232: 0 | AN232: 0
C235: Crédito de PIS / COFIS a ser utilizado (não-cumulativo)
C237: Alíquota total | D237: =SUM($D$202:$D$203) -> 0.0925
C239: =C214 -> Aproveitamento fiscal CAPEX | E239: =E232 -> R$ | F239: =SUM(G239:AN239) -> 33226.92958 | G239: =G214 -> 7225.398645 | H239: 245.186145 | I239: 2147.607442 | J239: 20.196205 | K239: 25.89741 | L239: 68.05653 | M239: 39.767225 | N239: 5345.41641 | O239: 0 | P239: 20.196205 | Q239: 813.09015 | R239: 53.84414 | S239: 20.196205 | T239: 6.41641 | U239: 5342.8962 | V239: 88.252735 | W239: 25.98743 | X239: 0 | Y239: 20.704205 | Z239: 6.41641 | AA239: 806.67374 | AB239: 5413.548345 | AC239: 6.41641 | AD239: 0 | AE239: 24.600405 | AF239: 74.47294 | AG239: 19.57102 | AH239: 20.704205 | AI239: 5345.41641 | AJ239: 0 | AK239: 0 | AL239: 0 | AM239: 0 | AN239: 0
C240: =C232 -> Aproveitamento fiscal OPEX | E240: =E232 -> R$ | F240: =SUM(G240:AN240) -> 373568.55 | G240: =G232 -> 9588.149482 | H240: 10820.41683 | I240: 11163.67055 | J240: 11507.94702 | K240: 11547.66396 | L240: 11584.53363 | M240: 11604.3047 | N240: 11624.26692 | O240: 11644.44296 | P240: 11664.81346 | Q240: 11685.4011 | R240: 11706.20216 | S240: 11727.20815 | T240: 11748.43099 | U240: 12445.71815 | V240: 12610.89325 | W240: 12779.17396 | X240: 12950.58506 | Y240: 13173.9534 | Z240: 13351.80717 | AA240: 13389.23388 | AB240: 13427.03192 | AC240: 13465.23594 | AD240: 13503.81818 | AE240: 13709.11865 | AF240: 13748.49912 | AG240: 13788.28944 | AH240: 13828.49805 | AI240: 13869.10818 | AJ240: 13910.13372 | AK240: 0 | AL240: 0 | AM240: 0 | AN240: 0
C242: Benefício Fiscal a ser utilizado | F242: =F235 -> 0 | G242: =IF(G194=0,0,SUM(G239:G240)*$D$237) -> 1555.253202 | H242: 1023.568275 | I242: 1231.293215 | J242: 1066.353248 | K242: 1070.554427 | L242: 1077.86459 | M242: 1077.076653 | N242: 1569.695708 | O242: 1077.110974 | P242: 1080.863394 | Q242: 1156.110441 | R242: 1087.804283 | S242: 1086.634903 | T242: 1087.323385 | U242: 1645.446827 | V242: 1174.671004 | W242: 1184.477428 | X242: 1197.929118 | Y242: 1220.505829 | Z242: 1235.635681 | AA242: 1313.121455 | AB242: 1742.753675 | AC242: 1246.127842 | AD242: 1249.103182 | AE242: 1270.369012 | AF242: 1278.624915 | AG242: 1277.227093 | AH242: 1281.051209 | AI242: 1777.343524 | AJ242: 1286.687369 | AK242: 0 | AL242: 0 | AM242: 0 | AN242: 0
C246: Inadimplência das Receitas Tarifárias
C248: =Flags!C15 -> Counter Concessão | E248: =Flags!E15 -> Ano | G248: =Flags!G15 -> 1 | H248: =Flags!H15 -> 2 | I248: =Flags!I15 -> 3 | J248: =Flags!J15 -> 4 | K248: =Flags!K15 -> 5 | L248: =Flags!L15 -> 6 | M248: =Flags!M15 -> 7 | N248: =Flags!N15 -> 8 | O248: =Flags!O15 -> 9 | P248: =Flags!P15 -> 10 | Q248: =Flags!Q15 -> 11 | R248: =Flags!R15 -> 12 | S248: =Flags!S15 -> 13 | T248: =Flags!T15 -> 14 | U248: =Flags!U15 -> 15 | V248: =Flags!V15 -> 16 | W248: =Flags!W15 -> 17 | X248: =Flags!X15 -> 18 | Y248: =Flags!Y15 -> 19 | Z248: =Flags!Z15 -> 20 | AA248: =Flags!AA15 -> 21 | AB248: =Flags!AB15 -> 22 | AC248: =Flags!AC15 -> 23 | AD248: =Flags!AD15 -> 24 | AE248: =Flags!AE15 -> 25 | AF248: =Flags!AF15 -> 26 | AG248: =Flags!AG15 -> 27 | AH248: =Flags!AH15 -> 28 | AI248: =Flags!AI15 -> 29 | AJ248: =Flags!AJ15 -> 30 | AK248: =Flags!AK15 -> 31 | AL248: =Flags!AL15 -> 32 | AM248: =Flags!AM15 -> 33 | AN248: =Flags!AN15 -> 34
C249: Receitas tarifária | E249: R$ | F249: =SUM(G249:AN249) -> 340378.8764 | G249: =G195 -> 0 | H249: 6111.701693 | I249: 8028.271845 | J249: 10545.76195 | K249: 10654.11793 | L249: 10763.47105 | M249: 10874.15368 | N249: 10985.83346 | O249: 11098.84276 | P249: 11212.8492 | Q249: 11328.18517 | R249: 11444.51827 | S249: 11562.18089 | T249: 11680.84066 | U249: 11800.82994 | V249: 11922.14875 | W249: 12044.79708 | X249: 12168.44255 | Y249: 12293.41754 | Z249: 12419.72205 | AA249: 12547.35608 | AB249: 12676.31964 | AC249: 12806.61271 | AD249: 12938.23531 | AE249: 13071.18742 | AF249: 13205.46906 | AG249: 13341.4126 | AH249: 13478.35328 | AI249: 13616.95587 | AJ249: 13756.88797 | AK249: 0 | AL249: 0 | AM249: 0 | AN249: 0
C250: Índice de inadimplência | E250: % | F250: =AVERAGE(G250:AJ250) -> 0.03 | G250: =IFERROR(LOOKUP(G$248,Inputs!$D$135:$J$135,Inputs!$D$136:$J$136),0) -> 0 | H250: =IFERROR(LOOKUP(H$248,Inputs!$D$135:$N$135,Inputs!$D$136:$N$136),0) -> 0.05 | I250: =IFERROR(LOOKUP(I$248,Inputs!$D$135:$N$135,Inputs!$D$136:$N$136),0) -> 0.04 | J250: =IFERROR(LOOKUP(J$248,Inputs!$D$135:$N$135,Inputs!$D$136:$N$136),0) -> 0.03 | K250: =IFERROR(LOOKUP(K$248,Inputs!$D$135:$N$135,Inputs!$D$136:$N$136),0) -> 0.03 | L250: =IFERROR(LOOKUP(L$248,Inputs!$D$135:$N$135,Inputs!$D$136:$N$136),0) -> 0.03 | M250: =IFERROR(LOOKUP(M$248,Inputs!$D$135:$N$135,Inputs!$D$136:$N$136),0) -> 0.03 | N250: =IFERROR(LOOKUP(N$248,Inputs!$D$135:$N$135,Inputs!$D$136:$N$136),0) -> 0.03 | O250: =IFERROR(LOOKUP(O$248,Inputs!$D$135:$N$135,Inputs!$D$136:$N$136),0) -> 0.03 | P250: =IFERROR(LOOKUP(P$248,Inputs!$D$135:$N$135,Inputs!$D$136:$N$136),0) -> 0.03 | Q250: =IFERROR(LOOKUP(Q$248,Inputs!$D$135:$N$135,Inputs!$D$136:$N$136),0) -> 0.03 | R250: =IFERROR(LOOKUP(R$248,Inputs!$D$135:$N$135,Inputs!$D$136:$N$136),0) -> 0.03 | S250: =IFERROR(LOOKUP(S$248,Inputs!$D$135:$N$135,Inputs!$D$136:$N$136),0) -> 0.03 | T250: =IFERROR(LOOKUP(T$248,Inputs!$D$135:$N$135,Inputs!$D$136:$N$136),0) -> 0.03 | U250: =IFERROR(LOOKUP(U$248,Inputs!$D$135:$N$135,Inputs!$D$136:$N$136),0) -> 0.03 | V250: =IFERROR(LOOKUP(V$248,Inputs!$D$135:$N$135,Inputs!$D$136:$N$136),0) -> 0.03 | W250: =IFERROR(LOOKUP(W$248,Inputs!$D$135:$N$135,Inputs!$D$136:$N$136),0) -> 0.03 | X250: =IFERROR(LOOKUP(X$248,Inputs!$D$135:$N$135,Inputs!$D$136:$N$136),0) -> 0.03 | Y250: =IFERROR(LOOKUP(Y$248,Inputs!$D$135:$N$135,Inputs!$D$136:$N$136),0) -> 0.03 | Z250: =IFERROR(LOOKUP(Z$248,Inputs!$D$135:$N$135,Inputs!$D$136:$N$136),0) -> 0.03 | AA250: =IFERROR(LOOKUP(AA$248,Inputs!$D$135:$N$135,Inputs!$D$136:$N$136),0) -> 0.03 | AB250: =IFERROR(LOOKUP(AB$248,Inputs!$D$135:$N$135,Inputs!$D$136:$N$136),0) -> 0.03 | AC250: =IFERROR(LOOKUP(AC$248,Inputs!$D$135:$N$135,Inputs!$D$136:$N$136),0) -> 0.03 | AD250: =IFERROR(LOOKUP(AD$248,Inputs!$D$135:$N$135,Inputs!$D$136:$N$136),0) -> 0.03 | AE250: =IFERROR(LOOKUP(AE$248,Inputs!$D$135:$N$135,Inputs!$D$136:$N$136),0) -> 0.03 | AF250: =IFERROR(LOOKUP(AF$248,Inputs!$D$135:$N$135,Inputs!$D$136:$N$136),0) -> 0.03 | AG250: =IFERROR(LOOKUP(AG$248,Inputs!$D$135:$N$135,Inputs!$D$136:$N$136),0) -> 0.03 | AH250: =IFERROR(LOOKUP(AH$248,Inputs!$D$135:$N$135,Inputs!$D$136:$N$136),0) -> 0.03 | AI250: =IFERROR(LOOKUP(AI$248,Inputs!$D$135:$N$135,Inputs!$D$136:$N$136),0) -> 0.03 | AJ250: =IFERROR(LOOKUP(AJ$248,Inputs!$D$135:$N$135,Inputs!$D$136:$N$136),0) -> 0.03 | AK250: =IFERROR(LOOKUP(AK$248,Inputs!$D$135:$N$135,Inputs!$D$136:$N$136),0) -> 0.03 | AL250: =IFERROR(LOOKUP(AL$248,Inputs!$D$135:$N$135,Inputs!$D$136:$N$136),0) -> 0.03 | AM250: =IFERROR(LOOKUP(AM$248,Inputs!$D$135:$N$135,Inputs!$D$136:$N$136),0) -> 0.03 | AN250: =IFERROR(LOOKUP(AN$248,Inputs!$D$135:$N$135,Inputs!$D$136:$N$136),0) -> 0.03
C252: Inadimplência das Receitas Tarifárias | E252: R$ | F252: =SUM(G252:AN252) -> -10413.88305 | G252: =G249*-G250 -> 0 | H252: =H249*-H250 -> -305.5850847 | I252: -321.1308738 | J252: -316.3728586 | K252: -319.6235379 | L252: -322.9041314 | M252: -326.2246105 | N252: -329.5750039 | O252: -332.9652829 | P252: -336.3854761 | Q252: -339.845555 | R252: -343.335548 | S252: -346.8654268 | T252: -350.4252197 | U252: -354.0248983 | V252: -357.6644625 | W252: -361.3439124 | X252: -365.0532764 | Y252: -368.8025261 | Z252: -372.5916615 | AA252: -376.4206825 | AB252: -380.2895891 | AC252: -384.1983813 | AD252: -388.1470592 | AE252: -392.1356227 | AF252: -396.1640719 | AG252: -400.2423781 | AH252: -404.3505985 | AI252: -408.508676 | AJ252: -412.7066391 | AK252: 0 | AL252: 0 | AM252: 0 | AN252: 0
C256: Operating Costs (OPEX)
C258: Custos e Despesas (OPEX) PPP
C260: =Flags!C72 -> Cons + Ops Flag | E260: =Flags!E72 -> Flag | F260: =Flags!F72 -> 30 | G260: =Flags!G72 -> 1 | H260: =Flags!H72 -> 1 | I260: =Flags!I72 -> 1 | J260: =Flags!J72 -> 1 | K260: =Flags!K72 -> 1 | L260: =Flags!L72 -> 1 | M260: =Flags!M72 -> 1 | N260: =Flags!N72 -> 1 | O260: =Flags!O72 -> 1 | P260: =Flags!P72 -> 1 | Q260: =Flags!Q72 -> 1 | R260: =Flags!R72 -> 1 | S260: =Flags!S72 -> 1 | T260: =Flags!T72 -> 1 | U260: =Flags!U72 -> 1 | V260: =Flags!V72 -> 1 | W260: =Flags!W72 -> 1 | X260: =Flags!X72 -> 1 | Y260: =Flags!Y72 -> 1 | Z260: =Flags!Z72 -> 1 | AA260: =Flags!AA72 -> 1 | AB260: =Flags!AB72 -> 1 | AC260: =Flags!AC72 -> 1 | AD260: =Flags!AD72 -> 1 | AE260: =Flags!AE72 -> 1 | AF260: =Flags!AF72 -> 1 | AG260: =Flags!AG72 -> 1 | AH260: =Flags!AH72 -> 1 | AI260: =Flags!AI72 -> 1 | AJ260: =Flags!AJ72 -> 1 | AK260: =Flags!AK72 -> 0 | AL260: =Flags!AL72 -> 0 | AM260: =Flags!AM72 -> 0 | AN260: =Flags!AN72 -> 0
C263: =Inputs!C151 -> Coleta Manual E Conteinerizada Resíduos Comuns | E263: $ 000s | F263: =SUM(G263:AN263) -> 93846.2946 | G263: =Inputs!D151*Ops!G$260 -> 2663.145805 | H263: =Inputs!E151*Ops!H$260 -> 2817.393805 | I263: =Inputs!F151*Ops!I$260 -> 2971.641805 | J263: =Inputs!G151*Ops!J$260 -> 3125.889805 | K263: =Inputs!H151*Ops!K$260 -> 3125.889805 | L263: =Inputs!I151*Ops!L$260 -> 3125.889805 | M263: =Inputs!J151*Ops!M$260 -> 3125.889805 | N263: =Inputs!K151*Ops!N$260 -> 3125.889805 | O263: =Inputs!L151*Ops!O$260 -> 3125.889805 | P263: =Inputs!M151*Ops!P$260 -> 3125.889805 | Q263: =Inputs!N151*Ops!Q$260 -> 3125.889805 | R263: =Inputs!O151*Ops!R$260 -> 3125.889805 | S263: =Inputs!P151*Ops!S$260 -> 3125.889805 | T263: =Inputs!Q151*Ops!T$260 -> 3125.889805 | U263: =Inputs!R151*Ops!U$260 -> 3125.889805 | V263: =Inputs!S151*Ops!V$260 -> 3125.889805 | W263: =Inputs!T151*Ops!W$260 -> 3125.889805 | X263: =Inputs!U151*Ops!X$260 -> 3125.889805 | Y263: =Inputs!V151*Ops!Y$260 -> 3125.889805 | Z263: =Inputs!W151*Ops!Z$260 -> 3125.889805 | AA263: =Inputs!X151*Ops!AA$260 -> 3125.889805 | AB263: =Inputs!Y151*Ops!AB$260 -> 3125.889805 | AC263: =Inputs!Z151*Ops!AC$260 -> 3125.889805 | AD263: =Inputs!AA151*Ops!AD$260 -> 3125.889805 | AE263: =Inputs!AB151*Ops!AE$260 -> 3291.73788 | AF263: =Inputs!AC151*Ops!AF$260 -> 3291.73788 | AG263: =Inputs!AD151*Ops!AG$260 -> 3291.73788 | AH263: =Inputs!AE151*Ops!AH$260 -> 3291.73788 | AI263: =Inputs!AF151*Ops!AI$260 -> 3291.73788 | AJ263: =Inputs!AG151*Ops!AJ$260 -> 3291.73788 | AK263: =Inputs!AH151*Ops!AK$260 -> 0 | AL263: =Inputs!AI151*Ops!AL$260 -> 0 | AM263: =Inputs!AJ151*Ops!AM$260 -> 0 | AN263: =Inputs!AK151*Ops!AN$260 -> 0
C264: =Inputs!C152 -> Coleta Materias Recicláveis | E264: $ 000s | F264: 65275.75894 | G264: =Inputs!D152*Ops!G$260 -> 1743.964231 | H264: =Inputs!E152*Ops!H$260 -> 1898.212231 | I264: =Inputs!F152*Ops!I$260 -> 2052.460231 | J264: =Inputs!G152*Ops!J$260 -> 2206.708231 | K264: =Inputs!H152*Ops!K$260 -> 2206.708231 | L264: =Inputs!I152*Ops!L$260 -> 2206.708231 | M264: =Inputs!J152*Ops!M$260 -> 2206.708231 | N264: =Inputs!K152*Ops!N$260 -> 2206.708231 | O264: =Inputs!L152*Ops!O$260 -> 2206.708231 | P264: =Inputs!M152*Ops!P$260 -> 2206.708231 | Q264: =Inputs!N152*Ops!Q$260 -> 2206.708231 | R264: =Inputs!O152*Ops!R$260 -> 2206.708231 | S264: =Inputs!P152*Ops!S$260 -> 2206.708231 | T264: =Inputs!Q152*Ops!T$260 -> 2206.708231 | U264: =Inputs!R152*Ops!U$260 -> 2206.708231 | V264: =Inputs!S152*Ops!V$260 -> 2206.708231 | W264: =Inputs!T152*Ops!W$260 -> 2206.708231 | X264: =Inputs!U152*Ops!X$260 -> 2206.708231 | Y264: =Inputs!V152*Ops!Y$260 -> 2206.708231 | Z264: =Inputs!W152*Ops!Z$260 -> 2206.708231 | AA264: =Inputs!X152*Ops!AA$260 -> 2206.708231 | AB264: =Inputs!Y152*Ops!AB$260 -> 2206.708231 | AC264: =Inputs!Z152*Ops!AC$260 -> 2206.708231 | AD264: =Inputs!AA152*Ops!AD$260 -> 2206.708231 | AE264: =Inputs!AB152*Ops!AE$260 -> 2206.708231 | AF264: =Inputs!AC152*Ops!AF$260 -> 2206.708231 | AG264: =Inputs!AD152*Ops!AG$260 -> 2206.708231 | AH264: =Inputs!AE152*Ops!AH$260 -> 2206.708231 | AI264: =Inputs!AF152*Ops!AI$260 -> 2206.708231 | AJ264: =Inputs!AG152*Ops!AJ$260 -> 2206.708231 | AK264: =Inputs!AH152*Ops!AK$260 -> 0 | AL264: =Inputs!AI152*Ops!AL$260 -> 0 | AM264: =Inputs!AJ152*Ops!AM$260 -> 0 | AN264: =Inputs!AK152*Ops!AN$260 -> 0
C265: =Inputs!C153 -> Coleta De Resíduos Do Serviço De Saúde Municipal | E265: $ 000s | F265: =SUM(G265:AN265) -> 7295.018714 | G265: =Inputs!D153*Ops!G$260 -> 208.7700166 | H265: =Inputs!E153*Ops!H$260 -> 210.9203477 | I265: =Inputs!F153*Ops!I$260 -> 213.0928273 | J265: =Inputs!G153*Ops!J$260 -> 215.2876834 | K265: =Inputs!H153*Ops!K$260 -> 217.5051466 | L265: =Inputs!I153*Ops!L$260 -> 219.7454496 | M265: =Inputs!J153*Ops!M$260 -> 222.0088277 | N265: =Inputs!K153*Ops!N$260 -> 224.2955186 | O265: =Inputs!L153*Ops!O$260 -> 226.6057625 | P265: =Inputs!M153*Ops!P$260 -> 228.9398018 | Q265: =Inputs!N153*Ops!Q$260 -> 231.2978818 | R265: =Inputs!O153*Ops!R$260 -> 233.68025 | S265: =Inputs!P153*Ops!S$260 -> 236.0871566 | T265: =Inputs!Q153*Ops!T$260 -> 238.5188543 | U265: =Inputs!R153*Ops!U$260 -> 240.9755985 | V265: =Inputs!S153*Ops!V$260 -> 243.4576471 | W265: =Inputs!T153*Ops!W$260 -> 245.9652609 | X265: =Inputs!U153*Ops!X$260 -> 248.4987031 | Y265: =Inputs!V153*Ops!Y$260 -> 251.0582397 | Z265: =Inputs!W153*Ops!Z$260 -> 253.6441396 | AA265: =Inputs!X153*Ops!AA$260 -> 256.2566742 | AB265: =Inputs!Y153*Ops!AB$260 -> 258.896118 | AC265: =Inputs!Z153*Ops!AC$260 -> 261.562748 | AD265: =Inputs!AA153*Ops!AD$260 -> 264.2568443 | AE265: =Inputs!AB153*Ops!AE$260 -> 266.9786898 | AF265: =Inputs!AC153*Ops!AF$260 -> 269.7285703 | AG265: =Inputs!AD153*Ops!AG$260 -> 272.5067746 | AH265: =Inputs!AE153*Ops!AH$260 -> 275.3135943 | AI265: =Inputs!AF153*Ops!AI$260 -> 278.1493244 | AJ265: =Inputs!AG153*Ops!AJ$260 -> 281.0142624 | AK265: =Inputs!AH153*Ops!AK$260 -> 0 | AL265: =Inputs!AI153*Ops!AL$260 -> 0 | AM265: =Inputs!AJ153*Ops!AM$260 -> 0 | AN265: =Inputs!AK153*Ops!AN$260 -> 0
C266: =Inputs!C154 -> Transporte E Destinação - Resíduos Dos Pevs | E266: $ 000s | F266: 0 | G266: =Inputs!D154*Ops!G$260 -> 0 | H266: =Inputs!E154*Ops!H$260 -> 0 | I266: =Inputs!F154*Ops!I$260 -> 0 | J266: =Inputs!G154*Ops!J$260 -> 0 | K266: =Inputs!H154*Ops!K$260 -> 0 | L266: =Inputs!I154*Ops!L$260 -> 0 | M266: =Inputs!J154*Ops!M$260 -> 0 | N266: =Inputs!K154*Ops!N$260 -> 0 | O266: =Inputs!L154*Ops!O$260 -> 0 | P266: =Inputs!M154*Ops!P$260 -> 0 | Q266: =Inputs!N154*Ops!Q$260 -> 0 | R266: =Inputs!O154*Ops!R$260 -> 0 | S266: =Inputs!P154*Ops!S$260 -> 0 | T266: =Inputs!Q154*Ops!T$260 -> 0 | U266: =Inputs!R154*Ops!U$260 -> 0 | V266: =Inputs!S154*Ops!V$260 -> 0 | W266: =Inputs!T154*Ops!W$260 -> 0 | X266: =Inputs!U154*Ops!X$260 -> 0 | Y266: =Inputs!V154*Ops!Y$260 -> 0 | Z266: =Inputs!W154*Ops!Z$260 -> 0 | AA266: =Inputs!X154*Ops!AA$260 -> 0 | AB266: =Inputs!Y154*Ops!AB$260 -> 0 | AC266: =Inputs!Z154*Ops!AC$260 -> 0 | AD266: =Inputs!AA154*Ops!AD$260 -> 0 | AE266: =Inputs!AB154*Ops!AE$260 -> 0 | AF266: =Inputs!AC154*Ops!AF$260 -> 0 | AG266: =Inputs!AD154*Ops!AG$260 -> 0 | AH266: =Inputs!AE154*Ops!AH$260 -> 0 | AI266: =Inputs!AF154*Ops!AI$260 -> 0 | AJ266: =Inputs!AG154*Ops!AJ$260 -> 0 | AK266: =Inputs!AH154*Ops!AK$260 -> 0 | AL266: =Inputs!AI154*Ops!AL$260 -> 0 | AM266: =Inputs!AJ154*Ops!AM$260 -> 0 | AN266: =Inputs!AK154*Ops!AN$260 -> 0
C267: =Inputs!C155 -> Coleta Programada De Volumosos | E267: $ 000s | F267: 7560.542933 | G267: =Inputs!D155*Ops!G$260 -> 252.0180978 | H267: =Inputs!E155*Ops!H$260 -> 252.0180978 | I267: =Inputs!F155*Ops!I$260 -> 252.0180978 | J267: =Inputs!G155*Ops!J$260 -> 252.0180978 | K267: =Inputs!H155*Ops!K$260 -> 252.0180978 | L267: =Inputs!I155*Ops!L$260 -> 252.0180978 | M267: =Inputs!J155*Ops!M$260 -> 252.0180978 | N267: =Inputs!K155*Ops!N$260 -> 252.0180978 | O267: =Inputs!L155*Ops!O$260 -> 252.0180978 | P267: =Inputs!M155*Ops!P$260 -> 252.0180978 | Q267: =Inputs!N155*Ops!Q$260 -> 252.0180978 | R267: =Inputs!O155*Ops!R$260 -> 252.0180978 | S267: =Inputs!P155*Ops!S$260 -> 252.0180978 | T267: =Inputs!Q155*Ops!T$260 -> 252.0180978 | U267: =Inputs!R155*Ops!U$260 -> 252.0180978 | V267: =Inputs!S155*Ops!V$260 -> 252.0180978 | W267: =Inputs!T155*Ops!W$260 -> 252.0180978 | X267: =Inputs!U155*Ops!X$260 -> 252.0180978 | Y267: =Inputs!V155*Ops!Y$260 -> 252.0180978 | Z267: =Inputs!W155*Ops!Z$260 -> 252.0180978 | AA267: =Inputs!X155*Ops!AA$260 -> 252.0180978 | AB267: =Inputs!Y155*Ops!AB$260 -> 252.0180978 | AC267: =Inputs!Z155*Ops!AC$260 -> 252.0180978 | AD267: =Inputs!AA155*Ops!AD$260 -> 252.0180978 | AE267: =Inputs!AB155*Ops!AE$260 -> 252.0180978 | AF267: =Inputs!AC155*Ops!AF$260 -> 252.0180978 | AG267: =Inputs!AD155*Ops!AG$260 -> 252.0180978 | AH267: =Inputs!AE155*Ops!AH$260 -> 252.0180978 | AI267: =Inputs!AF155*Ops!AI$260 -> 252.0180978 | AJ267: =Inputs!AG155*Ops!AJ$260 -> 252.0180978 | AK267: =Inputs!AH155*Ops!AK$260 -> 0 | AL267: =Inputs!AI155*Ops!AL$260 -> 0 | AM267: =Inputs!AJ155*Ops!AM$260 -> 0 | AN267: =Inputs!AK155*Ops!AN$260 -> 0
C268: =Inputs!C156 -> Varrição Manual | E268: $ 000s | F268: 14422.75778 | G268: =Inputs!D156*Ops!G$260 -> 414.328999 | H268: =Inputs!E156*Ops!H$260 -> 462.9360187 | I268: =Inputs!F156*Ops!I$260 -> 462.9360187 | J268: =Inputs!G156*Ops!J$260 -> 462.9360187 | K268: =Inputs!H156*Ops!K$260 -> 462.9360187 | L268: =Inputs!I156*Ops!L$260 -> 462.9360187 | M268: =Inputs!J156*Ops!M$260 -> 462.9360187 | N268: =Inputs!K156*Ops!N$260 -> 462.9360187 | O268: =Inputs!L156*Ops!O$260 -> 462.9360187 | P268: =Inputs!M156*Ops!P$260 -> 462.9360187 | Q268: =Inputs!N156*Ops!Q$260 -> 462.9360187 | R268: =Inputs!O156*Ops!R$260 -> 462.9360187 | S268: =Inputs!P156*Ops!S$260 -> 462.9360187 | T268: =Inputs!Q156*Ops!T$260 -> 462.9360187 | U268: =Inputs!R156*Ops!U$260 -> 462.9360187 | V268: =Inputs!S156*Ops!V$260 -> 462.9360187 | W268: =Inputs!T156*Ops!W$260 -> 462.9360187 | X268: =Inputs!U156*Ops!X$260 -> 462.9360187 | Y268: =Inputs!V156*Ops!Y$260 -> 511.5430384 | Z268: =Inputs!W156*Ops!Z$260 -> 511.5430384 | AA268: =Inputs!X156*Ops!AA$260 -> 511.5430384 | AB268: =Inputs!Y156*Ops!AB$260 -> 511.5430384 | AC268: =Inputs!Z156*Ops!AC$260 -> 511.5430384 | AD268: =Inputs!AA156*Ops!AD$260 -> 511.5430384 | AE268: =Inputs!AB156*Ops!AE$260 -> 511.5430384 | AF268: =Inputs!AC156*Ops!AF$260 -> 511.5430384 | AG268: =Inputs!AD156*Ops!AG$260 -> 511.5430384 | AH268: =Inputs!AE156*Ops!AH$260 -> 511.5430384 | AI268: =Inputs!AF156*Ops!AI$260 -> 511.5430384 | AJ268: =Inputs!AG156*Ops!AJ$260 -> 511.5430384 | AK268: =Inputs!AH156*Ops!AK$260 -> 0 | AL268: =Inputs!AI156*Ops!AL$260 -> 0 | AM268: =Inputs!AJ156*Ops!AM$260 -> 0 | AN268: =Inputs!AK156*Ops!AN$260 -> 0
C269: =Inputs!C157 -> Serviços Gerais (Tipos I E II) | E269: $ 000s | F269: 68053.51432 | G269: =Inputs!D157*Ops!G$260 -> 2268.450477 | H269: =Inputs!E157*Ops!H$260 -> 2268.450477 | I269: =Inputs!F157*Ops!I$260 -> 2268.450477 | J269: =Inputs!G157*Ops!J$260 -> 2268.450477 | K269: =Inputs!H157*Ops!K$260 -> 2268.450477 | L269: =Inputs!I157*Ops!L$260 -> 2268.450477 | M269: =Inputs!J157*Ops!M$260 -> 2268.450477 | N269: =Inputs!K157*Ops!N$260 -> 2268.450477 | O269: =Inputs!L157*Ops!O$260 -> 2268.450477 | P269: =Inputs!M157*Ops!P$260 -> 2268.450477 | Q269: =Inputs!N157*Ops!Q$260 -> 2268.450477 | R269: =Inputs!O157*Ops!R$260 -> 2268.450477 | S269: =Inputs!P157*Ops!S$260 -> 2268.450477 | T269: =Inputs!Q157*Ops!T$260 -> 2268.450477 | U269: =Inputs!R157*Ops!U$260 -> 2268.450477 | V269: =Inputs!S157*Ops!V$260 -> 2268.450477 | W269: =Inputs!T157*Ops!W$260 -> 2268.450477 | X269: =Inputs!U157*Ops!X$260 -> 2268.450477 | Y269: =Inputs!V157*Ops!Y$260 -> 2268.450477 | Z269: =Inputs!W157*Ops!Z$260 -> 2268.450477 | AA269: =Inputs!X157*Ops!AA$260 -> 2268.450477 | AB269: =Inputs!Y157*Ops!AB$260 -> 2268.450477 | AC269: =Inputs!Z157*Ops!AC$260 -> 2268.450477 | AD269: =Inputs!AA157*Ops!AD$260 -> 2268.450477 | AE269: =Inputs!AB157*Ops!AE$260 -> 2268.450477 | AF269: =Inputs!AC157*Ops!AF$260 -> 2268.450477 | AG269: =Inputs!AD157*Ops!AG$260 -> 2268.450477 | AH269: =Inputs!AE157*Ops!AH$260 -> 2268.450477 | AI269: =Inputs!AF157*Ops!AI$260 -> 2268.450477 | AJ269: =Inputs!AG157*Ops!AJ$260 -> 2268.450477 | AK269: =Inputs!AH157*Ops!AK$260 -> 0 | AL269: =Inputs!AI157*Ops!AL$260 -> 0 | AM269: =Inputs!AJ157*Ops!AM$260 -> 0 | AN269: =Inputs!AK157*Ops!AN$260 -> 0
C270: =Inputs!C158 -> Destinação Final | E270: $ 000s | F270: 77409.20833 | G270: =Inputs!D158*Ops!G$260 -> 1525.762869 | H270: =Inputs!E158*Ops!H$260 -> 1561.539491 | I270: =Inputs!F158*Ops!I$260 -> 1594.421036 | J270: =Inputs!G158*Ops!J$260 -> 1627.81412 | K270: =Inputs!H158*Ops!K$260 -> 1665.128074 | L270: =Inputs!I158*Ops!L$260 -> 1699.563548 | M270: =Inputs!J158*Ops!M$260 -> 1716.869205 | N270: =Inputs!K158*Ops!N$260 -> 1734.350426 | O270: =Inputs!L158*Ops!O$260 -> 1752.01425 | P270: =Inputs!M158*Ops!P$260 -> 1769.856931 | Q270: =Inputs!N158*Ops!Q$260 -> 1787.88554 | R270: =Inputs!O158*Ops!R$260 -> 1806.096367 | S270: =Inputs!P158*Ops!S$260 -> 1824.496517 | T270: =Inputs!Q158*Ops!T$260 -> 1843.082314 | U270: =Inputs!R158*Ops!U$260 -> 2537.701213 | V270: =Inputs!S158*Ops!V$260 -> 2700.176854 | W270: =Inputs!T158*Ops!W$260 -> 2865.726894 | X270: =Inputs!U158*Ops!X$260 -> 3034.391726 | Y270: =Inputs!V158*Ops!Y$260 -> 3206.223164 | Z270: =Inputs!W158*Ops!Z$260 -> 3381.268248 | AA270: =Inputs!X158*Ops!AA$260 -> 3415.855062 | AB270: =Inputs!Y158*Ops!AB$260 -> 3450.797603 | AC270: =Inputs!Z158*Ops!AC$260 -> 3486.099304 | AD270: =Inputs!AA158*Ops!AD$260 -> 3521.763634 | AE270: =Inputs!AB158*Ops!AE$260 -> 3557.794099 | AF270: =Inputs!AC158*Ops!AF$260 -> 3594.194238 | AG270: =Inputs!AD158*Ops!AG$260 -> 3630.973029 | AH270: =Inputs!AE158*Ops!AH$260 -> 3668.123286 | AI270: =Inputs!AF158*Ops!AI$260 -> 3705.659459 | AJ270: =Inputs!AG158*Ops!AJ$260 -> 3743.579837 | AK270: =Inputs!AH158*Ops!AK$260 -> 0 | AL270: =Inputs!AI158*Ops!AL$260 -> 0 | AM270: =Inputs!AJ158*Ops!AM$260 -> 0 | AN270: =Inputs!AK158*Ops!AN$260 -> 0
C271: =Inputs!C159 -> Educaçao Ambiental | E271: $ 000s | F271: 6288.287497 | G271: =Inputs!D159*Ops!G$260 -> 209.6095832 | H271: =Inputs!E159*Ops!H$260 -> 209.6095832 | I271: =Inputs!F159*Ops!I$260 -> 209.6095832 | J271: =Inputs!G159*Ops!J$260 -> 209.6095832 | K271: =Inputs!H159*Ops!K$260 -> 209.6095832 | L271: =Inputs!I159*Ops!L$260 -> 209.6095832 | M271: =Inputs!J159*Ops!M$260 -> 209.6095832 | N271: =Inputs!K159*Ops!N$260 -> 209.6095832 | O271: =Inputs!L159*Ops!O$260 -> 209.6095832 | P271: =Inputs!M159*Ops!P$260 -> 209.6095832 | Q271: =Inputs!N159*Ops!Q$260 -> 209.6095832 | R271: =Inputs!O159*Ops!R$260 -> 209.6095832 | S271: =Inputs!P159*Ops!S$260 -> 209.6095832 | T271: =Inputs!Q159*Ops!T$260 -> 209.6095832 | U271: =Inputs!R159*Ops!U$260 -> 209.6095832 | V271: =Inputs!S159*Ops!V$260 -> 209.6095832 | W271: =Inputs!T159*Ops!W$260 -> 209.6095832 | X271: =Inputs!U159*Ops!X$260 -> 209.6095832 | Y271: =Inputs!V159*Ops!Y$260 -> 209.6095832 | Z271: =Inputs!W159*Ops!Z$260 -> 209.6095832 | AA271: =Inputs!X159*Ops!AA$260 -> 209.6095832 | AB271: =Inputs!Y159*Ops!AB$260 -> 209.6095832 | AC271: =Inputs!Z159*Ops!AC$260 -> 209.6095832 | AD271: =Inputs!AA159*Ops!AD$260 -> 209.6095832 | AE271: =Inputs!AB159*Ops!AE$260 -> 209.6095832 | AF271: =Inputs!AC159*Ops!AF$260 -> 209.6095832 | AG271: =Inputs!AD159*Ops!AG$260 -> 209.6095832 | AH271: =Inputs!AE159*Ops!AH$260 -> 209.6095832 | AI271: =Inputs!AF159*Ops!AI$260 -> 209.6095832 | AJ271: =Inputs!AG159*Ops!AJ$260 -> 209.6095832 | AK271: =Inputs!AH159*Ops!AK$260 -> 0 | AL271: =Inputs!AI159*Ops!AL$260 -> 0 | AM271: =Inputs!AJ159*Ops!AM$260 -> 0 | AN271: =Inputs!AK159*Ops!AN$260 -> 0
